Workbook

Sheet Notes
A2: Maternity Friends and Family Test (FFT) Data - February 2019

Sheet Summary
B7: FFT | C7: Number of organisations submitting | D7: Total responses to date | E7: Responses | G7: Response Rate | I7: Score (% recommend) | K7: Score (% not recommend)
C8: =[1]Instructions!$D$1 -> 2019-02-01 | D8: =[1]Instructions!$D$1 -> 2019-02-01 | E8: =[1]Instructions!$D$1 -> 2019-02-01 | F8: =[1]Instructions!$D$1-5 -> 2019-01-27 | G8: =[1]Instructions!$D$1 -> 2019-02-01 | H8: =[1]Instructions!$D$1-5 -> 2019-01-27 | I8: =[1]Instructions!$D$1 -> 2019-02-01 | J8: =[1]Instructions!$D$1-5 -> 2019-01-27 | K8: =[1]Instructions!$D$1 -> 2019-02-01 | L8: =[1]Instructions!$D$1-5 -> 2019-01-27
B9: Maternity Total | C9: NA | D9: 2321787 | E9: 32053 | F9: 33983 | G9: NA | H9: NA | I9: 0.9617508502 | J9: 0.9594797399 | K9: 0.014943999 | L9: 0.01556660683
B10: Maternity NHS Total | C10: NA | D10: 2318906 | E10: 31945 | F10: 33815 | G10: NA | H10: NA | I10: 0.961621537 | J10: 0.9593671448 | K10: 0.01499452183 | L10: 0.01561437232
B11: Maternity IS Total | C11: NA | D11: 2881 | E11: 108 | F11: 168 | G11: NA | H11: NA | I11: 1 | J11: 0.9821428571 | K11: 0 | L11: 0.005952380952
B12: Antenatal Total | C12: 131 | D12: 461603 | E12: 7134 | F12: 7550 | G12: NA | H12: NA | I12: 0.9530417718 | J12: 0.9556291391 | K12: 0.01878329128 | L12: 0.01761589404
B13: Antenatal NHS | C13: 130 | D13: 460577 | E13: 7097 | F13: 7498 | G13: NA | H13: NA | I13: 0.9527969565 | J13: 0.955321419 | K13: 0.01888121742 | L13: 0.01773806348
B14: Antenatal IS | C14: 1 | D14: 1026 | E14: 37 | F14: 52 | G14: NA | H14: NA | I14: 1 | J14: 1 | K14: 0 | L14: 0
B15: Birth Total | C15: 131 | D15: 726464 | E15: 9567 | F15: 10318 | G15: 0.2221731962 | H15: 0.2184998518 | I15: 0.9736594544 | J15: 0.9689862376 | K15: 0.01170690917 | L15: 0.01289009498
B16: Birth NHS | C16: 130 | D16: 726107 | E16: 9560 | F16: 10302 | G16: 0.2221705787 | H16: 0.2183182165 | I16: 0.9736401674 | J16: 0.9689380703 | K16: 0.01171548117 | L16: 0.01291011454
B17: Birth IS | C17: 1 | D17: 357 | E17: 7 | F17: 16 | G17: 0.2258064516 | H17: 0.4705882353 | I17: 1 | J17: 1 | K17: 0 | L17: 0
B18: Postnatal Ward Total | C18: 130 | D18: 783479 | E18: 11096 | F18: 11576 | G18: NA | H18: NA | I18: 0.9507930786 | J18: 0.9465272979 | K18: 0.01739365537 | L18: 0.01960953697
B19: Postnatal Ward Total NHS | C19: 130 | D19: 783479 | E19: 11096 | F19: 11576 | G19: NA | H19: NA | I19: 0.9507930786 | J19: 0.9465272979 | K19: 0.01739365537 | L19: 0.01960953697
B20: Postnatal Ward Total IS | C20: NA | D20: NA | E20: NA | F20: NA | G20: NA | H20: NA | I20: NA | J20: NA | K20: NA | L20: NA
B21: Postnatal Community Total | C21: 131 | D21: 350241 | E21: 4256 | F21: 4539 | G21: NA | H21: NA | I21: 0.9781484962 | J21: 0.977307777 | K21: 0.009398496241 | L21: 0.007931262393
B22: Postnatal Community NHS | C22: 130 | D22: 348743 | E22: 4192 | F22: 4439 | G22: NA | H22: NA | I22: 0.9778148855 | J22: 0.9774724037 | K22: 0.009541984733 | L22: 0.007884658707
B23: Postnatal Community IS | C23: 1 | D23: 1498 | E23: 64 | F23: 100 | G23: NA | H23: NA | I23: 1 | J23: 0.97 | K23: 0 | L23: 0.01

Sheet Region (Local Office) Q1
B6: Sort data by:
A9: Region (LO) Code | B9: Region (Local Office) | C9: Total Responses | D9: Percentage Recommended | E9: Percentage Not Recommended | F9: Breakdown of Responses
F10: Extremely Likely | G10: Likely | H10: Neither | I10: Unlikely | J10: Extremely Unlikely | K10: Don't Know
B11: England (including Independent Sector providers) | C11: 7134 | D11: 0.9530417718 | E11: 0.01878329128 | F11: 5435 | G11: 1364 | H11: 138 | I11: 45 | J11: 89 | K11: 63
B12: England (excluding Independent Sector providers) | C12: 7097 | D12: 0.9527969565 | E12: 0.01888121742 | F12: 5400 | G12: 1362 | H12: 138 | I12: 45 | J12: 89 | K12: 63
B13: Selection (excluding suppressed data) | C13: =SUBTOTAL(9,C14:C40) -> 7134 | D13: =IFERROR((F13+G13)/SUM(F13:K13), "-") -> 0.9530417718 | E13: =IFERROR((I13+J13)/SUM(F13:K13), "-") -> 0.01878329128 | F13: =SUBTOTAL(9,F14:F40) -> 5435 | G13: 1364 | H13: 138 | I13: 45 | J13: 89 | K13: 63
A14: Q72 | B14: NHS England Yorkshire & Humber | C14: 919 | D14: 0.9673558215 | E14: 0.008705114255 | F14: 703 | G14: 186 | H14: 20 | I14: 5 | J14: 3 | K14: 2
A15: Q74 | B15: NHS England Cumbria & North East | C15: 125 | D15: 1 | E15: 0 | F15: 111 | G15: 14 | H15: 0 | I15: 0 | J15: 0 | K15: 0
A16: Q75 | B16: NHS England Cheshire & Merseyside | C16: 226 | D16: 0.9469026549 | E16: 0.01327433628 | F16: 182 | G16: 32 | H16: 9 | I16: 2 | J16: 1 | K16: 0
A17: Q83 | B17: NHS England Greater Manchester | C17: 490 | D17: 0.9530612245 | E17: 0.02040816327 | F17: 372 | G17: 95 | H17: 6 | I17: 3 | J17: 7 | K17: 7
A18: Q84 | B18: NHS England Lancashire | C18: 205 | D18: 0.9853658537 | E18: 0.00487804878 | F18: 175 | G18: 27 | H18: 2 | I18: 0 | J18: 1 | K18: 0
A19: Q76 | B19: NHS England North Midlands | C19: 435 | D19: 0.9816091954 | E19: 0.006896551724 | F19: 361 | G19: 66 | H19: 3 | I19: 1 | J19: 2 | K19: 2
A20: Q77 | B20: NHS England West Midlands | C20: 531 | D20: 0.9585687382 | E20: 0.02259887006 | F20: 416 | G20: 93 | H20: 5 | I20: 3 | J20: 9 | K20: 5
A21: Q78 | B21: NHS England Central Midlands | C21: 426 | D21: 0.9507042254 | E21: 0.01643192488 | F21: 325 | G21: 80 | H21: 12 | I21: 4 | J21: 3 | K21: 2
A22: Q79 | B22: NHS England East | C22: 779 | D22: 0.9768934531 | E22: 0.008985879332 | F22: 624 | G22: 137 | H22: 9 | I22: 0 | J22: 7 | K22: 2
A23: Q85 | B23: NHS England South West (South West South) | C23: 313 | D23: 0.9488817891 | E23: 0.02236421725 | F23: 248 | G23: 49 | H23: 6 | I23: 3 | J23: 4 | K23: 3
A24: Q86 | B24: NHS England South West (South West North) | C24: 256 | D24: 0.96875 | E24: 0.0078125 | F24: 205 | G24: 43 | H24: 1 | I24: 1 | J24: 1 | K24: 5
A25: Q87 | B25: NHS England South East (Hampshire, Isle Of Wight & Thames Valley) | C25: 471 | D25: 0.957537155 | E25: 0.002123142251 | F25: 369 | G25: 82 | H25: 15 | I25: 0 | J25: 1 | K25: 4
A26: Q88 | B26: NHS England South East (Kent, Surrey & Sussex) | C26: 179 | D26: 0.9776536313 | E26: 0 | F26: 147 | G26: 28 | H26: 2 | I26: 0 | J26: 0 | K26: 2
A27: Q71 | B27: NHS England London | C27: 1742 | D27: 0.9138920781 | E27: 0.04190585534 | F27: 1162 | G27: 430 | H27: 48 | I27: 23 | J27: 50 | K27: 29
A28: zIS1 | B28: Independent Sector Provider | C28: 37 | D28: 1 | E28: 0 | F28: 35 | G28: 2 | H28: 0 | I28: 0 | J28: 0 | K28: 0

Sheet Trusts Q1
B6: Sort data by:
A9: Region (LO) Code | B9: Trust Code | C9: Trust Name | D9: Total Responses | E9: Percentage Recommended | F9: Percentage Not Recommended | G9: Breakdown of Responses | M9: Mode of Collection
G10: Extremely Likely | H10: Likely | I10: Neither | J10: Unlikely | K10: Extremely Unlikely | L10: Don't Know | M10: SMS/Text / Smartphone App | N10: Electronic tablet/kiosk at point of discharge | O10: Paper / postcard at point of discharge | P10: Paper survey sent to the patients home | Q10: Telephone survey once patient is home | R10: Online survey once patient is home | S10: Other
C11: England (including Independent Sector providers) | D11: 7134 | E11: 0.9530417718 | F11: 0.01878329128 | G11: 5435 | H11: 1364 | I11: 138 | J11: 45 | K11: 89 | L11: 63 | M11: 510 | N11: 868 | O11: 5442 | P11: 0 | Q11: 1 | R11: 305 | S11: 8
C12: England (excluding Independent Sector providers) | D12: 7097 | E12: 0.9527969565 | F12: 0.01888121742 | G12: 5400 | H12: 1362 | I12: 138 | J12: 45 | K12: 89 | L12: 63 | M12: 510 | N12: 831 | O12: 5442 | P12: 0 | Q12: 1 | R12: 305 | S12: 8
C13: Selection (excluding suppressed data) | D13: =SUBTOTAL(9,D14:D298) -> 7134 | E13: =IFERROR((G13+H13)/SUM(G13:L13), "-") -> 0.9533276932 | F13: =IFERROR((J13+K13)/SUM(G13:L13), "-") -> 0.0184715172 | G13: =SUBTOTAL(9,G14:G298) -> 5405 | H13: 1356 | I13: 137 | J13: 44 | K13: 87 | L13: 63 | M13: 510 | N13: 865 | O13: 5413 | P13: 0 | Q13: 1 | R13: 295 | S13: 8
A14: Q71 | B14: RJ7 | C14: ST GEORGE'S UNIVERSITY HOSPITALS NHS FOUNDATION TRUST | D14: 0 | E14: NA | F14: NA | G14: 0 | H14: 0 | I14: 0 | J14: 0 | K14: 0 | L14: 0 | M14: 0 | N14: 0 | O14: 0 | P14: 0 | Q14: 0 | R14: 0 | S14: 0
A15: Q71 | B15: RRV | C15: UNIVERSITY COLLEGE LONDON HOSPITALS NHS FOUNDATION TRUST | D15: 1 | E15: * | F15: * | G15: * | H15: * | I15: * | J15: * | K15: * | L15: * | M15: * | N15: * | O15: * | P15: * | Q15: * | R15: * | S15: *
A16: Q71 | B16: RJZ | C16: KING'S COLLEGE HOSPITAL NHS FOUNDATION TRUST | D16: 5 | E16: 1 | F16: 0 | G16: * | H16: * | I16: * | J16: * | K16: * | L16: * | M16: * | N16: * | O16: * | P16: * | Q16: * | R16: * | S16: *
A17: Q71 | B17: RAL | C17: ROYAL FREE LONDON NHS FOUNDATION TRUST | D17: 12 | E17: 1 | F17: 0 | G17: 9 | H17: 3 | I17: 0 | J17: 0 | K17: 0 | L17: 0 | M17: 0 | N17: 0 | O17: 12 | P17: 0 | Q17: 0 | R17: 0 | S17: 0
A18: Q71 | B18: RJ1 | C18: GUY'S AND ST THOMAS' NHS FOUNDATION TRUST | D18: 13 | E18: 0.8461538462 | F18: 0.07692307692 | G18: 6 | H18: 5 | I18: 1 | J18: 1 | K18: 0 | L18: 0 | M18: 0 | N18: 0 | O18: 0 | P18: 0 | Q18: 0 | R18: 13 | S18: 0
A19: Q71 | B19: RJ6 | C19: CROYDON HEALTH SERVICES NHS TRUST | D19: 14 | E19: 1 | F19: 0 | G19: 13 | H19: 1 | I19: 0 | J19: 0 | K19: 0 | L19: 0 | M19: 13 | N19: 1 | O19: 0 | P19: 0 | Q19: 0 | R19: 0 | S19: 0
A20: Q71 | B20: RAX | C20: KINGSTON HOSPITAL NHS FOUNDATION TRUST | D20: 19 | E20: 1 | F20: 0 | G20: 17 | H20: 2 | I20: 0 | J20: 0 | K20: 0 | L20: 0 | M20: 0 | N20: 19 | O20: 0 | P20: 0 | Q20: 0 | R20: 0 | S20: 0
A21: Q71 | B21: RJ2 | C21: LEWISHAM AND GREENWICH NHS TRUST | D21: 45 | E21: 1 | F21: 0 | G21: 34 | H21: 11 | I21: 0 | J21: 0 | K21: 0 | L21: 0 | M21: 0 | N21: 0 | O21: 45 | P21: 0 | Q21: 0 | R21: 0 | S21: 0
A22: Q71 | B22: RVR | C22: EPSOM AND ST HELIER UNIVERSITY HOSPITALS NHS TRUST | D22: 52 | E22: 0.9615384615 | F22: 0 | G22: 44 | H22: 6 | I22: 1 | J22: 0 | K22: 0 | L22: 1 | M22: 0 | N22: 0 | O22: 52 | P22: 0 | Q22: 0 | R22: 0 | S22: 0
A23: Q71 | B23: RKE | C23: WHITTINGTON HEALTH NHS TRUST | D23: 100 | E23: 0.98 | F23: 0 | G23: 70 | H23: 28 | I23: 2 | J23: 0 | K23: 0 | L23: 0 | M23: 0 | N23: 6 | O23: 94 | P23: 0 | Q23: 0 | R23: 0 | S23: 0
A24: Q71 | B24: R1K | C24: LONDON NORTH WEST UNIVERSITY HEALTHCARE NHS TRUST | D24: 105 | E24: 0.9047619048 | F24: 0.01904761905 | G24: 63 | H24: 32 | I24: 4 | J24: 2 | K24: 0 | L24: 4 | M24: 0 | N24: 0 | O24: 104 | P24: 0 | Q24: 0 | R24: 1 | S24: 0
A25: Q71 | B25: RAS | C25: THE HILLINGDON HOSPITALS NHS FOUNDATION TRUST | D25: 122 | E25: 0.9836065574 | F25: 0.008196721311 | G25: 85 | H25: 35 | I25: 1 | J25: 1 | K25: 0 | L25: 0 | M25: 0 | N25: 0 | O25: 121 | P25: 0 | Q25: 0 | R25: 1 | S25: 0
A26: Q71 | B26: RF4 | C26: BARKING, HAVERING AND REDBRIDGE UNIVERSITY HOSPITALS NHS TRUST | D26: 146 | E26: 0.9794520548 | F26: 0 | G26: 132 | H26: 11 | I26: 2 | J26: 0 | K26: 0 | L26: 1 | M26: 0 | N26: 0 | O26: 146 | P26: 0 | Q26: 0 | R26: 0 | S26: 0
A27: Q71 | B27: RAP | C27: NORTH MIDDLESEX UNIVERSITY HOSPITAL NHS TRUST | D27: 150 | E27: 0.5533333333 | F27: 0.26 | G27: 51 | H27: 32 | I27: 14 | J27: 10 | K27: 29 | L27: 14 | M27: 0 | N27: 150 | O27: 0 | P27: 0 | Q27: 0 | R27: 0 | S27: 0
A28: Q71 | B28: RQX | C28: HOMERTON UNIVERSITY HOSPITAL NHS FOUNDATION TRUST | D28: 162 | E28: 0.950617284 | F28: 0.006172839506 | G28: 100 | H28: 54 | I28: 6 | J28: 0 | K28: 1 | L28: 1 | M28: 0 | N28: 18 | O28: 144 | P28: 0 | Q28: 0 | R28: 0 | S28: 0
A29: Q71 | B29: R1H | C29: BARTS HEALTH NHS TRUST | D29: 222 | E29: 0.972972973 | F29: 0.02252252252 | G29: 169 | H29: 47 | I29: 1 | J29: 1 | K29: 4 | L29: 0 | M29: 10 | N29: 0 | O29: 212 | P29: 0 | Q29: 0 | R29: 0 | S29: 0
A30: Q71 | B30: RYJ | C30: IMPERIAL COLLEGE HEALTHCARE NHS TRUST | D30: 229 | E30: 0.9082969432 | F30: 0.02183406114 | G30: 101 | H30: 107 | I30: 10 | J30: 3 | K30: 2 | L30: 6 | M30: 2 | N30: 191 | O30: 36 | P30: 0 | Q30: 0 | R30: 0 | S30: 0
A31: Q71 | B31: RQM | C31: CHELSEA AND WESTMINSTER HOSPITAL NHS FOUNDATION TRUST | D31: 345 | E31: 0.9217391304 | F31: 0.05507246377 | G31: 266 | H31: 52 | I31: 6 | J31: 5 | K31: 14 | L31: 2 | M31: 343 | N31: 2 | O31: 0 | P31: 0 | Q31: 0 | R31: 0 | S31: 0
A32: Q72 | B32: RCF | C32: AIREDALE NHS FOUNDATION TRUST | D32: 6 | E32: 1 | F32: 0 | G32: 4 | H32: 2 | I32: 0 | J32: 0 | K32: 0 | L32: 0 | M32: 0 | N32: 0 | O32: 6 | P32: 0 | Q32: 0 | R32: 0 | S32: 0
A33: Q72 | B33: RR8 | C33: LEEDS TEACHING HOSPITALS NHS TRUST | D33: 6 | E33: 1 | F33: 0 | G33: 6 | H33: 0 | I33: 0 | J33: 0 | K33: 0 | L33: 0 | M33: 0 | N33: 0 | O33: 4 | P33: 0 | Q33: 0 | R33: 2 | S33: 0
A34: Q72 | B34: RAE | C34: BRADFORD TEACHING HOSPITALS NHS FOUNDATION TRUST | D34: 7 | E34: 1 | F34: 0 | G34: 4 | H34: 3 | I34: 0 | J34: 0 | K34: 0 | L34: 0 | M34: 0 | N34: 0 | O34: 7 | P34: 0 | Q34: 0 | R34: 0 | S34: 0
A35: Q72 | B35: RWA | C35: HULL AND EAST YORKSHIRE HOSPITALS NHS TRUST | D35: 23 | E35: 0.8695652174 | F35: 0 | G35: 18 | H35: 2 | I35: 3 | J35: 0 | K35: 0 | L35: 0 | M35: 0 | N35: 0 | O35: 23 | P35: 0 | Q35: 0 | R35: 0 | S35: 0
A36: Q72 | B36: RFF | C36: BARNSLEY HOSPITAL NHS FOUNDATION TRUST | D36: 25 | E36: 1 | F36: 0 | G36: 24 | H36: 1 | I36: 0 | J36: 0 | K36: 0 | L36: 0 | M36: 0 | N36: 0 | O36: 25 | P36: 0 | Q36: 0 | R36: 0 | S36: 0
A37: Q72 | B37: RHQ | C37: SHEFFIELD TEACHING HOSPITALS NHS FOUNDATION TRUST | D37: 40 | E37: 0.95 | F37: 0.025 | G37: 31 | H37: 7 | I37: 0 | J37: 1 | K37: 0 | L37: 1 | M37: 1 | N37: 0 | O37: 39 | P37: 0 | Q37: 0 | R37: 0 | S37: 0
A38: Q72 | B38: RP5 | C38: DONCASTER AND BASSETLAW TEACHING HOSPITALS NHS FOUNDATION TRUST | D38: 46 | E38: 0.9782608696 | F38: 0 | G38: 39 | H38: 6 | I38: 1 | J38: 0 | K38: 0 | L38: 0 | M38: 0 | N38: 0 | O38: 46 | P38: 0 | Q38: 0 | R38: 0 | S38: 0
A39: Q72 | B39: RFR | C39: THE ROTHERHAM NHS FOUNDATION TRUST | D39: 53 | E39: 1 | F39: 0 | G39: 45 | H39: 8 | I39: 0 | J39: 0 | K39: 0 | L39: 0 | M39: 0 | N39: 0 | O39: 53 | P39: 0 | Q39: 0 | R39: 0 | S39: 0
A40: Q72 | B40: RCD | C40: HARROGATE AND DISTRICT NHS FOUNDATION TRUST | D40: 55 | E40: 1 | F40: 0 | G40: 45 | H40: 10 | I40: 0 | J40: 0 | K40: 0 | L40: 0 | M40: 0 | N40: 0 | O40: 55 | P40: 0 | Q40: 0 | R40: 0 | S40: 0
A41: Q72 | B41: RWY | C41: CALDERDALE AND HUDDERSFIELD NHS FOUNDATION TRUST | D41: 130 | E41: 0.9923076923 | F41: 0 | G41: 103 | H41: 26 | I41: 1 | J41: 0 | K41: 0 | L41: 0 | M41: 0 | N41: 130 | O41: 0 | P41: 0 | Q41: 0 | R41: 0 | S41: 0
A42: Q72 | B42: RJL | C42: NORTHERN LINCOLNSHIRE AND GOOLE NHS FOUNDATION TRUST | D42: 163 | E42: 0.9325153374 | F42: 0.03680981595 | G42: 107 | H42: 45 | I42: 5 | J42: 3 | K42: 3 | L42: 0 | M42: 0 | N42: 0 | O42: 163 | P42: 0 | Q42: 0 | R42: 0 | S42: 0
A43: Q72 | B43: RCB | C43: YORK TEACHING HOSPITAL NHS FOUNDATION TRUST | D43: 180 | E43: 0.9666666667 | F43: 0.005555555556 | G43: 134 | H43: 40 | I43: 4 | J43: 1 | K43: 0 | L43: 1 | M43: 0 | N43: 0 | O43: 180 | P43: 0 | Q43: 0 | R43: 0 | S43: 0
A44: Q72 | B44: RXF | C44: MID YORKSHIRE HOSPITALS NHS TRUST | D44: 185 | E44: 0.9675675676 | F44: 0 | G44: 143 | H44: 36 | I44: 6 | J44: 0 | K44: 0 | L44: 0 | M44: 0 | N44: 0 | O44: 181 | P44: 0 | Q44: 0 | R44: 4 | S44: 0
A45: Q74 | B45: RLN | C45: CITY HOSPITALS SUNDERLAND NHS FOUNDATION TRUST | D45: 0 | E45: NA | F45: NA | G45: 0 | H45: 0 | I45: 0 | J45: 0 | K45: 0 | L45: 0 | M45: 0 | N45: 0 | O45: 0 | P45: 0 | Q45: 0 | R45: 0 | S45: 0
A46: Q74 | B46: RTD | C46: THE NEWCASTLE UPON TYNE HOSPITALS NHS FOUNDATION TRUST | D46: 0 | E46: NA | F46: NA | G46: 0 | H46: 0 | I46: 0 | J46: 0 | K46: 0 | L46: 0 | M46: 0 | N46: 0 | O46: 0 | P46: 0 | Q46: 0 | R46: 0 | S46: 0
A47: Q74 | B47: RTR | C47: SOUTH TEES HOSPITALS NHS FOUNDATION TRUST | D47: 0 | E47: NA | F47: NA | G47: 0 | H47: 0 | I47: 0 | J47: 0 | K47: 0 | L47: 0 | M47: 0 | N47: 0 | O47: 0 | P47: 0 | Q47: 0 | R47: 0 | S47: 0
A48: Q74 | B48: RR7 | C48: GATESHEAD HEALTH NHS FOUNDATION TRUST | D48: 5 | E48: 1 | F48: 0 | G48: 5 | H48: 0 | I48: 0 | J48: 0 | K48: 0 | L48: 0 | M48: 0 | N48: 0 | O48: 5 | P48: 0 | Q48: 0 | R48: 0 | S48: 0
A49: Q74 | B49: RXP | C49: COUNTY DURHAM AND DARLINGTON NHS FOUNDATION TRUST | D49: 13 | E49: 1 | F49: 0 | G49: 10 | H49: 3 | I49: 0 | J49: 0 | K49: 0 | L49: 0 | M49: 0 | N49: 0 | O49: 13 | P49: 0 | Q49: 0 | R49: 0 | S49: 0
A50: Q74 | B50: RVW | C50: NORTH TEES AND HARTLEPOOL NHS FOUNDATION TRUST | D50: 18 | E50: 1 | F50: 0 | G50: 14 | H50: 4 | I50: 0 | J50: 0 | K50: 0 | L50: 0 | M50: 0 | N50: 0 | O50: 18 | P50: 0 | Q50: 0 | R50: 0 | S50: 0
A51: Q74 | B51: RE9 | C51: SOUTH TYNESIDE NHS FOUNDATION TRUST | D51: 22 | E51: 1 | F51: 0 | G51: 17 | H51: 5 | I51: 0 | J51: 0 | K51: 0 | L51: 0 | M51: 0 | N51: 0 | O51: 22 | P51: 0 | Q51: 0 | R51: 0 | S51: 0
A52: Q74 | B52: RNL | C52: NORTH CUMBRIA UNIVERSITY HOSPITALS NHS TRUST | D52: 25 | E52: 1 | F52: 0 | G52: 25 | H52: 0 | I52: 0 | J52: 0 | K52: 0 | L52: 0 | M52: 0 | N52: 0 | O52: 25 | P52: 0 | Q52: 0 | R52: 0 | S52: 0
A53: Q74 | B53: RTF | C53: NORTHUMBRIA HEALTHCARE NHS FOUNDATION TRUST | D53: 42 | E53: 1 | F53: 0 | G53: 40 | H53: 2 | I53: 0 | J53: 0 | K53: 0 | L53: 0 | M53: 0 | N53: 0 | O53: 42 | P53: 0 | Q53: 0 | R53: 0 | S53: 0
A54: Q75 | B54: RVY | C54: SOUTHPORT AND ORMSKIRK HOSPITAL NHS TRUST | D54: 2 | E54: * | F54: * | G54: * | H54: * | I54: * | J54: * | K54: * | L54: * | M54: * | N54: * | O54: * | P54: * | Q54: * | R54: * | S54: *
A55: Q75 | B55: RBT | C55: MID CHESHIRE HOSPITALS NHS FOUNDATION TRUST | D55: 4 | E55: * | F55: * | G55: * | H55: * | I55: * | J55: * | K55: * | L55: * | M55: * | N55: * | O55: * | P55: * | Q55: * | R55: * | S55: *
A56: Q75 | B56: RJN | C56: EAST CHESHIRE NHS TRUST | D56: 11 | E56: 1 | F56: 0 | G56: 11 | H56: 0 | I56: 0 | J56: 0 | K56: 0 | L56: 0 | M56: 0 | N56: 0 | O56: 11 | P56: 0 | Q56: 0 | R56: 0 | S56: 0
A57: Q75 | B57: REP | C57: LIVERPOOL WOMEN'S NHS FOUNDATION TRUST | D57: 26 | E57: 0.9230769231 | F57: 0.03846153846 | G57: 23 | H57: 1 | I57: 1 | J57: 0 | K57: 1 | L57: 0 | M57: 0 | N57: 0 | O57: 26 | P57: 0 | Q57: 0 | R57: 0 | S57: 0
A58: Q75 | B58: RBN | C58: ST HELENS AND KNOWSLEY TEACHING HOSPITALS NHS TRUST | D58: 28 | E58: 1 | F58: 0 | G58: 26 | H58: 2 | I58: 0 | J58: 0 | K58: 0 | L58: 0 | M58: 0 | N58: 0 | O58: 24 | P58: 0 | Q58: 0 | R58: 4 | S58: 0
A59: Q75 | B59: RJR | C59: COUNTESS OF CHESTER HOSPITAL NHS FOUNDATION TRUST | D59: 34 | E59: 0.9705882353 | F59: 0 | G59: 27 | H59: 6 | I59: 1 | J59: 0 | K59: 0 | L59: 0 | M59: 2 | N59: 0 | O59: 32 | P59: 0 | Q59: 0 | R59: 0 | S59: 0
A60: Q75 | B60: RBL | C60: WIRRAL UNIVERSITY TEACHING HOSPITAL NHS FOUNDATION TRUST | D60: 55 | E60: 0.8909090909 | F60: 0.01818181818 | G60: 35 | H60: 14 | I60: 5 | J60: 1 | K60: 0 | L60: 0 | M60: 0 | N60: 0 | O60: 55 | P60: 0 | Q60: 0 | R60: 0 | S60: 0
A61: Q75 | B61: RWW | C61: WARRINGTON AND HALTON HOSPITALS NHS FOUNDATION TRUST | D61: 66 | E61: 0.9696969697 | F61: 0 | G61: 56 | H61: 8 | I61: 2 | J61: 0 | K61: 0 | L61: 0 | M61: 0 | N61: 0 | O61: 66 | P61: 0 | Q61: 0 | R61: 0 | S61: 0
A62: Q76 | B62: RK5 | C62: SHERWOOD FOREST HOSPITALS NHS FOUNDATION TRUST | D62: 23 | E62: 0.9130434783 | F62: 0.04347826087 | G62: 17 | H62: 4 | I62: 1 | J62: 0 | K62: 1 | L62: 0 | M62: 22 | N62: 0 | O62: 0 | P62: 0 | Q62: 0 | R62: 1 | S62: 0
A63: Q76 | B63: RJE | C63: UNIVERSITY HOSPITALS OF NORTH MIDLANDS NHS TRUST | D63: 27 | E63: 0.962962963 | F63: 0 | G63: 24 | H63: 2 | I63: 1 | J63: 0 | K63: 0 | L63: 0 | M63: 0 | N63: 0 | O63: 27 | P63: 0 | Q63: 0 | R63: 0 | S63: 0
A64: Q76 | B64: RXW | C64: SHREWSBURY AND TELFORD HOSPITAL NHS TRUST | D64: 36 | E64: 0.9444444444 | F64: 0.02777777778 | G64: 28 | H64: 6 | I64: 0 | J64: 1 | K64: 0 | L64: 1 | M64: 0 | N64: 0 | O64: 36 | P64: 0 | Q64: 0 | R64: 0 | S64: 0
A65: Q76 | B65: RTG | C65: UNIVERSITY HOSPITALS OF DERBY AND BURTON NHS FOUNDATION TRUST | D65: 76 | E65: 0.9736842105 | F65: 0.01315789474 | G65: 66 | H65: 8 | I65: 0 | J65: 0 | K65: 1 | L65: 1 | M65: 4 | N65: 1 | O65: 58 | P65: 0 | Q65: 0 | R65: 13 | S65: 0
A66: Q76 | B66: RX1 | C66: NOTTINGHAM UNIVERSITY HOSPITALS NHS TRUST | D66: 99 | E66: 1 | F66: 0 | G66: 84 | H66: 15 | I66: 0 | J66: 0 | K66: 0 | L66: 0 | M66: 0 | N66: 0 | O66: 99 | P66: 0 | Q66: 0 | R66: 0 | S66: 0
A67: Q76 | B67: RFS | C67: CHESTERFIELD ROYAL HOSPITAL NHS FOUNDATION TRUST | D67: 174 | E67: 0.9942528736 | F67: 0 | G67: 142 | H67: 31 | I67: 1 | J67: 0 | K67: 0 | L67: 0 | M67: 0 | N67: 0 | O67: 174 | P67: 0 | Q67: 0 | R67: 0 | S67: 0
A68: Q77 | B68: RXK | C68: SANDWELL AND WEST BIRMINGHAM HOSPITALS NHS TRUST | D68: 0 | E68: NA | F68: NA | G68: 0 | H68: 0 | I68: 0 | J68: 0 | K68: 0 | L68: 0 | M68: 0 | N68: 0 | O68: 0 | P68: 0 | Q68: 0 | R68: 0 | S68: 0
A69: Q77 | B69: RL4 | C69: THE ROYAL WOLVERHAMPTON NHS TRUST | D69: 2 | E69: * | F69: * | G69: * | H69: * | I69: * | J69: * | K69: * | L69: * | M69: * | N69: * | O69: * | P69: * | Q69: * | R69: * | S69: *
A70: Q77 | B70: RRK | C70: UNIVERSITY HOSPITALS BIRMINGHAM NHS FOUNDATION TRUST | D70: 5 | E70: 0.6 | F70: 0.4 | G70: * | H70: * | I70: * | J70: * | K70: * | L70: * | M70: * | N70: * | O70: * | P70: * | Q70: * | R70: * | S70: *
A71: Q77 | B71: RLQ | C71: WYE VALLEY NHS TRUST | D71: 9 | E71: 0.8888888889 | F71: 0.1111111111 | G71: 8 | H71: 0 | I71: 0 | J71: 0 | K71: 1 | L71: 0 | M71: 0 | N71: 0 | O71: 9 | P71: 0 | Q71: 0 | R71: 0 | S71: 0
A72: Q77 | B72: RBK | C72: WALSALL HEALTHCARE NHS TRUST | D72: 29 | E72: 0.9655172414 | F72: 0 | G72: 18 | H72: 10 | I72: 1 | J72: 0 | K72: 0 | L72: 0 | M72: 0 | N72: 29 | O72: 0 | P72: 0 | Q72: 0 | R72: 0 | S72: 0
A73: Q77 | B73: RKB | C73: UNIVERSITY HOSPITALS COVENTRY AND WARWICKSHIRE NHS TRUST | D73: 43 | E73: 0.9069767442 | F73: 0.04651162791 | G73: 27 | H73: 12 | I73: 0 | J73: 1 | K73: 1 | L73: 2 | M73: 0 | N73: 7 | O73: 36 | P73: 0 | Q73: 0 | R73: 0 | S73: 0
A74: Q77 | B74: RJC | C74: SOUTH WARWICKSHIRE NHS FOUNDATION TRUST | D74: 49 | E74: 0.9591836735 | F74: 0.02040816327 | G74: 32 | H74: 15 | I74: 0 | J74: 1 | K74: 0 | L74: 1 | M74: 0 | N74: 0 | O74: 48 | P74: 0 | Q74: 0 | R74: 1 | S74: 0
A75: Q77 | B75: RLT | C75: GEORGE ELIOT HOSPITAL NHS TRUST | D75: 62 | E75: 0.9516129032 | F75: 0.01612903226 | G75: 49 | H75: 10 | I75: 1 | J75: 0 | K75: 1 | L75: 1 | M75: 19 | N75: 0 | O75: 42 | P75: 0 | Q75: 1 | R75: 0 | S75: 0
A76: Q77 | B76: RNA | C76: THE DUDLEY GROUP NHS FOUNDATION TRUST | D76: 62 | E76: 0.9838709677 | F76: 0.01612903226 | G76: 55 | H76: 6 | I76: 0 | J76: 1 | K76: 0 | L76: 0 | M76: 0 | N76: 0 | O76: 62 | P76: 0 | Q76: 0 | R76: 0 | S76: 0
A77: Q77 | B77: RWP | C77: WORCESTERSHIRE ACUTE HOSPITALS NHS TRUST | D77: 122 | E77: 0.9426229508 | F77: 0.03278688525 | G77: 99 | H77: 16 | I77: 2 | J77: 0 | K77: 4 | L77: 1 | M77: 0 | N77: 0 | O77: 122 | P77: 0 | Q77: 0 | R77: 0 | S77: 0
A78: Q77 | B78: RQ3 | C78: BIRMINGHAM WOMEN'S AND CHILDREN'S NHS FOUNDATION TRUST | D78: 148 | E78: 0.9932432432 | F78: 0 | G78: 123 | H78: 24 | I78: 1 | J78: 0 | K78: 0 | L78: 0 | M78: 0 | N78: 0 | O78: 147 | P78: 0 | Q78: 0 | R78: 1 | S78: 0
A79: Q78 | B79: RC1 | C79: BEDFORD HOSPITAL NHS TRUST | D79: 1 | E79: * | F79: * | G79: * | H79: * | I79: * | J79: * | K79: * | L79: * | M79: * | N79: * | O79: * | P79: * | Q79: * | R79: * | S79: *
A80: Q78 | B80: RWH | C80: EAST AND NORTH HERTFORDSHIRE NHS TRUST | D80: 2 | E80: * | F80: * | G80: * | H80: * | I80: * | J80: * | K80: * | L80: * | M80: * | N80: * | O80: * | P80: * | Q80: * | R80: * | S80: *
A81: Q78 | B81: RWD | C81: UNITED LINCOLNSHIRE HOSPITALS NHS TRUST | D81: 8 | E81: 1 | F81: 0 | G81: 8 | H81: 0 | I81: 0 | J81: 0 | K81: 0 | L81: 0 | M81: 0 | N81: 0 | O81: 8 | P81: 0 | Q81: 0 | R81: 0 | S81: 0
A82: Q78 | B82: RWG | C82: WEST HERTFORDSHIRE HOSPITALS NHS TRUST | D82: 16 | E82: 1 | F82: 0 | G82: 10 | H82: 6 | I82: 0 | J82: 0 | K82: 0 | L82: 0 | M82: 0 | N82: 0 | O82: 16 | P82: 0 | Q82: 0 | R82: 0 | S82: 0
A83: Q78 | B83: RNQ | C83: KETTERING GENERAL HOSPITAL NHS FOUNDATION TRUST | D83: 19 | E83: 1 | F83: 0 | G83: 19 | H83: 0 | I83: 0 | J83: 0 | K83: 0 | L83: 0 | M83: 0 | N83: 0 | O83: 19 | P83: 0 | Q83: 0 | R83: 0 | S83: 0
A84: Q78 | B84: RNS | C84: NORTHAMPTON GENERAL HOSPITAL NHS TRUST | D84: 65 | E84: 1 | F84: 0 | G84: 55 | H84: 10 | I84: 0 | J84: 0 | K84: 0 | L84: 0 | M84: 0 | N84: 0 | O84: 0 | P84: 0 | Q84: 0 | R84: 65 | S84: 0
A85: Q78 | B85: RC9 | C85: LUTON AND DUNSTABLE UNIVERSITY HOSPITAL NHS FOUNDATION TRUST | D85: 87 | E85: 0.9885057471 | F85: 0 | G85: 63 | H85: 23 | I85: 0 | J85: 0 | K85: 0 | L85: 1 | M85: 0 | N85: 87 | O85: 0 | P85: 0 | Q85: 0 | R85: 0 | S85: 0
A86: Q78 | B86: RD8 | C86: MILTON KEYNES UNIVERSITY HOSPITAL NHS FOUNDATION TRUST | D86: 108 | E86: 0.8518518519 | F86: 0.05555555556 | G86: 63 | H86: 29 | I86: 9 | J86: 4 | K86: 2 | L86: 1 | M86: 0 | N86: 0 | O86: 7 | P86: 0 | Q86: 0 | R86: 101 | S86: 0
A87: Q78 | B87: RWE | C87: UNIVERSITY HOSPITALS OF LEICESTER NHS TRUST | D87: 120 | E87: 0.9666666667 | F87: 0.008333333333 | G87: 106 | H87: 10 | I87: 3 | J87: 0 | K87: 1 | L87: 0 | M87: 0 | N87: 44 | O87: 76 | P87: 0 | Q87: 0 | R87: 0 | S87: 0
A88: Q79 | B88: RGR | C88: WEST SUFFOLK NHS FOUNDATION TRUST | D88: 0 | E88: NA | F88: NA | G88: 0 | H88: 0 | I88: 0 | J88: 0 | K88: 0 | L88: 0 | M88: 0 | N88: 0 | O88: 0 | P88: 0 | Q88: 0 | R88: 0 | S88: 0
A89: Q79 | B89: RQ8 | C89: MID ESSEX HOSPITAL SERVICES NHS TRUST | D89: 0 | E89: NA | F89: NA | G89: 0 | H89: 0 | I89: 0 | J89: 0 | K89: 0 | L89: 0 | M89: 0 | N89: 0 | O89: 0 | P89: 0 | Q89: 0 | R89: 0 | S89: 0
A90: Q79 | B90: RQW | C90: THE PRINCESS ALEXANDRA HOSPITAL NHS TRUST | D90: 8 | E90: 1 | F90: 0 | G90: 8 | H90: 0 | I90: 0 | J90: 0 | K90: 0 | L90: 0 | M90: 0 | N90: 0 | O90: 0 | P90: 0 | Q90: 0 | R90: 0 | S90: 8
A91: Q79 | B91: RGT | C91: CAMBRIDGE UNIVERSITY HOSPITALS NHS FOUNDATION TRUST | D91: 33 | E91: 0.9393939394 | F91: 0 | G91: 16 | H91: 15 | I91: 2 | J91: 0 | K91: 0 | L91: 0 | M91: 0 | N91: 28 | O91: 5 | P91: 0 | Q91: 0 | R91: 0 | S91: 0
A92: Q79 | B92: RDD | C92: BASILDON AND THURROCK UNIVERSITY HOSPITALS NHS FOUNDATION TRUST | D92: 34 | E92: 0.9705882353 | F92: 0.02941176471 | G92: 30 | H92: 3 | I92: 0 | J92: 0 | K92: 1 | L92: 0 | M92: 0 | N92: 0 | O92: 34 | P92: 0 | Q92: 0 | R92: 0 | S92: 0
A93: Q79 | B93: RCX | C93: THE QUEEN ELIZABETH HOSPITAL, KING'S LYNN, NHS FOUNDATION TRUST | D93: 43 | E93: 0.9534883721 | F93: 0.04651162791 | G93: 37 | H93: 4 | I93: 0 | J93: 0 | K93: 2 | L93: 0 | M93: 0 | N93: 43 | O93: 0 | P93: 0 | Q93: 0 | R93: 0 | S93: 0
A94: Q79 | B94: RGP | C94: JAMES PAGET UNIVERSITY HOSPITALS NHS FOUNDATION TRUST | D94: 53 | E94: 0.9622641509 | F94: 0.01886792453 | G94: 46 | H94: 5 | I94: 1 | J94: 0 | K94: 1 | L94: 0 | M94: 0 | N94: 0 | O94: 53 | P94: 0 | Q94: 0 | R94: 0 | S94: 0
A95: Q79 | B95: RM1 | C95: NORFOLK AND NORWICH UNIVERSITY HOSPITALS NHS FOUNDATION TRUST | D95: 58 | E95: 0.9310344828 | F95: 0 | G95: 31 | H95: 23 | I95: 4 | J95: 0 | K95: 0 | L95: 0 | M95: 0 | N95: 0 | O95: 58 | P95: 0 | Q95: 0 | R95: 0 | S95: 0
A96: Q79 | B96: RDE | C96: EAST SUFFOLK AND NORTH ESSEX NHS FOUNDATION TRUST | D96: 81 | E96: 1 | F96: 0 | G96: 65 | H96: 16 | I96: 0 | J96: 0 | K96: 0 | L96: 0 | M96: 10 | N96: 70 | O96: 0 | P96: 0 | Q96: 0 | R96: 1 | S96: 0
A97: Q79 | B97: RAJ | C97: SOUTHEND UNIVERSITY HOSPITAL NHS FOUNDATION TRUST | D97: 119 | E97: 1 | F97: 0 | G97: 98 | H97: 21 | I97: 0 | J97: 0 | K97: 0 | L97: 0 | M97: 2 | N97: 0 | O97: 117 | P97: 0 | Q97: 0 | R97: 0 | S97: 0
A98: Q79 | B98: RGN | C98: NORTH WEST ANGLIA NHS FOUNDATION TRUST | D98: 350 | E98: 0.98 | F98: 0.008571428571 | G98: 293 | H98: 50 | I98: 2 | J98: 0 | K98: 3 | L98: 2 | M98: 0 | N98: 0 | O98: 348 | P98: 0 | Q98: 0 | R98: 2 | S98: 0
A99: Q83 | B99: RMP | C99: TAMESIDE AND GLOSSOP INTEGRATED CARE NHS FOUNDATION TRUST | D99: 16 | E99: 0.9375 | F99: 0 | G99: 11 | H99: 4 | I99: 1 | J99: 0 | K99: 0 | L99: 0 | M99: 0 | N99: 0 | O99: 16 | P99: 0 | Q99: 0 | R99: 0 | S99: 0
A100: Q83 | B100: RY2 | C100: BRIDGEWATER COMMUNITY HEALTHCARE NHS FOUNDATION TRUST | D100: 17 | E100: 0.9411764706 | F100: 0 | G100: 14 | H100: 2 | I100: 0 | J100: 0 | K100: 0 | L100: 1 | M100: 0 | N100: 0 | O100: 17 | P100: 0 | Q100: 0 | R100: 0 | S100: 0
A101: Q83 | B101: RW6 | C101: PENNINE ACUTE HOSPITALS NHS TRUST | D101: 22 | E101: 0.9545454545 | F101: 0.04545454545 | G101: 21 | H101: 0 | I101: 0 | J101: 1 | K101: 0 | L101: 0 | M101: 0 | N101: 0 | O101: 22 | P101: 0 | Q101: 0 | R101: 0 | S101: 0
A102: Q83 | B102: RRF | C102: WRIGHTINGTON, WIGAN AND LEIGH NHS FOUNDATION TRUST | D102: 28 | E102: 0.9285714286 | F102: 0 | G102: 20 | H102: 6 | I102: 1 | J102: 0 | K102: 0 | L102: 1 | M102: 0 | N102: 0 | O102: 28 | P102: 0 | Q102: 0 | R102: 0 | S102: 0
A103: Q83 | B103: RWJ | C103: STOCKPORT NHS FOUNDATION TRUST | D103: 66 | E103: 0.9393939394 | F103: 0.01515151515 | G103: 37 | H103: 25 | I103: 1 | J103: 1 | K103: 0 | L103: 2 | M103: 0 | N103: 0 | O103: 66 | P103: 0 | Q103: 0 | R103: 0 | S103: 0
A104: Q83 | B104: R0A | C104: MANCHESTER UNIVERSITY NHS FOUNDATION TRUST | D104: 137 | E104: 0.9489051095 | F104: 0.02189781022 | G104: 98 | H104: 32 | I104: 1 | J104: 1 | K104: 2 | L104: 3 | M104: 0 | N104: 2 | O104: 135 | P104: 0 | Q104: 0 | R104: 0 | S104: 0
A105: Q83 | B105: RMC | C105: BOLTON NHS FOUNDATION TRUST | D105: 204 | E105: 0.9656862745 | F105: 0.02450980392 | G105: 171 | H105: 26 | I105: 2 | J105: 0 | K105: 5 | L105: 0 | M105: 0 | N105: 0 | O105: 204 | P105: 0 | Q105: 0 | R105: 0 | S105: 0
A106: Q84 | B106: RXL | C106: BLACKPOOL TEACHING HOSPITALS NHS FOUNDATION TRUST | D106: 19 | E106: 1 | F106: 0 | G106: 13 | H106: 6 | I106: 0 | J106: 0 | K106: 0 | L106: 0 | M106: 0 | N106: 0 | O106: 19 | P106: 0 | Q106: 0 | R106: 0 | S106: 0
A107: Q84 | B107: RXN | C107: LANCASHIRE TEACHING HOSPITALS NHS FOUNDATION TRUST | D107: 38 | E107: 0.9473684211 | F107: 0.02631578947 | G107: 29 | H107: 7 | I107: 1 | J107: 0 | K107: 1 | L107: 0 | M107: 38 | N107: 0 | O107: 0 | P107: 0 | Q107: 0 | R107: 0 | S107: 0
A108: Q84 | B108: RTX | C108: UNIVERSITY HOSPITALS OF MORECAMBE BAY NHS FOUNDATION TRUST | D108: 49 | E108: 0.9795918367 | F108: 0 | G108: 40 | H108: 8 | I108: 1 | J108: 0 | K108: 0 | L108: 0 | M108: 0 | N108: 0 | O108: 49 | P108: 0 | Q108: 0 | R108: 0 | S108: 0
A109: Q84 | B109: RXR | C109: EAST LANCASHIRE HOSPITALS NHS TRUST | D109: 99 | E109: 1 | F109: 0 | G109: 93 | H109: 6 | I109: 0 | J109: 0 | K109: 0 | L109: 0 | M109: 0 | N109: 0 | O109: 99 | P109: 0 | Q109: 0 | R109: 0 | S109: 0
A110: Q85 | B110: RH8 | C110: ROYAL DEVON AND EXETER NHS FOUNDATION TRUST | D110: 0 | E110: NA | F110: NA | G110: 0 | H110: 0 | I110: 0 | J110: 0 | K110: 0 | L110: 0 | M110: 0 | N110: 0 | O110: 0 | P110: 0 | Q110: 0 | R110: 0 | S110: 0
A111: Q85 | B111: RBZ | C111: NORTHERN DEVON HEALTHCARE NHS TRUST | D111: 1 | E111: * | F111: * | G111: * | H111: * | I111: * | J111: * | K111: * | L111: * | M111: * | N111: * | O111: * | P111: * | Q111: * | R111: * | S111: *
A112: Q85 | B112: RA9 | C112: TORBAY AND SOUTH DEVON NHS FOUNDATION TRUST | D112: 3 | E112: * | F112: * | G112: * | H112: * | I112: * | J112: * | K112: * | L112: * | M112: * | N112: * | O112: * | P112: * | Q112: * | R112: * | S112: *
A113: Q85 | B113: RBD | C113: DORSET COUNTY HOSPITAL NHS FOUNDATION TRUST | D113: 16 | E113: 1 | F113: 0 | G113: 13 | H113: 3 | I113: 0 | J113: 0 | K113: 0 | L113: 0 | M113: 16 | N113: 0 | O113: 0 | P113: 0 | Q113: 0 | R113: 0 | S113: 0
A114: Q85 | B114: RA4 | C114: YEOVIL DISTRICT HOSPITAL NHS FOUNDATION TRUST | D114: 26 | E114: 1 | F114: 0 | G114: 23 | H114: 3 | I114: 0 | J114: 0 | K114: 0 | L114: 0 | M114: 0 | N114: 0 | O114: 24 | P114: 0 | Q114: 0 | R114: 2 | S114: 0
A115: Q85 | B115: RD3 | C115: POOLE HOSPITAL NHS FOUNDATION TRUST | D115: 34 | E115: 0.9705882353 | F115: 0.02941176471 | G115: 30 | H115: 3 | I115: 0 | J115: 1 | K115: 0 | L115: 0 | M115: 28 | N115: 0 | O115: 6 | P115: 0 | Q115: 0 | R115: 0 | S115: 0
A116: Q85 | B116: REF | C116: ROYAL CORNWALL HOSPITALS NHS TRUST | D116: 38 | E116: 0.9473684211 | F116: 0 | G116: 27 | H116: 9 | I116: 1 | J116: 0 | K116: 0 | L116: 1 | M116: 0 | N116: 0 | O116: 38 | P116: 0 | Q116: 0 | R116: 0 | S116: 0
A117: Q85 | B117: RBA | C117: TAUNTON AND SOMERSET NHS FOUNDATION TRUST | D117: 43 | E117: 0.9534883721 | F117: 0 | G117: 31 | H117: 10 | I117: 0 | J117: 0 | K117: 0 | L117: 2 | M117: 0 | N117: 0 | O117: 43 | P117: 0 | Q117: 0 | R117: 0 | S117: 0
A118: Q85 | B118: RDZ | C118: THE ROYAL BOURNEMOUTH AND CHRISTCHURCH HOSPITALS NHS FOUNDATION TRUST | D118: 73 | E118: 0.8630136986 | F118: 0.06849315068 | G118: 53 | H118: 10 | I118: 5 | J118: 2 | K118: 3 | L118: 0 | M118: 0 | N118: 0 | O118: 73 | P118: 0 | Q118: 0 | R118: 0 | S118: 0
A119: Q85 | B119: RK9 | C119: UNIVERSITY HOSPITALS PLYMOUTH NHS TRUST | D119: 79 | E119: 0.9873417722 | F119: 0.01265822785 | G119: 67 | H119: 11 | I119: 0 | J119: 0 | K119: 1 | L119: 0 | M119: 0 | N119: 0 | O119: 78 | P119: 0 | Q119: 0 | R119: 1 | S119: 0
A120: Q86 | B120: RTE | C120: GLOUCESTERSHIRE HOSPITALS NHS FOUNDATION TRUST | D120: 0 | E120: NA | F120: NA | G120: 0 | H120: 0 | I120: 0 | J120: 0 | K120: 0 | L120: 0 | M120: 0 | N120: 0 | O120: 0 | P120: 0 | Q120: 0 | R120: 0 | S120: 0
A121: Q86 | B121: RN3 | C121: GREAT WESTERN HOSPITALS NHS FOUNDATION TRUST | D121: 1 | E121: * | F121: * | G121: * | H121: * | I121: * | J121: * | K121: * | L121: * | M121: * | N121: * | O121: * | P121: * | Q121: * | R121: * | S121: *
A122: Q86 | B122: RNZ | C122: SALISBURY NHS FOUNDATION TRUST | D122: 2 | E122: * | F122: * | G122: * | H122: * | I122: * | J122: * | K122: * | L122: * | M122: * | N122: * | O122: * | P122: * | Q122: * | R122: * | S122: *
A123: Q86 | B123: RA3 | C123: WESTON AREA HEALTH NHS TRUST | D123: 20 | E123: 0.75 | F123: 0 | G123: 12 | H123: 3 | I123: 0 | J123: 0 | K123: 0 | L123: 5 | M123: 0 | N123: 0 | O123: 20 | P123: 0 | Q123: 0 | R123: 0 | S123: 0
A124: Q86 | B124: RD1 | C124: ROYAL UNITED HOSPITALS BATH NHS FOUNDATION TRUST | D124: 66 | E124: 0.9848484848 | F124: 0.01515151515 | G124: 59 | H124: 6 | I124: 0 | J124: 1 | K124: 0 | L124: 0 | M124: 0 | N124: 0 | O124: 66 | P124: 0 | Q124: 0 | R124: 0 | S124: 0
A125: Q86 | B125: RVJ | C125: NORTH BRISTOL NHS TRUST | D125: 66 | E125: 1 | F125: 0 | G125: 57 | H125: 9 | I125: 0 | J125: 0 | K125: 0 | L125: 0 | M125: 0 | N125: 0 | O125: 65 | P125: 0 | Q125: 0 | R125: 1 | S125: 0
A126: Q86 | B126: RA7 | C126: UNIVERSITY HOSPITALS BRISTOL NHS FOUNDATION TRUST | D126: 101 | E126: 0.9900990099 | F126: 0.009900990099 | G126: 75 | H126: 25 | I126: 0 | J126: 0 | K126: 1 | L126: 0 | M126: 0 | N126: 0 | O126: 101 | P126: 0 | Q126: 0 | R126: 0 | S126: 0
A127: Q87 | B127: R1F | C127: ISLE OF WIGHT NHS TRUST | D127: 0 | E127: NA | F127: NA | G127: 0 | H127: 0 | I127: 0 | J127: 0 | K127: 0 | L127: 0 | M127: 0 | N127: 0 | O127: 0 | P127: 0 | Q127: 0 | R127: 0 | S127: 0
A128: Q87 | B128: RN5 | C128: HAMPSHIRE HOSPITALS NHS FOUNDATION TRUST | D128: 5 | E128: 1 | F128: 0 | G128: 4 | H128: 1 | I128: 0 | J128: 0 | K128: 0 | L128: 0 | M128: 0 | N128: 0 | O128: 5 | P128: 0 | Q128: 0 | R128: 0 | S128: 0
A129: Q87 | B129: RXQ | C129: BUCKINGHAMSHIRE HEALTHCARE NHS TRUST | D129: 11 | E129: 1 | F129: 0 | G129: 11 | H129: 0 | I129: 0 | J129: 0 | K129: 0 | L129: 0 | M129: 0 | N129: 0 | O129: 11 | P129: 0 | Q129: 0 | R129: 0 | S129: 0
A130: Q87 | B130: RHU | C130: PORTSMOUTH HOSPITALS NHS TRUST | D130: 28 | E130: 0.9642857143 | F130: 0 | G130: 24 | H130: 3 | I130: 1 | J130: 0 | K130: 0 | L130: 0 | M130: 0 | N130: 0 | O130: 28 | P130: 0 | Q130: 0 | R130: 0 | S130: 0
A131: Q87 | B131: RHW | C131: ROYAL BERKSHIRE NHS FOUNDATION TRUST | D131: 37 | E131: 1 | F131: 0 | G131: 32 | H131: 5 | I131: 0 | J131: 0 | K131: 0 | L131: 0 | M131: 0 | N131: 0 | O131: 37 | P131: 0 | Q131: 0 | R131: 0 | S131: 0
A132: Q87 | B132: RDU | C132: FRIMLEY HEALTH NHS FOUNDATION TRUST | D132: 108 | E132: 0.9814814815 | F132: 0.009259259259 | G132: 89 | H132: 17 | I132: 1 | J132: 0 | K132: 1 | L132: 0 | M132: 0 | N132: 0 | O132: 108 | P132: 0 | Q132: 0 | R132: 0 | S132: 0
A133: Q87 | B133: RTH | C133: OXFORD UNIVERSITY HOSPITALS NHS FOUNDATION TRUST | D133: 116 | E133: 0.974137931 | F133: 0 | G133: 99 | H133: 14 | I133: 2 | J133: 0 | K133: 0 | L133: 1 | M133: 0 | N133: 0 | O133: 112 | P133: 0 | Q133: 0 | R133: 4 | S133: 0
A134: Q87 | B134: RHM | C134: UNIVERSITY HOSPITAL SOUTHAMPTON NHS FOUNDATION TRUST | D134: 166 | E134: 0.9156626506 | F134: 0 | G134: 110 | H134: 42 | I134: 11 | J134: 0 | K134: 0 | L134: 3 | M134: 0 | N134: 0 | O134: 89 | P134: 0 | Q134: 0 | R134: 77 | S134: 0
A135: Q88 | B135: RN7 | C135: DARTFORD AND GRAVESHAM NHS TRUST | D135: 0 | E135: NA | F135: NA | G135: 0 | H135: 0 | I135: 0 | J135: 0 | K135: 0 | L135: 0 | M135: 0 | N135: 0 | O135: 0 | P135: 0 | Q135: 0 | R135: 0 | S135: 0
A136: Q88 | B136: RXC | C136: EAST SUSSEX HEALTHCARE NHS TRUST | D136: 0 | E136: NA | F136: NA | G136: 0 | H136: 0 | I136: 0 | J136: 0 | K136: 0 | L136: 0 | M136: 0 | N136: 0 | O136: 0 | P136: 0 | Q136: 0 | R136: 0 | S136: 0
A137: Q88 | B137: RXH | C137: BRIGHTON AND SUSSEX UNIVERSITY HOSPITALS NHS TRUST | D137: 0 | E137: NA | F137: NA | G137: 0 | H137: 0 | I137: 0 | J137: 0 | K137: 0 | L137: 0 | M137: 0 | N137: 0 | O137: 0 | P137: 0 | Q137: 0 | R137: 0 | S137: 0
A138: Q88 | B138: RYR | C138: WESTERN SUSSEX HOSPITALS NHS FOUNDATION TRUST | D138: 4 | E138: * | F138: * | G138: * | H138: * | I138: * | J138: * | K138: * | L138: * | M138: * | N138: * | O138: * | P138: * | Q138: * | R138: * | S138: *
A139: Q88 | B139: RVV | C139: EAST KENT HOSPITALS UNIVERSITY NHS FOUNDATION TRUST | D139: 9 | E139: 1 | F139: 0 | G139: * | H139: * | I139: * | J139: * | K139: * | L139: * | M139: * | N139: * | O139: * | P139: * | Q139: * | R139: * | S139: *
A140: Q88 | B140: RTP | C140: SURREY AND SUSSEX HEALTHCARE NHS TRUST | D140: 10 | E140: 1 | F140: 0 | G140: 10 | H140: 0 | I140: 0 | J140: 0 | K140: 0 | L140: 0 | M140: 0 | N140: 0 | O140: 10 | P140: 0 | Q140: 0 | R140: 0 | S140: 0
A141: Q88 | B141: RA2 | C141: ROYAL SURREY COUNTY HOSPITAL NHS FOUNDATION TRUST | D141: 14 | E141: 1 | F141: 0 | G141: 11 | H141: 3 | I141: 0 | J141: 0 | K141: 0 | L141: 0 | M141: 0 | N141: 0 | O141: 14 | P141: 0 | Q141: 0 | R141: 0 | S141: 0
A142: Q88 | B142: RPA | C142: MEDWAY NHS FOUNDATION TRUST | D142: 62 | E142: 0.9838709677 | F142: 0 | G142: 58 | H142: 3 | I142: 0 | J142: 0 | K142: 0 | L142: 1 | M142: 0 | N142: 0 | O142: 62 | P142: 0 | Q142: 0 | R142: 0 | S142: 0
A143: Q88 | B143: RWF | C143: MAIDSTONE AND TUNBRIDGE WELLS NHS TRUST | D143: 80 | E143: 0.9625 | F143: 0 | G143: 56 | H143: 21 | I143: 2 | J143: 0 | K143: 0 | L143: 1 | M143: 0 | N143: 0 | O143: 80 | P143: 0 | Q143: 0 | R143: 0 | S143: 0
A144: zIS1 | B144: NDE | C144: ONE TO ONE (NORTH WEST) LIMITED | D144: 37 | E144: 1 | F144: 0 | G144: 35 | H144: 2 | I144: 0 | J144: 0 | K144: 0 | L144: 0 | M144: 0 | N144: 37 | O144: 0 | P144: 0 | Q144: 0 | R144: 0 | S144: 0

Sheet Sites Q1
B6: Sort data by:
A9: Region (LO) Code | B9: Trust Code | C9: Trust Name | D9: Site Code | E9: Site Name | F9: Total Responses | G9: Percentage Recommended | H9: Percentage Not Recommended | I9: Breakdown of Responses
I10: Extremely Likely | J10: Likely | K10: Neither | L10: Unlikely | M10: Extremely Unlikely | N10: Don't Know
E11: England (including Independent Sector providers) | F11: 7134 | G11: 0.9530417718 | H11: 0.01878329128 | I11: 5435 | J11: 1364 | K11: 138 | L11: 45 | M11: 89 | N11: 63
E12: England (excluding Independent Sector providers) | F12: 7097 | G12: 0.9527969565 | H12: 0.01888121742 | I12: 5400 | J12: 1362 | K12: 138 | L12: 45 | M12: 89 | N12: 63
E13: Selection (excluding suppressed data) | F13: =SUBTOTAL(9,F14:F297) -> 7134 | G13: =IFERROR((I13+J13)/SUM(I13:N13), "-") -> 0.9535052144 | H13: =IFERROR((L13+M13)/SUM(I13:N13), "-") -> 0.01796060255 | I13: =SUBTOTAL(9,I14:I297) -> 5263 | J13: 1320 | K13: 136 | L13: 42 | M13: 82 | N13: 61
A14: Q71 | B14: RF4 | C14: BARKING, HAVERING AND REDBRIDGE UNIVERSITY HOSPITALS NHS TRUST | D14: RF4XXX | E14: Non-hospital site - RF4XXX | F14: 146 | G14: 0.9794520548 | H14: 0 | I14: 132 | J14: 11 | K14: 2 | L14: 0 | M14: 0 | N14: 1
A15: Q71 | B15: R1H | C15: BARTS HEALTH NHS TRUST | D15: R1HNH | E15: Newham General Hospital - R1HNH | F15: 179 | G15: 0.9888268156 | H15: 0.005586592179 | I15: 141 | J15: 36 | K15: 1 | L15: 0 | M15: 1 | N15: 0
A16: Q71 | B16: R1H | C16: BARTS HEALTH NHS TRUST | D16: R1H12 | E16: The Royal London Hospital - R1H12 | F16: 40 | G16: 0.9 | H16: 0.1 | I16: * | J16: * | K16: * | L16: * | M16: * | N16: *
A17: Q71 | B17: R1H | C17: BARTS HEALTH NHS TRUST | D17: R1HKH | E17: Whipps Cross University Hospital - R1HKH | F17: 3 | G17: * | H17: * | I17: * | J17: * | K17: * | L17: * | M17: * | N17: *
A18: Q71 | B18: RQM | C18: CHELSEA AND WESTMINSTER HOSPITAL NHS FOUNDATION TRUST | D18: RQM01 | E18: Chelsea and Westminster Hospital - RQM01 | F18: 294 | G18: 0.9285714286 | H18: 0.05102040816 | I18: 225 | J18: 48 | K18: 5 | L18: 4 | M18: 11 | N18: 1
A19: Q71 | B19: RQM | C19: CHELSEA AND WESTMINSTER HOSPITAL NHS FOUNDATION TRUST | D19: RQM91 | E19: West Middlesex University Hospital - RQM91 | F19: 51 | G19: 0.8823529412 | H19: 0.07843137255 | I19: 41 | J19: 4 | K19: 1 | L19: 1 | M19: 3 | N19: 1
A20: Q71 | B20: RJ6 | C20: CROYDON HEALTH SERVICES NHS TRUST | D20: RJ611 | E20: Croydon University Hospital - RJ611 | F20: 14 | G20: 1 | H20: 0 | I20: 13 | J20: 1 | K20: 0 | L20: 0 | M20: 0 | N20: 0
A21: Q71 | B21: RVR | C21: EPSOM AND ST HELIER UNIVERSITY HOSPITALS NHS TRUST | D21: RVR50 | E21: Epsom Hospital - RVR50 | F21: 21 | G21: 0.9047619048 | H21: 0 | I21: 16 | J21: 3 | K21: 1 | L21: 0 | M21: 0 | N21: 1
A22: Q71 | B22: RVR | C22: EPSOM AND ST HELIER UNIVERSITY HOSPITALS NHS TRUST | D22: RVRXXX | E22: Non-hospital site - RVRXXX | F22: 0 | G22: NA | H22: NA | I22: 0 | J22: 0 | K22: 0 | L22: 0 | M22: 0 | N22: 0
A23: Q71 | B23: RVR | C23: EPSOM AND ST HELIER UNIVERSITY HOSPITALS NHS TRUST | D23: RVR05 | E23: St Helier Hospital - RVR05 | F23: 31 | G23: 1 | H23: 0 | I23: 28 | J23: 3 | K23: 0 | L23: 0 | M23: 0 | N23: 0
A24: Q71 | B24: RJ1 | C24: GUY'S AND ST THOMAS' NHS FOUNDATION TRUST | D24: RJ122 | E24: St Thomas' Hospital - RJ122 | F24: 13 | G24: 0.8461538462 | H24: 0.07692307692 | I24: 6 | J24: 5 | K24: 1 | L24: 1 | M24: 0 | N24: 0
A25: Q71 | B25: RQX | C25: HOMERTON UNIVERSITY HOSPITAL NHS FOUNDATION TRUST | D25: RQXM1 | E25: Homerton University Hospital - RQXM1 | F25: 162 | G25: 0.950617284 | H25: 0.006172839506 | I25: 100 | J25: 54 | K25: 6 | L25: 0 | M25: 1 | N25: 1
A26: Q71 | B26: RYJ | C26: IMPERIAL COLLEGE HEALTHCARE NHS TRUST | D26: RYJ04 | E26: Queen Charlotte's Hospital - RYJ04 | F26: 189 | G26: 0.9153439153 | H26: 0.02116402116 | I26: 76 | J26: 97 | K26: 7 | L26: 3 | M26: 1 | N26: 5
A27: Q71 | B27: RYJ | C27: IMPERIAL COLLEGE HEALTHCARE NHS TRUST | D27: RYJ01 | E27: St Mary's Hospital (HQ) - RYJ01 | F27: 40 | G27: 0.875 | H27: 0.025 | I27: 25 | J27: 10 | K27: 3 | L27: 0 | M27: 1 | N27: 1
A28: Q71 | B28: RJZ | C28: KING'S COLLEGE HOSPITAL NHS FOUNDATION TRUST | D28: RJZ01 | E28: King's College Hospital (Denmark Hill) - RJZ01 | F28: 4 | G28: * | H28: * | I28: * | J28: * | K28: * | L28: * | M28: * | N28: *
A29: Q71 | B29: RJZ | C29: KING'S COLLEGE HOSPITAL NHS FOUNDATION TRUST | D29: RJZ30 | E29: Princess Royal University Hospital - RJZ30 | F29: 1 | G29: * | H29: * | I29: * | J29: * | K29: * | L29: * | M29: * | N29: *
A30: Q71 | B30: RAX | C30: KINGSTON HOSPITAL NHS FOUNDATION TRUST | D30: RAX01 | E30: Kingston Hospital - RAX01 | F30: 19 | G30: 1 | H30: 0 | I30: 17 | J30: 2 | K30: 0 | L30: 0 | M30: 0 | N30: 0
A31: Q71 | B31: RJ2 | C31: LEWISHAM AND GREENWICH NHS TRUST | D31: RJ2XXX | E31: Non-hospital site - RJ2XXX | F31: 32 | G31: 1 | H31: 0 | I31: 28 | J31: 4 | K31: 0 | L31: 0 | M31: 0 | N31: 0
A32: Q71 | B32: RJ2 | C32: LEWISHAM AND GREENWICH NHS TRUST | D32: RJ231 | E32: Queen Elizabeth Hospital - RJ231 | F32: 13 | G32: 1 | H32: 0 | I32: 6 | J32: 7 | K32: 0 | L32: 0 | M32: 0 | N32: 0
A33: Q71 | B33: RJ2 | C33: LEWISHAM AND GREENWICH NHS TRUST | D33: RJ224 | E33: University Hospital Lewisham - RJ224 | F33: 0 | G33: NA | H33: NA | I33: 0 | J33: 0 | K33: 0 | L33: 0 | M33: 0 | N33: 0
A34: Q71 | B34: R1K | C34: LONDON NORTH WEST UNIVERSITY HEALTHCARE NHS TRUST | D34: R1K02 | E34: Central Middlesex Hospital - R1K02 | F34: 9 | G34: 1 | H34: 0 | I34: 7 | J34: 2 | K34: 0 | L34: 0 | M34: 0 | N34: 0
A35: Q71 | B35: R1K | C35: LONDON NORTH WEST UNIVERSITY HEALTHCARE NHS TRUST | D35: R1K04 | E35: Ealing Hospital - R1K04 | F35: 0 | G35: NA | H35: NA | I35: 0 | J35: 0 | K35: 0 | L35: 0 | M35: 0 | N35: 0
A36: Q71 | B36: R1K | C36: LONDON NORTH WEST UNIVERSITY HEALTHCARE NHS TRUST | D36: R1KXXX | E36: Non-hospital site - R1KXXX | F36: 33 | G36: 0.9393939394 | H36: 0.0303030303 | I36: 25 | J36: 6 | K36: 0 | L36: 1 | M36: 0 | N36: 1
A37: Q71 | B37: R1K | C37: LONDON NORTH WEST UNIVERSITY HEALTHCARE NHS TRUST | D37: R1K01 | E37: Northwick Park Hospital - R1K01 | F37: 63 | G37: 0.873015873 | H37: 0.01587301587 | I37: 31 | J37: 24 | K37: 4 | L37: 1 | M37: 0 | N37: 3
A38: Q71 | B38: RAP | C38: NORTH MIDDLESEX UNIVERSITY HOSPITAL NHS TRUST | D38: RAPNM | E38: North Middlesex Hospital - RAPNM | F38: 150 | G38: 0.5533333333 | H38: 0.26 | I38: 51 | J38: 32 | K38: 14 | L38: 10 | M38: 29 | N38: 14
A39: Q71 | B39: RAL | C39: ROYAL FREE LONDON NHS FOUNDATION TRUST | D39: RAL26 | E39: Barnet Hospital - RAL26 | F39: 2 | G39: * | H39: * | I39: * | J39: * | K39: * | L39: * | M39: * | N39: *
A40: Q71 | B40: RAL | C40: ROYAL FREE LONDON NHS FOUNDATION TRUST | D40: RAL01 | E40: Royal Free Hospital - RAL01 | F40: 10 | G40: 1 | H40: 0 | I40: * | J40: * | K40: * | L40: * | M40: * | N40: *
A41: Q71 | B41: RJ7 | C41: ST GEORGE'S UNIVERSITY HOSPITALS NHS FOUNDATION TRUST | D41: RJ7XXX | E41: Non-hospital site - RJ7XXX | F41: 0 | G41: NA | H41: NA | I41: 0 | J41: 0 | K41: 0 | L41: 0 | M41: 0 | N41: 0
A42: Q71 | B42: RJ7 | C42: ST GEORGE'S UNIVERSITY HOSPITALS NHS FOUNDATION TRUST | D42: RJ701 | E42: St George's Hospital (Tooting) - RJ701 | F42: 0 | G42: NA | H42: NA | I42: 0 | J42: 0 | K42: 0 | L42: 0 | M42: 0 | N42: 0
A43: Q71 | B43: RAS | C43: THE HILLINGDON HOSPITALS NHS FOUNDATION TRUST | D43: RAS01 | E43: Hillingdon Hospital - RAS01 | F43: 122 | G43: 0.9836065574 | H43: 0.008196721311 | I43: 85 | J43: 35 | K43: 1 | L43: 1 | M43: 0 | N43: 0
A44: Q71 | B44: RRV | C44: UNIVERSITY COLLEGE LONDON HOSPITALS NHS FOUNDATION TRUST | D44: RRV11 | E44: University College Hospital Elizabeth Garrett Anderson Wing - RRV11 | F44: 1 | G44: * | H44: * | I44: * | J44: * | K44: * | L44: * | M44: * | N44: *
A45: Q71 | B45: RKE | C45: WHITTINGTON HEALTH NHS TRUST | D45: RKEXXX | E45: Non-hospital site - RKEXXX | F45: 63 | G45: 0.9841269841 | H45: 0 | I45: 50 | J45: 12 | K45: 1 | L45: 0 | M45: 0 | N45: 0
A46: Q71 | B46: RKE | C46: WHITTINGTON HEALTH NHS TRUST | D46: RKEQ4 | E46: The Whittington Hospital - RKEQ4 | F46: 37 | G46: 0.972972973 | H46: 0 | I46: 20 | J46: 16 | K46: 1 | L46: 0 | M46: 0 | N46: 0
A47: Q72 | B47: RCF | C47: AIREDALE NHS FOUNDATION TRUST | D47: RCF22 | E47: Airedale General Hospital - RCF22 | F47: 6 | G47: 1 | H47: 0 | I47: 4 | J47: 2 | K47: 0 | L47: 0 | M47: 0 | N47: 0
A48: Q72 | B48: RFF | C48: BARNSLEY HOSPITAL NHS FOUNDATION TRUST | D48: RFFAA | E48: Barnsley Hospital NHS Foundation Trust HQ - RFFAA | F48: 25 | G48: 1 | H48: 0 | I48: 24 | J48: 1 | K48: 0 | L48: 0 | M48: 0 | N48: 0
A49: Q72 | B49: RAE | C49: BRADFORD TEACHING HOSPITALS NHS FOUNDATION TRUST | D49: RAE01 | E49: Bradford Royal Infirmary - RAE01 | F49: 1 | G49: * | H49: * | I49: * | J49: * | K49: * | L49: * | M49: * | N49: *
A50: Q72 | B50: RAE | C50: BRADFORD TEACHING HOSPITALS NHS FOUNDATION TRUST | D50: RAEXXX | E50: Non-hospital site - RAEXXX | F50: 6 | G50: 1 | H50: 0 | I50: * | J50: * | K50: * | L50: * | M50: * | N50: *
A51: Q72 | B51: RWY | C51: CALDERDALE AND HUDDERSFIELD NHS FOUNDATION TRUST | D51: RWYXXX | E51: Non-hospital site - RWYXXX | F51: 130 | G51: 0.9923076923 | H51: 0 | I51: 103 | J51: 26 | K51: 1 | L51: 0 | M51: 0 | N51: 0
A52: Q72 | B52: RP5 | C52: DONCASTER AND BASSETLAW TEACHING HOSPITALS NHS FOUNDATION TRUST | D52: RP5BA | E52: Bassetlaw Hospital - RP5BA | F52: 24 | G52: 0.9583333333 | H52: 0 | I52: 18 | J52: 5 | K52: 1 | L52: 0 | M52: 0 | N52: 0
A53: Q72 | B53: RP5 | C53: DONCASTER AND BASSETLAW TEACHING HOSPITALS NHS FOUNDATION TRUST | D53: RP5DR | E53: Doncaster Royal Infirmary - RP5DR | F53: 0 | G53: NA | H53: NA | I53: 0 | J53: 0 | K53: 0 | L53: 0 | M53: 0 | N53: 0
A54: Q72 | B54: RP5 | C54: DONCASTER AND BASSETLAW TEACHING HOSPITALS NHS FOUNDATION TRUST | D54: RP5XXX | E54: Non-hospital site - RP5XXX | F54: 22 | G54: 1 | H54: 0 | I54: 21 | J54: 1 | K54: 0 | L54: 0 | M54: 0 | N54: 0
A55: Q72 | B55: RCD | C55: HARROGATE AND DISTRICT NHS FOUNDATION TRUST | D55: RCD01 | E55: Harrogate District Hospital - RCD01 | F55: 17 | G55: 1 | H55: 0 | I55: 15 | J55: 2 | K55: 0 | L55: 0 | M55: 0 | N55: 0
A56: Q72 | B56: RCD | C56: HARROGATE AND DISTRICT NHS FOUNDATION TRUST | D56: RCDXXX | E56: Non-hospital site - RCDXXX | F56: 38 | G56: 1 | H56: 0 | I56: 30 | J56: 8 | K56: 0 | L56: 0 | M56: 0 | N56: 0
A57: Q72 | B57: RWA | C57: HULL AND EAST YORKSHIRE HOSPITALS NHS TRUST | D57: RWA01 | E57: Hull Royal Infirmary - RWA01 | F57: 23 | G57: 0.8695652174 | H57: 0 | I57: 18 | J57: 2 | K57: 3 | L57: 0 | M57: 0 | N57: 0
A58: Q72 | B58: RR8 | C58: LEEDS TEACHING HOSPITALS NHS TRUST | D58: RR801 | E58: Leeds General Infirmary - RR801 | F58: 5 | G58: 1 | H58: 0 | I58: * | J58: * | K58: * | L58: * | M58: * | N58: *
A59: Q72 | B59: RR8 | C59: LEEDS TEACHING HOSPITALS NHS TRUST | D59: RR8XXX | E59: Non-Hospital Site - RR8XXX | F59: 1 | G59: * | H59: * | I59: * | J59: * | K59: * | L59: * | M59: * | N59: *
A60: Q72 | B60: RR8 | C60: LEEDS TEACHING HOSPITALS NHS TRUST | D60: RR813 | E60: St James's University Hospital - RR813 | F60: 0 | G60: NA | H60: NA | I60: 0 | J60: 0 | K60: 0 | L60: 0 | M60: 0 | N60: 0
A61: Q72 | B61: RXF | C61: MID YORKSHIRE HOSPITALS NHS TRUST | D61: RXF10 | E61: Dewsbury and District Hospital - RXF10 | F61: 84 | G61: 0.9761904762 | H61: 0 | I61: 66 | J61: 16 | K61: 2 | L61: 0 | M61: 0 | N61: 0
A62: Q72 | B62: RXF | C62: MID YORKSHIRE HOSPITALS NHS TRUST | D62: RXF05 | E62: Pinderfields General Hospital - RXF05 | F62: 50 | G62: 0.96 | H62: 0 | I62: 37 | J62: 11 | K62: 2 | L62: 0 | M62: 0 | N62: 0
A63: Q72 | B63: RXF | C63: MID YORKSHIRE HOSPITALS NHS TRUST | D63: RXF03 | E63: Pontefract General Infirmary - RXF03 | F63: 51 | G63: 0.9607843137 | H63: 0 | I63: 40 | J63: 9 | K63: 2 | L63: 0 | M63: 0 | N63: 0
A64: Q72 | B64: RJL | C64: NORTHERN LINCOLNSHIRE AND GOOLE NHS FOUNDATION TRUST | D64: RJL30 | E64: Diana, Princess Of Wales Hospital - RJL30 | F64: 55 | G64: 0.9636363636 | H64: 0.01818181818 | I64: 40 | J64: 13 | K64: 1 | L64: 0 | M64: 1 | N64: 0
A65: Q72 | B65: RJL | C65: NORTHERN LINCOLNSHIRE AND GOOLE NHS FOUNDATION TRUST | D65: RJL32 | E65: Scunthorpe General Hospital - RJL32 | F65: 108 | G65: 0.9166666667 | H65: 0.0462962963 | I65: 67 | J65: 32 | K65: 4 | L65: 3 | M65: 2 | N65: 0
A66: Q72 | B66: RHQ | C66: SHEFFIELD TEACHING HOSPITALS NHS FOUNDATION TRUST | D66: RHQHH | E66: Royal Hallamshire Hospital - RHQHH | F66: 40 | G66: 0.95 | H66: 0.025 | I66: 31 | J66: 7 | K66: 0 | L66: 1 | M66: 0 | N66: 1
A67: Q72 | B67: RFR | C67: THE ROTHERHAM NHS FOUNDATION TRUST | D67: RFRPA | E67: Rotherham District General Hospital - RFRPA | F67: 53 | G67: 1 | H67: 0 | I67: 45 | J67: 8 | K67: 0 | L67: 0 | M67: 0 | N67: 0
A68: Q72 | B68: RCB | C68: YORK TEACHING HOSPITAL NHS FOUNDATION TRUST | D68: RCBCA | E68: Scarborough General Hospital - RCBCA | F68: 48 | G68: 0.9791666667 | H68: 0 | I68: 40 | J68: 7 | K68: 1 | L68: 0 | M68: 0 | N68: 0
A69: Q72 | B69: RCB | C69: YORK TEACHING HOSPITAL NHS FOUNDATION TRUST | D69: RCB55 | E69: York Hospital - RCB55 | F69: 132 | G69: 0.9621212121 | H69: 0.007575757576 | I69: 94 | J69: 33 | K69: 3 | L69: 1 | M69: 0 | N69: 1
A70: Q74 | B70: RLN | C70: CITY HOSPITALS SUNDERLAND NHS FOUNDATION TRUST | D70: RLNGL | E70: Sunderland Royal Hospital - RLNGL | F70: 0 | G70: NA | H70: NA | I70: 0 | J70: 0 | K70: 0 | L70: 0 | M70: 0 | N70: 0
A71: Q74 | B71: RXP | C71: COUNTY DURHAM AND DARLINGTON NHS FOUNDATION TRUST | D71: RXPDA | E71: Darlington Memorial Hospital - RXPDA | F71: 11 | G71: 1 | H71: 0 | I71: * | J71: * | K71: * | L71: * | M71: * | N71: *
A72: Q74 | B72: RXP | C72: COUNTY DURHAM AND DARLINGTON NHS FOUNDATION TRUST | D72: RXPCP | E72: University Hospital Of North Durham - RXPCP | F72: 2 | G72: * | H72: * | I72: * | J72: * | K72: * | L72: * | M72: * | N72: *
A73: Q74 | B73: RR7 | C73: GATESHEAD HEALTH NHS FOUNDATION TRUST | D73: RR7EN | E73: Queen Elizabeth Hospital - RR7EN | F73: 5 | G73: 1 | H73: 0 | I73: 5 | J73: 0 | K73: 0 | L73: 0 | M73: 0 | N73: 0
A74: Q74 | B74: RNL | C74: NORTH CUMBRIA UNIVERSITY HOSPITALS NHS TRUST | D74: RNLXXX | E74: Non-hospital site - RNLXXX | F74: 25 | G74: 1 | H74: 0 | I74: 25 | J74: 0 | K74: 0 | L74: 0 | M74: 0 | N74: 0
A75: Q74 | B75: RVW | C75: NORTH TEES AND HARTLEPOOL NHS FOUNDATION TRUST | D75: RVWXXX | E75: Non-hospital site - RVWXXX | F75: 18 | G75: 1 | H75: 0 | I75: 14 | J75: 4 | K75: 0 | L75: 0 | M75: 0 | N75: 0
A76: Q74 | B76: RTF | C76: NORTHUMBRIA HEALTHCARE NHS FOUNDATION TRUST | D76: RTFXXX | E76: Non-hospital site - RTFXXX | F76: 42 | G76: 1 | H76: 0 | I76: 40 | J76: 2 | K76: 0 | L76: 0 | M76: 0 | N76: 0
A77: Q74 | B77: RTR | C77: SOUTH TEES HOSPITALS NHS FOUNDATION TRUST | D77: RTRXXX | E77: Non-hospital site - RTRXXX | F77: 0 | G77: NA | H77: NA | I77: 0 | J77: 0 | K77: 0 | L77: 0 | M77: 0 | N77: 0
A78: Q74 | B78: RE9 | C78: SOUTH TYNESIDE NHS FOUNDATION TRUST | D78: RE9GA | E78: South Tyneside District Hospital - RE9GA | F78: 22 | G78: 1 | H78: 0 | I78: 17 | J78: 5 | K78: 0 | L78: 0 | M78: 0 | N78: 0
A79: Q74 | B79: RTD | C79: THE NEWCASTLE UPON TYNE HOSPITALS NHS FOUNDATION TRUST | D79: RTD02 | E79: The Royal Victoria Infirmary - RTD02 | F79: 0 | G79: NA | H79: NA | I79: 0 | J79: 0 | K79: 0 | L79: 0 | M79: 0 | N79: 0
A80: Q75 | B80: RJR | C80: COUNTESS OF CHESTER HOSPITAL NHS FOUNDATION TRUST | D80: RJR05 | E80: Countess Of Chester Hospital - RJR05 | F80: 34 | G80: 0.9705882353 | H80: 0 | I80: 27 | J80: 6 | K80: 1 | L80: 0 | M80: 0 | N80: 0
A81: Q75 | B81: RJR | C81: COUNTESS OF CHESTER HOSPITAL NHS FOUNDATION TRUST | D81: RJRXXX | E81: Non-hospital site - RJRXXX | F81: 0 | G81: NA | H81: NA | I81: 0 | J81: 0 | K81: 0 | L81: 0 | M81: 0 | N81: 0
A82: Q75 | B82: RJN | C82: EAST CHESHIRE NHS TRUST | D82: RJN71 | E82: Macclesfield District General Hospital - RJN71 | F82: 11 | G82: 1 | H82: 0 | I82: 11 | J82: 0 | K82: 0 | L82: 0 | M82: 0 | N82: 0
A83: Q75 | B83: REP | C83: LIVERPOOL WOMEN'S NHS FOUNDATION TRUST | D83: REP01 | E83: Liverpool Womens Hospital - REP01 | F83: 26 | G83: 0.9230769231 | H83: 0.03846153846 | I83: 23 | J83: 1 | K83: 1 | L83: 0 | M83: 1 | N83: 0
A84: Q75 | B84: RBT | C84: MID CHESHIRE HOSPITALS NHS FOUNDATION TRUST | D84: RBT20 | E84: Leighton Hospital - RBT20 | F84: 4 | G84: * | H84: * | I84: * | J84: * | K84: * | L84: * | M84: * | N84: *
A85: Q75 | B85: RVY | C85: SOUTHPORT AND ORMSKIRK HOSPITAL NHS TRUST | D85: RVYXXX | E85: Non-hospital site - RVYXXX | F85: 2 | G85: * | H85: * | I85: * | J85: * | K85: * | L85: * | M85: * | N85: *
A86: Q75 | B86: RBN | C86: ST HELENS AND KNOWSLEY TEACHING HOSPITALS NHS TRUST | D86: RBN01 | E86: Whiston Hospital - RBN01 | F86: 28 | G86: 1 | H86: 0 | I86: 26 | J86: 2 | K86: 0 | L86: 0 | M86: 0 | N86: 0
A87: Q75 | B87: RWW | C87: WARRINGTON AND HALTON HOSPITALS NHS FOUNDATION TRUST | D87: RWWWH | E87: Warrington Hospital - RWWWH | F87: 66 | G87: 0.9696969697 | H87: 0 | I87: 56 | J87: 8 | K87: 2 | L87: 0 | M87: 0 | N87: 0
A88: Q75 | B88: RBL | C88: WIRRAL UNIVERSITY TEACHING HOSPITAL NHS FOUNDATION TRUST | D88: RBL14 | E88: Arrowe Park Hospital - RBL14 | F88: 55 | G88: 0.8909090909 | H88: 0.01818181818 | I88: 35 | J88: 14 | K88: 5 | L88: 1 | M88: 0 | N88: 0
A89: Q76 | B89: RFS | C89: CHESTERFIELD ROYAL HOSPITAL NHS FOUNDATION TRUST | D89: RFSDA | E89: Chesterfield Royal Hospital - RFSDA | F89: 174 | G89: 0.9942528736 | H89: 0 | I89: 142 | J89: 31 | K89: 1 | L89: 0 | M89: 0 | N89: 0
A90: Q76 | B90: RX1 | C90: NOTTINGHAM UNIVERSITY HOSPITALS NHS TRUST | D90: RX1XXX | E90: Non-hospital site - RX1XXX | F90: 99 | G90: 1 | H90: 0 | I90: 84 | J90: 15 | K90: 0 | L90: 0 | M90: 0 | N90: 0
A91: Q76 | B91: RK5 | C91: SHERWOOD FOREST HOSPITALS NHS FOUNDATION TRUST | D91: RK5BC | E91: King's Mill Hospital - RK5BC | F91: 23 | G91: 0.9130434783 | H91: 0.04347826087 | I91: 17 | J91: 4 | K91: 1 | L91: 0 | M91: 1 | N91: 0
A92: Q76 | B92: RXW | C92: SHREWSBURY AND TELFORD HOSPITAL NHS TRUST | D92: RXWXXX | E92: Non-hospital site - RXWXXX | F92: 36 | G92: 0.9444444444 | H92: 0.02777777778 | I92: 28 | J92: 6 | K92: 0 | L92: 1 | M92: 0 | N92: 1
A93: Q76 | B93: RTG | C93: UNIVERSITY HOSPITALS OF DERBY AND BURTON NHS FOUNDATION TRUST | D93: RTG02 | E93: Queens Hospital, Burton Upon Trent - RTG02 | F93: 37 | G93: 0.972972973 | H93: 0 | I93: 33 | J93: 3 | K93: 0 | L93: 0 | M93: 0 | N93: 1
A94: Q76 | B94: RTG | C94: UNIVERSITY HOSPITALS OF DERBY AND BURTON NHS FOUNDATION TRUST | D94: RTGFG | E94: Royal Derby Hospital - RTGFG | F94: 39 | G94: 0.9743589744 | H94: 0.02564102564 | I94: 33 | J94: 5 | K94: 0 | L94: 0 | M94: 1 | N94: 0
A95: Q76 | B95: RJE | C95: UNIVERSITY HOSPITALS OF NORTH MIDLANDS NHS TRUST | D95: RJE09 | E95: County Hospital - RJE09 | F95: 0 | G95: NA | H95: NA | I95: 0 | J95: 0 | K95: 0 | L95: 0 | M95: 0 | N95: 0
A96: Q76 | B96: RJE | C96: UNIVERSITY HOSPITALS OF NORTH MIDLANDS NHS TRUST | D96: RJE01 | E96: Royal Stoke University Hospital - RJE01 | F96: 27 | G96: 0.962962963 | H96: 0 | I96: 24 | J96: 2 | K96: 1 | L96: 0 | M96: 0 | N96: 0
A97: Q77 | B97: RQ3 | C97: BIRMINGHAM WOMEN'S AND CHILDREN'S NHS FOUNDATION TRUST | D97: RQ370 | E97: Birmingham Women's Hospital - RQ370 | F97: 148 | G97: 0.9932432432 | H97: 0 | I97: 123 | J97: 24 | K97: 1 | L97: 0 | M97: 0 | N97: 0
A98: Q77 | B98: RLT | C98: GEORGE ELIOT HOSPITAL NHS TRUST | D98: RLT01 | E98: George Eliot Hospital - Acute Services - RLT01 | F98: 62 | G98: 0.9516129032 | H98: 0.01612903226 | I98: 49 | J98: 10 | K98: 1 | L98: 0 | M98: 1 | N98: 1
A99: Q77 | B99: RXK | C99: SANDWELL AND WEST BIRMINGHAM HOSPITALS NHS TRUST | D99: RXK02 | E99: City Hospital - RXK02 | F99: 0 | G99: NA | H99: NA | I99: 0 | J99: 0 | K99: 0 | L99: 0 | M99: 0 | N99: 0
A100: Q77 | B100: RJC | C100: SOUTH WARWICKSHIRE NHS FOUNDATION TRUST | D100: RJCXXX | E100: Non-hospital site - RJCXXX | F100: 49 | G100: 0.9591836735 | H100: 0.02040816327 | I100: 32 | J100: 15 | K100: 0 | L100: 1 | M100: 0 | N100: 1
A101: Q77 | B101: RNA | C101: THE DUDLEY GROUP NHS FOUNDATION TRUST | D101: RNAXXX | E101: Non-hospital site - RNAXXX | F101: 7 | G101: 1 | H101: 0 | I101: 7 | J101: 0 | K101: 0 | L101: 0 | M101: 0 | N101: 0
A102: Q77 | B102: RNA | C102: THE DUDLEY GROUP NHS FOUNDATION TRUST | D102: RNA01 | E102: Russells Hall Hospital - RNA01 | F102: 55 | G102: 0.9818181818 | H102: 0.01818181818 | I102: 48 | J102: 6 | K102: 0 | L102: 1 | M102: 0 | N102: 0
A103: Q77 | B103: RL4 | C103: THE ROYAL WOLVERHAMPTON NHS TRUST | D103: RL403 | E103: New Cross Hospital - RL403 | F103: 2 | G103: * | H103: * | I103: * | J103: * | K103: * | L103: * | M103: * | N103: *
A104: Q77 | B104: RRK | C104: UNIVERSITY HOSPITALS BIRMINGHAM NHS FOUNDATION TRUST | D104: RRK98 | E104: Good Hope Hospital - RRK98 | F104: 4 | G104: * | H104: * | I104: * | J104: * | K104: * | L104: * | M104: * | N104: *
A105: Q77 | B105: RRK | C105: UNIVERSITY HOSPITALS BIRMINGHAM NHS FOUNDATION TRUST | D105: RRK97 | E105: Heartlands Hospital - RRK97 | F105: 1 | G105: * | H105: * | I105: * | J105: * | K105: * | L105: * | M105: * | N105: *
A106: Q77 | B106: RRK | C106: UNIVERSITY HOSPITALS BIRMINGHAM NHS FOUNDATION TRUST | D106: RRK99 | E106: Solihull Hospital - RRK99 | F106: 0 | G106: NA | H106: NA | I106: 0 | J106: 0 | K106: 0 | L106: 0 | M106: 0 | N106: 0
A107: Q77 | B107: RKB | C107: UNIVERSITY HOSPITALS COVENTRY AND WARWICKSHIRE NHS TRUST | D107: RKB03 | E107: Hospital Of St Cross - RKB03 | F107: 0 | G107: NA | H107: NA | I107: 0 | J107: 0 | K107: 0 | L107: 0 | M107: 0 | N107: 0
A108: Q77 | B108: RKB | C108: UNIVERSITY HOSPITALS COVENTRY AND WARWICKSHIRE NHS TRUST | D108: RKBXXX | E108: Non-hospital site - RKBXXX | F108: 10 | G108: 1 | H108: 0 | I108: 7 | J108: 3 | K108: 0 | L108: 0 | M108: 0 | N108: 0
A109: Q77 | B109: RKB | C109: UNIVERSITY HOSPITALS COVENTRY AND WARWICKSHIRE NHS TRUST | D109: RKB01 | E109: University Hospital (Coventry) - RKB01 | F109: 33 | G109: 0.8787878788 | H109: 0.06060606061 | I109: 20 | J109: 9 | K109: 0 | L109: 1 | M109: 1 | N109: 2
A110: Q77 | B110: RBK | C110: WALSALL HEALTHCARE NHS TRUST | D110: RBK02 | E110: Manor Hospital - RBK02 | F110: 29 | G110: 0.9655172414 | H110: 0 | I110: 18 | J110: 10 | K110: 1 | L110: 0 | M110: 0 | N110: 0
A111: Q77 | B111: RWP | C111: WORCESTERSHIRE ACUTE HOSPITALS NHS TRUST | D111: RWP01 | E111: Alexandra Hospital - RWP01 | F111: 24 | G111: 0.9583333333 | H111: 0.04166666667 | I111: 22 | J111: 1 | K111: 0 | L111: 0 | M111: 1 | N111: 0
A112: Q77 | B112: RWP | C112: WORCESTERSHIRE ACUTE HOSPITALS NHS TRUST | D112: RWP31 | E112: Kidderminster Hospital - RWP31 | F112: 45 | G112: 0.9555555556 | H112: 0.02222222222 | I112: 37 | J112: 6 | K112: 0 | L112: 0 | M112: 1 | N112: 1
A113: Q77 | B113: RWP | C113: WORCESTERSHIRE ACUTE HOSPITALS NHS TRUST | D113: RWP50 | E113: Worcestershire Royal Hospital - RWP50 | F113: 53 | G113: 0.9245283019 | H113: 0.03773584906 | I113: 40 | J113: 9 | K113: 2 | L113: 0 | M113: 2 | N113: 0
A114: Q77 | B114: RLQ | C114: WYE VALLEY NHS TRUST | D114: RLQ01 | E114: Hereford County Hospital - RLQ01 | F114: 9 | G114: 0.8888888889 | H114: 0.1111111111 | I114: 8 | J114: 0 | K114: 0 | L114: 0 | M114: 1 | N114: 0
A115: Q78 | B115: RC1 | C115: BEDFORD HOSPITAL NHS TRUST | D115: RC110 | E115: Bedford Hospital South Wing - RC110 | F115: 1 | G115: * | H115: * | I115: * | J115: * | K115: * | L115: * | M115: * | N115: *
A116: Q78 | B116: RWH | C116: EAST AND NORTH HERTFORDSHIRE NHS TRUST | D116: RWH01 | E116: Lister Hospital - RWH01 | F116: 2 | G116: * | H116: * | I116: * | J116: * | K116: * | L116: * | M116: * | N116: *
A117: Q78 | B117: RWH | C117: EAST AND NORTH HERTFORDSHIRE NHS TRUST | D117: RWHXXX | E117: Non-hospital site - RWHXXX | F117: 0 | G117: NA | H117: NA | I117: 0 | J117: 0 | K117: 0 | L117: 0 | M117: 0 | N117: 0
A118: Q78 | B118: RNQ | C118: KETTERING GENERAL HOSPITAL NHS FOUNDATION TRUST | D118: RNQ51 | E118: Kettering General Hospital - RNQ51 | F118: 19 | G118: 1 | H118: 0 | I118: 19 | J118: 0 | K118: 0 | L118: 0 | M118: 0 | N118: 0
A119: Q78 | B119: RC9 | C119: LUTON AND DUNSTABLE UNIVERSITY HOSPITAL NHS FOUNDATION TRUST | D119: RC971 | E119: Luton and Dunstable Hospital - RC971 | F119: 87 | G119: 0.9885057471 | H119: 0 | I119: 63 | J119: 23 | K119: 0 | L119: 0 | M119: 0 | N119: 1
A120: Q78 | B120: RD8 | C120: MILTON KEYNES UNIVERSITY HOSPITAL NHS FOUNDATION TRUST | D120: RD816 | E120: Milton Keynes Hospital - RD816 | F120: 108 | G120: 0.8518518519 | H120: 0.05555555556 | I120: 63 | J120: 29 | K120: 9 | L120: 4 | M120: 2 | N120: 1
A121: Q78 | B121: RNS | C121: NORTHAMPTON GENERAL HOSPITAL NHS TRUST | D121: RNS01 | E121: Northampton General Hospital (Acute) - RNS01 | F121: 65 | G121: 1 | H121: 0 | I121: 55 | J121: 10 | K121: 0 | L121: 0 | M121: 0 | N121: 0
A122: Q78 | B122: RWD | C122: UNITED LINCOLNSHIRE HOSPITALS NHS TRUST | D122: RWDLP | E122: Grantham and District Hospital - RWDLP | F122: 0 | G122: NA | H122: NA | I122: 0 | J122: 0 | K122: 0 | L122: 0 | M122: 0 | N122: 0
A123: Q78 | B123: RWD | C123: UNITED LINCOLNSHIRE HOSPITALS NHS TRUST | D123: RWDDA | E123: Lincoln County Hospital - RWDDA | F123: 8 | G123: 1 | H123: 0 | I123: 8 | J123: 0 | K123: 0 | L123: 0 | M123: 0 | N123: 0
A124: Q78 | B124: RWD | C124: UNITED LINCOLNSHIRE HOSPITALS NHS TRUST | D124: RWDXXX | E124: Non-hospital site - RWDXXX | F124: 0 | G124: NA | H124: NA | I124: 0 | J124: 0 | K124: 0 | L124: 0 | M124: 0 | N124: 0
A125: Q78 | B125: RWD | C125: UNITED LINCOLNSHIRE HOSPITALS NHS TRUST | D125: RWDLA | E125: Pilgrim Hospital - RWDLA | F125: 0 | G125: NA | H125: NA | I125: 0 | J125: 0 | K125: 0 | L125: 0 | M125: 0 | N125: 0
A126: Q78 | B126: RWE | C126: UNIVERSITY HOSPITALS OF LEICESTER NHS TRUST | D126: RWEAK | E126: Leicester General Hospital - RWEAK | F126: 50 | G126: 0.92 | H126: 0.02 | I126: 44 | J126: 2 | K126: 3 | L126: 0 | M126: 1 | N126: 0
A127: Q78 | B127: RWE | C127: UNIVERSITY HOSPITALS OF LEICESTER NHS TRUST | D127: RWEAA | E127: Leicester Royal Infirmary - RWEAA | F127: 9 | G127: 1 | H127: 0 | I127: 9 | J127: 0 | K127: 0 | L127: 0 | M127: 0 | N127: 0
A128: Q78 | B128: RWE | C128: UNIVERSITY HOSPITALS OF LEICESTER NHS TRUST | D128: RWEXXX | E128: Non-hospital site - RWEXXX | F128: 61 | G128: 1 | H128: 0 | I128: 53 | J128: 8 | K128: 0 | L128: 0 | M128: 0 | N128: 0
A129: Q78 | B129: RWG | C129: WEST HERTFORDSHIRE HOSPITALS NHS TRUST | D129: RWG02 | E129: Watford General Hospital - RWG02 | F129: 16 | G129: 1 | H129: 0 | I129: 10 | J129: 6 | K129: 0 | L129: 0 | M129: 0 | N129: 0
A130: Q79 | B130: RDD | C130: BASILDON AND THURROCK UNIVERSITY HOSPITALS NHS FOUNDATION TRUST | D130: RDDH0 | E130: Basildon University Hospital - RDDH0 | F130: 34 | G130: 0.9705882353 | H130: 0.02941176471 | I130: 30 | J130: 3 | K130: 0 | L130: 0 | M130: 1 | N130: 0
A131: Q79 | B131: RGT | C131: CAMBRIDGE UNIVERSITY HOSPITALS NHS FOUNDATION TRUST | D131: RGT32 | E131: Rosie Hospital - RGT32 | F131: 33 | G131: 0.9393939394 | H131: 0 | I131: 16 | J131: 15 | K131: 2 | L131: 0 | M131: 0 | N131: 0
A132: Q79 | B132: RDE | C132: EAST SUFFOLK AND NORTH ESSEX NHS FOUNDATION TRUST | D132: RDEE4 | E132: Colchester General Hospital - RDEE4 | F132: 0 | G132: NA | H132: NA | I132: 0 | J132: 0 | K132: 0 | L132: 0 | M132: 0 | N132: 0
A133: Q79 | B133: RDE | C133: EAST SUFFOLK AND NORTH ESSEX NHS FOUNDATION TRUST | D133: RDE03 | E133: Ipswich Hospital - RDE03 | F133: 81 | G133: 1 | H133: 0 | I133: 65 | J133: 16 | K133: 0 | L133: 0 | M133: 0 | N133: 0
A134: Q79 | B134: RGP | C134: JAMES PAGET UNIVERSITY HOSPITALS NHS FOUNDATION TRUST | D134: RGP75 | E134: James Paget University Hospital - RGP75 | F134: 53 | G134: 0.9622641509 | H134: 0.01886792453 | I134: 46 | J134: 5 | K134: 1 | L134: 0 | M134: 1 | N134: 0
A135: Q79 | B135: RQ8 | C135: MID ESSEX HOSPITAL SERVICES NHS TRUST | D135: RQ8L0 | E135: Broomfield Hospital - RQ8L0 | F135: 0 | G135: NA | H135: NA | I135: 0 | J135: 0 | K135: 0 | L135: 0 | M135: 0 | N135: 0
A136: Q79 | B136: RM1 | C136: NORFOLK AND NORWICH UNIVERSITY HOSPITALS NHS FOUNDATION TRUST | D136: RM102 | E136: Norfolk and Norwich University Hospital - RM102 | F136: 58 | G136: 0.9310344828 | H136: 0 | I136: 31 | J136: 23 | K136: 4 | L136: 0 | M136: 0 | N136: 0
A137: Q79 | B137: RGN | C137: NORTH WEST ANGLIA NHS FOUNDATION TRUST | D137: RGN90 | E137: Hinchingbrooke Hospital - RGN90 | F137: 152 | G137: 0.9868421053 | H137: 0.006578947368 | I137: 127 | J137: 23 | K137: 1 | L137: 0 | M137: 1 | N137: 0
A138: Q79 | B138: RGN | C138: NORTH WEST ANGLIA NHS FOUNDATION TRUST | D138: RGN80 | E138: Peterborough City Hospital - RGN80 | F138: 198 | G138: 0.9747474747 | H138: 0.0101010101 | I138: 166 | J138: 27 | K138: 1 | L138: 0 | M138: 2 | N138: 2
A139: Q79 | B139: RAJ | C139: SOUTHEND UNIVERSITY HOSPITAL NHS FOUNDATION TRUST | D139: RAJ01 | E139: Southend Hospital - RAJ01 | F139: 119 | G139: 1 | H139: 0 | I139: 98 | J139: 21 | K139: 0 | L139: 0 | M139: 0 | N139: 0
A140: Q79 | B140: RQW | C140: THE PRINCESS ALEXANDRA HOSPITAL NHS TRUST | D140: RQWG0 | E140: Princess Alexandra Hospital - RQWG0 | F140: 8 | G140: 1 | H140: 0 | I140: 8 | J140: 0 | K140: 0 | L140: 0 | M140: 0 | N140: 0
A141: Q79 | B141: RCX | C141: THE QUEEN ELIZABETH HOSPITAL, KING'S LYNN, NHS FOUNDATION TRUST | D141: RCXXXX | E141: Non-hospital site - RCXXXX | F141: 42 | G141: 0.9761904762 | H141: 0.02380952381 | I141: * | J141: * | K141: * | L141: * | M141: * | N141: *
A142: Q79 | B142: RCX | C142: THE QUEEN ELIZABETH HOSPITAL, KING'S LYNN, NHS FOUNDATION TRUST | D142: RCX66 | E142: North Cambridgeshire Hospital - RCX66 | F142: 0 | G142: NA | H142: NA | I142: 0 | J142: 0 | K142: 0 | L142: 0 | M142: 0 | N142: 0
A143: Q79 | B143: RCX | C143: THE QUEEN ELIZABETH HOSPITAL, KING'S LYNN, NHS FOUNDATION TRUST | D143: RCX70 | E143: The Queen Elizabeth Hospital - RCX70 | F143: 1 | G143: * | H143: * | I143: * | J143: * | K143: * | L143: * | M143: * | N143: *
A144: Q79 | B144: RGR | C144: WEST SUFFOLK NHS FOUNDATION TRUST | D144: RGR50 | E144: West Suffolk Hospital - RGR50 | F144: 0 | G144: NA | H144: NA | I144: 0 | J144: 0 | K144: 0 | L144: 0 | M144: 0 | N144: 0
A145: Q83 | B145: RMC | C145: BOLTON NHS FOUNDATION TRUST | D145: RMC01 | E145: Royal Bolton Hospital - RMC01 | F145: 204 | G145: 0.9656862745 | H145: 0.02450980392 | I145: 171 | J145: 26 | K145: 2 | L145: 0 | M145: 5 | N145: 0
A146: Q83 | B146: RY2 | C146: BRIDGEWATER COMMUNITY HEALTHCARE NHS FOUNDATION TRUST | D146: RY28P | E146: Health Care Resource Centre - RY28P | F146: 0 | G146: NA | H146: NA | I146: 0 | J146: 0 | K146: 0 | L146: 0 | M146: 0 | N146: 0
A147: Q83 | B147: RY2 | C147: BRIDGEWATER COMMUNITY HEALTHCARE NHS FOUNDATION TRUST | D147: RY2XXX | E147: Non-hospital site - RY2XXX | F147: 17 | G147: 0.9411764706 | H147: 0 | I147: 14 | J147: 2 | K147: 0 | L147: 0 | M147: 0 | N147: 1
A148: Q83 | B148: R0A | C148: MANCHESTER UNIVERSITY NHS FOUNDATION TRUST | D148: R0A05 | E148: St Mary's Hospital - R0A05 | F148: 137 | G148: 0.9489051095 | H148: 0.02189781022 | I148: 98 | J148: 32 | K148: 1 | L148: 1 | M148: 2 | N148: 3
A149: Q83 | B149: RW6 | C149: PENNINE ACUTE HOSPITALS NHS TRUST | D149: RW601 | E149: Fairfield General Hospital - RW601 | F149: 0 | G149: NA | H149: NA | I149: 0 | J149: 0 | K149: 0 | L149: 0 | M149: 0 | N149: 0
A150: Q83 | B150: RW6 | C150: PENNINE ACUTE HOSPITALS NHS TRUST | D150: RW602 | E150: North Manchester General Hospital - RW602 | F150: 8 | G150: 0.875 | H150: 0.125 | I150: * | J150: * | K150: * | L150: * | M150: * | N150: *
A151: Q83 | B151: RW6 | C151: PENNINE ACUTE HOSPITALS NHS TRUST | D151: RW604 | E151: Rochdale Infirmary - RW604 | F151: 2 | G151: * | H151: * | I151: * | J151: * | K151: * | L151: * | M151: * | N151: *
A152: Q83 | B152: RW6 | C152: PENNINE ACUTE HOSPITALS NHS TRUST | D152: RW603 | E152: Royal Oldham Hospital - RW603 | F152: 12 | G152: 1 | H152: 0 | I152: 12 | J152: 0 | K152: 0 | L152: 0 | M152: 0 | N152: 0
A153: Q83 | B153: RWJ | C153: STOCKPORT NHS FOUNDATION TRUST | D153: RWJ09 | E153: Stepping Hill Hospital - RWJ09 | F153: 66 | G153: 0.9393939394 | H153: 0.01515151515 | I153: 37 | J153: 25 | K153: 1 | L153: 1 | M153: 0 | N153: 2
A154: Q83 | B154: RMP | C154: TAMESIDE AND GLOSSOP INTEGRATED CARE NHS FOUNDATION TRUST | D154: RMP01 | E154: Tameside General Hospital - RMP01 | F154: 16 | G154: 0.9375 | H154: 0 | I154: 11 | J154: 4 | K154: 1 | L154: 0 | M154: 0 | N154: 0
A155: Q83 | B155: RRF | C155: WRIGHTINGTON, WIGAN AND LEIGH NHS FOUNDATION TRUST | D155: RRF02 | E155: Royal Albert Edward Infirmary - RRF02 | F155: 28 | G155: 0.9285714286 | H155: 0 | I155: 20 | J155: 6 | K155: 1 | L155: 0 | M155: 0 | N155: 1
A156: Q84 | B156: RXL | C156: BLACKPOOL TEACHING HOSPITALS NHS FOUNDATION TRUST | D156: RXL01 | E156: Blackpool Victoria Hospital - RXL01 | F156: 19 | G156: 1 | H156: 0 | I156: 13 | J156: 6 | K156: 0 | L156: 0 | M156: 0 | N156: 0
A157: Q84 | B157: RXR | C157: EAST LANCASHIRE HOSPITALS NHS TRUST | D157: RXR20 | E157: Royal Blackburn Hospital - RXR20 | F157: 99 | G157: 1 | H157: 0 | I157: 93 | J157: 6 | K157: 0 | L157: 0 | M157: 0 | N157: 0
A158: Q84 | B158: RXN | C158: LANCASHIRE TEACHING HOSPITALS NHS FOUNDATION TRUST | D158: RXN02 | E158: Royal Preston Hospital - RXN02 | F158: 38 | G158: 0.9473684211 | H158: 0.02631578947 | I158: 29 | J158: 7 | K158: 1 | L158: 0 | M158: 1 | N158: 0
A159: Q84 | B159: RTX | C159: UNIVERSITY HOSPITALS OF MORECAMBE BAY NHS FOUNDATION TRUST | D159: RTXBU | E159: Furness General Hospital - RTXBU | F159: 16 | G159: 0.9375 | H159: 0 | I159: 14 | J159: 1 | K159: 1 | L159: 0 | M159: 0 | N159: 0
A160: Q84 | B160: RTX | C160: UNIVERSITY HOSPITALS OF MORECAMBE BAY NHS FOUNDATION TRUST | D160: RTXXXX | E160: Non-hospital site - RTXXXX | F160: 10 | G160: 1 | H160: 0 | I160: 9 | J160: 1 | K160: 0 | L160: 0 | M160: 0 | N160: 0
A161: Q84 | B161: RTX | C161: UNIVERSITY HOSPITALS OF MORECAMBE BAY NHS FOUNDATION TRUST | D161: RTX02 | E161: Royal Lancaster Infirmary - RTX02 | F161: 23 | G161: 1 | H161: 0 | I161: 17 | J161: 6 | K161: 0 | L161: 0 | M161: 0 | N161: 0
A162: Q85 | B162: RBD | C162: DORSET COUNTY HOSPITAL NHS FOUNDATION TRUST | D162: RBD01 | E162: Dorset County Hospital - RBD01 | F162: 16 | G162: 1 | H162: 0 | I162: 13 | J162: 3 | K162: 0 | L162: 0 | M162: 0 | N162: 0
A163: Q85 | B163: RBZ | C163: NORTHERN DEVON HEALTHCARE NHS TRUST | D163: RBZ12 | E163: North Devon District Hospital - RBZ12 | F163: 1 | G163: * | H163: * | I163: * | J163: * | K163: * | L163: * | M163: * | N163: *
A164: Q85 | B164: RD3 | C164: POOLE HOSPITAL NHS FOUNDATION TRUST | D164: RD304 | E164: Poole General Hospital NHS Trust HQ - RD304 | F164: 34 | G164: 0.9705882353 | H164: 0.02941176471 | I164: 30 | J164: 3 | K164: 0 | L164: 1 | M164: 0 | N164: 0
A165: Q85 | B165: REF | C165: ROYAL CORNWALL HOSPITALS NHS TRUST | D165: REFXXX | E165: Non-hospital site - REFXXX | F165: 2 | G165: * | H165: * | I165: * | J165: * | K165: * | L165: * | M165: * | N165: *
A166: Q85 | B166: REF | C166: ROYAL CORNWALL HOSPITALS NHS TRUST | D166: REF12 | E166: Royal Cornwall Hospital (Treliske) - REF12 | F166: 36 | G166: 0.9444444444 | H166: 0 | I166: * | J166: * | K166: * | L166: * | M166: * | N166: *
A167: Q85 | B167: RH8 | C167: ROYAL DEVON AND EXETER NHS FOUNDATION TRUST | D167: RH854 | E167: Honiton Hospital - RH 854 | F167: 0 | G167: NA | H167: NA | I167: 0 | J167: 0 | K167: 0 | L167: 0 | M167: 0 | N167: 0
A168: Q85 | B168: RH8 | C168: ROYAL DEVON AND EXETER NHS FOUNDATION TRUST | D168: RH833 | E168: Okehampton Community Hospital - RH833 | F168: 0 | G168: NA | H168: NA | I168: 0 | J168: 0 | K168: 0 | L168: 0 | M168: 0 | N168: 0
A169: Q85 | B169: RH8 | C169: ROYAL DEVON AND EXETER NHS FOUNDATION TRUST | D169: RH801 | E169: Royal Devon and Exeter Hospital (Wonford) - RH801 | F169: 0 | G169: NA | H169: NA | I169: 0 | J169: 0 | K169: 0 | L169: 0 | M169: 0 | N169: 0
A170: Q85 | B170: RH8 | C170: ROYAL DEVON AND EXETER NHS FOUNDATION TRUST | D170: RH853 | E170: Tiverton and District Hospital - RH853 | F170: 0 | G170: NA | H170: NA | I170: 0 | J170: 0 | K170: 0 | L170: 0 | M170: 0 | N170: 0
A171: Q85 | B171: RBA | C171: TAUNTON AND SOMERSET NHS FOUNDATION TRUST | D171: RBAC3 | E171: Bridgwater Hospital - RBAC3 | F171: 2 | G171: * | H171: * | I171: * | J171: * | K171: * | L171: * | M171: * | N171: *
A172: Q85 | B172: RBA | C172: TAUNTON AND SOMERSET NHS FOUNDATION TRUST | D172: RBA11 | E172: Musgrove Park Hospital - RBA11 | F172: 35 | G172: 0.9714285714 | H172: 0 | I172: 26 | J172: 8 | K172: 0 | L172: 0 | M172: 0 | N172: 1
A173: Q85 | B173: RBA | C173: TAUNTON AND SOMERSET NHS FOUNDATION TRUST | D173: RBAXXX | E173: Non-hospital site - RBAXXX | F173: 6 | G173: 0.8333333333 | H173: 0 | I173: * | J173: * | K173: * | L173: * | M173: * | N173: *
A174: Q85 | B174: RDZ | C174: THE ROYAL BOURNEMOUTH AND CHRISTCHURCH HOSPITALS NHS FOUNDATION TRUST | D174: RDZ20 | E174: Royal Bournemouth General Hospital - RDZ20 | F174: 73 | G174: 0.8630136986 | H174: 0.06849315068 | I174: 53 | J174: 10 | K174: 5 | L174: 2 | M174: 3 | N174: 0
A175: Q85 | B175: RA9 | C175: TORBAY AND SOUTH DEVON NHS FOUNDATION TRUST | D175: RA9XXX | E175: Non-hospital site - RA9XXX | F175: 3 | G175: * | H175: * | I175: * | J175: * | K175: * | L175: * | M175: * | N175: *
A176: Q85 | B176: RK9 | C176: UNIVERSITY HOSPITALS PLYMOUTH NHS TRUST | D176: RK950 | E176: Derriford Hospital - RK950 | F176: 5 | G176: 1 | H176: 0 | I176: 4 | J176: 1 | K176: 0 | L176: 0 | M176: 0 | N176: 0
A177: Q85 | B177: RK9 | C177: UNIVERSITY HOSPITALS PLYMOUTH NHS TRUST | D177: RK9XXX | E177: Non-hospital site - RK9XXX | F177: 74 | G177: 0.9864864865 | H177: 0.01351351351 | I177: 63 | J177: 10 | K177: 0 | L177: 0 | M177: 1 | N177: 0
A178: Q85 | B178: RA4 | C178: YEOVIL DISTRICT HOSPITAL NHS FOUNDATION TRUST | D178: RA430 | E178: Yeovil District Hospital - RA430 | F178: 26 | G178: 1 | H178: 0 | I178: 23 | J178: 3 | K178: 0 | L178: 0 | M178: 0 | N178: 0
A179: Q86 | B179: RTE | C179: GLOUCESTERSHIRE HOSPITALS NHS FOUNDATION TRUST | D179: RTE03 | E179: Gloucestershire Royal Hospital - RTE03 | F179: 0 | G179: NA | H179: NA | I179: 0 | J179: 0 | K179: 0 | L179: 0 | M179: 0 | N179: 0
A180: Q86 | B180: RTE | C180: GLOUCESTERSHIRE HOSPITALS NHS FOUNDATION TRUST | D180: RTE27 | E180: Stroud Maternity Hospital - RTE27 | F180: 0 | G180: NA | H180: NA | I180: 0 | J180: 0 | K180: 0 | L180: 0 | M180: 0 | N180: 0
A181: Q86 | B181: RN3 | C181: GREAT WESTERN HOSPITALS NHS FOUNDATION TRUST | D181: RN3XXX | E181: Non-hospital site - RN3XXX | F181: 0 | G181: NA | H181: NA | I181: 0 | J181: 0 | K181: 0 | L181: 0 | M181: 0 | N181: 0
A182: Q86 | B182: RN3 | C182: GREAT WESTERN HOSPITALS NHS FOUNDATION TRUST | D182: RN325 | E182: The Great Western Hospital - RN325 | F182: 1 | G182: * | H182: * | I182: * | J182: * | K182: * | L182: * | M182: * | N182: *
A183: Q86 | B183: RVJ | C183: NORTH BRISTOL NHS TRUST | D183: RVJ01 | E183: Southmead Hospital - RVJ01 | F183: 66 | G183: 1 | H183: 0 | I183: 57 | J183: 9 | K183: 0 | L183: 0 | M183: 0 | N183: 0
A184: Q86 | B184: RD1 | C184: ROYAL UNITED HOSPITALS BATH NHS FOUNDATION TRUST | D184: RD102 | E184: Chippenham Community Hospital -RD102 | F184: 21 | G184: 1 | H184: 0 | I184: 18 | J184: 3 | K184: 0 | L184: 0 | M184: 0 | N184: 0
A185: Q86 | B185: RD1 | C185: ROYAL UNITED HOSPITALS BATH NHS FOUNDATION TRUST | D185: RD121 | E185: Frome Community Hospital - RD121 | F185: 12 | G185: 1 | H185: 0 | I185: 12 | J185: 0 | K185: 0 | L185: 0 | M185: 0 | N185: 0
A186: Q86 | B186: RD1 | C186: ROYAL UNITED HOSPITALS BATH NHS FOUNDATION TRUST | D186: RD129 | E186: Paulton Memorial Hospital - RD129 | F186: 15 | G186: 1 | H186: 0 | I186: 15 | J186: 0 | K186: 0 | L186: 0 | M186: 0 | N186: 0
A187: Q86 | B187: RD1 | C187: ROYAL UNITED HOSPITALS BATH NHS FOUNDATION TRUST | D187: RD130 | E187: Princess Anne Wing RUH - RD130 | F187: 12 | G187: 0.9166666667 | H187: 0.08333333333 | I187: 8 | J187: 3 | K187: 0 | L187: 1 | M187: 0 | N187: 0
A188: Q86 | B188: RD1 | C188: ROYAL UNITED HOSPITALS BATH NHS FOUNDATION TRUST | D188: RD167 | E188: Shepton Mallet Community Hospital - RD167 | F188: 0 | G188: NA | H188: NA | I188: 0 | J188: 0 | K188: 0 | L188: 0 | M188: 0 | N188: 0
A189: Q86 | B189: RD1 | C189: ROYAL UNITED HOSPITALS BATH NHS FOUNDATION TRUST | D189: RD108 | E189: Trowbridge Community Hospital - RD108 | F189: 6 | G189: 1 | H189: 0 | I189: 6 | J189: 0 | K189: 0 | L189: 0 | M189: 0 | N189: 0
A190: Q86 | B190: RNZ | C190: SALISBURY NHS FOUNDATION TRUST | D190: RNZ02 | E190: Salisbury District Hospital - RNZ02 | F190: 2 | G190: * | H190: * | I190: * | J190: * | K190: * | L190: * | M190: * | N190: *
A191: Q86 | B191: RA7 | C191: UNIVERSITY HOSPITALS BRISTOL NHS FOUNDATION TRUST | D191: RA707 | E191: St Michael's Hospital - RA707 | F191: 101 | G191: 0.9900990099 | H191: 0.009900990099 | I191: 75 | J191: 25 | K191: 0 | L191: 0 | M191: 1 | N191: 0
A192: Q86 | B192: RA3 | C192: WESTON AREA HEALTH NHS TRUST | D192: RA301 | E192: Weston General Hospital - RA301 | F192: 20 | G192: 0.75 | H192: 0 | I192: 12 | J192: 3 | K192: 0 | L192: 0 | M192: 0 | N192: 5
A193: Q87 | B193: RXQ | C193: BUCKINGHAMSHIRE HEALTHCARE NHS TRUST | D193: RXQ02 | E193: Stoke Mandeville Hospital - RXQ02 | F193: 11 | G193: 1 | H193: 0 | I193: 11 | J193: 0 | K193: 0 | L193: 0 | M193: 0 | N193: 0
A194: Q87 | B194: RDU | C194: FRIMLEY HEALTH NHS FOUNDATION TRUST | D194: RDU01 | E194: Frimley Park Hospital - RDU01 | F194: 80 | G194: 1 | H194: 0 | I194: 68 | J194: 12 | K194: 0 | L194: 0 | M194: 0 | N194: 0
A195: Q87 | B195: RDU | C195: FRIMLEY HEALTH NHS FOUNDATION TRUST | D195: RDU50 | E195: Wexham Park Hospital - RDU50 | F195: 28 | G195: 0.9285714286 | H195: 0.03571428571 | I195: 21 | J195: 5 | K195: 1 | L195: 0 | M195: 1 | N195: 0
A196: Q87 | B196: RN5 | C196: HAMPSHIRE HOSPITALS NHS FOUNDATION TRUST | D196: RN542 | E196: Andover War Memorial Hospital - RN542 | F196: 0 | G196: NA | H196: NA | I196: 0 | J196: 0 | K196: 0 | L196: 0 | M196: 0 | N196: 0
A197: Q87 | B197: RN5 | C197: HAMPSHIRE HOSPITALS NHS FOUNDATION TRUST | D197: RN506 | E197: Basingstoke and North Hampshire Hospital - RN506 | F197: 5 | G197: 1 | H197: 0 | I197: 4 | J197: 1 | K197: 0 | L197: 0 | M197: 0 | N197: 0
A198: Q87 | B198: RN5 | C198: HAMPSHIRE HOSPITALS NHS FOUNDATION TRUST | D198: RN541 | E198: Royal Hampshire County Hospital - RN541 | F198: 0 | G198: NA | H198: NA | I198: 0 | J198: 0 | K198: 0 | L198: 0 | M198: 0 | N198: 0
A199: Q87 | B199: R1F | C199: ISLE OF WIGHT NHS TRUST | D199: R1F01 | E199: St Mary's Hospital - R1F01 | F199: 0 | G199: NA | H199: NA | I199: 0 | J199: 0 | K199: 0 | L199: 0 | M199: 0 | N199: 0
A200: Q87 | B200: RTH | C200: OXFORD UNIVERSITY HOSPITALS NHS FOUNDATION TRUST | D200: RTH08 | E200: John Radcliffe Hospital - RTH08 | F200: 116 | G200: 0.974137931 | H200: 0 | I200: 99 | J200: 14 | K200: 2 | L200: 0 | M200: 0 | N200: 1
A201: Q87 | B201: RHU | C201: PORTSMOUTH HOSPITALS NHS TRUST | D201: RHU10 | E201: Gosport War Memorial Hospital - RHU10 | F201: 6 | G201: 1 | H201: 0 | I201: * | J201: * | K201: * | L201: * | M201: * | N201: *
A202: Q87 | B202: RHU | C202: PORTSMOUTH HOSPITALS NHS TRUST | D202: RHU04 | E202: Petersfield Community Hospital - RHU04 | F202: 9 | G202: 1 | H202: 0 | I202: 8 | J202: 1 | K202: 0 | L202: 0 | M202: 0 | N202: 0
A203: Q87 | B203: RHU | C203: PORTSMOUTH HOSPITALS NHS TRUST | D203: RHU03 | E203: Queen Alexandra Hospital - RHU03 | F203: 2 | G203: * | H203: * | I203: * | J203: * | K203: * | L203: * | M203: * | N203: *
A204: Q87 | B204: RHU | C204: PORTSMOUTH HOSPITALS NHS TRUST | D204: RHU02 | E204: St Mary's Hospital - RHU02 | F204: 11 | G204: 0.9090909091 | H204: 0 | I204: 9 | J204: 1 | K204: 1 | L204: 0 | M204: 0 | N204: 0
A205: Q87 | B205: RHW | C205: ROYAL BERKSHIRE NHS FOUNDATION TRUST | D205: RHW01 | E205: Royal Berkshire Hospital - RHW01 | F205: 37 | G205: 1 | H205: 0 | I205: 32 | J205: 5 | K205: 0 | L205: 0 | M205: 0 | N205: 0
A206: Q87 | B206: RHM | C206: UNIVERSITY HOSPITAL SOUTHAMPTON NHS FOUNDATION TRUST | D206: RHM12 | E206: Princess Anne Hospital - RHM12 | F206: 166 | G206: 0.9156626506 | H206: 0 | I206: 110 | J206: 42 | K206: 11 | L206: 0 | M206: 0 | N206: 3
A207: Q88 | B207: RXH | C207: BRIGHTON AND SUSSEX UNIVERSITY HOSPITALS NHS TRUST | D207: RXH01 | E207: Royal Sussex County Hospital - RXH01 | F207: 0 | G207: NA | H207: NA | I207: 0 | J207: 0 | K207: 0 | L207: 0 | M207: 0 | N207: 0
... 14 more rows

Sheet Region (Local Office) Q2
B6: Sort data by:
A9: Region (LO) Code | B9: Region (Local Office) | C9: Total Responses | D9: Total Eligible | E9: Response Rate | F9: Percentage Recommended | G9: Percentage Not Recommended | H9: Breakdown of Responses
H10: Extremely Likely | I10: Likely | J10: Neither | K10: Unlikely | L10: Extremely Unlikely | M10: Don't Know
B11: England (including Independent Sector providers) | C11: 9567 | D11: 43061 | E11: 0.2221731962 | F11: 0.9736594544 | G11: 0.01170690917 | H11: 8014 | I11: 1301 | J11: 89 | K11: 51 | L11: 61 | M11: 51
B12: England (excluding Independent Sector providers) | C12: 9560 | D12: 43030 | E12: 0.2221705787 | F12: 0.9736401674 | G12: 0.01171548117 | H12: 8007 | I12: 1301 | J12: 89 | K12: 51 | L12: 61 | M12: 51
B13: Selection (excluding suppressed data) | C13: =SUBTOTAL(9,C14:C40) -> 9567 | D13: =SUBTOTAL(9,D14:D40) -> 43061 | E13: =IFERROR(C13/D13, "NA") -> 0.2221731962 | F13: =IFERROR((H13+I13)/SUM(H13:M13), "-") -> 0.9736594544 | G13: =IFERROR((K13+L13)/SUM(H13:M13), "-") -> 0.01170690917 | H13: =SUBTOTAL(9,H14:H40) -> 8014 | I13: 1301 | J13: 89 | K13: 51 | L13: 61 | M13: 51
A14: Q72 | B14: NHS England Yorkshire & Humber | C14: 1120 | D14: 4270 | E14: 0.262295082 | F14: 0.9892857143 | G14: 0.005357142857 | H14: 950 | I14: 158 | J14: 5 | K14: 1 | L14: 5 | M14: 1
A15: Q74 | B15: NHS England Cumbria & North East | C15: 377 | D15: 2216 | E15: 0.1701263538 | F15: 0.9787798408 | G15: 0.002652519894 | H15: 343 | I15: 26 | J15: 7 | K15: 1 | L15: 0 | M15: 0
A16: Q75 | B16: NHS England Cheshire & Merseyside | C16: 294 | D16: 2045 | E16: 0.1437652812 | F16: 0.9829931973 | G16: 0 | H16: 268 | I16: 21 | J16: 4 | K16: 0 | L16: 0 | M16: 1
A17: Q83 | B17: NHS England Greater Manchester | C17: 559 | D17: 2634 | E17: 0.2122247532 | F17: 0.9588550984 | G17: 0.01967799642 | H17: 464 | I17: 72 | J17: 12 | K17: 4 | L17: 7 | M17: 0
A18: Q84 | B18: NHS England Lancashire | C18: 271 | D18: 1050 | E18: 0.2580952381 | F18: 0.9557195572 | G18: 0.0258302583 | H18: 238 | I18: 21 | J18: 3 | K18: 3 | L18: 4 | M18: 2
A19: Q76 | B19: NHS England North Midlands | C19: 339 | D19: 2557 | E19: 0.132577239 | F19: 0.9911504425 | G19: 0 | H19: 289 | I19: 47 | J19: 2 | K19: 0 | L19: 0 | M19: 1
A20: Q77 | B20: NHS England West Midlands | C20: 653 | D20: 3501 | E20: 0.1865181377 | F20: 0.9525267994 | G20: 0.03215926493 | H20: 540 | I20: 82 | J20: 6 | K20: 12 | L20: 9 | M20: 4
A21: Q78 | B21: NHS England Central Midlands | C21: 1071 | D21: 3000 | E21: 0.357 | F21: 0.9523809524 | G21: 0.01960784314 | H21: 823 | I21: 197 | J21: 15 | K21: 11 | L21: 10 | M21: 15
A22: Q79 | B22: NHS England East | C22: 696 | D22: 3217 | E22: 0.2163506372 | F22: 0.9784482759 | G22: 0.01149425287 | H22: 616 | I22: 65 | J22: 4 | K22: 4 | L22: 4 | M22: 3
A23: Q85 | B23: NHS England South West (South West South) | C23: 444 | D23: 1881 | E23: 0.2360446571 | F23: 0.9954954955 | G23: 0 | H23: 412 | I23: 30 | J23: 1 | K23: 0 | L23: 0 | M23: 1
A24: Q86 | B24: NHS England South West (South West North) | C24: 344 | D24: 1818 | E24: 0.1892189219 | F24: 0.976744186 | G24: 0.008720930233 | H24: 306 | I24: 30 | J24: 3 | K24: 2 | L24: 1 | M24: 2
A25: Q87 | B25: NHS England South East (Hampshire, Isle Of Wight & Thames Valley) | C25: 695 | D25: 3294 | E25: 0.2109896782 | F25: 0.9827338129 | G25: 0.007194244604 | H25: 603 | I25: 80 | J25: 4 | K25: 2 | L25: 3 | M25: 3
A26: Q88 | B26: NHS England South East (Kent, Surrey & Sussex) | C26: 838 | D26: 2978 | E26: 0.2813969107 | F26: 0.9809069212 | G26: 0.008353221957 | H26: 731 | I26: 91 | J26: 2 | K26: 3 | L26: 4 | M26: 7
A27: Q71 | B27: NHS England London | C27: 1859 | D27: 8569 | E27: 0.216944801 | F27: 0.9709521248 | G27: 0.01183431953 | H27: 1424 | I27: 381 | J27: 21 | K27: 8 | L27: 14 | M27: 11
A28: zIS1 | B28: Independent Sector Provider | C28: 7 | D28: 31 | E28: 0.2258064516 | F28: 1 | G28: 0 | H28: 7 | I28: 0 | J28: 0 | K28: 0 | L28: 0 | M28: 0

Sheet Trusts Q2
B6: Sort data by:
A9: Region (LO) Code | B9: Trust Code | C9: Trust Name | D9: Total Responses | E9: Total Eligible | F9: Response Rate | G9: Percentage Recommended | H9: Percentage Not Recommended | I9: Breakdown of Responses | O9: Mode of Collection
I10: Extremely Likely | J10: Likely | K10: Neither | L10: Unlikely | M10: Extremely Unlikely | N10: Don't Know | O10: SMS/Text / Smartphone App | P10: Electronic tablet/kiosk at point of discharge | Q10: Paper / postcard at point of discharge | R10: Paper survey sent to the patients home | S10: Telephone survey once patient is home | T10: Online survey once patient is home | U10: Other
C11: England (including Independent Sector providers) | D11: 9567 | E11: 43061 | F11: 0.2221731962 | G11: 0.9736594544 | H11: 0.01170690917 | I11: 8014 | J11: 1301 | K11: 89 | L11: 51 | M11: 61 | N11: 51 | O11: 1083 | P11: 2204 | Q11: 5579 | R11: 255 | S11: 18 | T11: 224 | U11: 204
C12: England (excluding Independent Sector providers) | D12: 9560 | E12: 43030 | F12: 0.2221705787 | G12: 0.9736401674 | H12: 0.01171548117 | I12: 8007 | J12: 1301 | K12: 89 | L12: 51 | M12: 61 | N12: 51 | O12: 1083 | P12: 2197 | Q12: 5579 | R12: 255 | S12: 18 | T12: 224 | U12: 204
C13: Selection (excluding suppressed data) | D13: =SUBTOTAL(9,D14:D299) -> 9567 | E13: =SUBTOTAL(9,E14:E299) -> 43061 | F13: =IFERROR(D13/E13, "NA") -> 0.2221731962 | G13: =IFERROR((I13+J13)/SUM(I13:N13), "-") -> 0.9735433071 | H13: =IFERROR((L13+M13)/SUM(I13:N13), "-") -> 0.01175853018 | I13: =SUBTOTAL(9,I14:I299) -> 7974 | J13: 1299 | K13: 89 | L13: 51 | M13: 61 | N13: 51 | O13: =SUBTOTAL(9,O14:O299) -> 1083 | P13: 2204 | Q13: 5543 | R13: 255 | S13: 18 | T13: 218 | U13: =SUBTOTAL(9,U14:U299) -> 204
A14: Q71 | B14: RF4 | C14: BARKING, HAVERING AND REDBRIDGE UNIVERSITY HOSPITALS NHS TRUST | D14: 252 | E14: 572 | F14: 0.4405594406 | G14: 0.9841269841 | H14: 0.007936507937 | I14: 231 | J14: 17 | K14: 0 | L14: 1 | M14: 1 | N14: 2 | O14: 0 | P14: 140 | Q14: 110 | R14: 0 | S14: 0 | T14: 2 | U14: 0
A15: Q71 | B15: R1H | C15: BARTS HEALTH NHS TRUST | D15: 95 | E15: 982 | F15: 0.0967413442 | G15: 0.9684210526 | H15: 0.02105263158 | I15: 77 | J15: 15 | K15: 1 | L15: 1 | M15: 1 | N15: 0 | O15: 14 | P15: 0 | Q15: 73 | R15: 0 | S15: 0 | T15: 8 | U15: 0
A16: Q71 | B16: RQM | C16: CHELSEA AND WESTMINSTER HOSPITAL NHS FOUNDATION TRUST | D16: 129 | E16: 618 | F16: 0.2087378641 | G16: 0.9689922481 | H16: 0.02325581395 | I16: 109 | J16: 16 | K16: 1 | L16: 1 | M16: 2 | N16: 0 | O16: 114 | P16: 15 | Q16: 0 | R16: 0 | S16: 0 | T16: 0 | U16: 0
A17: Q71 | B17: RJ6 | C17: CROYDON HEALTH SERVICES NHS TRUST | D17: 45 | E17: 260 | F17: 0.1730769231 | G17: 0.9333333333 | H17: 0.04444444444 | I17: 30 | J17: 12 | K17: 1 | L17: 0 | M17: 2 | N17: 0 | O17: 13 | P17: 0 | Q17: 32 | R17: 0 | S17: 0 | T17: 0 | U17: 0
A18: Q71 | B18: RVR | C18: EPSOM AND ST HELIER UNIVERSITY HOSPITALS NHS TRUST | D18: 65 | E18: 308 | F18: 0.211038961 | G18: 0.9692307692 | H18: 0.01538461538 | I18: 58 | J18: 5 | K18: 0 | L18: 1 | M18: 0 | N18: 1 | O18: 10 | P18: 0 | Q18: 55 | R18: 0 | S18: 0 | T18: 0 | U18: 0
A19: Q71 | B19: RJ1 | C19: GUY'S AND ST THOMAS' NHS FOUNDATION TRUST | D19: 158 | E19: 475 | F19: 0.3326315789 | G19: 0.9746835443 | H19: 0 | I19: 116 | J19: 38 | K19: 2 | L19: 0 | M19: 0 | N19: 2 | O19: 0 | P19: 0 | Q19: 158 | R19: 0 | S19: 0 | T19: 0 | U19: 0
A20: Q71 | B20: RQX | C20: HOMERTON UNIVERSITY HOSPITAL NHS FOUNDATION TRUST | D20: 30 | E20: 431 | F20: 0.06960556845 | G20: 1 | H20: 0 | I20: 25 | J20: 5 | K20: 0 | L20: 0 | M20: 0 | N20: 0 | O20: 0 | P20: 30 | Q20: 0 | R20: 0 | S20: 0 | T20: 0 | U20: 0
A21: Q71 | B21: RYJ | C21: IMPERIAL COLLEGE HEALTHCARE NHS TRUST | D21: 225 | E21: 608 | F21: 0.3700657895 | G21: 0.9644444444 | H21: 0.02222222222 | I21: 158 | J21: 59 | K21: 2 | L21: 1 | M21: 4 | N21: 1 | O21: 0 | P21: 225 | Q21: 0 | R21: 0 | S21: 0 | T21: 0 | U21: 0
A22: Q71 | B22: RJZ | C22: KING'S COLLEGE HOSPITAL NHS FOUNDATION TRUST | D22: 7 | E22: 713 | F22: 0.009817671809 | G22: 0.8571428571 | H22: 0.1428571429 | I22: 2 | J22: 4 | K22: 0 | L22: 1 | M22: 0 | N22: 0 | O22: 0 | P22: 7 | Q22: 0 | R22: 0 | S22: 0 | T22: 0 | U22: 0
A23: Q71 | B23: RAX | C23: KINGSTON HOSPITAL NHS FOUNDATION TRUST | D23: 6 | E23: 374 | F23: 0.01604278075 | G23: 1 | H23: 0 | I23: 5 | J23: 1 | K23: 0 | L23: 0 | M23: 0 | N23: 0 | O23: 0 | P23: 6 | Q23: 0 | R23: 0 | S23: 0 | T23: 0 | U23: 0
A24: Q71 | B24: RJ2 | C24: LEWISHAM AND GREENWICH NHS TRUST | D24: 288 | E24: 537 | F24: 0.5363128492 | G24: 0.9652777778 | H24: 0 | I24: 196 | J24: 82 | K24: 7 | L24: 0 | M24: 0 | N24: 3 | O24: 0 | P24: 0 | Q24: 288 | R24: 0 | S24: 0 | T24: 0 | U24: 0
A25: Q71 | B25: R1K | C25: LONDON NORTH WEST UNIVERSITY HEALTHCARE NHS TRUST | D25: 87 | E25: 324 | F25: 0.2685185185 | G25: 0.9770114943 | H25: 0 | I25: 67 | J25: 18 | K25: 1 | L25: 0 | M25: 0 | N25: 1 | O25: 0 | P25: 0 | Q25: 87 | R25: 0 | S25: 0 | T25: 0 | U25: 0
A26: Q71 | B26: RAP | C26: NORTH MIDDLESEX UNIVERSITY HOSPITAL NHS TRUST | D26: 54 | E26: 318 | F26: 0.1698113208 | G26: 0.9259259259 | H26: 0.03703703704 | I26: 42 | J26: 8 | K26: 1 | L26: 0 | M26: 2 | N26: 1 | O26: 0 | P26: 54 | Q26: 0 | R26: 0 | S26: 0 | T26: 0 | U26: 0
A27: Q71 | B27: RAL | C27: ROYAL FREE LONDON NHS FOUNDATION TRUST | D27: 53 | E27: 610 | F27: 0.0868852459 | G27: 0.9811320755 | H27: 0 | I27: 44 | J27: 8 | K27: 1 | L27: 0 | M27: 0 | N27: 0 | O27: 0 | P27: 0 | Q27: 53 | R27: 0 | S27: 0 | T27: 0 | U27: 0
A28: Q71 | B28: RJ7 | C28: ST GEORGE'S UNIVERSITY HOSPITALS NHS FOUNDATION TRUST | D28: 7 | E28: 356 | F28: 0.01966292135 | G28: 1 | H28: 0 | I28: 5 | J28: 2 | K28: 0 | L28: 0 | M28: 0 | N28: 0 | O28: 0 | P28: 7 | Q28: 0 | R28: 0 | S28: 0 | T28: 0 | U28: 0
A29: Q71 | B29: RAS | C29: THE HILLINGDON HOSPITALS NHS FOUNDATION TRUST | D29: 103 | E29: 336 | F29: 0.306547619 | G29: 0.9805825243 | H29: 0.01941747573 | I29: 84 | J29: 17 | K29: 0 | L29: 1 | M29: 1 | N29: 0 | O29: 0 | P29: 0 | Q29: 103 | R29: 0 | S29: 0 | T29: 0 | U29: 0
A30: Q71 | B30: RRV | C30: UNIVERSITY COLLEGE LONDON HOSPITALS NHS FOUNDATION TRUST | D30: 86 | E30: 509 | F30: 0.1689587426 | G30: 0.9651162791 | H30: 0 | I30: 72 | J30: 11 | K30: 3 | L30: 0 | M30: 0 | N30: 0 | O30: 0 | P30: 0 | Q30: 86 | R30: 0 | S30: 0 | T30: 0 | U30: 0
A31: Q71 | B31: RKE | C31: WHITTINGTON HEALTH NHS TRUST | D31: 169 | E31: 238 | F31: 0.7100840336 | G31: 0.9822485207 | H31: 0.01183431953 | I31: 103 | J31: 63 | K31: 1 | L31: 1 | M31: 1 | N31: 0 | O31: 0 | P31: 155 | Q31: 0 | R31: 0 | S31: 14 | T31: 0 | U31: 0
A32: Q72 | B32: RCF | C32: AIREDALE NHS FOUNDATION TRUST | D32: 5 | E32: 155 | F32: 0.03225806452 | G32: 0.8 | H32: 0.2 | I32: 3 | J32: 1 | K32: 0 | L32: 0 | M32: 1 | N32: 0 | O32: 0 | P32: 0 | Q32: 3 | R32: 0 | S32: 0 | T32: 2 | U32: 0
A33: Q72 | B33: RFF | C33: BARNSLEY HOSPITAL NHS FOUNDATION TRUST | D33: 21 | E33: 235 | F33: 0.08936170213 | G33: 1 | H33: 0 | I33: 20 | J33: 1 | K33: 0 | L33: 0 | M33: 0 | N33: 0 | O33: 0 | P33: 0 | Q33: 21 | R33: 0 | S33: 0 | T33: 0 | U33: 0
A34: Q72 | B34: RAE | C34: BRADFORD TEACHING HOSPITALS NHS FOUNDATION TRUST | D34: 62 | E34: 294 | F34: 0.2108843537 | G34: 1 | H34: 0 | I34: 58 | J34: 4 | K34: 0 | L34: 0 | M34: 0 | N34: 0 | O34: 0 | P34: 0 | Q34: 62 | R34: 0 | S34: 0 | T34: 0 | U34: 0
A35: Q72 | B35: RWY | C35: CALDERDALE AND HUDDERSFIELD NHS FOUNDATION TRUST | D35: 138 | E35: 347 | F35: 0.3976945245 | G35: 0.9927536232 | H35: 0 | I35: 122 | J35: 15 | K35: 1 | L35: 0 | M35: 0 | N35: 0 | O35: 0 | P35: 138 | Q35: 0 | R35: 0 | S35: 0 | T35: 0 | U35: 0
A36: Q72 | B36: RP5 | C36: DONCASTER AND BASSETLAW TEACHING HOSPITALS NHS FOUNDATION TRUST | D36: 108 | E36: 334 | F36: 0.3233532934 | G36: 0.9814814815 | H36: 0 | I36: 51 | J36: 55 | K36: 2 | L36: 0 | M36: 0 | N36: 0 | O36: 0 | P36: 0 | Q36: 108 | R36: 0 | S36: 0 | T36: 0 | U36: 0
A37: Q72 | B37: RCD | C37: HARROGATE AND DISTRICT NHS FOUNDATION TRUST | D37: 56 | E37: 129 | F37: 0.4341085271 | G37: 1 | H37: 0 | I37: 52 | J37: 4 | K37: 0 | L37: 0 | M37: 0 | N37: 0 | O37: 0 | P37: 0 | Q37: 56 | R37: 0 | S37: 0 | T37: 0 | U37: 0
A38: Q72 | B38: RWA | C38: HULL AND EAST YORKSHIRE HOSPITALS NHS TRUST | D38: 29 | E38: 395 | F38: 0.07341772152 | G38: 1 | H38: 0 | I38: 29 | J38: 0 | K38: 0 | L38: 0 | M38: 0 | N38: 0 | O38: 0 | P38: 0 | Q38: 29 | R38: 0 | S38: 0 | T38: 0 | U38: 0
A39: Q72 | B39: RR8 | C39: LEEDS TEACHING HOSPITALS NHS TRUST | D39: 199 | E39: 621 | F39: 0.3204508857 | G39: 0.9798994975 | H39: 0.01507537688 | I39: 185 | J39: 10 | K39: 1 | L39: 1 | M39: 2 | N39: 0 | O39: 138 | P39: 0 | Q39: 0 | R39: 0 | S39: 3 | T39: 58 | U39: 0
A40: Q72 | B40: RXF | C40: MID YORKSHIRE HOSPITALS NHS TRUST | D40: 95 | E40: 485 | F40: 0.1958762887 | G40: 0.9894736842 | H40: 0.01052631579 | I40: 83 | J40: 11 | K40: 0 | L40: 0 | M40: 1 | N40: 0 | O40: 0 | P40: 0 | Q40: 95 | R40: 0 | S40: 0 | T40: 0 | U40: 0
A41: Q72 | B41: RJL | C41: NORTHERN LINCOLNSHIRE AND GOOLE NHS FOUNDATION TRUST | D41: 55 | E41: 291 | F41: 0.1890034364 | G41: 1 | H41: 0 | I41: 54 | J41: 1 | K41: 0 | L41: 0 | M41: 0 | N41: 0 | O41: 0 | P41: 0 | Q41: 55 | R41: 0 | S41: 0 | T41: 0 | U41: 0
A42: Q72 | B42: RHQ | C42: SHEFFIELD TEACHING HOSPITALS NHS FOUNDATION TRUST | D42: 118 | E42: 447 | F42: 0.2639821029 | G42: 0.9830508475 | H42: 0 | I42: 91 | J42: 25 | K42: 1 | L42: 0 | M42: 0 | N42: 1 | O42: 0 | P42: 0 | Q42: 118 | R42: 0 | S42: 0 | T42: 0 | U42: 0
A43: Q72 | B43: RFR | C43: THE ROTHERHAM NHS FOUNDATION TRUST | D43: 53 | E43: 214 | F43: 0.2476635514 | G43: 0.9811320755 | H43: 0.01886792453 | I43: 46 | J43: 6 | K43: 0 | L43: 0 | M43: 1 | N43: 0 | O43: 0 | P43: 0 | Q43: 53 | R43: 0 | S43: 0 | T43: 0 | U43: 0
A44: Q72 | B44: RCB | C44: YORK TEACHING HOSPITAL NHS FOUNDATION TRUST | D44: 181 | E44: 323 | F44: 0.560371517 | G44: 1 | H44: 0 | I44: 156 | J44: 25 | K44: 0 | L44: 0 | M44: 0 | N44: 0 | O44: 0 | P44: 0 | Q44: 181 | R44: 0 | S44: 0 | T44: 0 | U44: 0
A45: Q74 | B45: RLN | C45: CITY HOSPITALS SUNDERLAND NHS FOUNDATION TRUST | D45: 26 | E45: 190 | F45: 0.1368421053 | G45: 1 | H45: 0 | I45: 25 | J45: 1 | K45: 0 | L45: 0 | M45: 0 | N45: 0 | O45: 0 | P45: 0 | Q45: 26 | R45: 0 | S45: 0 | T45: 0 | U45: 0
A46: Q74 | B46: RXP | C46: COUNTY DURHAM AND DARLINGTON NHS FOUNDATION TRUST | D46: 29 | E46: 369 | F46: 0.07859078591 | G46: 0.8965517241 | H46: 0.03448275862 | I46: 21 | J46: 5 | K46: 2 | L46: 1 | M46: 0 | N46: 0 | O46: 0 | P46: 0 | Q46: 29 | R46: 0 | S46: 0 | T46: 0 | U46: 0
A47: Q74 | B47: RR7 | C47: GATESHEAD HEALTH NHS FOUNDATION TRUST | D47: 65 | E47: 135 | F47: 0.4814814815 | G47: 1 | H47: 0 | I47: 62 | J47: 3 | K47: 0 | L47: 0 | M47: 0 | N47: 0 | O47: 0 | P47: 0 | Q47: 65 | R47: 0 | S47: 0 | T47: 0 | U47: 0
A48: Q74 | B48: RNL | C48: NORTH CUMBRIA UNIVERSITY HOSPITALS NHS TRUST | D48: 53 | E48: 187 | F48: 0.2834224599 | G48: 0.9622641509 | H48: 0 | I48: 49 | J48: 2 | K48: 2 | L48: 0 | M48: 0 | N48: 0 | O48: 0 | P48: 0 | Q48: 41 | R48: 0 | S48: 0 | T48: 0 | U48: 12
A49: Q74 | B49: RVW | C49: NORTH TEES AND HARTLEPOOL NHS FOUNDATION TRUST | D49: 36 | E49: 246 | F49: 0.1463414634 | G49: 1 | H49: 0 | I49: 32 | J49: 4 | K49: 0 | L49: 0 | M49: 0 | N49: 0 | O49: 0 | P49: 0 | Q49: 36 | R49: 0 | S49: 0 | T49: 0 | U49: 0
A50: Q74 | B50: RTF | C50: NORTHUMBRIA HEALTHCARE NHS FOUNDATION TRUST | D50: 54 | E50: 158 | F50: 0.3417721519 | G50: 0.9444444444 | H50: 0 | I50: 49 | J50: 2 | K50: 3 | L50: 0 | M50: 0 | N50: 0 | O50: 0 | P50: 0 | Q50: 54 | R50: 0 | S50: 0 | T50: 0 | U50: 0
A51: Q74 | B51: RTR | C51: SOUTH TEES HOSPITALS NHS FOUNDATION TRUST | D51: 3 | E51: 361 | F51: 0.008310249307 | G51: * | H51: * | I51: * | J51: * | K51: * | L51: * | M51: * | N51: * | O51: * | P51: * | Q51: * | R51: * | S51: * | T51: * | U51: *
A52: Q74 | B52: RE9 | C52: SOUTH TYNESIDE NHS FOUNDATION TRUST | D52: 1 | E52: 72 | F52: 0.01388888889 | G52: * | H52: * | I52: * | J52: * | K52: * | L52: * | M52: * | N52: * | O52: * | P52: * | Q52: * | R52: * | S52: * | T52: * | U52: *
A53: Q74 | B53: RTD | C53: THE NEWCASTLE UPON TYNE HOSPITALS NHS FOUNDATION TRUST | D53: 110 | E53: 498 | F53: 0.2208835341 | G53: 1 | H53: 0 | I53: 101 | J53: 9 | K53: 0 | L53: 0 | M53: 0 | N53: 0 | O53: 0 | P53: 0 | Q53: 110 | R53: 0 | S53: 0 | T53: 0 | U53: 0
A54: Q75 | B54: RJR | C54: COUNTESS OF CHESTER HOSPITAL NHS FOUNDATION TRUST | D54: 75 | E54: 207 | F54: 0.3623188406 | G54: 1 | H54: 0 | I54: 72 | J54: 3 | K54: 0 | L54: 0 | M54: 0 | N54: 0 | O54: 21 | P54: 0 | Q54: 54 | R54: 0 | S54: 0 | T54: 0 | U54: 0
A55: Q75 | B55: RJN | C55: EAST CHESHIRE NHS TRUST | D55: 6 | E55: 99 | F55: 0.06060606061 | G55: 1 | H55: 0 | I55: 5 | J55: 1 | K55: 0 | L55: 0 | M55: 0 | N55: 0 | O55: 0 | P55: 0 | Q55: 6 | R55: 0 | S55: 0 | T55: 0 | U55: 0
A56: Q75 | B56: REP | C56: LIVERPOOL WOMEN'S NHS FOUNDATION TRUST | D56: 43 | E56: 636 | F56: 0.06761006289 | G56: 0.9302325581 | H56: 0 | I56: 36 | J56: 4 | K56: 3 | L56: 0 | M56: 0 | N56: 0 | O56: 0 | P56: 0 | Q56: 43 | R56: 0 | S56: 0 | T56: 0 | U56: 0
A57: Q75 | B57: RBT | C57: MID CHESHIRE HOSPITALS NHS FOUNDATION TRUST | D57: 26 | E57: 200 | F57: 0.13 | G57: 0.9615384615 | H57: 0 | I57: 25 | J57: 0 | K57: 1 | L57: 0 | M57: 0 | N57: 0 | O57: 0 | P57: 0 | Q57: 26 | R57: 0 | S57: 0 | T57: 0 | U57: 0
A58: Q75 | B58: RVY | C58: SOUTHPORT AND ORMSKIRK HOSPITAL NHS TRUST | D58: 34 | E58: 207 | F58: 0.1642512077 | G58: 0.9705882353 | H58: 0 | I58: 30 | J58: 3 | K58: 0 | L58: 0 | M58: 0 | N58: 1 | O58: 0 | P58: 17 | Q58: 17 | R58: 0 | S58: 0 | T58: 0 | U58: 0
A59: Q75 | B59: RBN | C59: ST HELENS AND KNOWSLEY TEACHING HOSPITALS NHS TRUST | D59: 50 | E59: 284 | F59: 0.176056338 | G59: 1 | H59: 0 | I59: 47 | J59: 3 | K59: 0 | L59: 0 | M59: 0 | N59: 0 | O59: 0 | P59: 0 | Q59: 50 | R59: 0 | S59: 0 | T59: 0 | U59: 0
A60: Q75 | B60: RWW | C60: WARRINGTON AND HALTON HOSPITALS NHS FOUNDATION TRUST | D60: 23 | E60: 179 | F60: 0.1284916201 | G60: 1 | H60: 0 | I60: 21 | J60: 2 | K60: 0 | L60: 0 | M60: 0 | N60: 0 | O60: 0 | P60: 0 | Q60: 23 | R60: 0 | S60: 0 | T60: 0 | U60: 0
A61: Q75 | B61: RBL | C61: WIRRAL UNIVERSITY TEACHING HOSPITAL NHS FOUNDATION TRUST | D61: 37 | E61: 233 | F61: 0.1587982833 | G61: 1 | H61: 0 | I61: 32 | J61: 5 | K61: 0 | L61: 0 | M61: 0 | N61: 0 | O61: 0 | P61: 0 | Q61: 37 | R61: 0 | S61: 0 | T61: 0 | U61: 0
A62: Q76 | B62: RFS | C62: CHESTERFIELD ROYAL HOSPITAL NHS FOUNDATION TRUST | D62: 55 | E62: 216 | F62: 0.2546296296 | G62: 0.9818181818 | H62: 0 | I62: 46 | J62: 8 | K62: 0 | L62: 0 | M62: 0 | N62: 1 | O62: 0 | P62: 55 | Q62: 0 | R62: 0 | S62: 0 | T62: 0 | U62: 0
A63: Q76 | B63: RX1 | C63: NOTTINGHAM UNIVERSITY HOSPITALS NHS TRUST | D63: 23 | E63: 642 | F63: 0.03582554517 | G63: 1 | H63: 0 | I63: 20 | J63: 3 | K63: 0 | L63: 0 | M63: 0 | N63: 0 | O63: 0 | P63: 4 | Q63: 19 | R63: 0 | S63: 0 | T63: 0 | U63: 0
A64: Q76 | B64: RK5 | C64: SHERWOOD FOREST HOSPITALS NHS FOUNDATION TRUST | D64: 8 | E64: 249 | F64: 0.03212851406 | G64: 1 | H64: 0 | I64: 7 | J64: 1 | K64: 0 | L64: 0 | M64: 0 | N64: 0 | O64: 0 | P64: 0 | Q64: 6 | R64: 0 | S64: 0 | T64: 2 | U64: 0
A65: Q76 | B65: RXW | C65: SHREWSBURY AND TELFORD HOSPITAL NHS TRUST | D65: 41 | E65: 327 | F65: 0.125382263 | G65: 1 | H65: 0 | I65: 39 | J65: 2 | K65: 0 | L65: 0 | M65: 0 | N65: 0 | O65: 0 | P65: 0 | Q65: 41 | R65: 0 | S65: 0 | T65: 0 | U65: 0
A66: Q76 | B66: RTG | C66: UNIVERSITY HOSPITALS OF DERBY AND BURTON NHS FOUNDATION TRUST | D66: 190 | E66: 634 | F66: 0.2996845426 | G66: 0.9894736842 | H66: 0 | I66: 156 | J66: 32 | K66: 2 | L66: 0 | M66: 0 | N66: 0 | O66: 2 | P66: 3 | Q66: 183 | R66: 0 | S66: 0 | T66: 2 | U66: 0
A67: Q76 | B67: RJE | C67: UNIVERSITY HOSPITALS OF NORTH MIDLANDS NHS TRUST | D67: 22 | E67: 489 | F67: 0.04498977505 | G67: 1 | H67: 0 | I67: 21 | J67: 1 | K67: 0 | L67: 0 | M67: 0 | N67: 0 | O67: 0 | P67: 0 | Q67: 22 | R67: 0 | S67: 0 | T67: 0 | U67: 0
A68: Q77 | B68: RQ3 | C68: BIRMINGHAM WOMEN'S AND CHILDREN'S NHS FOUNDATION TRUST | D68: 80 | E68: 548 | F68: 0.1459854015 | G68: 0.9875 | H68: 0 | I68: 68 | J68: 11 | K68: 1 | L68: 0 | M68: 0 | N68: 0 | O68: 0 | P68: 0 | Q68: 80 | R68: 0 | S68: 0 | T68: 0 | U68: 0
A69: Q77 | B69: RLT | C69: GEORGE ELIOT HOSPITAL NHS TRUST | D69: 97 | E69: 170 | F69: 0.5705882353 | G69: 0.9793814433 | H69: 0.01030927835 | I69: 88 | J69: 7 | K69: 0 | L69: 1 | M69: 0 | N69: 1 | O69: 72 | P69: 0 | Q69: 25 | R69: 0 | S69: 0 | T69: 0 | U69: 0
A70: Q77 | B70: RXK | C70: SANDWELL AND WEST BIRMINGHAM HOSPITALS NHS TRUST | D70: 19 | E70: 383 | F70: 0.04960835509 | G70: 0.9473684211 | H70: 0.05263157895 | I70: 14 | J70: 4 | K70: 0 | L70: 1 | M70: 0 | N70: 0 | O70: 0 | P70: 0 | Q70: 19 | R70: 0 | S70: 0 | T70: 0 | U70: 0
A71: Q77 | B71: RJC | C71: SOUTH WARWICKSHIRE NHS FOUNDATION TRUST | D71: 40 | E71: 220 | F71: 0.1818181818 | G71: 0.975 | H71: 0 | I71: 33 | J71: 6 | K71: 0 | L71: 0 | M71: 0 | N71: 1 | O71: 0 | P71: 0 | Q71: 38 | R71: 0 | S71: 0 | T71: 2 | U71: 0
A72: Q77 | B72: RNA | C72: THE DUDLEY GROUP NHS FOUNDATION TRUST | D72: 117 | E72: 310 | F72: 0.3774193548 | G72: 1 | H72: 0 | I72: 103 | J72: 14 | K72: 0 | L72: 0 | M72: 0 | N72: 0 | O72: 0 | P72: 0 | Q72: 117 | R72: 0 | S72: 0 | T72: 0 | U72: 0
A73: Q77 | B73: RL4 | C73: THE ROYAL WOLVERHAMPTON NHS TRUST | D73: 34 | E73: 346 | F73: 0.09826589595 | G73: 1 | H73: 0 | I73: 33 | J73: 1 | K73: 0 | L73: 0 | M73: 0 | N73: 0 | O73: 0 | P73: 0 | Q73: 34 | R73: 0 | S73: 0 | T73: 0 | U73: 0
A74: Q77 | B74: RRK | C74: UNIVERSITY HOSPITALS BIRMINGHAM NHS FOUNDATION TRUST | D74: 62 | E74: 584 | F74: 0.1061643836 | G74: 0.8870967742 | H74: 0.09677419355 | I74: 46 | J74: 9 | K74: 0 | L74: 3 | M74: 3 | N74: 1 | O74: 41 | P74: 0 | Q74: 21 | R74: 0 | S74: 0 | T74: 0 | U74: 0
A75: Q77 | B75: RKB | C75: UNIVERSITY HOSPITALS COVENTRY AND WARWICKSHIRE NHS TRUST | D75: 80 | E75: 420 | F75: 0.1904761905 | G75: 0.8625 | H75: 0.1 | I75: 55 | J75: 14 | K75: 2 | L75: 4 | M75: 4 | N75: 1 | O75: 0 | P75: 15 | Q75: 65 | R75: 0 | S75: 0 | T75: 0 | U75: 0
A76: Q77 | B76: RBK | C76: WALSALL HEALTHCARE NHS TRUST | D76: 33 | E76: 238 | F76: 0.1386554622 | G76: 0.9090909091 | H76: 0.0303030303 | I76: 21 | J76: 9 | K76: 2 | L76: 1 | M76: 0 | N76: 0 | O76: 0 | P76: 33 | Q76: 0 | R76: 0 | S76: 0 | T76: 0 | U76: 0
A77: Q77 | B77: RWP | C77: WORCESTERSHIRE ACUTE HOSPITALS NHS TRUST | D77: 60 | E77: 166 | F77: 0.3614457831 | G77: 1 | H77: 0 | I77: 59 | J77: 1 | K77: 0 | L77: 0 | M77: 0 | N77: 0 | O77: 0 | P77: 0 | Q77: 60 | R77: 0 | S77: 0 | T77: 0 | U77: 0
A78: Q77 | B78: RLQ | C78: WYE VALLEY NHS TRUST | D78: 31 | E78: 116 | F78: 0.2672413793 | G78: 0.8387096774 | H78: 0.1290322581 | I78: 20 | J78: 6 | K78: 1 | L78: 2 | M78: 2 | N78: 0 | O78: 0 | P78: 31 | Q78: 0 | R78: 0 | S78: 0 | T78: 0 | U78: 0
A79: Q78 | B79: RC1 | C79: BEDFORD HOSPITAL NHS TRUST | D79: 52 | E79: 54 | F79: 0.962962963 | G79: 0.9615384615 | H79: 0.03846153846 | I79: 47 | J79: 3 | K79: 0 | L79: 2 | M79: 0 | N79: 0 | O79: 17 | P79: 0 | Q79: 35 | R79: 0 | S79: 0 | T79: 0 | U79: 0
A80: Q78 | B80: RWH | C80: EAST AND NORTH HERTFORDSHIRE NHS TRUST | D80: 157 | E80: 402 | F80: 0.3905472637 | G80: 0.9808917197 | H80: 0.006369426752 | I80: 117 | J80: 37 | K80: 1 | L80: 1 | M80: 0 | N80: 1 | O80: 0 | P80: 157 | Q80: 0 | R80: 0 | S80: 0 | T80: 0 | U80: 0
A81: Q78 | B81: RNQ | C81: KETTERING GENERAL HOSPITAL NHS FOUNDATION TRUST | D81: 21 | E81: 215 | F81: 0.0976744186 | G81: 1 | H81: 0 | I81: 20 | J81: 1 | K81: 0 | L81: 0 | M81: 0 | N81: 0 | O81: 0 | P81: 0 | Q81: 21 | R81: 0 | S81: 0 | T81: 0 | U81: 0
A82: Q78 | B82: RC9 | C82: LUTON AND DUNSTABLE UNIVERSITY HOSPITAL NHS FOUNDATION TRUST | D82: 76 | E82: 381 | F82: 0.1994750656 | G82: 0.9605263158 | H82: 0 | I82: 60 | J82: 13 | K82: 2 | L82: 0 | M82: 0 | N82: 1 | O82: 0 | P82: 3 | Q82: 73 | R82: 0 | S82: 0 | T82: 0 | U82: 0
A83: Q78 | B83: RD8 | C83: MILTON KEYNES UNIVERSITY HOSPITAL NHS FOUNDATION TRUST | D83: 14 | E83: 283 | F83: 0.04946996466 | G83: 1 | H83: 0 | I83: 14 | J83: 0 | K83: 0 | L83: 0 | M83: 0 | N83: 0 | O83: 0 | P83: 0 | Q83: 14 | R83: 0 | S83: 0 | T83: 0 | U83: 0
A84: Q78 | B84: RNS | C84: NORTHAMPTON GENERAL HOSPITAL NHS TRUST | D84: 152 | E84: 319 | F84: 0.4764890282 | G84: 0.9868421053 | H84: 0.01315789474 | I84: 131 | J84: 19 | K84: 0 | L84: 1 | M84: 1 | N84: 0 | O84: 0 | P84: 0 | Q84: 0 | R84: 152 | S84: 0 | T84: 0 | U84: 0
A85: Q78 | B85: RWD | C85: UNITED LINCOLNSHIRE HOSPITALS NHS TRUST | D85: 42 | E85: 333 | F85: 0.1261261261 | G85: 0.9761904762 | H85: 0.02380952381 | I85: 35 | J85: 6 | K85: 0 | L85: 0 | M85: 1 | N85: 0 | O85: 0 | P85: 0 | Q85: 42 | R85: 0 | S85: 0 | T85: 0 | U85: 0
A86: Q78 | B86: RWE | C86: UNIVERSITY HOSPITALS OF LEICESTER NHS TRUST | D86: 474 | E86: 702 | F86: 0.6752136752 | G86: 0.9198312236 | H86: 0.03164556962 | I86: 340 | J86: 96 | K86: 10 | L86: 7 | M86: 8 | N86: 13 | O86: 0 | P86: 474 | Q86: 0 | R86: 0 | S86: 0 | T86: 0 | U86: 0
A87: Q78 | B87: RWG | C87: WEST HERTFORDSHIRE HOSPITALS NHS TRUST | D87: 83 | E87: 311 | F87: 0.2668810289 | G87: 0.9759036145 | H87: 0 | I87: 59 | J87: 22 | K87: 2 | L87: 0 | M87: 0 | N87: 0 | O87: 0 | P87: 0 | Q87: 82 | R87: 0 | S87: 0 | T87: 0 | U87: 1
A88: Q79 | B88: RDD | C88: BASILDON AND THURROCK UNIVERSITY HOSPITALS NHS FOUNDATION TRUST | D88: 34 | E88: 201 | F88: 0.1691542289 | G88: 1 | H88: 0 | I88: 27 | J88: 7 | K88: 0 | L88: 0 | M88: 0 | N88: 0 | O88: 0 | P88: 0 | Q88: 34 | R88: 0 | S88: 0 | T88: 0 | U88: 0
A89: Q79 | B89: RGT | C89: CAMBRIDGE UNIVERSITY HOSPITALS NHS FOUNDATION TRUST | D89: 97 | E89: 364 | F89: 0.2664835165 | G89: 0.9793814433 | H89: 0.01030927835 | I89: 80 | J89: 15 | K89: 0 | L89: 1 | M89: 0 | N89: 1 | O89: 0 | P89: 96 | Q89: 0 | R89: 0 | S89: 0 | T89: 1 | U89: 0
A90: Q79 | B90: RDE | C90: EAST SUFFOLK AND NORTH ESSEX NHS FOUNDATION TRUST | D90: 111 | E90: 517 | F90: 0.2147001934 | G90: 0.990990991 | H90: 0 | I90: 97 | J90: 13 | K90: 1 | L90: 0 | M90: 0 | N90: 0 | O90: 0 | P90: 102 | Q90: 9 | R90: 0 | S90: 0 | T90: 0 | U90: 0
A91: Q79 | B91: RGP | C91: JAMES PAGET UNIVERSITY HOSPITALS NHS FOUNDATION TRUST | D91: 8 | E91: 142 | F91: 0.05633802817 | G91: 1 | H91: 0 | I91: 8 | J91: 0 | K91: 0 | L91: 0 | M91: 0 | N91: 0 | O91: 0 | P91: 0 | Q91: 8 | R91: 0 | S91: 0 | T91: 0 | U91: 0
A92: Q79 | B92: RQ8 | C92: MID ESSEX HOSPITAL SERVICES NHS TRUST | D92: 48 | E92: 244 | F92: 0.1967213115 | G92: 0.8958333333 | H92: 0.08333333333 | I92: 38 | J92: 5 | K92: 1 | L92: 3 | M92: 1 | N92: 0 | O92: 48 | P92: 0 | Q92: 0 | R92: 0 | S92: 0 | T92: 0 | U92: 0
A93: Q79 | B93: RM1 | C93: NORFOLK AND NORWICH UNIVERSITY HOSPITALS NHS FOUNDATION TRUST | D93: 21 | E93: 387 | F93: 0.05426356589 | G93: 1 | H93: 0 | I93: 21 | J93: 0 | K93: 0 | L93: 0 | M93: 0 | N93: 0 | O93: 0 | P93: 21 | Q93: 0 | R93: 0 | S93: 0 | T93: 0 | U93: 0
A94: Q79 | B94: RGN | C94: NORTH WEST ANGLIA NHS FOUNDATION TRUST | D94: 124 | E94: 501 | F94: 0.24750499 | G94: 0.9758064516 | H94: 0 | I94: 112 | J94: 9 | K94: 1 | L94: 0 | M94: 0 | N94: 2 | O94: 0 | P94: 0 | Q94: 123 | R94: 0 | S94: 0 | T94: 1 | U94: 0
A95: Q79 | B95: RAJ | C95: SOUTHEND UNIVERSITY HOSPITAL NHS FOUNDATION TRUST | D95: 25 | E95: 251 | F95: 0.09960159363 | G95: 0.88 | H95: 0.12 | I95: 20 | J95: 2 | K95: 0 | L95: 0 | M95: 3 | N95: 0 | O95: 17 | P95: 0 | Q95: 8 | R95: 0 | S95: 0 | T95: 0 | U95: 0
A96: Q79 | B96: RQW | C96: THE PRINCESS ALEXANDRA HOSPITAL NHS TRUST | D96: 191 | E96: 275 | F96: 0.6945454545 | G96: 0.9947643979 | H96: 0 | I96: 182 | J96: 8 | K96: 1 | L96: 0 | M96: 0 | N96: 0 | O96: 0 | P96: 0 | Q96: 0 | R96: 0 | S96: 0 | T96: 0 | U96: 191
A97: Q79 | B97: RCX | C97: THE QUEEN ELIZABETH HOSPITAL, KING'S LYNN, NHS FOUNDATION TRUST | D97: 37 | E97: 171 | F97: 0.216374269 | G97: 1 | H97: 0 | I97: 31 | J97: 6 | K97: 0 | L97: 0 | M97: 0 | N97: 0 | O97: 0 | P97: 37 | Q97: 0 | R97: 0 | S97: 0 | T97: 0 | U97: 0
A98: Q79 | B98: RGR | C98: WEST SUFFOLK NHS FOUNDATION TRUST | D98: 0 | E98: 164 | F98: 0 | G98: NA | H98: NA | I98: 0 | J98: 0 | K98: 0 | L98: 0 | M98: 0 | N98: 0 | O98: 0 | P98: 0 | Q98: 0 | R98: 0 | S98: 0 | T98: 0 | U98: 0
A99: Q83 | B99: RMC | C99: BOLTON NHS FOUNDATION TRUST | D99: 148 | E99: 473 | F99: 0.3128964059 | G99: 0.9256756757 | H99: 0.0472972973 | I99: 117 | J99: 20 | K99: 4 | L99: 4 | M99: 3 | N99: 0 | O99: 109 | P99: 0 | Q99: 39 | R99: 0 | S99: 0 | T99: 0 | U99: 0
A100: Q83 | B100: RY2 | C100: BRIDGEWATER COMMUNITY HEALTHCARE NHS FOUNDATION TRUST | D100: 0 | E100: 0 | F100: NA | G100: NA | H100: NA | I100: 0 | J100: 0 | K100: 0 | L100: 0 | M100: 0 | N100: 0 | O100: 0 | P100: 0 | Q100: 0 | R100: 0 | S100: 0 | T100: 0 | U100: 0
A101: Q83 | B101: R0A | C101: MANCHESTER UNIVERSITY NHS FOUNDATION TRUST | D101: 112 | E101: 913 | F101: 0.1226725082 | G101: 1 | H101: 0 | I101: 102 | J101: 10 | K101: 0 | L101: 0 | M101: 0 | N101: 0 | O101: 0 | P101: 3 | Q101: 109 | R101: 0 | S101: 0 | T101: 0 | U101: 0
A102: Q83 | B102: RW6 | C102: PENNINE ACUTE HOSPITALS NHS TRUST | D102: 76 | E102: 652 | F102: 0.1165644172 | G102: 0.8684210526 | H102: 0.05263157895 | I102: 59 | J102: 7 | K102: 6 | L102: 0 | M102: 4 | N102: 0 | O102: 59 | P102: 0 | Q102: 17 | R102: 0 | S102: 0 | T102: 0 | U102: 0
A103: Q83 | B103: RWJ | C103: STOCKPORT NHS FOUNDATION TRUST | D103: 103 | E103: 258 | F103: 0.3992248062 | G103: 1 | H103: 0 | I103: 83 | J103: 20 | K103: 0 | L103: 0 | M103: 0 | N103: 0 | O103: 0 | P103: 0 | Q103: 0 | R103: 103 | S103: 0 | T103: 0 | U103: 0
A104: Q83 | B104: RMP | C104: TAMESIDE AND GLOSSOP INTEGRATED CARE NHS FOUNDATION TRUST | D104: 76 | E104: 168 | F104: 0.4523809524 | G104: 0.9868421053 | H104: 0 | I104: 64 | J104: 11 | K104: 1 | L104: 0 | M104: 0 | N104: 0 | O104: 0 | P104: 73 | Q104: 3 | R104: 0 | S104: 0 | T104: 0 | U104: 0
A105: Q83 | B105: RRF | C105: WRIGHTINGTON, WIGAN AND LEIGH NHS FOUNDATION TRUST | D105: 44 | E105: 170 | F105: 0.2588235294 | G105: 0.9772727273 | H105: 0 | I105: 39 | J105: 4 | K105: 1 | L105: 0 | M105: 0 | N105: 0 | O105: 0 | P105: 0 | Q105: 0 | R105: 0 | S105: 0 | T105: 44 | U105: 0
A106: Q84 | B106: RXL | C106: BLACKPOOL TEACHING HOSPITALS NHS FOUNDATION TRUST | D106: 36 | E106: 195 | F106: 0.1846153846 | G106: 1 | H106: 0 | I106: 28 | J106: 8 | K106: 0 | L106: 0 | M106: 0 | N106: 0 | O106: 10 | P106: 0 | Q106: 26 | R106: 0 | S106: 0 | T106: 0 | U106: 0
A107: Q84 | B107: RXR | C107: EAST LANCASHIRE HOSPITALS NHS TRUST | D107: 89 | E107: 417 | F107: 0.2134292566 | G107: 0.9775280899 | H107: 0.02247191011 | I107: 85 | J107: 2 | K107: 0 | L107: 0 | M107: 2 | N107: 0 | O107: 52 | P107: 0 | Q107: 37 | R107: 0 | S107: 0 | T107: 0 | U107: 0
A108: Q84 | B108: RXN | C108: LANCASHIRE TEACHING HOSPITALS NHS FOUNDATION TRUST | D108: 39 | E108: 262 | F108: 0.1488549618 | G108: 0.9487179487 | H108: 0.02564102564 | I108: 35 | J108: 2 | K108: 1 | L108: 0 | M108: 1 | N108: 0 | O108: 39 | P108: 0 | Q108: 0 | R108: 0 | S108: 0 | T108: 0 | U108: 0
A109: Q84 | B109: RTX | C109: UNIVERSITY HOSPITALS OF MORECAMBE BAY NHS FOUNDATION TRUST | D109: 107 | E109: 176 | F109: 0.6079545455 | G109: 0.9252336449 | H109: 0.03738317757 | I109: 90 | J109: 9 | K109: 2 | L109: 3 | M109: 1 | N109: 2 | O109: 57 | P109: 0 | Q109: 50 | R109: 0 | S109: 0 | T109: 0 | U109: 0
A110: Q85 | B110: RBD | C110: DORSET COUNTY HOSPITAL NHS FOUNDATION TRUST | D110: 38 | E110: 115 | F110: 0.3304347826 | G110: 0.9736842105 | H110: 0 | I110: 36 | J110: 1 | K110: 0 | L110: 0 | M110: 0 | N110: 1 | O110: 38 | P110: 0 | Q110: 0 | R110: 0 | S110: 0 | T110: 0 | U110: 0
A111: Q85 | B111: RBZ | C111: NORTHERN DEVON HEALTHCARE NHS TRUST | D111: 48 | E111: 95 | F111: 0.5052631579 | G111: 1 | H111: 0 | I111: 44 | J111: 4 | K111: 0 | L111: 0 | M111: 0 | N111: 0 | O111: 0 | P111: 0 | Q111: 48 | R111: 0 | S111: 0 | T111: 0 | U111: 0
A112: Q85 | B112: RD3 | C112: POOLE HOSPITAL NHS FOUNDATION TRUST | D112: 82 | E112: 286 | F112: 0.2867132867 | G112: 1 | H112: 0 | I112: 80 | J112: 2 | K112: 0 | L112: 0 | M112: 0 | N112: 0 | O112: 0 | P112: 0 | Q112: 82 | R112: 0 | S112: 0 | T112: 0 | U112: 0
A113: Q85 | B113: REF | C113: ROYAL CORNWALL HOSPITALS NHS TRUST | D113: 51 | E113: 301 | F113: 0.1694352159 | G113: 1 | H113: 0 | I113: 50 | J113: 1 | K113: 0 | L113: 0 | M113: 0 | N113: 0 | O113: 0 | P113: 8 | Q113: 43 | R113: 0 | S113: 0 | T113: 0 | U113: 0
A114: Q85 | B114: RH8 | C114: ROYAL DEVON AND EXETER NHS FOUNDATION TRUST | D114: 0 | E114: 301 | F114: 0 | G114: NA | H114: NA | I114: 0 | J114: 0 | K114: 0 | L114: 0 | M114: 0 | N114: 0 | O114: 0 | P114: 0 | Q114: 0 | R114: 0 | S114: 0 | T114: 0 | U114: 0
A115: Q85 | B115: RBA | C115: TAUNTON AND SOMERSET NHS FOUNDATION TRUST | D115: 63 | E115: 210 | F115: 0.3 | G115: 1 | H115: 0 | I115: 59 | J115: 4 | K115: 0 | L115: 0 | M115: 0 | N115: 0 | O115: 0 | P115: 0 | Q115: 63 | R115: 0 | S115: 0 | T115: 0 | U115: 0
A116: Q85 | B116: RDZ | C116: THE ROYAL BOURNEMOUTH AND CHRISTCHURCH HOSPITALS NHS FOUNDATION TRUST | D116: 7 | E116: 18 | F116: 0.3888888889 | G116: 1 | H116: 0 | I116: 7 | J116: 0 | K116: 0 | L116: 0 | M116: 0 | N116: 0 | O116: 0 | P116: 0 | Q116: 7 | R116: 0 | S116: 0 | T116: 0 | U116: 0
A117: Q85 | B117: RA9 | C117: TORBAY AND SOUTH DEVON NHS FOUNDATION TRUST | D117: 6 | E117: 173 | F117: 0.03468208092 | G117: 1 | H117: 0 | I117: 6 | J117: 0 | K117: 0 | L117: 0 | M117: 0 | N117: 0 | O117: 0 | P117: 0 | Q117: 6 | R117: 0 | S117: 0 | T117: 0 | U117: 0
A118: Q85 | B118: RK9 | C118: UNIVERSITY HOSPITALS PLYMOUTH NHS TRUST | D118: 104 | E118: 281 | F118: 0.3701067616 | G118: 0.9903846154 | H118: 0 | I118: 90 | J118: 13 | K118: 1 | L118: 0 | M118: 0 | N118: 0 | O118: 0 | P118: 100 | Q118: 4 | R118: 0 | S118: 0 | T118: 0 | U118: 0
A119: Q85 | B119: RA4 | C119: YEOVIL DISTRICT HOSPITAL NHS FOUNDATION TRUST | D119: 45 | E119: 101 | F119: 0.4455445545 | G119: 1 | H119: 0 | I119: 40 | J119: 5 | K119: 0 | L119: 0 | M119: 0 | N119: 0 | O119: 0 | P119: 44 | Q119: 1 | R119: 0 | S119: 0 | T119: 0 | U119: 0
A120: Q86 | B120: RTE | C120: GLOUCESTERSHIRE HOSPITALS NHS FOUNDATION TRUST | D120: 46 | E120: 170 | F120: 0.2705882353 | G120: 0.9347826087 | H120: 0.02173913043 | I120: 38 | J120: 5 | K120: 0 | L120: 0 | M120: 1 | N120: 2 | O120: 45 | P120: 0 | Q120: 0 | R120: 0 | S120: 1 | T120: 0 | U120: 0
A121: Q86 | B121: RN3 | C121: GREAT WESTERN HOSPITALS NHS FOUNDATION TRUST | D121: 10 | E121: 325 | F121: 0.03076923077 | G121: 0.9 | H121: 0.1 | I121: 8 | J121: 1 | K121: 0 | L121: 1 | M121: 0 | N121: 0 | O121: 0 | P121: 0 | Q121: 10 | R121: 0 | S121: 0 | T121: 0 | U121: 0
A122: Q86 | B122: RVJ | C122: NORTH BRISTOL NHS TRUST | D122: 83 | E122: 453 | F122: 0.1832229581 | G122: 0.9759036145 | H122: 0.01204819277 | I122: 74 | J122: 7 | K122: 1 | L122: 1 | M122: 0 | N122: 0 | O122: 83 | P122: 0 | Q122: 0 | R122: 0 | S122: 0 | T122: 0 | U122: 0
A123: Q86 | B123: RD1 | C123: ROYAL UNITED HOSPITALS BATH NHS FOUNDATION TRUST | D123: 105 | E123: 329 | F123: 0.3191489362 | G123: 0.9904761905 | H123: 0 | I123: 96 | J123: 8 | K123: 1 | L123: 0 | M123: 0 | N123: 0 | O123: 0 | P123: 0 | Q123: 105 | R123: 0 | S123: 0 | T123: 0 | U123: 0
A124: Q86 | B124: RNZ | C124: SALISBURY NHS FOUNDATION TRUST | D124: 8 | E124: 160 | F124: 0.05 | G124: 1 | H124: 0 | I124: 8 | J124: 0 | K124: 0 | L124: 0 | M124: 0 | N124: 0 | O124: 0 | P124: 0 | Q124: 8 | R124: 0 | S124: 0 | T124: 0 | U124: 0
A125: Q86 | B125: RA7 | C125: UNIVERSITY HOSPITALS BRISTOL NHS FOUNDATION TRUST | D125: 86 | E125: 372 | F125: 0.2311827957 | G125: 0.988372093 | H125: 0 | I125: 76 | J125: 9 | K125: 1 | L125: 0 | M125: 0 | N125: 0 | O125: 0 | P125: 0 | Q125: 86 | R125: 0 | S125: 0 | T125: 0 | U125: 0
A126: Q86 | B126: RA3 | C126: WESTON AREA HEALTH NHS TRUST | D126: 6 | E126: 9 | F126: 0.6666666667 | G126: 1 | H126: 0 | I126: 6 | J126: 0 | K126: 0 | L126: 0 | M126: 0 | N126: 0 | O126: 0 | P126: 0 | Q126: 6 | R126: 0 | S126: 0 | T126: 0 | U126: 0
A127: Q87 | B127: RXQ | C127: BUCKINGHAMSHIRE HEALTHCARE NHS TRUST | D127: 52 | E127: 453 | F127: 0.114790287 | G127: 1 | H127: 0 | I127: 49 | J127: 3 | K127: 0 | L127: 0 | M127: 0 | N127: 0 | O127: 0 | P127: 0 | Q127: 52 | R127: 0 | S127: 0 | T127: 0 | U127: 0
A128: Q87 | B128: RDU | C128: FRIMLEY HEALTH NHS FOUNDATION TRUST | D128: 86 | E128: 785 | F128: 0.1095541401 | G128: 0.976744186 | H128: 0 | I128: 77 | J128: 7 | K128: 1 | L128: 0 | M128: 0 | N128: 1 | O128: 0 | P128: 0 | Q128: 85 | R128: 0 | S128: 0 | T128: 1 | U128: 0
A129: Q87 | B129: RN5 | C129: HAMPSHIRE HOSPITALS NHS FOUNDATION TRUST | D129: 157 | E129: 404 | F129: 0.3886138614 | G129: 0.9872611465 | H129: 0 | I129: 145 | J129: 10 | K129: 1 | L129: 0 | M129: 0 | N129: 1 | O129: 0 | P129: 0 | Q129: 157 | R129: 0 | S129: 0 | T129: 0 | U129: 0
A130: Q87 | B130: R1F | C130: ISLE OF WIGHT NHS TRUST | D130: 1 | E130: 89 | F130: 0.01123595506 | G130: * | H130: * | I130: * | J130: * | K130: * | L130: * | M130: * | N130: * | O130: * | P130: * | Q130: * | R130: * | S130: * | T130: * | U130: *
A131: Q87 | B131: RTH | C131: OXFORD UNIVERSITY HOSPITALS NHS FOUNDATION TRUST | D131: 37 | E131: 412 | F131: 0.08980582524 | G131: 1 | H131: 0 | I131: * | J131: * | K131: * | L131: * | M131: * | N131: * | O131: * | P131: * | Q131: * | R131: * | S131: * | T131: * | U131: *
A132: Q87 | B132: RHU | C132: PORTSMOUTH HOSPITALS NHS TRUST | D132: 99 | E132: 363 | F132: 0.2727272727 | G132: 0.9898989899 | H132: 0.0101010101 | I132: 92 | J132: 6 | K132: 0 | L132: 0 | M132: 1 | N132: 0 | O132: 0 | P132: 0 | Q132: 99 | R132: 0 | S132: 0 | T132: 0 | U132: 0
A133: Q87 | B133: RHW | C133: ROYAL BERKSHIRE NHS FOUNDATION TRUST | D133: 97 | E133: 365 | F133: 0.2657534247 | G133: 0.9793814433 | H133: 0 | I133: 79 | J133: 16 | K133: 1 | L133: 0 | M133: 0 | N133: 1 | O133: 0 | P133: 59 | Q133: 35 | R133: 0 | S133: 0 | T133: 3 | U133: 0
A134: Q87 | B134: RHM | C134: UNIVERSITY HOSPITAL SOUTHAMPTON NHS FOUNDATION TRUST | D134: 166 | E134: 423 | F134: 0.3924349882 | G134: 0.9698795181 | H134: 0.02409638554 | I134: 125 | J134: 36 | K134: 1 | L134: 2 | M134: 2 | N134: 0 | O134: 0 | P134: 0 | Q134: 90 | R134: 0 | S134: 0 | T134: 76 | U134: 0
A135: Q88 | B135: RXH | C135: BRIGHTON AND SUSSEX UNIVERSITY HOSPITALS NHS TRUST | D135: 70 | E135: 386 | F135: 0.1813471503 | G135: 0.9428571429 | H135: 0.05714285714 | I135: 61 | J135: 5 | K135: 0 | L135: 1 | M135: 3 | N135: 0 | O135: 70 | P135: 0 | Q135: 0 | R135: 0 | S135: 0 | T135: 0 | U135: 0
A136: Q88 | B136: RN7 | C136: DARTFORD AND GRAVESHAM NHS TRUST | D136: 71 | E136: 338 | F136: 0.2100591716 | G136: 1 | H136: 0 | I136: 59 | J136: 12 | K136: 0 | L136: 0 | M136: 0 | N136: 0 | O136: 0 | P136: 0 | Q136: 71 | R136: 0 | S136: 0 | T136: 0 | U136: 0
A137: Q88 | B137: RVV | C137: EAST KENT HOSPITALS UNIVERSITY NHS FOUNDATION TRUST | D137: 151 | E137: 481 | F137: 0.3139293139 | G137: 0.9602649007 | H137: 0.006622516556 | I137: 129 | J137: 16 | K137: 2 | L137: 1 | M137: 0 | N137: 3 | O137: 0 | P137: 0 | Q137: 151 | R137: 0 | S137: 0 | T137: 0 | U137: 0
A138: Q88 | B138: RXC | C138: EAST SUSSEX HEALTHCARE NHS TRUST | D138: 25 | E138: 215 | F138: 0.1162790698 | G138: 1 | H138: 0 | I138: 22 | J138: 3 | K138: 0 | L138: 0 | M138: 0 | N138: 0 | O138: 0 | P138: 25 | Q138: 0 | R138: 0 | S138: 0 | T138: 0 | U138: 0
A139: Q88 | B139: RWF | C139: MAIDSTONE AND TUNBRIDGE WELLS NHS TRUST | D139: 105 | E139: 401 | F139: 0.2618453865 | G139: 0.9619047619 | H139: 0.009523809524 | I139: 90 | J139: 11 | K139: 0 | L139: 0 | M139: 1 | N139: 3 | O139: 0 | P139: 29 | Q139: 73 | R139: 0 | S139: 0 | T139: 3 | U139: 0
A140: Q88 | B140: RPA | C140: MEDWAY NHS FOUNDATION TRUST | D140: 99 | E140: 264 | F140: 0.375 | G140: 1 | H140: 0 | I140: 96 | J140: 3 | K140: 0 | L140: 0 | M140: 0 | N140: 0 | O140: 0 | P140: 0 | Q140: 99 | R140: 0 | S140: 0 | T140: 0 | U140: 0
A141: Q88 | B141: RA2 | C141: ROYAL SURREY COUNTY HOSPITAL NHS FOUNDATION TRUST | D141: 15 | E141: 207 | F141: 0.07246376812 | G141: 1 | H141: 0 | I141: 15 | J141: 0 | K141: 0 | L141: 0 | M141: 0 | N141: 0 | O141: 14 | P141: 0 | Q141: 1 | R141: 0 | S141: 0 | T141: 0 | U141: 0
A142: Q88 | B142: RTP | C142: SURREY AND SUSSEX HEALTHCARE NHS TRUST | D142: 41 | E142: 310 | F142: 0.1322580645 | G142: 1 | H142: 0 | I142: 38 | J142: 3 | K142: 0 | L142: 0 | M142: 0 | N142: 0 | O142: 0 | P142: 31 | Q142: 2 | R142: 0 | S142: 0 | T142: 8 | U142: 0
A143: Q88 | B143: RYR | C143: WESTERN SUSSEX HOSPITALS NHS FOUNDATION TRUST | D143: 261 | E143: 376 | F143: 0.6941489362 | G143: 0.9923371648 | H143: 0.003831417625 | I143: 221 | J143: 38 | K143: 0 | L143: 1 | M143: 0 | N143: 1 | O143: 0 | P143: 0 | Q143: 256 | R143: 0 | S143: 0 | T143: 5 | U143: 0
A144: zIS1 | B144: NDE | C144: ONE TO ONE (NORTH WEST) LIMITED | D144: 7 | E144: 31 | F144: 0.2258064516 | G144: 1 | H144: 0 | I144: 7 | J144: 0 | K144: 0 | L144: 0 | M144: 0 | N144: 0 | O144: 0 | P144: 7 | Q144: 0 | R144: 0 | S144: 0 | T144: 0 | U144: 0

Sheet Sites Q2
B6: Sort data by:
A9: Region (LO) Code | B9: Trust Code | C9: Trust Name | D9: Site Code | E9: Site Name | F9: Total Responses | G9: Total Eligible | H9: Response Rate | I9: Percentage Recommended | J9: Percentage Not Recommended | K9: Breakdown of Responses
K10: Extremely Likely | L10: Likely | M10: Neither | N10: Unlikely | O10: Extremely Unlikely | P10: Don't Know
E11: England (including Independent Sector providers) | F11: 9567 | G11: 43061 | H11: 0.2221731962 | I11: 0.9736594544 | J11: 0.01170690917 | K11: 8014 | L11: 1301 | M11: 89 | N11: 51 | O11: 61 | P11: 51
E12: England (excluding Independent Sector providers) | F12: 9560 | G12: 43030 | H12: 0.2221705787 | I12: 0.9736401674 | J12: 0.01171548117 | K12: 8007 | L12: 1301 | M12: 89 | N12: 51 | O12: 61 | P12: 51
E13: Selection (excluding suppressed data) | F13: =SUBTOTAL(9,F14:F299) -> 9567 | G13: =SUBTOTAL(9,G14:G299) -> 43061 | H13: =IFERROR(F13/G13, "NA") -> 0.2221731962 | I13: =IFERROR((K13+L13)/SUM(K13:P13), "-") -> 0.973610943 | J13: =IFERROR((N13+O13)/SUM(K13:P13), "-") -> 0.01125771698 | K13: =SUBTOTAL(9,K14:K299) -> 6869 | L13: =SUBTOTAL(9,L14:L299) -> 1174 | M13: 80 | N13: 43 | O13: 50 | P13: 45
A14: Q71 | B14: RF4 | C14: BARKING, HAVERING AND REDBRIDGE UNIVERSITY HOSPITALS NHS TRUST | D14: RF4XXX | E14: Non-hospital site - RF4XXX | F14: 1 | G14: 11 | H14: 0.09090909091 | I14: * | J14: * | K14: * | L14: * | M14: * | N14: * | O14: * | P14: *
A15: Q71 | B15: RF4 | C15: BARKING, HAVERING AND REDBRIDGE UNIVERSITY HOSPITALS NHS TRUST | D15: RF4QH | E15: Queen's Hospital - RF4QH | F15: 251 | G15: 561 | H15: 0.4474153298 | I15: 0.984063745 | J15: 0.00796812749 | K15: * | L15: * | M15: * | N15: * | O15: * | P15: *
A16: Q71 | B16: R1H | C16: BARTS HEALTH NHS TRUST | D16: R1HNH | E16: Newham General Hospital - R1HNH | F16: 29 | G16: 346 | H16: 0.0838150289 | I16: 1 | J16: 0 | K16: 27 | L16: 2 | M16: 0 | N16: 0 | O16: 0 | P16: 0
A17: Q71 | B17: R1H | C17: BARTS HEALTH NHS TRUST | D17: R1H12 | E17: The Royal London Hospital - R1H12 | F17: 13 | G17: 333 | H17: 0.03903903904 | I17: 1 | J17: 0 | K17: 11 | L17: 2 | M17: 0 | N17: 0 | O17: 0 | P17: 0
A18: Q71 | B18: R1H | C18: BARTS HEALTH NHS TRUST | D18: R1HKH | E18: Whipps Cross University Hospital - R1HKH | F18: 53 | G18: 303 | H18: 0.1749174917 | I18: 0.9433962264 | J18: 0.03773584906 | K18: 39 | L18: 11 | M18: 1 | N18: 1 | O18: 1 | P18: 0
A19: Q71 | B19: RQM | C19: CHELSEA AND WESTMINSTER HOSPITAL NHS FOUNDATION TRUST | D19: RQM01 | E19: Chelsea and Westminster Hospital - RQM01 | F19: 67 | G19: 281 | H19: 0.2384341637 | I19: 0.9402985075 | J19: 0.0447761194 | K19: 58 | L19: 5 | M19: 1 | N19: 1 | O19: 2 | P19: 0
A20: Q71 | B20: RQM | C20: CHELSEA AND WESTMINSTER HOSPITAL NHS FOUNDATION TRUST | D20: RQM91 | E20: West Middlesex University Hospital - RQM91 | F20: 62 | G20: 337 | H20: 0.1839762611 | I20: 1 | J20: 0 | K20: 51 | L20: 11 | M20: 0 | N20: 0 | O20: 0 | P20: 0
A21: Q71 | B21: RJ6 | C21: CROYDON HEALTH SERVICES NHS TRUST | D21: RJ611 | E21: Croydon University Hospital - RJ611 | F21: 45 | G21: 260 | H21: 0.1730769231 | I21: 0.9333333333 | J21: 0.04444444444 | K21: 30 | L21: 12 | M21: 1 | N21: 0 | O21: 2 | P21: 0
A22: Q71 | B22: RVR | C22: EPSOM AND ST HELIER UNIVERSITY HOSPITALS NHS TRUST | D22: RVR50 | E22: Epsom Hospital - RVR50 | F22: 32 | G22: 116 | H22: 0.275862069 | I22: 0.96875 | J22: 0.03125 | K22: 30 | L22: 1 | M22: 0 | N22: 1 | O22: 0 | P22: 0
A23: Q71 | B23: RVR | C23: EPSOM AND ST HELIER UNIVERSITY HOSPITALS NHS TRUST | D23: RVRXXX | E23: Non-hospital site - RVRXXX | F23: 4 | G23: 14 | H23: 0.2857142857 | I23: * | J23: * | K23: * | L23: * | M23: * | N23: * | O23: * | P23: *
A24: Q71 | B24: RVR | C24: EPSOM AND ST HELIER UNIVERSITY HOSPITALS NHS TRUST | D24: RVR05 | E24: St Helier Hospital - RVR05 | F24: 29 | G24: 178 | H24: 0.1629213483 | I24: 1 | J24: 0 | K24: * | L24: * | M24: * | N24: * | O24: * | P24: *
A25: Q71 | B25: RJ1 | C25: GUY'S AND ST THOMAS' NHS FOUNDATION TRUST | D25: RJ1XXX | E25: Non-hospital site - RJ1XXX | F25: 0 | G25: 9 | H25: 0 | I25: NA | J25: NA | K25: 0 | L25: 0 | M25: 0 | N25: 0 | O25: 0 | P25: 0
A26: Q71 | B26: RJ1 | C26: GUY'S AND ST THOMAS' NHS FOUNDATION TRUST | D26: RJ122 | E26: St Thomas' Hospital - RJ122 | F26: 158 | G26: 466 | H26: 0.339055794 | I26: 0.9746835443 | J26: 0 | K26: 116 | L26: 38 | M26: 2 | N26: 0 | O26: 0 | P26: 2
A27: Q71 | B27: RQX | C27: HOMERTON UNIVERSITY HOSPITAL NHS FOUNDATION TRUST | D27: RQXM1 | E27: Homerton University Hospital - RQXM1 | F27: 30 | G27: 431 | H27: 0.06960556845 | I27: 1 | J27: 0 | K27: 25 | L27: 5 | M27: 0 | N27: 0 | O27: 0 | P27: 0
A28: Q71 | B28: RYJ | C28: IMPERIAL COLLEGE HEALTHCARE NHS TRUST | D28: RYJ04 | E28: Queen Charlotte's Hospital - RYJ04 | F28: 109 | G28: 378 | H28: 0.2883597884 | I28: 0.9724770642 | J28: 0.01834862385 | K28: 83 | L28: 23 | M28: 1 | N28: 0 | O28: 2 | P28: 0
A29: Q71 | B29: RYJ | C29: IMPERIAL COLLEGE HEALTHCARE NHS TRUST | D29: RYJ01 | E29: St Mary's Hospital (HQ) - RYJ01 | F29: 116 | G29: 230 | H29: 0.5043478261 | I29: 0.9568965517 | J29: 0.02586206897 | K29: 75 | L29: 36 | M29: 1 | N29: 1 | O29: 2 | P29: 1
A30: Q71 | B30: RJZ | C30: KING'S COLLEGE HOSPITAL NHS FOUNDATION TRUST | D30: RJZ01 | E30: King's College Hospital (Denmark Hill) - RJZ01 | F30: 7 | G30: 386 | H30: 0.01813471503 | I30: 0.8571428571 | J30: 0.1428571429 | K30: 2 | L30: 4 | M30: 0 | N30: 1 | O30: 0 | P30: 0
A31: Q71 | B31: RJZ | C31: KING'S COLLEGE HOSPITAL NHS FOUNDATION TRUST | D31: RJZ30 | E31: Princess Royal University Hospital - RJZ30 | F31: 0 | G31: 327 | H31: 0 | I31: NA | J31: NA | K31: 0 | L31: 0 | M31: 0 | N31: 0 | O31: 0 | P31: 0
A32: Q71 | B32: RAX | C32: KINGSTON HOSPITAL NHS FOUNDATION TRUST | D32: RAX01 | E32: Kingston Hospital - RAX01 | F32: 6 | G32: 374 | H32: 0.01604278075 | I32: 1 | J32: 0 | K32: 5 | L32: 1 | M32: 0 | N32: 0 | O32: 0 | P32: 0
A33: Q71 | B33: RJ2 | C33: LEWISHAM AND GREENWICH NHS TRUST | D33: RJ2XXX | E33: Non-hospital site - RJ2XXX | F33: 0 | G33: 4 | H33: 0 | I33: NA | J33: NA | K33: 0 | L33: 0 | M33: 0 | N33: 0 | O33: 0 | P33: 0
A34: Q71 | B34: RJ2 | C34: LEWISHAM AND GREENWICH NHS TRUST | D34: RJ231 | E34: Queen Elizabeth Hospital - RJ231 | F34: 124 | G34: 283 | H34: 0.4381625442 | I34: 0.9677419355 | J34: 0 | K34: 84 | L34: 36 | M34: 3 | N34: 0 | O34: 0 | P34: 1
A35: Q71 | B35: RJ2 | C35: LEWISHAM AND GREENWICH NHS TRUST | D35: RJ224 | E35: University Hospital Lewisham - RJ224 | F35: 164 | G35: 250 | H35: 0.656 | I35: 0.9634146341 | J35: 0 | K35: 112 | L35: 46 | M35: 4 | N35: 0 | O35: 0 | P35: 2
A36: Q71 | B36: R1K | C36: LONDON NORTH WEST UNIVERSITY HEALTHCARE NHS TRUST | D36: R1K01 | E36: Northwick Park Hospital - R1K01 | F36: 87 | G36: 324 | H36: 0.2685185185 | I36: 0.9770114943 | J36: 0 | K36: 67 | L36: 18 | M36: 1 | N36: 0 | O36: 0 | P36: 1
A37: Q71 | B37: RAP | C37: NORTH MIDDLESEX UNIVERSITY HOSPITAL NHS TRUST | D37: RAPNM | E37: North Middlesex Hospital - RAPNM | F37: 54 | G37: 318 | H37: 0.1698113208 | I37: 0.9259259259 | J37: 0.03703703704 | K37: 42 | L37: 8 | M37: 1 | N37: 0 | O37: 2 | P37: 1
A38: Q71 | B38: RAL | C38: ROYAL FREE LONDON NHS FOUNDATION TRUST | D38: RAL26 | E38: Barnet Hospital - RAL26 | F38: 13 | G38: 409 | H38: 0.03178484108 | I38: 1 | J38: 0 | K38: 12 | L38: 1 | M38: 0 | N38: 0 | O38: 0 | P38: 0
A39: Q71 | B39: RAL | C39: ROYAL FREE LONDON NHS FOUNDATION TRUST | D39: RAL01 | E39: Royal Free Hospital - RAL01 | F39: 40 | G39: 201 | H39: 0.1990049751 | I39: 0.975 | J39: 0 | K39: 32 | L39: 7 | M39: 1 | N39: 0 | O39: 0 | P39: 0
A40: Q71 | B40: RJ7 | C40: ST GEORGE'S UNIVERSITY HOSPITALS NHS FOUNDATION TRUST | D40: RJ701 | E40: St George's Hospital (Tooting) - RJ701 | F40: 7 | G40: 356 | H40: 0.01966292135 | I40: 1 | J40: 0 | K40: 5 | L40: 2 | M40: 0 | N40: 0 | O40: 0 | P40: 0
A41: Q71 | B41: RAS | C41: THE HILLINGDON HOSPITALS NHS FOUNDATION TRUST | D41: RAS01 | E41: Hillingdon Hospital - RAS01 | F41: 102 | G41: 328 | H41: 0.3109756098 | I41: 0.9803921569 | J41: 0.01960784314 | K41: * | L41: * | M41: * | N41: * | O41: * | P41: *
A42: Q71 | B42: RAS | C42: THE HILLINGDON HOSPITALS NHS FOUNDATION TRUST | D42: RASXXX | E42: Non-hospital site - RASXXX | F42: 1 | G42: 8 | H42: 0.125 | I42: * | J42: * | K42: * | L42: * | M42: * | N42: * | O42: * | P42: *
A43: Q71 | B43: RRV | C43: UNIVERSITY COLLEGE LONDON HOSPITALS NHS FOUNDATION TRUST | D43: RRV11 | E43: University College Hospital Elizabeth Garrett Anderson Wing - RRV11 | F43: 86 | G43: 509 | H43: 0.1689587426 | I43: 0.9651162791 | J43: 0 | K43: 72 | L43: 11 | M43: 3 | N43: 0 | O43: 0 | P43: 0
A44: Q71 | B44: RKE | C44: WHITTINGTON HEALTH NHS TRUST | D44: RKEXXX | E44: Non-hospital site - RKEXXX | F44: 0 | G44: 2 | H44: 0 | I44: NA | J44: NA | K44: 0 | L44: 0 | M44: 0 | N44: 0 | O44: 0 | P44: 0
A45: Q71 | B45: RKE | C45: WHITTINGTON HEALTH NHS TRUST | D45: RKEQ4 | E45: The Whittington Hospital - RKEQ4 | F45: 169 | G45: 236 | H45: 0.7161016949 | I45: 0.9822485207 | J45: 0.01183431953 | K45: 103 | L45: 63 | M45: 1 | N45: 1 | O45: 1 | P45: 0
A46: Q72 | B46: RCF | C46: AIREDALE NHS FOUNDATION TRUST | D46: RCF22 | E46: Airedale General Hospital - RCF22 | F46: 5 | G46: 155 | H46: 0.03225806452 | I46: 0.8 | J46: 0.2 | K46: 3 | L46: 1 | M46: 0 | N46: 0 | O46: 1 | P46: 0
A47: Q72 | B47: RFF | C47: BARNSLEY HOSPITAL NHS FOUNDATION TRUST | D47: RFFAA | E47: Barnsley Hospital NHS Foundation Trust HQ - RFFAA | F47: 21 | G47: 235 | H47: 0.08936170213 | I47: 1 | J47: 0 | K47: 20 | L47: 1 | M47: 0 | N47: 0 | O47: 0 | P47: 0
A48: Q72 | B48: RAE | C48: BRADFORD TEACHING HOSPITALS NHS FOUNDATION TRUST | D48: RAE01 | E48: Bradford Royal Infirmary - RAE01 | F48: 62 | G48: 294 | H48: 0.2108843537 | I48: 1 | J48: 0 | K48: 58 | L48: 4 | M48: 0 | N48: 0 | O48: 0 | P48: 0
A49: Q72 | B49: RWY | C49: CALDERDALE AND HUDDERSFIELD NHS FOUNDATION TRUST | D49: RWY02 | E49: Calderdale Royal Hospital - RWY02 | F49: 123 | G49: 329 | H49: 0.3738601824 | I49: 0.9918699187 | J49: 0 | K49: 107 | L49: 15 | M49: 1 | N49: 0 | O49: 0 | P49: 0
A50: Q72 | B50: RWY | C50: CALDERDALE AND HUDDERSFIELD NHS FOUNDATION TRUST | D50: RWY01 | E50: Huddersfield Royal Infirmary - RWY01 | F50: 15 | G50: 18 | H50: 0.8333333333 | I50: 1 | J50: 0 | K50: 15 | L50: 0 | M50: 0 | N50: 0 | O50: 0 | P50: 0
A51: Q72 | B51: RP5 | C51: DONCASTER AND BASSETLAW TEACHING HOSPITALS NHS FOUNDATION TRUST | D51: RP5BA | E51: Bassetlaw Hospital - RP5BA | F51: 44 | G51: 83 | H51: 0.5301204819 | I51: 0.9772727273 | J51: 0 | K51: 0 | L51: 43 | M51: 1 | N51: 0 | O51: 0 | P51: 0
A52: Q72 | B52: RP5 | C52: DONCASTER AND BASSETLAW TEACHING HOSPITALS NHS FOUNDATION TRUST | D52: RP5DR | E52: Doncaster Royal Infirmary - RP5DR | F52: 64 | G52: 247 | H52: 0.2591093117 | I52: 0.984375 | J52: 0 | K52: 51 | L52: 12 | M52: 1 | N52: 0 | O52: 0 | P52: 0
A53: Q72 | B53: RP5 | C53: DONCASTER AND BASSETLAW TEACHING HOSPITALS NHS FOUNDATION TRUST | D53: RP5XXX | E53: Non-hospital site - RP5XXX | F53: 0 | G53: 4 | H53: 0 | I53: NA | J53: NA | K53: 0 | L53: 0 | M53: 0 | N53: 0 | O53: 0 | P53: 0
A54: Q72 | B54: RCD | C54: HARROGATE AND DISTRICT NHS FOUNDATION TRUST | D54: RCD01 | E54: Harrogate District Hospital - RCD01 | F54: 56 | G54: 129 | H54: 0.4341085271 | I54: 1 | J54: 0 | K54: 52 | L54: 4 | M54: 0 | N54: 0 | O54: 0 | P54: 0
A55: Q72 | B55: RWA | C55: HULL AND EAST YORKSHIRE HOSPITALS NHS TRUST | D55: RWA01 | E55: Hull Royal Infirmary - RWA01 | F55: 29 | G55: 395 | H55: 0.07341772152 | I55: 1 | J55: 0 | K55: 29 | L55: 0 | M55: 0 | N55: 0 | O55: 0 | P55: 0
A56: Q72 | B56: RR8 | C56: LEEDS TEACHING HOSPITALS NHS TRUST | D56: RR801 | E56: Leeds General Infirmary - RR801 | F56: 113 | G56: 298 | H56: 0.3791946309 | I56: 0.982300885 | J56: 0.01769911504 | K56: 105 | L56: 6 | M56: 0 | N56: 1 | O56: 1 | P56: 0
A57: Q72 | B57: RR8 | C57: LEEDS TEACHING HOSPITALS NHS TRUST | D57: RR8XXX | E57: Non-Hospital Site - RR8XXX | F57: 1 | G57: 23 | H57: 0.04347826087 | I57: * | J57: * | K57: * | L57: * | M57: * | N57: * | O57: * | P57: *
A58: Q72 | B58: RR8 | C58: LEEDS TEACHING HOSPITALS NHS TRUST | D58: RR813 | E58: St James's University Hospital - RR813 | F58: 85 | G58: 300 | H58: 0.2833333333 | I58: 0.9764705882 | J58: 0.01176470588 | K58: * | L58: * | M58: * | N58: * | O58: * | P58: *
A59: Q72 | B59: RXF | C59: MID YORKSHIRE HOSPITALS NHS TRUST | D59: RXF10 | E59: Dewsbury and District Hospital - RXF10 | F59: 9 | G59: 18 | H59: 0.5 | I59: 0.8888888889 | J59: 0.1111111111 | K59: 8 | L59: 0 | M59: 0 | N59: 0 | O59: 1 | P59: 0
A60: Q72 | B60: RXF | C60: MID YORKSHIRE HOSPITALS NHS TRUST | D60: RXFXXX | E60: Non-hospital site - RXFXXX | F60: 0 | G60: 6 | H60: 0 | I60: NA | J60: NA | K60: 0 | L60: 0 | M60: 0 | N60: 0 | O60: 0 | P60: 0
A61: Q72 | B61: RXF | C61: MID YORKSHIRE HOSPITALS NHS TRUST | D61: RXF05 | E61: Pinderfields General Hospital - RXF05 | F61: 81 | G61: 445 | H61: 0.1820224719 | I61: 1 | J61: 0 | K61: 70 | L61: 11 | M61: 0 | N61: 0 | O61: 0 | P61: 0
A62: Q72 | B62: RXF | C62: MID YORKSHIRE HOSPITALS NHS TRUST | D62: RXF03 | E62: Pontefract General Infirmary - RXF03 | F62: 5 | G62: 16 | H62: 0.3125 | I62: 1 | J62: 0 | K62: 5 | L62: 0 | M62: 0 | N62: 0 | O62: 0 | P62: 0
A63: Q72 | B63: RJL | C63: NORTHERN LINCOLNSHIRE AND GOOLE NHS FOUNDATION TRUST | D63: RJL30 | E63: Diana, Princess Of Wales Hospital - RJL30 | F63: 51 | G63: 173 | H63: 0.2947976879 | I63: 1 | J63: 0 | K63: * | L63: * | M63: * | N63: * | O63: * | P63: *
A64: Q72 | B64: RJL | C64: NORTHERN LINCOLNSHIRE AND GOOLE NHS FOUNDATION TRUST | D64: RJL31 | E64: Goole and District Hospital (Acute) - RJL31 | F64: 4 | G64: 118 | H64: 0.03389830508 | I64: * | J64: * | K64: * | L64: * | M64: * | N64: * | O64: * | P64: *
A65: Q72 | B65: RHQ | C65: SHEFFIELD TEACHING HOSPITALS NHS FOUNDATION TRUST | D65: RHQHH | E65: Royal Hallamshire Hospital - RHQHH | F65: 118 | G65: 447 | H65: 0.2639821029 | I65: 0.9830508475 | J65: 0 | K65: 91 | L65: 25 | M65: 1 | N65: 0 | O65: 0 | P65: 1
A66: Q72 | B66: RFR | C66: THE ROTHERHAM NHS FOUNDATION TRUST | D66: RFRPA | E66: Rotherham District General Hospital - RFRPA | F66: 53 | G66: 214 | H66: 0.2476635514 | I66: 0.9811320755 | J66: 0.01886792453 | K66: 46 | L66: 6 | M66: 0 | N66: 0 | O66: 1 | P66: 0
A67: Q72 | B67: RCB | C67: YORK TEACHING HOSPITAL NHS FOUNDATION TRUST | D67: RCBCA | E67: Scarborough General Hospital - RCBCA | F67: 48 | G67: 112 | H67: 0.4285714286 | I67: 1 | J67: 0 | K67: 43 | L67: 5 | M67: 0 | N67: 0 | O67: 0 | P67: 0
A68: Q72 | B68: RCB | C68: YORK TEACHING HOSPITAL NHS FOUNDATION TRUST | D68: RCB55 | E68: York Hospital - RCB55 | F68: 133 | G68: 211 | H68: 0.6303317536 | I68: 1 | J68: 0 | K68: 113 | L68: 20 | M68: 0 | N68: 0 | O68: 0 | P68: 0
A69: Q74 | B69: RLN | C69: CITY HOSPITALS SUNDERLAND NHS FOUNDATION TRUST | D69: RLNGL | E69: Sunderland Royal Hospital - RLNGL | F69: 26 | G69: 190 | H69: 0.1368421053 | I69: 1 | J69: 0 | K69: 25 | L69: 1 | M69: 0 | N69: 0 | O69: 0 | P69: 0
A70: Q74 | B70: RXP | C70: COUNTY DURHAM AND DARLINGTON NHS FOUNDATION TRUST | D70: RXPDA | E70: Darlington Memorial Hospital - RXPDA | F70: 25 | G70: 151 | H70: 0.1655629139 | I70: 0.88 | J70: 0.04 | K70: * | L70: * | M70: * | N70: * | O70: * | P70: *
A71: Q74 | B71: RXP | C71: COUNTY DURHAM AND DARLINGTON NHS FOUNDATION TRUST | D71: RXPXXX | E71: Non-hospital site - RXPXXX | F71: 0 | G71: 4 | H71: 0 | I71: NA | J71: NA | K71: 0 | L71: 0 | M71: 0 | N71: 0 | O71: 0 | P71: 0
A72: Q74 | B72: RXP | C72: COUNTY DURHAM AND DARLINGTON NHS FOUNDATION TRUST | D72: RXPCP | E72: University Hospital Of North Durham - RXPCP | F72: 4 | G72: 214 | H72: 0.01869158879 | I72: * | J72: * | K72: * | L72: * | M72: * | N72: * | O72: * | P72: *
A73: Q74 | B73: RR7 | C73: GATESHEAD HEALTH NHS FOUNDATION TRUST | D73: RR7EN | E73: Queen Elizabeth Hospital - RR7EN | F73: 65 | G73: 135 | H73: 0.4814814815 | I73: 1 | J73: 0 | K73: 62 | L73: 3 | M73: 0 | N73: 0 | O73: 0 | P73: 0
A74: Q74 | B74: RNL | C74: NORTH CUMBRIA UNIVERSITY HOSPITALS NHS TRUST | D74: RNLAY | E74: Cumberland Infirmary - RNLAY | F74: 8 | G74: 122 | H74: 0.06557377049 | I74: 0.875 | J74: 0 | K74: * | L74: * | M74: * | N74: * | O74: * | P74: *
A75: Q74 | B75: RNL | C75: NORTH CUMBRIA UNIVERSITY HOSPITALS NHS TRUST | D75: RNLBE | E75: Penrith Hospital - RNLBE | F75: 2 | G75: 3 | H75: 0.6666666667 | I75: * | J75: * | K75: * | L75: * | M75: * | N75: * | O75: * | P75: *
A76: Q74 | B76: RNL | C76: NORTH CUMBRIA UNIVERSITY HOSPITALS NHS TRUST | D76: RNLBX | E76: West Cumberland Hospital - RNLBX | F76: 43 | G76: 62 | H76: 0.6935483871 | I76: 0.976744186 | J76: 0 | K76: 42 | L76: 0 | M76: 1 | N76: 0 | O76: 0 | P76: 0
A77: Q74 | B77: RVW | C77: NORTH TEES AND HARTLEPOOL NHS FOUNDATION TRUST | D77: RVWAE | E77: University Hospital Of North Tees - RVWAE | F77: 36 | G77: 246 | H77: 0.1463414634 | I77: 1 | J77: 0 | K77: 32 | L77: 4 | M77: 0 | N77: 0 | O77: 0 | P77: 0
A78: Q74 | B78: RTF | C78: NORTHUMBRIA HEALTHCARE NHS FOUNDATION TRUST | D78: RTFDJ | E78: Alnwick Infirmary - RTFDJ | F78: 1 | G78: 1 | H78: 1 | I78: * | J78: * | K78: * | L78: * | M78: * | N78: * | O78: * | P78: *
A79: Q74 | B79: RTF | C79: NORTHUMBRIA HEALTHCARE NHS FOUNDATION TRUST | D79: RTFDH | E79: Berwick Infirmary - RTFDH | F79: 0 | G79: 1 | H79: 0 | I79: NA | J79: NA | K79: 0 | L79: 0 | M79: 0 | N79: 0 | O79: 0 | P79: 0
A80: Q74 | B80: RTF | C80: NORTHUMBRIA HEALTHCARE NHS FOUNDATION TRUST | D80: RTFDR | E80: Hexham General Hospital - RTFDR | F80: 2 | G80: 2 | H80: 1 | I80: * | J80: * | K80: * | L80: * | M80: * | N80: * | O80: * | P80: *
A81: Q74 | B81: RTF | C81: NORTHUMBRIA HEALTHCARE NHS FOUNDATION TRUST | D81: RTFXXX | E81: Non-hospital site - RTFXXX | F81: 0 | G81: 2 | H81: 0 | I81: NA | J81: NA | K81: 0 | L81: 0 | M81: 0 | N81: 0 | O81: 0 | P81: 0
A82: Q74 | B82: RTF | C82: NORTHUMBRIA HEALTHCARE NHS FOUNDATION TRUST | D82: RTF86 | E82: The Northumbria - RTF86 | F82: 51 | G82: 152 | H82: 0.3355263158 | I82: 0.9411764706 | J82: 0 | K82: 46 | L82: 2 | M82: 3 | N82: 0 | O82: 0 | P82: 0
A83: Q74 | B83: RTR | C83: SOUTH TEES HOSPITALS NHS FOUNDATION TRUST | D83: RTR45 | E83: Friarage Hospital Site - RTR45 | F83: 0 | G83: 15 | H83: 0 | I83: NA | J83: NA | K83: 0 | L83: 0 | M83: 0 | N83: 0 | O83: 0 | P83: 0
A84: Q74 | B84: RTR | C84: SOUTH TEES HOSPITALS NHS FOUNDATION TRUST | D84: RTRAT | E84: The James Cook University Hospital - RTRAT | F84: 3 | G84: 346 | H84: 0.008670520231 | I84: * | J84: * | K84: * | L84: * | M84: * | N84: * | O84: * | P84: *
A85: Q74 | B85: RE9 | C85: SOUTH TYNESIDE NHS FOUNDATION TRUST | D85: RE9XXX | E85: Non-hospital site - RE9XXX | F85: 0 | G85: 2 | H85: 0 | I85: NA | J85: NA | K85: 0 | L85: 0 | M85: 0 | N85: 0 | O85: 0 | P85: 0
A86: Q74 | B86: RE9 | C86: SOUTH TYNESIDE NHS FOUNDATION TRUST | D86: RE9GA | E86: South Tyneside District Hospital - RE9GA | F86: 1 | G86: 70 | H86: 0.01428571429 | I86: * | J86: * | K86: * | L86: * | M86: * | N86: * | O86: * | P86: *
A87: Q74 | B87: RTD | C87: THE NEWCASTLE UPON TYNE HOSPITALS NHS FOUNDATION TRUST | D87: RTD02 | E87: The Royal Victoria Infirmary - RTD02 | F87: 110 | G87: 498 | H87: 0.2208835341 | I87: 1 | J87: 0 | K87: 101 | L87: 9 | M87: 0 | N87: 0 | O87: 0 | P87: 0
A88: Q75 | B88: RJR | C88: COUNTESS OF CHESTER HOSPITAL NHS FOUNDATION TRUST | D88: RJR05 | E88: Countess Of Chester Hospital - RJR05 | F88: 75 | G88: 207 | H88: 0.3623188406 | I88: 1 | J88: 0 | K88: 72 | L88: 3 | M88: 0 | N88: 0 | O88: 0 | P88: 0
A89: Q75 | B89: RJN | C89: EAST CHESHIRE NHS TRUST | D89: RJN71 | E89: Macclesfield District General Hospital - RJN71 | F89: 6 | G89: 99 | H89: 0.06060606061 | I89: 1 | J89: 0 | K89: 5 | L89: 1 | M89: 0 | N89: 0 | O89: 0 | P89: 0
A90: Q75 | B90: REP | C90: LIVERPOOL WOMEN'S NHS FOUNDATION TRUST | D90: REP01 | E90: Liverpool Womens Hospital - REP01 | F90: 43 | G90: 636 | H90: 0.06761006289 | I90: 0.9302325581 | J90: 0 | K90: 36 | L90: 4 | M90: 3 | N90: 0 | O90: 0 | P90: 0
A91: Q75 | B91: RBT | C91: MID CHESHIRE HOSPITALS NHS FOUNDATION TRUST | D91: RBT20 | E91: Leighton Hospital - RBT20 | F91: 26 | G91: 200 | H91: 0.13 | I91: 0.9615384615 | J91: 0 | K91: 25 | L91: 0 | M91: 1 | N91: 0 | O91: 0 | P91: 0
A92: Q75 | B92: RVY | C92: SOUTHPORT AND ORMSKIRK HOSPITAL NHS TRUST | D92: RVY02 | E92: Ormskirk and District General Hospital - RVY02 | F92: 34 | G92: 207 | H92: 0.1642512077 | I92: 0.9705882353 | J92: 0 | K92: 30 | L92: 3 | M92: 0 | N92: 0 | O92: 0 | P92: 1
A93: Q75 | B93: RBN | C93: ST HELENS AND KNOWSLEY TEACHING HOSPITALS NHS TRUST | D93: RBN01 | E93: Whiston Hospital - RBN01 | F93: 50 | G93: 284 | H93: 0.176056338 | I93: 1 | J93: 0 | K93: 47 | L93: 3 | M93: 0 | N93: 0 | O93: 0 | P93: 0
A94: Q75 | B94: RWW | C94: WARRINGTON AND HALTON HOSPITALS NHS FOUNDATION TRUST | D94: RWWWH | E94: Warrington Hospital - RWWWH | F94: 23 | G94: 179 | H94: 0.1284916201 | I94: 1 | J94: 0 | K94: 21 | L94: 2 | M94: 0 | N94: 0 | O94: 0 | P94: 0
A95: Q75 | B95: RBL | C95: WIRRAL UNIVERSITY TEACHING HOSPITAL NHS FOUNDATION TRUST | D95: RBL14 | E95: Arrowe Park Hospital - RBL14 | F95: 37 | G95: 233 | H95: 0.1587982833 | I95: 1 | J95: 0 | K95: 32 | L95: 5 | M95: 0 | N95: 0 | O95: 0 | P95: 0
A96: Q76 | B96: RFS | C96: CHESTERFIELD ROYAL HOSPITAL NHS FOUNDATION TRUST | D96: RFSDA | E96: Chesterfield Royal Hospital - RFSDA | F96: 55 | G96: 216 | H96: 0.2546296296 | I96: 0.9818181818 | J96: 0 | K96: 46 | L96: 8 | M96: 0 | N96: 0 | O96: 0 | P96: 1
A97: Q76 | B97: RX1 | C97: NOTTINGHAM UNIVERSITY HOSPITALS NHS TRUST | D97: RX1XXX | E97: Non-hospital site - RX1XXX | F97: 4 | G97: 13 | H97: 0.3076923077 | I97: * | J97: * | K97: * | L97: * | M97: * | N97: * | O97: * | P97: *
A98: Q76 | B98: RX1 | C98: NOTTINGHAM UNIVERSITY HOSPITALS NHS TRUST | D98: RX1CC | E98: Nottingham University Hospitals NHS Trust - City Campus - RX1CC | F98: 18 | G98: 330 | H98: 0.05454545455 | I98: 1 | J98: 0 | K98: 16 | L98: 2 | M98: 0 | N98: 0 | O98: 0 | P98: 0
A99: Q76 | B99: RX1 | C99: NOTTINGHAM UNIVERSITY HOSPITALS NHS TRUST | D99: RX1RA | E99: Nottingham University Hospitals NHS Trust - Queen's Medical Centre Campus - RX1RA | F99: 1 | G99: 299 | H99: 0.003344481605 | I99: * | J99: * | K99: * | L99: * | M99: * | N99: * | O99: * | P99: *
A100: Q76 | B100: RK5 | C100: SHERWOOD FOREST HOSPITALS NHS FOUNDATION TRUST | D100: RK5BC | E100: King's Mill Hospital - RK5BC | F100: 8 | G100: 246 | H100: 0.0325203252 | I100: 1 | J100: 0 | K100: 7 | L100: 1 | M100: 0 | N100: 0 | O100: 0 | P100: 0
A101: Q76 | B101: RK5 | C101: SHERWOOD FOREST HOSPITALS NHS FOUNDATION TRUST | D101: RK5XXX | E101: Non-hospital site - RK5XXX | F101: 0 | G101: 3 | H101: 0 | I101: NA | J101: NA | K101: 0 | L101: 0 | M101: 0 | N101: 0 | O101: 0 | P101: 0
A102: Q76 | B102: RXW | C102: SHREWSBURY AND TELFORD HOSPITAL NHS TRUST | D102: RXWMB | E102: Bridgnorth Hospital (Maternity) - RXWMB | F102: 0 | G102: 0 | H102: NA | I102: NA | J102: NA | K102: 0 | L102: 0 | M102: 0 | N102: 0 | O102: 0 | P102: 0
A103: Q76 | B103: RXW | C103: SHREWSBURY AND TELFORD HOSPITAL NHS TRUST | D103: RXWML | E103: Ludlow Hospital (Maternity) - RXWML | F103: 0 | G103: 0 | H103: NA | I103: NA | J103: NA | K103: 0 | L103: 0 | M103: 0 | N103: 0 | O103: 0 | P103: 0
A104: Q76 | B104: RXW | C104: SHREWSBURY AND TELFORD HOSPITAL NHS TRUST | D104: RXWXXX | E104: Non-hospital site - RXWXXX | F104: 0 | G104: 7 | H104: 0 | I104: NA | J104: NA | K104: 0 | L104: 0 | M104: 0 | N104: 0 | O104: 0 | P104: 0
A105: Q76 | B105: RXW | C105: SHREWSBURY AND TELFORD HOSPITAL NHS TRUST | D105: RXWMJ | E105: Robert Jones & Agnes Hunt Orthopaedic & District Hospital - RXWMJ | F105: 0 | G105: 0 | H105: NA | I105: NA | J105: NA | K105: 0 | L105: 0 | M105: 0 | N105: 0 | O105: 0 | P105: 0
A106: Q76 | B106: RXW | C106: SHREWSBURY AND TELFORD HOSPITAL NHS TRUST | D106: RXWAS | E106: Royal Shrewsbury Hospital - RXWAS | F106: 2 | G106: 9 | H106: 0.2222222222 | I106: * | J106: * | K106: * | L106: * | M106: * | N106: * | O106: * | P106: *
A107: Q76 | B107: RXW | C107: SHREWSBURY AND TELFORD HOSPITAL NHS TRUST | D107: RXWAT | E107: The Princess Royal Hospital - RXWAT | F107: 39 | G107: 311 | H107: 0.1254019293 | I107: 1 | J107: 0 | K107: * | L107: * | M107: * | N107: * | O107: * | P107: *
A108: Q76 | B108: RTG | C108: UNIVERSITY HOSPITALS OF DERBY AND BURTON NHS FOUNDATION TRUST | D108: RTG02 | E108: Queens Hospital, Burton Upon Trent - RTG02 | F108: 57 | G108: 213 | H108: 0.2676056338 | I108: 1 | J108: 0 | K108: 55 | L108: 2 | M108: 0 | N108: 0 | O108: 0 | P108: 0
A109: Q76 | B109: RTG | C109: UNIVERSITY HOSPITALS OF DERBY AND BURTON NHS FOUNDATION TRUST | D109: RTGFG | E109: Royal Derby Hospital - RTGFG | F109: 133 | G109: 421 | H109: 0.3159144893 | I109: 0.984962406 | J109: 0 | K109: 101 | L109: 30 | M109: 2 | N109: 0 | O109: 0 | P109: 0
A110: Q76 | B110: RJE | C110: UNIVERSITY HOSPITALS OF NORTH MIDLANDS NHS TRUST | D110: RJE09 | E110: County Hospital - RJE09 | F110: 0 | G110: 1 | H110: 0 | I110: NA | J110: NA | K110: 0 | L110: 0 | M110: 0 | N110: 0 | O110: 0 | P110: 0
A111: Q76 | B111: RJE | C111: UNIVERSITY HOSPITALS OF NORTH MIDLANDS NHS TRUST | D111: RJEXXX | E111: Non-hospital site - RJEXXX | F111: 0 | G111: 0 | H111: NA | I111: NA | J111: NA | K111: 0 | L111: 0 | M111: 0 | N111: 0 | O111: 0 | P111: 0
A112: Q76 | B112: RJE | C112: UNIVERSITY HOSPITALS OF NORTH MIDLANDS NHS TRUST | D112: RJE01 | E112: Royal Stoke University Hospital - RJE01 | F112: 22 | G112: 488 | H112: 0.04508196721 | I112: 1 | J112: 0 | K112: 21 | L112: 1 | M112: 0 | N112: 0 | O112: 0 | P112: 0
A113: Q77 | B113: RQ3 | C113: BIRMINGHAM WOMEN'S AND CHILDREN'S NHS FOUNDATION TRUST | D113: RQ370 | E113: Birmingham Women's Hospital - RQ370 | F113: 80 | G113: 548 | H113: 0.1459854015 | I113: 0.9875 | J113: 0 | K113: 68 | L113: 11 | M113: 1 | N113: 0 | O113: 0 | P113: 0
A114: Q77 | B114: RLT | C114: GEORGE ELIOT HOSPITAL NHS TRUST | D114: RLT01 | E114: George Eliot Hospital - Acute Services - RLT01 | F114: 97 | G114: 170 | H114: 0.5705882353 | I114: 0.9793814433 | J114: 0.01030927835 | K114: 88 | L114: 7 | M114: 0 | N114: 1 | O114: 0 | P114: 1
A115: Q77 | B115: RXK | C115: SANDWELL AND WEST BIRMINGHAM HOSPITALS NHS TRUST | D115: RXK02 | E115: City Hospital - RXK02 | F115: 19 | G115: 383 | H115: 0.04960835509 | I115: 0.9473684211 | J115: 0.05263157895 | K115: 14 | L115: 4 | M115: 0 | N115: 1 | O115: 0 | P115: 0
A116: Q77 | B116: RJC | C116: SOUTH WARWICKSHIRE NHS FOUNDATION TRUST | D116: RJCXXX | E116: Non-hospital site - RJCXXX | F116: 0 | G116: 1 | H116: 0 | I116: NA | J116: NA | K116: 0 | L116: 0 | M116: 0 | N116: 0 | O116: 0 | P116: 0
A117: Q77 | B117: RJC | C117: SOUTH WARWICKSHIRE NHS FOUNDATION TRUST | D117: RJC02 | E117: Warwick Hospital - RJC02 | F117: 40 | G117: 219 | H117: 0.1826484018 | I117: 0.975 | J117: 0 | K117: 33 | L117: 6 | M117: 0 | N117: 0 | O117: 0 | P117: 1
A118: Q77 | B118: RNA | C118: THE DUDLEY GROUP NHS FOUNDATION TRUST | D118: RNA01 | E118: Russells Hall Hospital - RNA01 | F118: 117 | G118: 310 | H118: 0.3774193548 | I118: 1 | J118: 0 | K118: 103 | L118: 14 | M118: 0 | N118: 0 | O118: 0 | P118: 0
A119: Q77 | B119: RL4 | C119: THE ROYAL WOLVERHAMPTON NHS TRUST | D119: RL403 | E119: New Cross Hospital - RL403 | F119: 34 | G119: 346 | H119: 0.09826589595 | I119: 1 | J119: 0 | K119: 33 | L119: 1 | M119: 0 | N119: 0 | O119: 0 | P119: 0
A120: Q77 | B120: RRK | C120: UNIVERSITY HOSPITALS BIRMINGHAM NHS FOUNDATION TRUST | D120: RRK98 | E120: Good Hope Hospital - RRK98 | F120: 24 | G120: 176 | H120: 0.1363636364 | I120: 0.9583333333 | J120: 0 | K120: * | L120: * | M120: * | N120: * | O120: * | P120: *
A121: Q77 | B121: RRK | C121: UNIVERSITY HOSPITALS BIRMINGHAM NHS FOUNDATION TRUST | D121: RRK97 | E121: Heartlands Hospital - RRK97 | F121: 37 | G121: 406 | H121: 0.09113300493 | I121: 0.8378378378 | J121: 0.1621621622 | K121: 25 | L121: 6 | M121: 0 | N121: 3 | O121: 3 | P121: 0
A122: Q77 | B122: RRK | C122: UNIVERSITY HOSPITALS BIRMINGHAM NHS FOUNDATION TRUST | D122: RRK99 | E122: Solihull Hospital - RRK99 | F122: 1 | G122: 2 | H122: 0.5 | I122: * | J122: * | K122: * | L122: * | M122: * | N122: * | O122: * | P122: *
A123: Q77 | B123: RKB | C123: UNIVERSITY HOSPITALS COVENTRY AND WARWICKSHIRE NHS TRUST | D123: RKB03 | E123: Hospital Of St Cross - RKB03 | F123: 0 | G123: 0 | H123: NA | I123: NA | J123: NA | K123: 0 | L123: 0 | M123: 0 | N123: 0 | O123: 0 | P123: 0
A124: Q77 | B124: RKB | C124: UNIVERSITY HOSPITALS COVENTRY AND WARWICKSHIRE NHS TRUST | D124: RKBXXX | E124: Non-hospital site - RKBXXX | F124: 3 | G124: 2 | H124: 1.5 | I124: * | J124: * | K124: * | L124: * | M124: * | N124: * | O124: * | P124: *
A125: Q77 | B125: RKB | C125: UNIVERSITY HOSPITALS COVENTRY AND WARWICKSHIRE NHS TRUST | D125: RKB01 | E125: University Hospital (Coventry) - RKB01 | F125: 77 | G125: 418 | H125: 0.1842105263 | I125: 0.8571428571 | J125: 0.1038961039 | K125: * | L125: * | M125: * | N125: * | O125: * | P125: *
A126: Q77 | B126: RBK | C126: WALSALL HEALTHCARE NHS TRUST | D126: RBK02 | E126: Manor Hospital - RBK02 | F126: 33 | G126: 238 | H126: 0.1386554622 | I126: 0.9090909091 | J126: 0.0303030303 | K126: 21 | L126: 9 | M126: 2 | N126: 1 | O126: 0 | P126: 0
A127: Q77 | B127: RWP | C127: WORCESTERSHIRE ACUTE HOSPITALS NHS TRUST | D127: RWP50 | E127: Worcestershire Royal Hospital - RWP50 | F127: 60 | G127: 166 | H127: 0.3614457831 | I127: 1 | J127: 0 | K127: 59 | L127: 1 | M127: 0 | N127: 0 | O127: 0 | P127: 0
A128: Q77 | B128: RLQ | C128: WYE VALLEY NHS TRUST | D128: RLQ01 | E128: Hereford County Hospital - RLQ01 | F128: 31 | G128: 116 | H128: 0.2672413793 | I128: 0.8387096774 | J128: 0.1290322581 | K128: 20 | L128: 6 | M128: 1 | N128: 2 | O128: 2 | P128: 0
A129: Q78 | B129: RC1 | C129: BEDFORD HOSPITAL NHS TRUST | D129: RC110 | E129: Bedford Hospital South Wing - RC110 | F129: 52 | G129: 54 | H129: 0.962962963 | I129: 0.9615384615 | J129: 0.03846153846 | K129: 47 | L129: 3 | M129: 0 | N129: 2 | O129: 0 | P129: 0
A130: Q78 | B130: RWH | C130: EAST AND NORTH HERTFORDSHIRE NHS TRUST | D130: RWH01 | E130: Lister Hospital - RWH01 | F130: 152 | G130: 394 | H130: 0.385786802 | I130: 0.9802631579 | J130: 0.006578947368 | K130: 114 | L130: 35 | M130: 1 | N130: 1 | O130: 0 | P130: 1
A131: Q78 | B131: RWH | C131: EAST AND NORTH HERTFORDSHIRE NHS TRUST | D131: RWHXXX | E131: Non-hospital site - RWHXXX | F131: 5 | G131: 8 | H131: 0.625 | I131: 1 | J131: 0 | K131: 3 | L131: 2 | M131: 0 | N131: 0 | O131: 0 | P131: 0
A132: Q78 | B132: RNQ | C132: KETTERING GENERAL HOSPITAL NHS FOUNDATION TRUST | D132: RNQ51 | E132: Kettering General Hospital - RNQ51 | F132: 21 | G132: 215 | H132: 0.0976744186 | I132: 1 | J132: 0 | K132: 20 | L132: 1 | M132: 0 | N132: 0 | O132: 0 | P132: 0
A133: Q78 | B133: RC9 | C133: LUTON AND DUNSTABLE UNIVERSITY HOSPITAL NHS FOUNDATION TRUST | D133: RC971 | E133: Luton and Dunstable Hospital - RC971 | F133: 76 | G133: 381 | H133: 0.1994750656 | I133: 0.9605263158 | J133: 0 | K133: 60 | L133: 13 | M133: 2 | N133: 0 | O133: 0 | P133: 1
A134: Q78 | B134: RD8 | C134: MILTON KEYNES UNIVERSITY HOSPITAL NHS FOUNDATION TRUST | D134: RD816 | E134: Milton Keynes Hospital - RD816 | F134: 14 | G134: 283 | H134: 0.04946996466 | I134: 1 | J134: 0 | K134: 14 | L134: 0 | M134: 0 | N134: 0 | O134: 0 | P134: 0
A135: Q78 | B135: RNS | C135: NORTHAMPTON GENERAL HOSPITAL NHS TRUST | D135: RNS01 | E135: Northampton General Hospital (Acute) - RNS01 | F135: 152 | G135: 319 | H135: 0.4764890282 | I135: 0.9868421053 | J135: 0.01315789474 | K135: 131 | L135: 19 | M135: 0 | N135: 1 | O135: 1 | P135: 0
A136: Q78 | B136: RWD | C136: UNITED LINCOLNSHIRE HOSPITALS NHS TRUST | D136: RWDLP | E136: Grantham and District Hospital - RWDLP | F136: 0 | G136: 8 | H136: 0 | I136: NA | J136: NA | K136: 0 | L136: 0 | M136: 0 | N136: 0 | O136: 0 | P136: 0
A137: Q78 | B137: RWD | C137: UNITED LINCOLNSHIRE HOSPITALS NHS TRUST | D137: RWDDA | E137: Lincoln County Hospital - RWDDA | F137: 17 | G137: 198 | H137: 0.08585858586 | I137: 0.9411764706 | J137: 0.05882352941 | K137: 11 | L137: 5 | M137: 0 | N137: 0 | O137: 1 | P137: 0
A138: Q78 | B138: RWD | C138: UNITED LINCOLNSHIRE HOSPITALS NHS TRUST | D138: RWDXXX | E138: Non-hospital site - RWDXXX | F138: 0 | G138: 0 | H138: NA | I138: NA | J138: NA | K138: 0 | L138: 0 | M138: 0 | N138: 0 | O138: 0 | P138: 0
A139: Q78 | B139: RWD | C139: UNITED LINCOLNSHIRE HOSPITALS NHS TRUST | D139: RWDLA | E139: Pilgrim Hospital - RWDLA | F139: 25 | G139: 127 | H139: 0.1968503937 | I139: 1 | J139: 0 | K139: 24 | L139: 1 | M139: 0 | N139: 0 | O139: 0 | P139: 0
A140: Q78 | B140: RWE | C140: UNIVERSITY HOSPITALS OF LEICESTER NHS TRUST | D140: RWEAK | E140: Leicester General Hospital - RWEAK | F140: 168 | G140: 258 | H140: 0.6511627907 | I140: 0.9523809524 | J140: 0.02380952381 | K140: 136 | L140: 24 | M140: 2 | N140: 2 | O140: 2 | P140: 2
A141: Q78 | B141: RWE | C141: UNIVERSITY HOSPITALS OF LEICESTER NHS TRUST | D141: RWEAA | E141: Leicester Royal Infirmary - RWEAA | F141: 282 | G141: 411 | H141: 0.6861313869 | I141: 0.9007092199 | J141: 0.0390070922 | K141: 189 | L141: 65 | M141: 8 | N141: 5 | O141: 6 | P141: 9
A142: Q78 | B142: RWE | C142: UNIVERSITY HOSPITALS OF LEICESTER NHS TRUST | D142: RWEXXX | E142: Non-hospital site - RWEXXX | F142: 12 | G142: 24 | H142: 0.5 | I142: 0.8333333333 | J142: 0 | K142: 5 | L142: 5 | M142: 0 | N142: 0 | O142: 0 | P142: 2
A143: Q78 | B143: RWE | C143: UNIVERSITY HOSPITALS OF LEICESTER NHS TRUST | D143: RWE10 | E143: St Mary's Hospital - RWE10 | F143: 12 | G143: 9 | H143: 1.333333333 | I143: 1 | J143: 0 | K143: 10 | L143: 2 | M143: 0 | N143: 0 | O143: 0 | P143: 0
A144: Q78 | B144: RWG | C144: WEST HERTFORDSHIRE HOSPITALS NHS TRUST | D144: RWG02 | E144: Watford General Hospital - RWG02 | F144: 83 | G144: 311 | H144: 0.2668810289 | I144: 0.9759036145 | J144: 0 | K144: 59 | L144: 22 | M144: 2 | N144: 0 | O144: 0 | P144: 0
A145: Q79 | B145: RDD | C145: BASILDON AND THURROCK UNIVERSITY HOSPITALS NHS FOUNDATION TRUST | D145: RDDH0 | E145: Basildon University Hospital - RDDH0 | F145: 34 | G145: 201 | H145: 0.1691542289 | I145: 1 | J145: 0 | K145: 27 | L145: 7 | M145: 0 | N145: 0 | O145: 0 | P145: 0
A146: Q79 | B146: RGT | C146: CAMBRIDGE UNIVERSITY HOSPITALS NHS FOUNDATION TRUST | D146: RGT32 | E146: Rosie Hospital - RGT32 | F146: 97 | G146: 364 | H146: 0.2664835165 | I146: 0.9793814433 | J146: 0.01030927835 | K146: 80 | L146: 15 | M146: 0 | N146: 1 | O146: 0 | P146: 1
A147: Q79 | B147: RDE | C147: EAST SUFFOLK AND NORTH ESSEX NHS FOUNDATION TRUST | D147: RDEE2 | E147: Clacton and District Hospital - RDEE2 | F147: 1 | G147: 3 | H147: 0.3333333333 | I147: * | J147: * | K147: * | L147: * | M147: * | N147: * | O147: * | P147: *
A148: Q79 | B148: RDE | C148: EAST SUFFOLK AND NORTH ESSEX NHS FOUNDATION TRUST | D148: RDEE4 | E148: Colchester General Hospital - RDEE4 | F148: 8 | G148: 251 | H148: 0.03187250996 | I148: 1 | J148: 0 | K148: * | L148: * | M148: * | N148: * | O148: * | P148: *
A149: Q79 | B149: RDE | C149: EAST SUFFOLK AND NORTH ESSEX NHS FOUNDATION TRUST | D149: RDE03 | E149: Ipswich Hospital - RDE03 | F149: 102 | G149: 262 | H149: 0.3893129771 | I149: 0.9901960784 | J149: 0 | K149: 88 | L149: 13 | M149: 1 | N149: 0 | O149: 0 | P149: 0
A150: Q79 | B150: RDE | C150: EAST SUFFOLK AND NORTH ESSEX NHS FOUNDATION TRUST | D150: RDEXXX | E150: Non-hospital site - RDEXXX | F150: 0 | G150: 1 | H150: 0 | I150: NA | J150: NA | K150: 0 | L150: 0 | M150: 0 | N150: 0 | O150: 0 | P150: 0
A151: Q79 | B151: RGP | C151: JAMES PAGET UNIVERSITY HOSPITALS NHS FOUNDATION TRUST | D151: RGP75 | E151: James Paget University Hospital - RGP75 | F151: 8 | G151: 142 | H151: 0.05633802817 | I151: 1 | J151: 0 | K151: 8 | L151: 0 | M151: 0 | N151: 0 | O151: 0 | P151: 0
A152: Q79 | B152: RQ8 | C152: MID ESSEX HOSPITAL SERVICES NHS TRUST | D152: RQ8L0 | E152: Broomfield Hospital - RQ8L0 | F152: 48 | G152: 244 | H152: 0.1967213115 | I152: 0.8958333333 | J152: 0.08333333333 | K152: 38 | L152: 5 | M152: 1 | N152: 3 | O152: 1 | P152: 0
A153: Q79 | B153: RM1 | C153: NORFOLK AND NORWICH UNIVERSITY HOSPITALS NHS FOUNDATION TRUST | D153: RM102 | E153: Norfolk and Norwich University Hospital - RM102 | F153: 21 | G153: 387 | H153: 0.05426356589 | I153: 1 | J153: 0 | K153: 21 | L153: 0 | M153: 0 | N153: 0 | O153: 0 | P153: 0
A154: Q79 | B154: RGN | C154: NORTH WEST ANGLIA NHS FOUNDATION TRUST | D154: RGN90 | E154: Hinchingbrooke Hospital - RGN90 | F154: 24 | G154: 144 | H154: 0.1666666667 | I154: 0.9583333333 | J154: 0 | K154: 21 | L154: 2 | M154: 0 | N154: 0 | O154: 0 | P154: 1
A155: Q79 | B155: RGN | C155: NORTH WEST ANGLIA NHS FOUNDATION TRUST | D155: RGN80 | E155: Peterborough City Hospital - RGN80 | F155: 100 | G155: 357 | H155: 0.2801120448 | I155: 0.98 | J155: 0 | K155: 91 | L155: 7 | M155: 1 | N155: 0 | O155: 0 | P155: 1
A156: Q79 | B156: RAJ | C156: SOUTHEND UNIVERSITY HOSPITAL NHS FOUNDATION TRUST | D156: RAJ01 | E156: Southend Hospital - RAJ01 | F156: 25 | G156: 251 | H156: 0.09960159363 | I156: 0.88 | J156: 0.12 | K156: 20 | L156: 2 | M156: 0 | N156: 0 | O156: 3 | P156: 0
A157: Q79 | B157: RQW | C157: THE PRINCESS ALEXANDRA HOSPITAL NHS TRUST | D157: RQWG0 | E157: Princess Alexandra Hospital - RQWG0 | F157: 191 | G157: 275 | H157: 0.6945454545 | I157: 0.9947643979 | J157: 0 | K157: 182 | L157: 8 | M157: 1 | N157: 0 | O157: 0 | P157: 0
A158: Q79 | B158: RCX | C158: THE QUEEN ELIZABETH HOSPITAL, KING'S LYNN, NHS FOUNDATION TRUST | D158: RCXXXX | E158: Non-hospital site - RCXXXX | F158: 3 | G158: 3 | H158: 1 | I158: * | J158: * | K158: * | L158: * | M158: * | N158: * | O158: * | P158: *
A159: Q79 | B159: RCX | C159: THE QUEEN ELIZABETH HOSPITAL, KING'S LYNN, NHS FOUNDATION TRUST | D159: RCX70 | E159: The Queen Elizabeth Hospital - RCX70 | F159: 34 | G159: 168 | H159: 0.2023809524 | I159: 1 | J159: 0 | K159: * | L159: * | M159: * | N159: * | O159: * | P159: *
A160: Q79 | B160: RGR | C160: WEST SUFFOLK NHS FOUNDATION TRUST | D160: RGR50 | E160: West Suffolk Hospital - RGR50 | F160: 0 | G160: 164 | H160: 0 | I160: NA | J160: NA | K160: 0 | L160: 0 | M160: 0 | N160: 0 | O160: 0 | P160: 0
A161: Q83 | B161: RMC | C161: BOLTON NHS FOUNDATION TRUST | D161: RMC01 | E161: Royal Bolton Hospital - RMC01 | F161: 148 | G161: 473 | H161: 0.3128964059 | I161: 0.9256756757 | J161: 0.0472972973 | K161: 117 | L161: 20 | M161: 4 | N161: 4 | O161: 3 | P161: 0
A162: Q83 | B162: RY2 | C162: BRIDGEWATER COMMUNITY HEALTHCARE NHS FOUNDATION TRUST | D162: RY28P | E162: Health Care Resource Centre - RY28P | F162: 0 | G162: 0 | H162: NA | I162: NA | J162: NA | K162: 0 | L162: 0 | M162: 0 | N162: 0 | O162: 0 | P162: 0
A163: Q83 | B163: RY2 | C163: BRIDGEWATER COMMUNITY HEALTHCARE NHS FOUNDATION TRUST | D163: RY2XXX | E163: Non-hospital site - RY2XXX | F163: 0 | G163: 0 | H163: NA | I163: NA | J163: NA | K163: 0 | L163: 0 | M163: 0 | N163: 0 | O163: 0 | P163: 0
A164: Q83 | B164: R0A | C164: MANCHESTER UNIVERSITY NHS FOUNDATION TRUST | D164: R0AXXX | E164: Non-hospital site - R0AXXX | F164: 0 | G164: 7 | H164: 0 | I164: NA | J164: NA | K164: 0 | L164: 0 | M164: 0 | N164: 0 | O164: 0 | P164: 0
A165: Q83 | B165: R0A | C165: MANCHESTER UNIVERSITY NHS FOUNDATION TRUST | D165: R0A05 | E165: St Mary's Hospital - R0A05 | F165: 112 | G165: 906 | H165: 0.1236203091 | I165: 1 | J165: 0 | K165: 102 | L165: 10 | M165: 0 | N165: 0 | O165: 0 | P165: 0
A166: Q83 | B166: RW6 | C166: PENNINE ACUTE HOSPITALS NHS TRUST | D166: RW6XXX | E166: Non-hospital site - RW6XXX | F166: 0 | G166: 17 | H166: 0 | I166: NA | J166: NA | K166: 0 | L166: 0 | M166: 0 | N166: 0 | O166: 0 | P166: 0
A167: Q83 | B167: RW6 | C167: PENNINE ACUTE HOSPITALS NHS TRUST | D167: RW602 | E167: North Manchester General Hospital - RW602 | F167: 39 | G167: 290 | H167: 0.1344827586 | I167: 0.8205128205 | J167: 0.07692307692 | K167: 29 | L167: 3 | M167: 4 | N167: 0 | O167: 3 | P167: 0
A168: Q83 | B168: RW6 | C168: PENNINE ACUTE HOSPITALS NHS TRUST | D168: RW603 | E168: Royal Oldham Hospital - RW603 | F168: 37 | G168: 345 | H168: 0.1072463768 | I168: 0.9189189189 | J168: 0.02702702703 | K168: 30 | L168: 4 | M168: 2 | N168: 0 | O168: 1 | P168: 0
A169: Q83 | B169: RWJ | C169: STOCKPORT NHS FOUNDATION TRUST | D169: RWJXXX | E169: Non-hospital site - RWJXXX | F169: 2 | G169: 2 | H169: 1 | I169: * | J169: * | K169: * | L169: * | M169: * | N169: * | O169: * | P169: *
A170: Q83 | B170: RWJ | C170: STOCKPORT NHS FOUNDATION TRUST | D170: RWJ09 | E170: Stepping Hill Hospital - RWJ09 | F170: 101 | G170: 256 | H170: 0.39453125 | I170: 1 | J170: 0 | K170: * | L170: * | M170: * | N170: * | O170: * | P170: *
A171: Q83 | B171: RMP | C171: TAMESIDE AND GLOSSOP INTEGRATED CARE NHS FOUNDATION TRUST | D171: RMP01 | E171: Tameside General Hospital - RMP01 | F171: 76 | G171: 168 | H171: 0.4523809524 | I171: 0.9868421053 | J171: 0 | K171: 64 | L171: 11 | M171: 1 | N171: 0 | O171: 0 | P171: 0
A172: Q83 | B172: RRF | C172: WRIGHTINGTON, WIGAN AND LEIGH NHS FOUNDATION TRUST | D172: RRF02 | E172: Royal Albert Edward Infirmary - RRF02 | F172: 44 | G172: 170 | H172: 0.2588235294 | I172: 0.9772727273 | J172: 0 | K172: 39 | L172: 4 | M172: 1 | N172: 0 | O172: 0 | P172: 0
A173: Q84 | B173: RXL | C173: BLACKPOOL TEACHING HOSPITALS NHS FOUNDATION TRUST | D173: RXL01 | E173: Blackpool Victoria Hospital - RXL01 | F173: 36 | G173: 195 | H173: 0.1846153846 | I173: 1 | J173: 0 | K173: 28 | L173: 8 | M173: 0 | N173: 0 | O173: 0 | P173: 0
A174: Q84 | B174: RXR | C174: EAST LANCASHIRE HOSPITALS NHS TRUST | D174: RXR20 | E174: Royal Blackburn Hospital - RXR20 | F174: 89 | G174: 417 | H174: 0.2134292566 | I174: 0.9775280899 | J174: 0.02247191011 | K174: 85 | L174: 2 | M174: 0 | N174: 0 | O174: 2 | P174: 0
A175: Q84 | B175: RXN | C175: LANCASHIRE TEACHING HOSPITALS NHS FOUNDATION TRUST | D175: RXN01 | E175: Chorley and South Ribble Hospital - RXN01 | F175: 1 | G175: 10 | H175: 0.1 | I175: * | J175: * | K175: * | L175: * | M175: * | N175: * | O175: * | P175: *
A176: Q84 | B176: RXN | C176: LANCASHIRE TEACHING HOSPITALS NHS FOUNDATION TRUST | D176: RXN02 | E176: Royal Preston Hospital - RXN02 | F176: 38 | G176: 252 | H176: 0.1507936508 | I176: 0.9473684211 | J176: 0.02631578947 | K176: * | L176: * | M176: * | N176: * | O176: * | P176: *
A177: Q84 | B177: RTX | C177: UNIVERSITY HOSPITALS OF MORECAMBE BAY NHS FOUNDATION TRUST | D177: RTXBU | E177: Furness General Hospital - RTXBU | F177: 58 | G177: 55 | H177: 1.054545455 | I177: 0.9310344828 | J177: 0.03448275862 | K177: 48 | L177: 6 | M177: 1 | N177: 2 | O177: 0 | P177: 1
A178: Q84 | B178: RTX | C178: UNIVERSITY HOSPITALS OF MORECAMBE BAY NHS FOUNDATION TRUST | D178: RTX02 | E178: Royal Lancaster Infirmary - RTX02 | F178: 45 | G178: 114 | H178: 0.3947368421 | I178: 0.9111111111 | J178: 0.04444444444 | K178: * | L178: * | M178: * | N178: * | O178: * | P178: *
A179: Q84 | B179: RTX | C179: UNIVERSITY HOSPITALS OF MORECAMBE BAY NHS FOUNDATION TRUST | D179: RTXBW | E179: Westmorland General Hospital - RTXBW | F179: 4 | G179: 7 | H179: 0.5714285714 | I179: * | J179: * | K179: * | L179: * | M179: * | N179: * | O179: * | P179: *
A180: Q85 | B180: RBD | C180: DORSET COUNTY HOSPITAL NHS FOUNDATION TRUST | D180: RBD01 | E180: Dorset County Hospital - RBD01 | F180: 38 | G180: 115 | H180: 0.3304347826 | I180: 0.9736842105 | J180: 0 | K180: 36 | L180: 1 | M180: 0 | N180: 0 | O180: 0 | P180: 1
A181: Q85 | B181: RBZ | C181: NORTHERN DEVON HEALTHCARE NHS TRUST | D181: RBZ12 | E181: North Devon District Hospital - RBZ12 | F181: 48 | G181: 95 | H181: 0.5052631579 | I181: 1 | J181: 0 | K181: 44 | L181: 4 | M181: 0 | N181: 0 | O181: 0 | P181: 0
A182: Q85 | B182: RD3 | C182: POOLE HOSPITAL NHS FOUNDATION TRUST | D182: RD304 | E182: Poole General Hospital NHS Trust HQ - RD304 | F182: 82 | G182: 286 | H182: 0.2867132867 | I182: 1 | J182: 0 | K182: 80 | L182: 2 | M182: 0 | N182: 0 | O182: 0 | P182: 0
A183: Q85 | B183: REF | C183: ROYAL CORNWALL HOSPITALS NHS TRUST | D183: REFXXX | E183: Non-hospital site - REFXXX | F183: 2 | G183: 10 | H183: 0.2 | I183: * | J183: * | K183: * | L183: * | M183: * | N183: * | O183: * | P183: *
A184: Q85 | B184: REF | C184: ROYAL CORNWALL HOSPITALS NHS TRUST | D184: REF12 | E184: Royal Cornwall Hospital (Treliske) - REF12 | F184: 49 | G184: 291 | H184: 0.1683848797 | I184: 1 | J184: 0 | K184: * | L184: * | M184: * | N184: * | O184: * | P184: *
A185: Q85 | B185: RH8 | C185: ROYAL DEVON AND EXETER NHS FOUNDATION TRUST | D185: RH854 | E185: Honiton Hospital - RH 854 | F185: 0 | G185: 0 | H185: NA | I185: NA | J185: NA | K185: 0 | L185: 0 | M185: 0 | N185: 0 | O185: 0 | P185: 0
A186: Q85 | B186: RH8 | C186: ROYAL DEVON AND EXETER NHS FOUNDATION TRUST | D186: RH833 | E186: Okehampton Community Hospital - RH833 | F186: 0 | G186: 0 | H186: NA | I186: NA | J186: NA | K186: 0 | L186: 0 | M186: 0 | N186: 0 | O186: 0 | P186: 0
A187: Q85 | B187: RH8 | C187: ROYAL DEVON AND EXETER NHS FOUNDATION TRUST | D187: RH801 | E187: Royal Devon and Exeter Hospital (Wonford) - RH801 | F187: 0 | G187: 301 | H187: 0 | I187: NA | J187: NA | K187: 0 | L187: 0 | M187: 0 | N187: 0 | O187: 0 | P187: 0
A188: Q85 | B188: RH8 | C188: ROYAL DEVON AND EXETER NHS FOUNDATION TRUST | D188: RH853 | E188: Tiverton and District Hospital - RH853 | F188: 0 | G188: 0 | H188: NA | I188: NA | J188: NA | K188: 0 | L188: 0 | M188: 0 | N188: 0 | O188: 0 | P188: 0
A189: Q85 | B189: RBA | C189: TAUNTON AND SOMERSET NHS FOUNDATION TRUST | D189: RBAC3 | E189: Bridgwater Hospital - RBAC3 | F189: 1 | G189: 2 | H189: 0.5 | I189: * | J189: * | K189: * | L189: * | M189: * | N189: * | O189: * | P189: *
A190: Q85 | B190: RBA | C190: TAUNTON AND SOMERSET NHS FOUNDATION TRUST | D190: RBA11 | E190: Musgrove Park Hospital - RBA11 | F190: 62 | G190: 201 | H190: 0.3084577114 | I190: 1 | J190: 0 | K190: * | L190: * | M190: * | N190: * | O190: * | P190: *
A191: Q85 | B191: RBA | C191: TAUNTON AND SOMERSET NHS FOUNDATION TRUST | D191: RBAXXX | E191: Non-hospital site - RBAXXX | F191: 0 | G191: 7 | H191: 0 | I191: NA | J191: NA | K191: 0 | L191: 0 | M191: 0 | N191: 0 | O191: 0 | P191: 0
A192: Q85 | B192: RDZ | C192: THE ROYAL BOURNEMOUTH AND CHRISTCHURCH HOSPITALS NHS FOUNDATION TRUST | D192: RDZ20 | E192: Royal Bournemouth General Hospital - RDZ20 | F192: 7 | G192: 18 | H192: 0.3888888889 | I192: 1 | J192: 0 | K192: 7 | L192: 0 | M192: 0 | N192: 0 | O192: 0 | P192: 0
A193: Q85 | B193: RA9 | C193: TORBAY AND SOUTH DEVON NHS FOUNDATION TRUST | D193: RA957 | E193: Newton Abbot Community Hospital - RA957 | F193: 0 | G193: 3 | H193: 0 | I193: NA | J193: NA | K193: 0 | L193: 0 | M193: 0 | N193: 0 | O193: 0 | P193: 0
A194: Q85 | B194: RA9 | C194: TORBAY AND SOUTH DEVON NHS FOUNDATION TRUST | D194: RA9XXX | E194: Non-hospital site - RA9XXX | F194: 0 | G194: 7 | H194: 0 | I194: NA | J194: NA | K194: 0 | L194: 0 | M194: 0 | N194: 0 | O194: 0 | P194: 0
A195: Q85 | B195: RA9 | C195: TORBAY AND SOUTH DEVON NHS FOUNDATION TRUST | D195: RA901 | E195: Torbay Hospital - RA901 | F195: 6 | G195: 163 | H195: 0.03680981595 | I195: 1 | J195: 0 | K195: 6 | L195: 0 | M195: 0 | N195: 0 | O195: 0 | P195: 0
A196: Q85 | B196: RK9 | C196: UNIVERSITY HOSPITALS PLYMOUTH NHS TRUST | D196: RK950 | E196: Derriford Hospital - RK950 | F196: 101 | G196: 267 | H196: 0.3782771536 | I196: 0.9900990099 | J196: 0 | K196: * | L196: * | M196: * | N196: * | O196: * | P196: *
A197: Q85 | B197: RK9 | C197: UNIVERSITY HOSPITALS PLYMOUTH NHS TRUST | D197: RK9XXX | E197: Non-hospital site - RK9XXX | F197: 3 | G197: 14 | H197: 0.2142857143 | I197: * | J197: * | K197: * | L197: * | M197: * | N197: * | O197: * | P197: *
A198: Q85 | B198: RA4 | C198: YEOVIL DISTRICT HOSPITAL NHS FOUNDATION TRUST | D198: RA430 | E198: Yeovil District Hospital - RA430 | F198: 45 | G198: 101 | H198: 0.4455445545 | I198: 1 | J198: 0 | K198: 40 | L198: 5 | M198: 0 | N198: 0 | O198: 0 | P198: 0
A199: Q86 | B199: RTE | C199: GLOUCESTERSHIRE HOSPITALS NHS FOUNDATION TRUST | D199: RTE01 | E199: Cheltenham General Hospital - RTE01 | F199: 10 | G199: 19 | H199: 0.5263157895 | I199: 0.9 | J199: 0.1 | K199: * | L199: * | M199: * | N199: * | O199: * | P199: *
A200: Q86 | B200: RTE | C200: GLOUCESTERSHIRE HOSPITALS NHS FOUNDATION TRUST | D200: RTE03 | E200: Gloucestershire Royal Hospital - RTE03 | F200: 33 | G200: 134 | H200: 0.2462686567 | I200: 0.9393939394 | J200: 0 | K200: 27 | L200: 4 | M200: 0 | N200: 0 | O200: 0 | P200: 2
A201: Q86 | B201: RTE | C201: GLOUCESTERSHIRE HOSPITALS NHS FOUNDATION TRUST | D201: RTEXXX | E201: Non-hospital site - RTEXXX | F201: 0 | G201: 4 | H201: 0 | I201: NA | J201: NA | K201: 0 | L201: 0 | M201: 0 | N201: 0 | O201: 0 | P201: 0
A202: Q86 | B202: RTE | C202: GLOUCESTERSHIRE HOSPITALS NHS FOUNDATION TRUST | D202: RTE27 | E202: Stroud Maternity Hospital - RTE27 | F202: 3 | G202: 13 | H202: 0.2307692308 | I202: * | J202: * | K202: * | L202: * | M202: * | N202: * | O202: * | P202: *
A203: Q86 | B203: RN3 | C203: GREAT WESTERN HOSPITALS NHS FOUNDATION TRUST | D203: RN3XXX | E203: Non-hospital site - RN3XXX | F203: 0 | G203: 5 | H203: 0 | I203: NA | J203: NA | K203: 0 | L203: 0 | M203: 0 | N203: 0 | O203: 0 | P203: 0
A204: Q86 | B204: RN3 | C204: GREAT WESTERN HOSPITALS NHS FOUNDATION TRUST | D204: RN325 | E204: The Great Western Hospital - RN325 | F204: 10 | G204: 320 | H204: 0.03125 | I204: 0.9 | J204: 0.1 | K204: 8 | L204: 1 | M204: 0 | N204: 1 | O204: 0 | P204: 0
A205: Q86 | B205: RVJ | C205: NORTH BRISTOL NHS TRUST | D205: RVJXXX | E205: Non-hospital site - RVJXXX | F205: 0 | G205: 2 | H205: 0 | I205: NA | J205: NA | K205: 0 | L205: 0 | M205: 0 | N205: 0 | O205: 0 | P205: 0
A206: Q86 | B206: RVJ | C206: NORTH BRISTOL NHS TRUST | D206: RVJ01 | E206: Southmead Hospital - RVJ01 | F206: 83 | G206: 451 | H206: 0.1840354767 | I206: 0.9759036145 | J206: 0.01204819277 | K206: 74 | L206: 7 | M206: 1 | N206: 1 | O206: 0 | P206: 0
A207: Q86 | B207: RD1 | C207: ROYAL UNITED HOSPITALS BATH NHS FOUNDATION TRUST | D207: RD102 | E207: Chippenham Community Hospital -RD102 | F207: 10 | G207: 15 | H207: 0.6666666667 | I207: 1 | J207: 0 | K207: 10 | L207: 0 | M207: 0 | N207: 0 | O207: 0 | P207: 0
... 49 more rows

Sheet Region (Local Office) Q3
B6: Sort data by:
A9: Region (LO) Code | B9: Region (Local Office) | C9: Total Responses | D9: Percentage Recommended | E9: Percentage Not Recommended | F9: Breakdown of Responses
F10: Extremely Likely | G10: Likely | H10: Neither | I10: Unlikely | J10: Extremely Unlikely | K10: Don't Know
B11: England (including Independent Sector providers) | C11: 11096 | D11: 0.9507930786 | E11: 0.01739365537 | F11: 8304 | G11: 2246 | H11: 272 | I11: 101 | J11: 92 | K11: 81
B12: England (excluding Independent Sector providers) | C12: 11096 | D12: 0.9507930786 | E12: 0.01739365537 | F12: 8304 | G12: 2246 | H12: 272 | I12: 101 | J12: 92 | K12: 81
B13: Selection (excluding suppressed data) | C13: =SUBTOTAL(9,C14:C40) -> 11096 | D13: =IFERROR((F13+G13)/SUM(F13:K13), "-") -> 0.9507930786 | E13: =IFERROR((I13+J13)/SUM(F13:K13), "-") -> 0.01739365537 | F13: =SUBTOTAL(9,F14:F40) -> 8304 | G13: 2246 | H13: 272 | I13: 101 | J13: 92 | K13: 81
A14: Q72 | B14: NHS England Yorkshire & Humber | C14: 1071 | D14: 0.9785247432 | E14: 0.01120448179 | F14: 834 | G14: 214 | H14: 11 | I14: 5 | J14: 7 | K14: 0
A15: Q74 | B15: NHS England Cumbria & North East | C15: 445 | D15: 0.9775280899 | E15: 0.004494382022 | F15: 387 | G15: 48 | H15: 7 | I15: 0 | J15: 2 | K15: 1
A16: Q75 | B16: NHS England Cheshire & Merseyside | C16: 435 | D16: 0.9586206897 | E16: 0.01609195402 | F16: 363 | G16: 54 | H16: 8 | I16: 0 | J16: 7 | K16: 3
A17: Q83 | B17: NHS England Greater Manchester | C17: 674 | D17: 0.96884273 | E17: 0.0178041543 | F17: 572 | G17: 81 | H17: 9 | I17: 5 | J17: 7 | K17: 0
A18: Q84 | B18: NHS England Lancashire | C18: 194 | D18: 0.9690721649 | E18: 0.01030927835 | F18: 162 | G18: 26 | H18: 4 | I18: 2 | J18: 0 | K18: 0
A19: Q76 | B19: NHS England North Midlands | C19: 531 | D19: 0.9679849341 | E19: 0.0131826742 | F19: 402 | G19: 112 | H19: 9 | I19: 6 | J19: 1 | K19: 1
A20: Q77 | B20: NHS England West Midlands | C20: 732 | D20: 0.9535519126 | E20: 0.01639344262 | F20: 568 | G20: 130 | H20: 14 | I20: 6 | J20: 6 | K20: 8
A21: Q78 | B21: NHS England Central Midlands | C21: 1174 | D21: 0.9233390119 | E21: 0.02385008518 | F21: 761 | G21: 323 | H21: 48 | I21: 15 | J21: 13 | K21: 14
A22: Q79 | B22: NHS England East | C22: 1162 | D22: 0.9569707401 | E22: 0.01032702238 | F22: 899 | G22: 213 | H22: 28 | I22: 6 | J22: 6 | K22: 10
A23: Q85 | B23: NHS England South West (South West South) | C23: 448 | D23: 0.9665178571 | E23: 0.004464285714 | F23: 341 | G23: 92 | H23: 13 | I23: 2 | J23: 0 | K23: 0
A24: Q86 | B24: NHS England South West (South West North) | C24: 281 | D24: 0.9430604982 | E24: 0.02491103203 | F24: 237 | G24: 28 | H24: 9 | I24: 5 | J24: 2 | K24: 0
A25: Q87 | B25: NHS England South East (Hampshire, Isle Of Wight & Thames Valley) | C25: 855 | D25: 0.9333333333 | E25: 0.02222222222 | F25: 650 | G25: 148 | H25: 29 | I25: 14 | J25: 5 | K25: 9
A26: Q88 | B26: NHS England South East (Kent, Surrey & Sussex) | C26: 870 | D26: 0.975862069 | E26: 0.01264367816 | F26: 737 | G26: 112 | H26: 7 | I26: 8 | J26: 3 | K26: 3
A27: Q71 | B27: NHS England London | C27: 2224 | D27: 0.9244604317 | E27: 0.02697841727 | F27: 1391 | G27: 665 | H27: 76 | I27: 27 | J27: 33 | K27: 32
A28: zIS1 | B28: Independent Sector Provider | C28: 0 | D28: NA | E28: NA | F28: 0 | G28: 0 | H28: 0 | I28: 0 | J28: 0 | K28: 0

Sheet Trusts Q3
B6: Sort data by:
A9: Region (LO) Code | B9: Trust Code | C9: Trust Name | D9: Total Responses | E9: Percentage Recommended | F9: Percentage Not Recommended | G9: Breakdown of Responses | M9: Mode of Collection
G10: Extremely Likely | H10: Likely | I10: Neither | J10: Unlikely | K10: Extremely Unlikely | L10: Don't Know | M10: SMS/Text / Smartphone App | N10: Electronic tablet/kiosk at point of discharge | O10: Paper / postcard at point of discharge | P10: Paper survey sent to the patients home | Q10: Telephone survey once patient is home | R10: Online survey once patient is home | S10: Other
C11: England (including Independent Sector providers) | D11: 11096 | E11: 0.9507930786 | F11: 0.01739365537 | G11: 8304 | H11: 2246 | I11: 272 | J11: 101 | K11: 92 | L11: 81 | M11: 924 | N11: 3193 | O11: 6339 | P11: 153 | Q11: 20 | R11: 263 | S11: 204
C12: England (excluding Independent Sector providers) | D12: 11096 | E12: 0.9507930786 | F12: 0.01739365537 | G12: 8304 | H12: 2246 | I12: 272 | J12: 101 | K12: 92 | L12: 81 | M12: 924 | N12: 3193 | O12: 6339 | P12: 153 | Q12: 20 | R12: 263 | S12: 204
C13: Selection (excluding suppressed data) | D13: =SUBTOTAL(9,D14:D299) -> 11096 | E13: =IFERROR((G13+H13)/SUM(G13:L13), "-") -> 0.9507586082 | F13: =IFERROR((J13+K13)/SUM(G13:L13), "-") -> 0.0173525938 | G13: =SUBTOTAL(9,G14:G299) -> 8238 | H13: 2227 | I13: 271 | J13: 100 | K13: 91 | L13: 80 | M13: 924 | N13: 3121 | O13: 6322 | P13: 153 | Q13: 20 | R13: 263 | S13: 204
A14: Q71 | B14: RRV | C14: UNIVERSITY COLLEGE LONDON HOSPITALS NHS FOUNDATION TRUST | D14: 28 | E14: 0.9642857143 | F14: 0 | G14: 22 | H14: 5 | I14: 1 | J14: 0 | K14: 0 | L14: 0 | M14: 0 | N14: 0 | O14: 28 | P14: 0 | Q14: 0 | R14: 0 | S14: 0
A15: Q71 | B15: R1H | C15: BARTS HEALTH NHS TRUST | D15: 30 | E15: 0.9333333333 | F15: 0.06666666667 | G15: 15 | H15: 13 | I15: 0 | J15: 0 | K15: 2 | L15: 0 | M15: 1 | N15: 0 | O15: 13 | P15: 0 | Q15: 0 | R15: 16 | S15: 0
A16: Q71 | B16: RJ6 | C16: CROYDON HEALTH SERVICES NHS TRUST | D16: 30 | E16: 0.8 | F16: 0 | G16: 20 | H16: 4 | I16: 5 | J16: 0 | K16: 0 | L16: 1 | M16: 4 | N16: 0 | O16: 26 | P16: 0 | Q16: 0 | R16: 0 | S16: 0
A17: Q71 | B17: RAX | C17: KINGSTON HOSPITAL NHS FOUNDATION TRUST | D17: 36 | E17: 0.9444444444 | F17: 0 | G17: 28 | H17: 6 | I17: 2 | J17: 0 | K17: 0 | L17: 0 | M17: 0 | N17: 36 | O17: 0 | P17: 0 | Q17: 0 | R17: 0 | S17: 0
A18: Q71 | B18: RAL | C18: ROYAL FREE LONDON NHS FOUNDATION TRUST | D18: 53 | E18: 0.9056603774 | F18: 0.03773584906 | G18: 38 | H18: 10 | I18: 3 | J18: 2 | K18: 0 | L18: 0 | M18: 0 | N18: 0 | O18: 53 | P18: 0 | Q18: 0 | R18: 0 | S18: 0
A19: Q71 | B19: RVR | C19: EPSOM AND ST HELIER UNIVERSITY HOSPITALS NHS TRUST | D19: 78 | E19: 0.9871794872 | F19: 0 | G19: 56 | H19: 21 | I19: 1 | J19: 0 | K19: 0 | L19: 0 | M19: 0 | N19: 0 | O19: 77 | P19: 0 | Q19: 0 | R19: 1 | S19: 0
A20: Q71 | B20: RJ7 | C20: ST GEORGE'S UNIVERSITY HOSPITALS NHS FOUNDATION TRUST | D20: 92 | E20: 0.9565217391 | F20: 0.01086956522 | G20: 76 | H20: 12 | I20: 2 | J20: 0 | K20: 1 | L20: 1 | M20: 0 | N20: 92 | O20: 0 | P20: 0 | Q20: 0 | R20: 0 | S20: 0
A21: Q71 | B21: RAS | C21: THE HILLINGDON HOSPITALS NHS FOUNDATION TRUST | D21: 109 | E21: 0.9449541284 | F21: 0.02752293578 | G21: 71 | H21: 32 | I21: 3 | J21: 1 | K21: 2 | L21: 0 | M21: 0 | N21: 0 | O21: 109 | P21: 0 | Q21: 0 | R21: 0 | S21: 0
A22: Q71 | B22: RF4 | C22: BARKING, HAVERING AND REDBRIDGE UNIVERSITY HOSPITALS NHS TRUST | D22: 112 | E22: 0.9285714286 | F22: 0.01785714286 | G22: 71 | H22: 33 | I22: 4 | J22: 0 | K22: 2 | L22: 2 | M22: 0 | N22: 20 | O22: 92 | P22: 0 | Q22: 0 | R22: 0 | S22: 0
A23: Q71 | B23: RAP | C23: NORTH MIDDLESEX UNIVERSITY HOSPITAL NHS TRUST | D23: 116 | E23: 0.9051724138 | F23: 0.04310344828 | G23: 83 | H23: 22 | I23: 6 | J23: 1 | K23: 4 | L23: 0 | M23: 0 | N23: 116 | O23: 0 | P23: 0 | Q23: 0 | R23: 0 | S23: 0
A24: Q71 | B24: R1K | C24: LONDON NORTH WEST UNIVERSITY HEALTHCARE NHS TRUST | D24: 140 | E24: 0.9 | F24: 0.007142857143 | G24: 89 | H24: 37 | I24: 4 | J24: 1 | K24: 0 | L24: 9 | M24: 0 | N24: 0 | O24: 139 | P24: 0 | Q24: 0 | R24: 1 | S24: 0
A25: Q71 | B25: RQX | C25: HOMERTON UNIVERSITY HOSPITAL NHS FOUNDATION TRUST | D25: 145 | E25: 0.9310344828 | F25: 0.06206896552 | G25: 89 | H25: 46 | I25: 1 | J25: 6 | K25: 3 | L25: 0 | M25: 0 | N25: 143 | O25: 0 | P25: 0 | Q25: 0 | R25: 2 | S25: 0
A26: Q71 | B26: RJ1 | C26: GUY'S AND ST THOMAS' NHS FOUNDATION TRUST | D26: 151 | E26: 0.9006622517 | F26: 0.02649006623 | G26: 80 | H26: 56 | I26: 8 | J26: 4 | K26: 0 | L26: 3 | M26: 0 | N26: 0 | O26: 151 | P26: 0 | Q26: 0 | R26: 0 | S26: 0
A27: Q71 | B27: RKE | C27: WHITTINGTON HEALTH NHS TRUST | D27: 169 | E27: 0.9349112426 | F27: 0.03550295858 | G27: 88 | H27: 70 | I27: 4 | J27: 2 | K27: 4 | L27: 1 | M27: 0 | N27: 155 | O27: 0 | P27: 0 | Q27: 14 | R27: 0 | S27: 0
A28: Q71 | B28: RYJ | C28: IMPERIAL COLLEGE HEALTHCARE NHS TRUST | D28: 174 | E28: 0.8965517241 | F28: 0.05747126437 | G28: 85 | H28: 71 | I28: 5 | J28: 5 | K28: 5 | L28: 3 | M28: 0 | N28: 174 | O28: 0 | P28: 0 | Q28: 0 | R28: 0 | S28: 0
A29: Q71 | B29: RQM | C29: CHELSEA AND WESTMINSTER HOSPITAL NHS FOUNDATION TRUST | D29: 187 | E29: 0.9197860963 | F29: 0.04278074866 | G29: 137 | H29: 35 | I29: 6 | J29: 2 | K29: 6 | L29: 1 | M29: 152 | N29: 34 | O29: 0 | P29: 0 | Q29: 1 | R29: 0 | S29: 0
A30: Q71 | B30: RJ2 | C30: LEWISHAM AND GREENWICH NHS TRUST | D30: 221 | E30: 0.9230769231 | F30: 0.004524886878 | G30: 119 | H30: 85 | I30: 9 | J30: 1 | K30: 0 | L30: 7 | M30: 0 | N30: 0 | O30: 221 | P30: 0 | Q30: 0 | R30: 0 | S30: 0
A31: Q71 | B31: RJZ | C31: KING'S COLLEGE HOSPITAL NHS FOUNDATION TRUST | D31: 353 | E31: 0.9376770538 | F31: 0.01699716714 | G31: 224 | H31: 107 | I31: 12 | J31: 2 | K31: 4 | L31: 4 | M31: 0 | N31: 272 | O31: 0 | P31: 0 | Q31: 0 | R31: 81 | S31: 0
A32: Q72 | B32: RAE | C32: BRADFORD TEACHING HOSPITALS NHS FOUNDATION TRUST | D32: 0 | E32: NA | F32: NA | G32: 0 | H32: 0 | I32: 0 | J32: 0 | K32: 0 | L32: 0 | M32: 0 | N32: 0 | O32: 0 | P32: 0 | Q32: 0 | R32: 0 | S32: 0
A33: Q72 | B33: RCF | C33: AIREDALE NHS FOUNDATION TRUST | D33: 5 | E33: 0.8 | F33: 0.2 | G33: 4 | H33: 0 | I33: 0 | J33: 0 | K33: 1 | L33: 0 | M33: 0 | N33: 0 | O33: 4 | P33: 0 | Q33: 0 | R33: 1 | S33: 0
A34: Q72 | B34: RJL | C34: NORTHERN LINCOLNSHIRE AND GOOLE NHS FOUNDATION TRUST | D34: 12 | E34: 1 | F34: 0 | G34: 10 | H34: 2 | I34: 0 | J34: 0 | K34: 0 | L34: 0 | M34: 0 | N34: 0 | O34: 12 | P34: 0 | Q34: 0 | R34: 0 | S34: 0
A35: Q72 | B35: RFF | C35: BARNSLEY HOSPITAL NHS FOUNDATION TRUST | D35: 18 | E35: 1 | F35: 0 | G35: 14 | H35: 4 | I35: 0 | J35: 0 | K35: 0 | L35: 0 | M35: 0 | N35: 0 | O35: 18 | P35: 0 | Q35: 0 | R35: 0 | S35: 0
A36: Q72 | B36: RXF | C36: MID YORKSHIRE HOSPITALS NHS TRUST | D36: 38 | E36: 0.9736842105 | F36: 0 | G36: 28 | H36: 9 | I36: 1 | J36: 0 | K36: 0 | L36: 0 | M36: 0 | N36: 0 | O36: 38 | P36: 0 | Q36: 0 | R36: 0 | S36: 0
A37: Q72 | B37: RCD | C37: HARROGATE AND DISTRICT NHS FOUNDATION TRUST | D37: 56 | E37: 1 | F37: 0 | G37: 52 | H37: 4 | I37: 0 | J37: 0 | K37: 0 | L37: 0 | M37: 0 | N37: 0 | O37: 56 | P37: 0 | Q37: 0 | R37: 0 | S37: 0
A38: Q72 | B38: RWA | C38: HULL AND EAST YORKSHIRE HOSPITALS NHS TRUST | D38: 56 | E38: 0.9821428571 | F38: 0 | G38: 53 | H38: 2 | I38: 1 | J38: 0 | K38: 0 | L38: 0 | M38: 0 | N38: 0 | O38: 56 | P38: 0 | Q38: 0 | R38: 0 | S38: 0
A39: Q72 | B39: RFR | C39: THE ROTHERHAM NHS FOUNDATION TRUST | D39: 69 | E39: 1 | F39: 0 | G39: 53 | H39: 16 | I39: 0 | J39: 0 | K39: 0 | L39: 0 | M39: 0 | N39: 0 | O39: 69 | P39: 0 | Q39: 0 | R39: 0 | S39: 0
A40: Q72 | B40: RP5 | C40: DONCASTER AND BASSETLAW TEACHING HOSPITALS NHS FOUNDATION TRUST | D40: 74 | E40: 0.972972973 | F40: 0.01351351351 | G40: 36 | H40: 36 | I40: 1 | J40: 0 | K40: 1 | L40: 0 | M40: 0 | N40: 0 | O40: 74 | P40: 0 | Q40: 0 | R40: 0 | S40: 0
A41: Q72 | B41: RHQ | C41: SHEFFIELD TEACHING HOSPITALS NHS FOUNDATION TRUST | D41: 112 | E41: 1 | F41: 0 | G41: 85 | H41: 27 | I41: 0 | J41: 0 | K41: 0 | L41: 0 | M41: 0 | N41: 0 | O41: 111 | P41: 0 | Q41: 0 | R41: 1 | S41: 0
A42: Q72 | B42: RCB | C42: YORK TEACHING HOSPITAL NHS FOUNDATION TRUST | D42: 177 | E42: 0.9661016949 | F42: 0.01694915254 | G42: 135 | H42: 36 | I42: 3 | J42: 2 | K42: 1 | L42: 0 | M42: 0 | N42: 0 | O42: 177 | P42: 0 | Q42: 0 | R42: 0 | S42: 0
A43: Q72 | B43: RWY | C43: CALDERDALE AND HUDDERSFIELD NHS FOUNDATION TRUST | D43: 219 | E43: 0.9908675799 | F43: 0 | G43: 185 | H43: 32 | I43: 2 | J43: 0 | K43: 0 | L43: 0 | M43: 0 | N43: 219 | O43: 0 | P43: 0 | Q43: 0 | R43: 0 | S43: 0
A44: Q72 | B44: RR8 | C44: LEEDS TEACHING HOSPITALS NHS TRUST | D44: 235 | E44: 0.9574468085 | F44: 0.02978723404 | G44: 179 | H44: 46 | I44: 3 | J44: 3 | K44: 4 | L44: 0 | M44: 133 | N44: 0 | O44: 99 | P44: 0 | Q44: 3 | R44: 0 | S44: 0
A45: Q74 | B45: RTR | C45: SOUTH TEES HOSPITALS NHS FOUNDATION TRUST | D45: 2 | E45: * | F45: * | G45: * | H45: * | I45: * | J45: * | K45: * | L45: * | M45: * | N45: * | O45: * | P45: * | Q45: * | R45: * | S45: *
A46: Q74 | B46: RE9 | C46: SOUTH TYNESIDE NHS FOUNDATION TRUST | D46: 4 | E46: * | F46: * | G46: * | H46: * | I46: * | J46: * | K46: * | L46: * | M46: * | N46: * | O46: * | P46: * | Q46: * | R46: * | S46: *
A47: Q74 | B47: RLN | C47: CITY HOSPITALS SUNDERLAND NHS FOUNDATION TRUST | D47: 13 | E47: 1 | F47: 0 | G47: 12 | H47: 1 | I47: 0 | J47: 0 | K47: 0 | L47: 0 | M47: 0 | N47: 0 | O47: 13 | P47: 0 | Q47: 0 | R47: 0 | S47: 0
A48: Q74 | B48: RVW | C48: NORTH TEES AND HARTLEPOOL NHS FOUNDATION TRUST | D48: 50 | E48: 0.98 | F48: 0 | G48: 42 | H48: 7 | I48: 1 | J48: 0 | K48: 0 | L48: 0 | M48: 0 | N48: 0 | O48: 50 | P48: 0 | Q48: 0 | R48: 0 | S48: 0
A49: Q74 | B49: RNL | C49: NORTH CUMBRIA UNIVERSITY HOSPITALS NHS TRUST | D49: 51 | E49: 0.9607843137 | F49: 0 | G49: 47 | H49: 2 | I49: 2 | J49: 0 | K49: 0 | L49: 0 | M49: 0 | N49: 0 | O49: 39 | P49: 0 | Q49: 0 | R49: 0 | S49: 12
A50: Q74 | B50: RTF | C50: NORTHUMBRIA HEALTHCARE NHS FOUNDATION TRUST | D50: 54 | E50: 0.9444444444 | F50: 0 | G50: 49 | H50: 2 | I50: 3 | J50: 0 | K50: 0 | L50: 0 | M50: 0 | N50: 0 | O50: 54 | P50: 0 | Q50: 0 | R50: 0 | S50: 0
A51: Q74 | B51: RR7 | C51: GATESHEAD HEALTH NHS FOUNDATION TRUST | D51: 68 | E51: 1 | F51: 0 | G51: 64 | H51: 4 | I51: 0 | J51: 0 | K51: 0 | L51: 0 | M51: 0 | N51: 0 | O51: 68 | P51: 0 | Q51: 0 | R51: 0 | S51: 0
A52: Q74 | B52: RXP | C52: COUNTY DURHAM AND DARLINGTON NHS FOUNDATION TRUST | D52: 90 | E52: 0.9777777778 | F52: 0.01111111111 | G52: 70 | H52: 18 | I52: 1 | J52: 0 | K52: 1 | L52: 0 | M52: 0 | N52: 0 | O52: 90 | P52: 0 | Q52: 0 | R52: 0 | S52: 0
A53: Q74 | B53: RTD | C53: THE NEWCASTLE UPON TYNE HOSPITALS NHS FOUNDATION TRUST | D53: 113 | E53: 0.982300885 | F53: 0.008849557522 | G53: 98 | H53: 13 | I53: 0 | J53: 0 | K53: 1 | L53: 1 | M53: 0 | N53: 0 | O53: 113 | P53: 0 | Q53: 0 | R53: 0 | S53: 0
A54: Q75 | B54: RWW | C54: WARRINGTON AND HALTON HOSPITALS NHS FOUNDATION TRUST | D54: 0 | E54: NA | F54: NA | G54: 0 | H54: 0 | I54: 0 | J54: 0 | K54: 0 | L54: 0 | M54: 0 | N54: 0 | O54: 0 | P54: 0 | Q54: 0 | R54: 0 | S54: 0
A55: Q75 | B55: RBT | C55: MID CHESHIRE HOSPITALS NHS FOUNDATION TRUST | D55: 25 | E55: 0.96 | F55: 0 | G55: 22 | H55: 2 | I55: 1 | J55: 0 | K55: 0 | L55: 0 | M55: 0 | N55: 0 | O55: 25 | P55: 0 | Q55: 0 | R55: 0 | S55: 0
A56: Q75 | B56: RJN | C56: EAST CHESHIRE NHS TRUST | D56: 33 | E56: 0.9696969697 | F56: 0 | G56: 31 | H56: 1 | I56: 0 | J56: 0 | K56: 0 | L56: 1 | M56: 0 | N56: 0 | O56: 33 | P56: 0 | Q56: 0 | R56: 0 | S56: 0
A57: Q75 | B57: RVY | C57: SOUTHPORT AND ORMSKIRK HOSPITAL NHS TRUST | D57: 33 | E57: 0.9696969697 | F57: 0 | G57: 29 | H57: 3 | I57: 0 | J57: 0 | K57: 0 | L57: 1 | M57: 0 | N57: 14 | O57: 19 | P57: 0 | Q57: 0 | R57: 0 | S57: 0
A58: Q75 | B58: RBN | C58: ST HELENS AND KNOWSLEY TEACHING HOSPITALS NHS TRUST | D58: 51 | E58: 0.9803921569 | F58: 0 | G58: 45 | H58: 5 | I58: 0 | J58: 0 | K58: 0 | L58: 1 | M58: 0 | N58: 0 | O58: 51 | P58: 0 | Q58: 0 | R58: 0 | S58: 0
A59: Q75 | B59: RJR | C59: COUNTESS OF CHESTER HOSPITAL NHS FOUNDATION TRUST | D59: 76 | E59: 1 | F59: 0 | G59: 64 | H59: 12 | I59: 0 | J59: 0 | K59: 0 | L59: 0 | M59: 22 | N59: 0 | O59: 54 | P59: 0 | Q59: 0 | R59: 0 | S59: 0
A60: Q75 | B60: RBL | C60: WIRRAL UNIVERSITY TEACHING HOSPITAL NHS FOUNDATION TRUST | D60: 83 | E60: 0.9759036145 | F60: 0.01204819277 | G60: 70 | H60: 11 | I60: 1 | J60: 0 | K60: 1 | L60: 0 | M60: 0 | N60: 0 | O60: 83 | P60: 0 | Q60: 0 | R60: 0 | S60: 0
A61: Q75 | B61: REP | C61: LIVERPOOL WOMEN'S NHS FOUNDATION TRUST | D61: 134 | E61: 0.9104477612 | F61: 0.0447761194 | G61: 102 | H61: 20 | I61: 6 | J61: 0 | K61: 6 | L61: 0 | M61: 0 | N61: 0 | O61: 134 | P61: 0 | Q61: 0 | R61: 0 | S61: 0
A62: Q76 | B62: RK5 | C62: SHERWOOD FOREST HOSPITALS NHS FOUNDATION TRUST | D62: 2 | E62: * | F62: * | G62: * | H62: * | I62: * | J62: * | K62: * | L62: * | M62: * | N62: * | O62: * | P62: * | Q62: * | R62: * | S62: *
A63: Q76 | B63: RFS | C63: CHESTERFIELD ROYAL HOSPITAL NHS FOUNDATION TRUST | D63: 43 | E63: 1 | F63: 0 | G63: * | H63: * | I63: * | J63: * | K63: * | L63: * | M63: * | N63: * | O63: * | P63: * | Q63: * | R63: * | S63: *
A64: Q76 | B64: RJE | C64: UNIVERSITY HOSPITALS OF NORTH MIDLANDS NHS TRUST | D64: 58 | E64: 0.9655172414 | F64: 0.01724137931 | G64: 50 | H64: 6 | I64: 1 | J64: 1 | K64: 0 | L64: 0 | M64: 0 | N64: 0 | O64: 58 | P64: 0 | Q64: 0 | R64: 0 | S64: 0
A65: Q76 | B65: RXW | C65: SHREWSBURY AND TELFORD HOSPITAL NHS TRUST | D65: 73 | E65: 0.9863013699 | F65: 0.01369863014 | G65: 64 | H65: 8 | I65: 0 | J65: 1 | K65: 0 | L65: 0 | M65: 0 | N65: 0 | O65: 73 | P65: 0 | Q65: 0 | R65: 0 | S65: 0
A66: Q76 | B66: RTG | C66: UNIVERSITY HOSPITALS OF DERBY AND BURTON NHS FOUNDATION TRUST | D66: 150 | E66: 0.98 | F66: 0.01333333333 | G66: 117 | H66: 30 | I66: 1 | J66: 2 | K66: 0 | L66: 0 | M66: 0 | N66: 4 | O66: 146 | P66: 0 | Q66: 0 | R66: 0 | S66: 0
A67: Q76 | B67: RX1 | C67: NOTTINGHAM UNIVERSITY HOSPITALS NHS TRUST | D67: 205 | E67: 0.9463414634 | F67: 0.01463414634 | G67: 135 | H67: 59 | I67: 7 | J67: 2 | K67: 1 | L67: 1 | M67: 0 | N67: 205 | O67: 0 | P67: 0 | Q67: 0 | R67: 0 | S67: 0
A68: Q77 | B68: RXK | C68: SANDWELL AND WEST BIRMINGHAM HOSPITALS NHS TRUST | D68: 2 | E68: * | F68: * | G68: * | H68: * | I68: * | J68: * | K68: * | L68: * | M68: * | N68: * | O68: * | P68: * | Q68: * | R68: * | S68: *
A69: Q77 | B69: RLQ | C69: WYE VALLEY NHS TRUST | D69: 29 | E69: 0.8620689655 | F69: 0.06896551724 | G69: * | H69: * | I69: * | J69: * | K69: * | L69: * | M69: * | N69: * | O69: * | P69: * | Q69: * | R69: * | S69: *
A70: Q77 | B70: RJC | C70: SOUTH WARWICKSHIRE NHS FOUNDATION TRUST | D70: 33 | E70: 0.9393939394 | F70: 0.0303030303 | G70: 24 | H70: 7 | I70: 1 | J70: 1 | K70: 0 | L70: 0 | M70: 0 | N70: 0 | O70: 32 | P70: 0 | Q70: 0 | R70: 1 | S70: 0
A71: Q77 | B71: RBK | C71: WALSALL HEALTHCARE NHS TRUST | D71: 51 | E71: 0.8235294118 | F71: 0.03921568627 | G71: 26 | H71: 16 | I71: 4 | J71: 0 | K71: 2 | L71: 3 | M71: 0 | N71: 50 | O71: 1 | P71: 0 | Q71: 0 | R71: 0 | S71: 0
A72: Q77 | B72: RRK | C72: UNIVERSITY HOSPITALS BIRMINGHAM NHS FOUNDATION TRUST | D72: 60 | E72: 0.9666666667 | F72: 0 | G72: 47 | H72: 11 | I72: 1 | J72: 0 | K72: 0 | L72: 1 | M72: 0 | N72: 0 | O72: 60 | P72: 0 | Q72: 0 | R72: 0 | S72: 0
A73: Q77 | B73: RKB | C73: UNIVERSITY HOSPITALS COVENTRY AND WARWICKSHIRE NHS TRUST | D73: 63 | E73: 0.9206349206 | F73: 0.01587301587 | G73: 49 | H73: 9 | I73: 3 | J73: 0 | K73: 1 | L73: 1 | M73: 0 | N73: 9 | O73: 54 | P73: 0 | Q73: 0 | R73: 0 | S73: 0
A74: Q77 | B74: RL4 | C74: THE ROYAL WOLVERHAMPTON NHS TRUST | D74: 68 | E74: 0.9852941176 | F74: 0.01470588235 | G74: 52 | H74: 15 | I74: 0 | J74: 1 | K74: 0 | L74: 0 | M74: 1 | N74: 0 | O74: 67 | P74: 0 | Q74: 0 | R74: 0 | S74: 0
A75: Q77 | B75: RLT | C75: GEORGE ELIOT HOSPITAL NHS TRUST | D75: 82 | E75: 0.9390243902 | F75: 0.03658536585 | G75: 68 | H75: 9 | I75: 0 | J75: 2 | K75: 1 | L75: 2 | M75: 55 | N75: 0 | O75: 27 | P75: 0 | Q75: 0 | R75: 0 | S75: 0
A76: Q77 | B76: RQ3 | C76: BIRMINGHAM WOMEN'S AND CHILDREN'S NHS FOUNDATION TRUST | D76: 105 | E76: 0.9619047619 | F76: 0 | G76: 82 | H76: 19 | I76: 4 | J76: 0 | K76: 0 | L76: 0 | M76: 0 | N76: 0 | O76: 105 | P76: 0 | Q76: 0 | R76: 0 | S76: 0
A77: Q77 | B77: RNA | C77: THE DUDLEY GROUP NHS FOUNDATION TRUST | D77: 117 | E77: 1 | F77: 0 | G77: 99 | H77: 18 | I77: 0 | J77: 0 | K77: 0 | L77: 0 | M77: 0 | N77: 0 | O77: 117 | P77: 0 | Q77: 0 | R77: 0 | S77: 0
A78: Q77 | B78: RWP | C78: WORCESTERSHIRE ACUTE HOSPITALS NHS TRUST | D78: 122 | E78: 0.9836065574 | F78: 0.01639344262 | G78: 102 | H78: 18 | I78: 0 | J78: 1 | K78: 1 | L78: 0 | M78: 0 | N78: 0 | O78: 122 | P78: 0 | Q78: 0 | R78: 0 | S78: 0
A79: Q78 | B79: RNQ | C79: KETTERING GENERAL HOSPITAL NHS FOUNDATION TRUST | D79: 24 | E79: 1 | F79: 0 | G79: 22 | H79: 2 | I79: 0 | J79: 0 | K79: 0 | L79: 0 | M79: 0 | N79: 0 | O79: 24 | P79: 0 | Q79: 0 | R79: 0 | S79: 0
A80: Q78 | B80: RWD | C80: UNITED LINCOLNSHIRE HOSPITALS NHS TRUST | D80: 41 | E80: 0.9512195122 | F80: 0.0487804878 | G80: 32 | H80: 7 | I80: 0 | J80: 0 | K80: 2 | L80: 0 | M80: 0 | N80: 0 | O80: 41 | P80: 0 | Q80: 0 | R80: 0 | S80: 0
A81: Q78 | B81: RC1 | C81: BEDFORD HOSPITAL NHS TRUST | D81: 55 | E81: 0.9090909091 | F81: 0.03636363636 | G81: 43 | H81: 7 | I81: 2 | J81: 2 | K81: 0 | L81: 1 | M81: 25 | N81: 0 | O81: 30 | P81: 0 | Q81: 0 | R81: 0 | S81: 0
A82: Q78 | B82: RD8 | C82: MILTON KEYNES UNIVERSITY HOSPITAL NHS FOUNDATION TRUST | D82: 74 | E82: 0.9459459459 | F82: 0 | G82: 41 | H82: 29 | I82: 4 | J82: 0 | K82: 0 | L82: 0 | M82: 0 | N82: 0 | O82: 74 | P82: 0 | Q82: 0 | R82: 0 | S82: 0
A83: Q78 | B83: RWG | C83: WEST HERTFORDSHIRE HOSPITALS NHS TRUST | D83: 80 | E83: 0.9625 | F83: 0.0125 | G83: 60 | H83: 17 | I83: 2 | J83: 1 | K83: 0 | L83: 0 | M83: 0 | N83: 0 | O83: 79 | P83: 0 | Q83: 0 | R83: 0 | S83: 1
A84: Q78 | B84: RNS | C84: NORTHAMPTON GENERAL HOSPITAL NHS TRUST | D84: 108 | E84: 0.962962963 | F84: 0.01851851852 | G84: 91 | H84: 13 | I84: 2 | J84: 1 | K84: 1 | L84: 0 | M84: 0 | N84: 0 | O84: 0 | P84: 108 | Q84: 0 | R84: 0 | S84: 0
A85: Q78 | B85: RWH | C85: EAST AND NORTH HERTFORDSHIRE NHS TRUST | D85: 156 | E85: 0.9166666667 | F85: 0.01282051282 | G85: 86 | H85: 57 | I85: 10 | J85: 2 | K85: 0 | L85: 1 | M85: 0 | N85: 156 | O85: 0 | P85: 0 | Q85: 0 | R85: 0 | S85: 0
A86: Q78 | B86: RC9 | C86: LUTON AND DUNSTABLE UNIVERSITY HOSPITAL NHS FOUNDATION TRUST | D86: 208 | E86: 0.9567307692 | F86: 0.01442307692 | G86: 132 | H86: 67 | I86: 5 | J86: 0 | K86: 3 | L86: 1 | M86: 0 | N86: 208 | O86: 0 | P86: 0 | Q86: 0 | R86: 0 | S86: 0
A87: Q78 | B87: RWE | C87: UNIVERSITY HOSPITALS OF LEICESTER NHS TRUST | D87: 428 | E87: 0.8831775701 | F87: 0.03738317757 | G87: 254 | H87: 124 | I87: 23 | J87: 9 | K87: 7 | L87: 11 | M87: 0 | N87: 428 | O87: 0 | P87: 0 | Q87: 0 | R87: 0 | S87: 0
A88: Q79 | B88: RGR | C88: WEST SUFFOLK NHS FOUNDATION TRUST | D88: 7 | E88: 1 | F88: 0 | G88: 5 | H88: 2 | I88: 0 | J88: 0 | K88: 0 | L88: 0 | M88: 0 | N88: 7 | O88: 0 | P88: 0 | Q88: 0 | R88: 0 | S88: 0
A89: Q79 | B89: RGP | C89: JAMES PAGET UNIVERSITY HOSPITALS NHS FOUNDATION TRUST | D89: 17 | E89: 1 | F89: 0 | G89: 16 | H89: 1 | I89: 0 | J89: 0 | K89: 0 | L89: 0 | M89: 0 | N89: 0 | O89: 17 | P89: 0 | Q89: 0 | R89: 0 | S89: 0
A90: Q79 | B90: RM1 | C90: NORFOLK AND NORWICH UNIVERSITY HOSPITALS NHS FOUNDATION TRUST | D90: 46 | E90: 0.9782608696 | F90: 0 | G90: 43 | H90: 2 | I90: 1 | J90: 0 | K90: 0 | L90: 0 | M90: 0 | N90: 46 | O90: 0 | P90: 0 | Q90: 0 | R90: 0 | S90: 0
A91: Q79 | B91: RCX | C91: THE QUEEN ELIZABETH HOSPITAL, KING'S LYNN, NHS FOUNDATION TRUST | D91: 47 | E91: 0.9574468085 | F91: 0 | G91: 37 | H91: 8 | I91: 2 | J91: 0 | K91: 0 | L91: 0 | M91: 0 | N91: 47 | O91: 0 | P91: 0 | Q91: 0 | R91: 0 | S91: 0
A92: Q79 | B92: RQ8 | C92: MID ESSEX HOSPITAL SERVICES NHS TRUST | D92: 53 | E92: 0.9622641509 | F92: 0.01886792453 | G92: 47 | H92: 4 | I92: 0 | J92: 1 | K92: 0 | L92: 1 | M92: 53 | N92: 0 | O92: 0 | P92: 0 | Q92: 0 | R92: 0 | S92: 0
A93: Q79 | B93: RGN | C93: NORTH WEST ANGLIA NHS FOUNDATION TRUST | D93: 109 | E93: 0.9633027523 | F93: 0 | G93: 84 | H93: 21 | I93: 1 | J93: 0 | K93: 0 | L93: 3 | M93: 0 | N93: 0 | O93: 107 | P93: 0 | Q93: 0 | R93: 2 | S93: 0
A94: Q79 | B94: RAJ | C94: SOUTHEND UNIVERSITY HOSPITAL NHS FOUNDATION TRUST | D94: 120 | E94: 0.95 | F94: 0.025 | G94: 100 | H94: 14 | I94: 2 | J94: 1 | K94: 2 | L94: 1 | M94: 42 | N94: 0 | O94: 78 | P94: 0 | Q94: 0 | R94: 0 | S94: 0
A95: Q79 | B95: RDE | C95: EAST SUFFOLK AND NORTH ESSEX NHS FOUNDATION TRUST | D95: 128 | E95: 0.9609375 | F95: 0.0078125 | G95: 103 | H95: 20 | I95: 4 | J95: 1 | K95: 0 | L95: 0 | M95: 0 | N95: 104 | O95: 24 | P95: 0 | Q95: 0 | R95: 0 | S95: 0
A96: Q79 | B96: RQW | C96: THE PRINCESS ALEXANDRA HOSPITAL NHS TRUST | D96: 191 | E96: 0.9947643979 | F96: 0 | G96: 182 | H96: 8 | I96: 1 | J96: 0 | K96: 0 | L96: 0 | M96: 0 | N96: 0 | O96: 0 | P96: 0 | Q96: 0 | R96: 0 | S96: 191
A97: Q79 | B97: RDD | C97: BASILDON AND THURROCK UNIVERSITY HOSPITALS NHS FOUNDATION TRUST | D97: 216 | E97: 0.9675925926 | F97: 0.01388888889 | G97: 156 | H97: 53 | I97: 3 | J97: 0 | K97: 3 | L97: 1 | M97: 0 | N97: 0 | O97: 216 | P97: 0 | Q97: 0 | R97: 0 | S97: 0
A98: Q79 | B98: RGT | C98: CAMBRIDGE UNIVERSITY HOSPITALS NHS FOUNDATION TRUST | D98: 228 | E98: 0.9035087719 | F98: 0.01754385965 | G98: 126 | H98: 80 | I98: 14 | J98: 3 | K98: 1 | L98: 4 | M98: 0 | N98: 225 | O98: 1 | P98: 0 | Q98: 0 | R98: 2 | S98: 0
A99: Q83 | B99: RY2 | C99: BRIDGEWATER COMMUNITY HEALTHCARE NHS FOUNDATION TRUST | D99: 0 | E99: NA | F99: NA | G99: 0 | H99: 0 | I99: 0 | J99: 0 | K99: 0 | L99: 0 | M99: 0 | N99: 0 | O99: 0 | P99: 0 | Q99: 0 | R99: 0 | S99: 0
A100: Q83 | B100: RMP | C100: TAMESIDE AND GLOSSOP INTEGRATED CARE NHS FOUNDATION TRUST | D100: 19 | E100: 0.6842105263 | F100: 0.05263157895 | G100: 7 | H100: 6 | I100: 5 | J100: 1 | K100: 0 | L100: 0 | M100: 0 | N100: 15 | O100: 4 | P100: 0 | Q100: 0 | R100: 0 | S100: 0
A101: Q83 | B101: RWJ | C101: STOCKPORT NHS FOUNDATION TRUST | D101: 45 | E101: 1 | F101: 0 | G101: 40 | H101: 5 | I101: 0 | J101: 0 | K101: 0 | L101: 0 | M101: 0 | N101: 0 | O101: 0 | P101: 45 | Q101: 0 | R101: 0 | S101: 0
A102: Q83 | B102: RW6 | C102: PENNINE ACUTE HOSPITALS NHS TRUST | D102: 48 | E102: 0.8958333333 | F102: 0.1041666667 | G102: 38 | H102: 5 | I102: 0 | J102: 1 | K102: 4 | L102: 0 | M102: 24 | N102: 0 | O102: 24 | P102: 0 | Q102: 0 | R102: 0 | S102: 0
A103: Q83 | B103: RRF | C103: WRIGHTINGTON, WIGAN AND LEIGH NHS FOUNDATION TRUST | D103: 67 | E103: 0.9701492537 | F103: 0 | G103: 56 | H103: 9 | I103: 2 | J103: 0 | K103: 0 | L103: 0 | M103: 0 | N103: 0 | O103: 1 | P103: 0 | Q103: 0 | R103: 66 | S103: 0
A104: Q83 | B104: RMC | C104: BOLTON NHS FOUNDATION TRUST | D104: 74 | E104: 0.9324324324 | F104: 0.05405405405 | G104: 57 | H104: 12 | I104: 1 | J104: 2 | K104: 2 | L104: 0 | M104: 42 | N104: 0 | O104: 32 | P104: 0 | Q104: 0 | R104: 0 | S104: 0
A105: Q83 | B105: R0A | C105: MANCHESTER UNIVERSITY NHS FOUNDATION TRUST | D105: 421 | E105: 0.9928741093 | F105: 0.004750593824 | G105: 374 | H105: 44 | I105: 1 | J105: 1 | K105: 1 | L105: 0 | M105: 0 | N105: 23 | O105: 398 | P105: 0 | Q105: 0 | R105: 0 | S105: 0
A106: Q84 | B106: RXN | C106: LANCASHIRE TEACHING HOSPITALS NHS FOUNDATION TRUST | D106: 17 | E106: 1 | F106: 0 | G106: 17 | H106: 0 | I106: 0 | J106: 0 | K106: 0 | L106: 0 | M106: 17 | N106: 0 | O106: 0 | P106: 0 | Q106: 0 | R106: 0 | S106: 0
A107: Q84 | B107: RXL | C107: BLACKPOOL TEACHING HOSPITALS NHS FOUNDATION TRUST | D107: 33 | E107: 0.9090909091 | F107: 0 | G107: 21 | H107: 9 | I107: 3 | J107: 0 | K107: 0 | L107: 0 | M107: 0 | N107: 7 | O107: 26 | P107: 0 | Q107: 0 | R107: 0 | S107: 0
A108: Q84 | B108: RTX | C108: UNIVERSITY HOSPITALS OF MORECAMBE BAY NHS FOUNDATION TRUST | D108: 42 | E108: 0.9523809524 | F108: 0.02380952381 | G108: 36 | H108: 4 | I108: 1 | J108: 1 | K108: 0 | L108: 0 | M108: 33 | N108: 0 | O108: 7 | P108: 0 | Q108: 1 | R108: 1 | S108: 0
A109: Q84 | B109: RXR | C109: EAST LANCASHIRE HOSPITALS NHS TRUST | D109: 102 | E109: 0.9901960784 | F109: 0.009803921569 | G109: 88 | H109: 13 | I109: 0 | J109: 1 | K109: 0 | L109: 0 | M109: 16 | N109: 0 | O109: 86 | P109: 0 | Q109: 0 | R109: 0 | S109: 0
A110: Q85 | B110: RDZ | C110: THE ROYAL BOURNEMOUTH AND CHRISTCHURCH HOSPITALS NHS FOUNDATION TRUST | D110: 0 | E110: NA | F110: NA | G110: 0 | H110: 0 | I110: 0 | J110: 0 | K110: 0 | L110: 0 | M110: 0 | N110: 0 | O110: 0 | P110: 0 | Q110: 0 | R110: 0 | S110: 0
A111: Q85 | B111: RH8 | C111: ROYAL DEVON AND EXETER NHS FOUNDATION TRUST | D111: 0 | E111: NA | F111: NA | G111: 0 | H111: 0 | I111: 0 | J111: 0 | K111: 0 | L111: 0 | M111: 0 | N111: 0 | O111: 0 | P111: 0 | Q111: 0 | R111: 0 | S111: 0
A112: Q85 | B112: RA9 | C112: TORBAY AND SOUTH DEVON NHS FOUNDATION TRUST | D112: 6 | E112: 1 | F112: 0 | G112: 6 | H112: 0 | I112: 0 | J112: 0 | K112: 0 | L112: 0 | M112: 0 | N112: 0 | O112: 6 | P112: 0 | Q112: 0 | R112: 0 | S112: 0
A113: Q85 | B113: RD3 | C113: POOLE HOSPITAL NHS FOUNDATION TRUST | D113: 32 | E113: 1 | F113: 0 | G113: 30 | H113: 2 | I113: 0 | J113: 0 | K113: 0 | L113: 0 | M113: 0 | N113: 0 | O113: 32 | P113: 0 | Q113: 0 | R113: 0 | S113: 0
A114: Q85 | B114: RBD | C114: DORSET COUNTY HOSPITAL NHS FOUNDATION TRUST | D114: 36 | E114: 0.9722222222 | F114: 0 | G114: 31 | H114: 4 | I114: 1 | J114: 0 | K114: 0 | L114: 0 | M114: 36 | N114: 0 | O114: 0 | P114: 0 | Q114: 0 | R114: 0 | S114: 0
A115: Q85 | B115: REF | C115: ROYAL CORNWALL HOSPITALS NHS TRUST | D115: 40 | E115: 0.95 | F115: 0.025 | G115: 28 | H115: 10 | I115: 1 | J115: 1 | K115: 0 | L115: 0 | M115: 0 | N115: 0 | O115: 39 | P115: 0 | Q115: 0 | R115: 1 | S115: 0
A116: Q85 | B116: RA4 | C116: YEOVIL DISTRICT HOSPITAL NHS FOUNDATION TRUST | D116: 57 | E116: 0.9649122807 | F116: 0 | G116: 46 | H116: 9 | I116: 2 | J116: 0 | K116: 0 | L116: 0 | M116: 0 | N116: 57 | O116: 0 | P116: 0 | Q116: 0 | R116: 0 | S116: 0
A117: Q85 | B117: RBZ | C117: NORTHERN DEVON HEALTHCARE NHS TRUST | D117: 57 | E117: 1 | F117: 0 | G117: 50 | H117: 7 | I117: 0 | J117: 0 | K117: 0 | L117: 0 | M117: 0 | N117: 0 | O117: 57 | P117: 0 | Q117: 0 | R117: 0 | S117: 0
A118: Q85 | B118: RBA | C118: TAUNTON AND SOMERSET NHS FOUNDATION TRUST | D118: 75 | E118: 0.9733333333 | F118: 0 | G118: 49 | H118: 24 | I118: 2 | J118: 0 | K118: 0 | L118: 0 | M118: 0 | N118: 0 | O118: 75 | P118: 0 | Q118: 0 | R118: 0 | S118: 0
A119: Q85 | B119: RK9 | C119: UNIVERSITY HOSPITALS PLYMOUTH NHS TRUST | D119: 145 | E119: 0.9448275862 | F119: 0.006896551724 | G119: 101 | H119: 36 | I119: 7 | J119: 1 | K119: 0 | L119: 0 | M119: 0 | N119: 124 | O119: 21 | P119: 0 | Q119: 0 | R119: 0 | S119: 0
A120: Q86 | B120: RA3 | C120: WESTON AREA HEALTH NHS TRUST | D120: 0 | E120: NA | F120: NA | G120: 0 | H120: 0 | I120: 0 | J120: 0 | K120: 0 | L120: 0 | M120: 0 | N120: 0 | O120: 0 | P120: 0 | Q120: 0 | R120: 0 | S120: 0
A121: Q86 | B121: RNZ | C121: SALISBURY NHS FOUNDATION TRUST | D121: 2 | E121: * | F121: * | G121: * | H121: * | I121: * | J121: * | K121: * | L121: * | M121: * | N121: * | O121: * | P121: * | Q121: * | R121: * | S121: *
A122: Q86 | B122: RN3 | C122: GREAT WESTERN HOSPITALS NHS FOUNDATION TRUST | D122: 5 | E122: 1 | F122: 0 | G122: * | H122: * | I122: * | J122: * | K122: * | L122: * | M122: * | N122: * | O122: * | P122: * | Q122: * | R122: * | S122: *
A123: Q86 | B123: RD1 | C123: ROYAL UNITED HOSPITALS BATH NHS FOUNDATION TRUST | D123: 60 | E123: 0.9833333333 | F123: 0.01666666667 | G123: 54 | H123: 5 | I123: 0 | J123: 1 | K123: 0 | L123: 0 | M123: 0 | N123: 0 | O123: 60 | P123: 0 | Q123: 0 | R123: 0 | S123: 0
A124: Q86 | B124: RTE | C124: GLOUCESTERSHIRE HOSPITALS NHS FOUNDATION TRUST | D124: 61 | E124: 0.9016393443 | F124: 0.03278688525 | G124: 49 | H124: 6 | I124: 4 | J124: 1 | K124: 1 | L124: 0 | M124: 60 | N124: 0 | O124: 0 | P124: 0 | Q124: 1 | R124: 0 | S124: 0
A125: Q86 | B125: RA7 | C125: UNIVERSITY HOSPITALS BRISTOL NHS FOUNDATION TRUST | D125: 72 | E125: 0.9722222222 | F125: 0 | G125: 62 | H125: 8 | I125: 2 | J125: 0 | K125: 0 | L125: 0 | M125: 0 | N125: 0 | O125: 72 | P125: 0 | Q125: 0 | R125: 0 | S125: 0
A126: Q86 | B126: RVJ | C126: NORTH BRISTOL NHS TRUST | D126: 81 | E126: 0.9135802469 | F126: 0.04938271605 | G126: 66 | H126: 8 | I126: 3 | J126: 3 | K126: 1 | L126: 0 | M126: 80 | N126: 0 | O126: 1 | P126: 0 | Q126: 0 | R126: 0 | S126: 0
A127: Q87 | B127: R1F | C127: ISLE OF WIGHT NHS TRUST | D127: 13 | E127: 1 | F127: 0 | G127: 12 | H127: 1 | I127: 0 | J127: 0 | K127: 0 | L127: 0 | M127: 0 | N127: 0 | O127: 13 | P127: 0 | Q127: 0 | R127: 0 | S127: 0
A128: Q87 | B128: RTH | C128: OXFORD UNIVERSITY HOSPITALS NHS FOUNDATION TRUST | D128: 24 | E128: 0.8333333333 | F128: 0 | G128: 18 | H128: 2 | I128: 1 | J128: 0 | K128: 0 | L128: 3 | M128: 0 | N128: 0 | O128: 22 | P128: 0 | Q128: 0 | R128: 2 | S128: 0
A129: Q87 | B129: RXQ | C129: BUCKINGHAMSHIRE HEALTHCARE NHS TRUST | D129: 26 | E129: 0.9615384615 | F129: 0 | G129: 22 | H129: 3 | I129: 1 | J129: 0 | K129: 0 | L129: 0 | M129: 0 | N129: 0 | O129: 26 | P129: 0 | Q129: 0 | R129: 0 | S129: 0
A130: Q87 | B130: RHU | C130: PORTSMOUTH HOSPITALS NHS TRUST | D130: 66 | E130: 1 | F130: 0 | G130: 60 | H130: 6 | I130: 0 | J130: 0 | K130: 0 | L130: 0 | M130: 0 | N130: 0 | O130: 66 | P130: 0 | Q130: 0 | R130: 0 | S130: 0
A131: Q87 | B131: RHW | C131: ROYAL BERKSHIRE NHS FOUNDATION TRUST | D131: 76 | E131: 0.9473684211 | F131: 0 | G131: 47 | H131: 25 | I131: 3 | J131: 0 | K131: 0 | L131: 1 | M131: 0 | N131: 39 | O131: 35 | P131: 0 | Q131: 0 | R131: 2 | S131: 0
A132: Q87 | B132: RN5 | C132: HAMPSHIRE HOSPITALS NHS FOUNDATION TRUST | D132: 156 | E132: 0.9358974359 | F132: 0.01282051282 | G132: 132 | H132: 14 | I132: 7 | J132: 2 | K132: 0 | L132: 1 | M132: 0 | N132: 0 | O132: 156 | P132: 0 | Q132: 0 | R132: 0 | S132: 0
A133: Q87 | B133: RHM | C133: UNIVERSITY HOSPITAL SOUTHAMPTON NHS FOUNDATION TRUST | D133: 160 | E133: 0.8375 | F133: 0.09375 | G133: 92 | H133: 42 | I133: 8 | J133: 11 | K133: 4 | L133: 3 | M133: 0 | N133: 0 | O133: 86 | P133: 0 | Q133: 0 | R133: 74 | S133: 0
A134: Q87 | B134: RDU | C134: FRIMLEY HEALTH NHS FOUNDATION TRUST | D134: 334 | E134: 0.9640718563 | F134: 0.005988023952 | G134: 267 | H134: 55 | I134: 9 | J134: 1 | K134: 1 | L134: 1 | M134: 0 | N134: 0 | O134: 332 | P134: 0 | Q134: 0 | R134: 2 | S134: 0
A135: Q88 | B135: RXC | C135: EAST SUSSEX HEALTHCARE NHS TRUST | D135: 11 | E135: 0.9090909091 | F135: 0 | G135: 6 | H135: 4 | I135: 0 | J135: 0 | K135: 0 | L135: 1 | M135: 0 | N135: 11 | O135: 0 | P135: 0 | Q135: 0 | R135: 0 | S135: 0
A136: Q88 | B136: RWF | C136: MAIDSTONE AND TUNBRIDGE WELLS NHS TRUST | D136: 35 | E136: 0.9714285714 | F136: 0 | G136: 29 | H136: 5 | I136: 1 | J136: 0 | K136: 0 | L136: 0 | M136: 0 | N136: 0 | O136: 35 | P136: 0 | Q136: 0 | R136: 0 | S136: 0
A137: Q88 | B137: RA2 | C137: ROYAL SURREY COUNTY HOSPITAL NHS FOUNDATION TRUST | D137: 63 | E137: 0.9841269841 | F137: 0.01587301587 | G137: 58 | H137: 4 | I137: 0 | J137: 1 | K137: 0 | L137: 0 | M137: 46 | N137: 0 | O137: 17 | P137: 0 | Q137: 0 | R137: 0 | S137: 0
A138: Q88 | B138: RXH | C138: BRIGHTON AND SUSSEX UNIVERSITY HOSPITALS NHS TRUST | D138: 82 | E138: 0.9268292683 | F138: 0.06097560976 | G138: 69 | H138: 7 | I138: 1 | J138: 3 | K138: 2 | L138: 0 | M138: 82 | N138: 0 | O138: 0 | P138: 0 | Q138: 0 | R138: 0 | S138: 0
A139: Q88 | B139: RTP | C139: SURREY AND SUSSEX HEALTHCARE NHS TRUST | D139: 83 | E139: 0.9518072289 | F139: 0.01204819277 | G139: 59 | H139: 20 | I139: 3 | J139: 0 | K139: 1 | L139: 0 | M139: 0 | N139: 81 | O139: 0 | P139: 0 | Q139: 0 | R139: 2 | S139: 0
A140: Q88 | B140: RPA | C140: MEDWAY NHS FOUNDATION TRUST | D140: 88 | E140: 1 | F140: 0 | G140: 84 | H140: 4 | I140: 0 | J140: 0 | K140: 0 | L140: 0 | M140: 0 | N140: 0 | O140: 88 | P140: 0 | Q140: 0 | R140: 0 | S140: 0
A141: Q88 | B141: RN7 | C141: DARTFORD AND GRAVESHAM NHS TRUST | D141: 92 | E141: 1 | F141: 0 | G141: 75 | H141: 17 | I141: 0 | J141: 0 | K141: 0 | L141: 0 | M141: 0 | N141: 0 | O141: 92 | P141: 0 | Q141: 0 | R141: 0 | S141: 0
A142: Q88 | B142: RVV | C142: EAST KENT HOSPITALS UNIVERSITY NHS FOUNDATION TRUST | D142: 155 | E142: 0.9612903226 | F142: 0.01935483871 | G142: 136 | H142: 13 | I142: 2 | J142: 3 | K142: 0 | L142: 1 | M142: 0 | N142: 0 | O142: 155 | P142: 0 | Q142: 0 | R142: 0 | S142: 0
A143: Q88 | B143: RYR | C143: WESTERN SUSSEX HOSPITALS NHS FOUNDATION TRUST | D143: 261 | E143: 0.9923371648 | F143: 0.003831417625 | G143: 221 | H143: 38 | I143: 0 | J143: 1 | K143: 0 | L143: 1 | M143: 0 | N143: 0 | O143: 256 | P143: 0 | Q143: 0 | R143: 5 | S143: 0
A144: zIS1 | B144: NDE | C144: ONE TO ONE (NORTH WEST) LIMITED | D144: 0 | E144: NA | F144: NA | G144: 0 | H144: 0 | I144: 0 | J144: 0 | K144: 0 | L144: 0 | M144: 0 | N144: 0 | O144: 0 | P144: 0 | Q144: 0 | R144: 0 | S144: 0

Sheet Sites Q3
B6: Sort data by:
A9: Region (LO) Code | B9: Trust Code | C9: Trust Name | D9: Site Code | E9: Site Name | F9: Total Responses | G9: Percentage Recommended | H9: Percentage Not Recommended | I9: Breakdown of Responses
I10: Extremely Likely | J10: Likely | K10: Neither | L10: Unlikely | M10: Extremely Unlikely | N10: Don't Know
E11: England (including Independent Sector providers) | F11: 11096 | G11: 0.9507930786 | H11: 0.01739365537 | I11: 8304 | J11: 2246 | K11: 272 | L11: 101 | M11: 92 | N11: 81
E12: England (excluding Independent Sector providers) | F12: 11096 | G12: 0.9507930786 | H12: 0.01739365537 | I12: 8304 | J12: 2246 | K12: 272 | L12: 101 | M12: 92 | N12: 81
E13: Selection (excluding suppressed data) | F13: =SUBTOTAL(9,F14:F298) -> 11096 | G13: =IFERROR((I13+J13)/SUM(I13:N13), "-") -> 0.9506932329 | H13: =IFERROR((L13+M13)/SUM(I13:N13), "-") -> 0.01735377835 | I13: =SUBTOTAL(9,I14:I298) -> 8158 | J13: 2196 | K13: 269 | L13: 100 | M13: 89 | N13: 79
A14: Q71 | B14: RF4 | C14: BARKING, HAVERING AND REDBRIDGE UNIVERSITY HOSPITALS NHS TRUST | D14: RF4QH | E14: Queen's Hospital - RF4QH | F14: 112 | G14: 0.9285714286 | H14: 0.01785714286 | I14: 71 | J14: 33 | K14: 4 | L14: 0 | M14: 2 | N14: 2
A15: Q71 | B15: R1H | C15: BARTS HEALTH NHS TRUST | D15: R1HNH | E15: Newham General Hospital - R1HNH | F15: 1 | G15: * | H15: * | I15: * | J15: * | K15: * | L15: * | M15: * | N15: *
A16: Q71 | B16: R1H | C16: BARTS HEALTH NHS TRUST | D16: R1H12 | E16: The Royal London Hospital - R1H12 | F16: 16 | G16: 1 | H16: 0 | I16: 10 | J16: 6 | K16: 0 | L16: 0 | M16: 0 | N16: 0
A17: Q71 | B17: R1H | C17: BARTS HEALTH NHS TRUST | D17: R1HKH | E17: Whipps Cross University Hospital - R1HKH | F17: 13 | G17: 0.8461538462 | H17: 0.1538461538 | I17: * | J17: * | K17: * | L17: * | M17: * | N17: *
A18: Q71 | B18: RQM | C18: CHELSEA AND WESTMINSTER HOSPITAL NHS FOUNDATION TRUST | D18: RQM01 | E18: Chelsea and Westminster Hospital - RQM01 | F18: 111 | G18: 0.9009009009 | H18: 0.03603603604 | I18: 77 | J18: 23 | K18: 6 | L18: 1 | M18: 3 | N18: 1
A19: Q71 | B19: RQM | C19: CHELSEA AND WESTMINSTER HOSPITAL NHS FOUNDATION TRUST | D19: RQM91 | E19: West Middlesex University Hospital - RQM91 | F19: 76 | G19: 0.9473684211 | H19: 0.05263157895 | I19: 60 | J19: 12 | K19: 0 | L19: 1 | M19: 3 | N19: 0
A20: Q71 | B20: RJ6 | C20: CROYDON HEALTH SERVICES NHS TRUST | D20: RJ611 | E20: Croydon University Hospital - RJ611 | F20: 30 | G20: 0.8 | H20: 0 | I20: 20 | J20: 4 | K20: 5 | L20: 0 | M20: 0 | N20: 1
A21: Q71 | B21: RVR | C21: EPSOM AND ST HELIER UNIVERSITY HOSPITALS NHS TRUST | D21: RVR50 | E21: Epsom Hospital - RVR50 | F21: 47 | G21: 0.9787234043 | H21: 0 | I21: 35 | J21: 11 | K21: 1 | L21: 0 | M21: 0 | N21: 0
A22: Q71 | B22: RVR | C22: EPSOM AND ST HELIER UNIVERSITY HOSPITALS NHS TRUST | D22: RVR05 | E22: St Helier Hospital - RVR05 | F22: 31 | G22: 1 | H22: 0 | I22: 21 | J22: 10 | K22: 0 | L22: 0 | M22: 0 | N22: 0
A23: Q71 | B23: RJ1 | C23: GUY'S AND ST THOMAS' NHS FOUNDATION TRUST | D23: RJ122 | E23: St Thomas' Hospital - RJ122 | F23: 151 | G23: 0.9006622517 | H23: 0.02649006623 | I23: 80 | J23: 56 | K23: 8 | L23: 4 | M23: 0 | N23: 3
A24: Q71 | B24: RQX | C24: HOMERTON UNIVERSITY HOSPITAL NHS FOUNDATION TRUST | D24: RQXM1 | E24: Homerton University Hospital - RQXM1 | F24: 145 | G24: 0.9310344828 | H24: 0.06206896552 | I24: 89 | J24: 46 | K24: 1 | L24: 6 | M24: 3 | N24: 0
A25: Q71 | B25: RYJ | C25: IMPERIAL COLLEGE HEALTHCARE NHS TRUST | D25: RYJ04 | E25: Queen Charlotte's Hospital - RYJ04 | F25: 69 | G25: 0.9275362319 | H25: 0.02898550725 | I25: 35 | J25: 29 | K25: 2 | L25: 0 | M25: 2 | N25: 1
A26: Q71 | B26: RYJ | C26: IMPERIAL COLLEGE HEALTHCARE NHS TRUST | D26: RYJ01 | E26: St Mary's Hospital (HQ) - RYJ01 | F26: 105 | G26: 0.8761904762 | H26: 0.07619047619 | I26: 50 | J26: 42 | K26: 3 | L26: 5 | M26: 3 | N26: 2
A27: Q71 | B27: RJZ | C27: KING'S COLLEGE HOSPITAL NHS FOUNDATION TRUST | D27: RJZ01 | E27: King's College Hospital (Denmark Hill) - RJZ01 | F27: 64 | G27: 0.9375 | H27: 0.046875 | I27: 35 | J27: 25 | K27: 1 | L27: 1 | M27: 2 | N27: 0
A28: Q71 | B28: RJZ | C28: KING'S COLLEGE HOSPITAL NHS FOUNDATION TRUST | D28: RJZ30 | E28: Princess Royal University Hospital - RJZ30 | F28: 289 | G28: 0.937716263 | H28: 0.01038062284 | I28: 189 | J28: 82 | K28: 11 | L28: 1 | M28: 2 | N28: 4
A29: Q71 | B29: RAX | C29: KINGSTON HOSPITAL NHS FOUNDATION TRUST | D29: RAX01 | E29: Kingston Hospital - RAX01 | F29: 36 | G29: 0.9444444444 | H29: 0 | I29: 28 | J29: 6 | K29: 2 | L29: 0 | M29: 0 | N29: 0
A30: Q71 | B30: RJ2 | C30: LEWISHAM AND GREENWICH NHS TRUST | D30: RJ231 | E30: Queen Elizabeth Hospital - RJ231 | F30: 97 | G30: 0.9175257732 | H30: 0.01030927835 | I30: 52 | J30: 37 | K30: 4 | L30: 1 | M30: 0 | N30: 3
A31: Q71 | B31: RJ2 | C31: LEWISHAM AND GREENWICH NHS TRUST | D31: RJ224 | E31: University Hospital Lewisham - RJ224 | F31: 124 | G31: 0.9274193548 | H31: 0 | I31: 67 | J31: 48 | K31: 5 | L31: 0 | M31: 0 | N31: 4
A32: Q71 | B32: R1K | C32: LONDON NORTH WEST UNIVERSITY HEALTHCARE NHS TRUST | D32: R1K01 | E32: Northwick Park Hospital - R1K01 | F32: 140 | G32: 0.9 | H32: 0.007142857143 | I32: 89 | J32: 37 | K32: 4 | L32: 1 | M32: 0 | N32: 9
A33: Q71 | B33: RAP | C33: NORTH MIDDLESEX UNIVERSITY HOSPITAL NHS TRUST | D33: RAPNM | E33: North Middlesex Hospital - RAPNM | F33: 116 | G33: 0.9051724138 | H33: 0.04310344828 | I33: 83 | J33: 22 | K33: 6 | L33: 1 | M33: 4 | N33: 0
A34: Q71 | B34: RAL | C34: ROYAL FREE LONDON NHS FOUNDATION TRUST | D34: RAL26 | E34: Barnet Hospital - RAL26 | F34: 13 | G34: 1 | H34: 0 | I34: 11 | J34: 2 | K34: 0 | L34: 0 | M34: 0 | N34: 0
A35: Q71 | B35: RAL | C35: ROYAL FREE LONDON NHS FOUNDATION TRUST | D35: RAL01 | E35: Royal Free Hospital - RAL01 | F35: 40 | G35: 0.875 | H35: 0.05 | I35: 27 | J35: 8 | K35: 3 | L35: 2 | M35: 0 | N35: 0
A36: Q71 | B36: RJ7 | C36: ST GEORGE'S UNIVERSITY HOSPITALS NHS FOUNDATION TRUST | D36: RJ701 | E36: St George's Hospital (Tooting) - RJ701 | F36: 92 | G36: 0.9565217391 | H36: 0.01086956522 | I36: 76 | J36: 12 | K36: 2 | L36: 0 | M36: 1 | N36: 1
A37: Q71 | B37: RAS | C37: THE HILLINGDON HOSPITALS NHS FOUNDATION TRUST | D37: RAS01 | E37: Hillingdon Hospital - RAS01 | F37: 109 | G37: 0.9449541284 | H37: 0.02752293578 | I37: 71 | J37: 32 | K37: 3 | L37: 1 | M37: 2 | N37: 0
A38: Q71 | B38: RRV | C38: UNIVERSITY COLLEGE LONDON HOSPITALS NHS FOUNDATION TRUST | D38: RRV11 | E38: University College Hospital Elizabeth Garrett Anderson Wing - RRV11 | F38: 28 | G38: 0.9642857143 | H38: 0 | I38: 22 | J38: 5 | K38: 1 | L38: 0 | M38: 0 | N38: 0
A39: Q71 | B39: RKE | C39: WHITTINGTON HEALTH NHS TRUST | D39: RKEQ4 | E39: The Whittington Hospital - RKEQ4 | F39: 169 | G39: 0.9349112426 | H39: 0.03550295858 | I39: 88 | J39: 70 | K39: 4 | L39: 2 | M39: 4 | N39: 1
A40: Q72 | B40: RCF | C40: AIREDALE NHS FOUNDATION TRUST | D40: RCF22 | E40: Airedale General Hospital - RCF22 | F40: 5 | G40: 0.8 | H40: 0.2 | I40: 4 | J40: 0 | K40: 0 | L40: 0 | M40: 1 | N40: 0
A41: Q72 | B41: RFF | C41: BARNSLEY HOSPITAL NHS FOUNDATION TRUST | D41: RFFAA | E41: Barnsley Hospital NHS Foundation Trust HQ - RFFAA | F41: 18 | G41: 1 | H41: 0 | I41: 14 | J41: 4 | K41: 0 | L41: 0 | M41: 0 | N41: 0
A42: Q72 | B42: RAE | C42: BRADFORD TEACHING HOSPITALS NHS FOUNDATION TRUST | D42: RAE01 | E42: Bradford Royal Infirmary - RAE01 | F42: 0 | G42: NA | H42: NA | I42: 0 | J42: 0 | K42: 0 | L42: 0 | M42: 0 | N42: 0
A43: Q72 | B43: RWY | C43: CALDERDALE AND HUDDERSFIELD NHS FOUNDATION TRUST | D43: RWY02 | E43: Calderdale Royal Hospital - RWY02 | F43: 205 | G43: 0.9902439024 | H43: 0 | I43: 171 | J43: 32 | K43: 2 | L43: 0 | M43: 0 | N43: 0
A44: Q72 | B44: RWY | C44: CALDERDALE AND HUDDERSFIELD NHS FOUNDATION TRUST | D44: RWY01 | E44: Huddersfield Royal Infirmary - RWY01 | F44: 14 | G44: 1 | H44: 0 | I44: 14 | J44: 0 | K44: 0 | L44: 0 | M44: 0 | N44: 0
A45: Q72 | B45: RP5 | C45: DONCASTER AND BASSETLAW TEACHING HOSPITALS NHS FOUNDATION TRUST | D45: RP5BA | E45: Bassetlaw Hospital - RP5BA | F45: 26 | G45: 1 | H45: 0 | I45: 1 | J45: 25 | K45: 0 | L45: 0 | M45: 0 | N45: 0
A46: Q72 | B46: RP5 | C46: DONCASTER AND BASSETLAW TEACHING HOSPITALS NHS FOUNDATION TRUST | D46: RP5DR | E46: Doncaster Royal Infirmary - RP5DR | F46: 48 | G46: 0.9583333333 | H46: 0.02083333333 | I46: 35 | J46: 11 | K46: 1 | L46: 0 | M46: 1 | N46: 0
A47: Q72 | B47: RCD | C47: HARROGATE AND DISTRICT NHS FOUNDATION TRUST | D47: RCD01 | E47: Harrogate District Hospital - RCD01 | F47: 56 | G47: 1 | H47: 0 | I47: 52 | J47: 4 | K47: 0 | L47: 0 | M47: 0 | N47: 0
A48: Q72 | B48: RWA | C48: HULL AND EAST YORKSHIRE HOSPITALS NHS TRUST | D48: RWA01 | E48: Hull Royal Infirmary - RWA01 | F48: 56 | G48: 0.9821428571 | H48: 0 | I48: 53 | J48: 2 | K48: 1 | L48: 0 | M48: 0 | N48: 0
A49: Q72 | B49: RR8 | C49: LEEDS TEACHING HOSPITALS NHS TRUST | D49: RR801 | E49: Leeds General Infirmary - RR801 | F49: 115 | G49: 0.947826087 | H49: 0.0347826087 | I49: 88 | J49: 21 | K49: 2 | L49: 3 | M49: 1 | N49: 0
A50: Q72 | B50: RR8 | C50: LEEDS TEACHING HOSPITALS NHS TRUST | D50: RR813 | E50: St James's University Hospital - RR813 | F50: 120 | G50: 0.9666666667 | H50: 0.025 | I50: 91 | J50: 25 | K50: 1 | L50: 0 | M50: 3 | N50: 0
A51: Q72 | B51: RXF | C51: MID YORKSHIRE HOSPITALS NHS TRUST | D51: RXF05 | E51: Pinderfields General Hospital - RXF05 | F51: 38 | G51: 0.9736842105 | H51: 0 | I51: 28 | J51: 9 | K51: 1 | L51: 0 | M51: 0 | N51: 0
A52: Q72 | B52: RJL | C52: NORTHERN LINCOLNSHIRE AND GOOLE NHS FOUNDATION TRUST | D52: RJL32 | E52: Scunthorpe General Hospital - RJL32 | F52: 12 | G52: 1 | H52: 0 | I52: 10 | J52: 2 | K52: 0 | L52: 0 | M52: 0 | N52: 0
A53: Q72 | B53: RHQ | C53: SHEFFIELD TEACHING HOSPITALS NHS FOUNDATION TRUST | D53: RHQHH | E53: Royal Hallamshire Hospital - RHQHH | F53: 112 | G53: 1 | H53: 0 | I53: 85 | J53: 27 | K53: 0 | L53: 0 | M53: 0 | N53: 0
A54: Q72 | B54: RFR | C54: THE ROTHERHAM NHS FOUNDATION TRUST | D54: RFRPA | E54: Rotherham District General Hospital - RFRPA | F54: 69 | G54: 1 | H54: 0 | I54: 53 | J54: 16 | K54: 0 | L54: 0 | M54: 0 | N54: 0
A55: Q72 | B55: RCB | C55: YORK TEACHING HOSPITAL NHS FOUNDATION TRUST | D55: RCBCA | E55: Scarborough General Hospital - RCBCA | F55: 48 | G55: 0.9791666667 | H55: 0 | I55: 40 | J55: 7 | K55: 1 | L55: 0 | M55: 0 | N55: 0
A56: Q72 | B56: RCB | C56: YORK TEACHING HOSPITAL NHS FOUNDATION TRUST | D56: RCB55 | E56: York Hospital - RCB55 | F56: 129 | G56: 0.9612403101 | H56: 0.02325581395 | I56: 95 | J56: 29 | K56: 2 | L56: 2 | M56: 1 | N56: 0
A57: Q74 | B57: RLN | C57: CITY HOSPITALS SUNDERLAND NHS FOUNDATION TRUST | D57: RLNGL | E57: Sunderland Royal Hospital - RLNGL | F57: 13 | G57: 1 | H57: 0 | I57: 12 | J57: 1 | K57: 0 | L57: 0 | M57: 0 | N57: 0
A58: Q74 | B58: RXP | C58: COUNTY DURHAM AND DARLINGTON NHS FOUNDATION TRUST | D58: RXPDA | E58: Darlington Memorial Hospital - RXPDA | F58: 22 | G58: 1 | H58: 0 | I58: 18 | J58: 4 | K58: 0 | L58: 0 | M58: 0 | N58: 0
A59: Q74 | B59: RXP | C59: COUNTY DURHAM AND DARLINGTON NHS FOUNDATION TRUST | D59: RXPCP | E59: University Hospital Of North Durham - RXPCP | F59: 68 | G59: 0.9705882353 | H59: 0.01470588235 | I59: 52 | J59: 14 | K59: 1 | L59: 0 | M59: 1 | N59: 0
A60: Q74 | B60: RR7 | C60: GATESHEAD HEALTH NHS FOUNDATION TRUST | D60: RR7EN | E60: Queen Elizabeth Hospital - RR7EN | F60: 68 | G60: 1 | H60: 0 | I60: 64 | J60: 4 | K60: 0 | L60: 0 | M60: 0 | N60: 0
A61: Q74 | B61: RNL | C61: NORTH CUMBRIA UNIVERSITY HOSPITALS NHS TRUST | D61: RNLAY | E61: Cumberland Infirmary - RNLAY | F61: 8 | G61: 0.875 | H61: 0 | I61: 5 | J61: 2 | K61: 1 | L61: 0 | M61: 0 | N61: 0
A62: Q74 | B62: RNL | C62: NORTH CUMBRIA UNIVERSITY HOSPITALS NHS TRUST | D62: RNLBX | E62: West Cumberland Hospital - RNLBX | F62: 43 | G62: 0.976744186 | H62: 0 | I62: 42 | J62: 0 | K62: 1 | L62: 0 | M62: 0 | N62: 0
A63: Q74 | B63: RVW | C63: NORTH TEES AND HARTLEPOOL NHS FOUNDATION TRUST | D63: RVWAE | E63: University Hospital Of North Tees - RVWAE | F63: 50 | G63: 0.98 | H63: 0 | I63: 42 | J63: 7 | K63: 1 | L63: 0 | M63: 0 | N63: 0
A64: Q74 | B64: RTF | C64: NORTHUMBRIA HEALTHCARE NHS FOUNDATION TRUST | D64: RTFDJ | E64: Alnwick Infirmary - RTFDJ | F64: 1 | G64: * | H64: * | I64: * | J64: * | K64: * | L64: * | M64: * | N64: *
A65: Q74 | B65: RTF | C65: NORTHUMBRIA HEALTHCARE NHS FOUNDATION TRUST | D65: RTFDH | E65: Berwick Infirmary - RTFDH | F65: 0 | G65: NA | H65: NA | I65: 0 | J65: 0 | K65: 0 | L65: 0 | M65: 0 | N65: 0
A66: Q74 | B66: RTF | C66: NORTHUMBRIA HEALTHCARE NHS FOUNDATION TRUST | D66: RTFDR | E66: Hexham General Hospital - RTFDR | F66: 2 | G66: * | H66: * | I66: * | J66: * | K66: * | L66: * | M66: * | N66: *
A67: Q74 | B67: RTF | C67: NORTHUMBRIA HEALTHCARE NHS FOUNDATION TRUST | D67: RTF86 | E67: The Northumbria - RTF86 | F67: 51 | G67: 0.9411764706 | H67: 0 | I67: 46 | J67: 2 | K67: 3 | L67: 0 | M67: 0 | N67: 0
A68: Q74 | B68: RTR | C68: SOUTH TEES HOSPITALS NHS FOUNDATION TRUST | D68: RTR45 | E68: Friarage Hospital Site - RTR45 | F68: 0 | G68: NA | H68: NA | I68: 0 | J68: 0 | K68: 0 | L68: 0 | M68: 0 | N68: 0
A69: Q74 | B69: RTR | C69: SOUTH TEES HOSPITALS NHS FOUNDATION TRUST | D69: RTRAT | E69: The James Cook University Hospital - RTRAT | F69: 2 | G69: * | H69: * | I69: * | J69: * | K69: * | L69: * | M69: * | N69: *
A70: Q74 | B70: RE9 | C70: SOUTH TYNESIDE NHS FOUNDATION TRUST | D70: RE9GA | E70: South Tyneside District Hospital - RE9GA | F70: 4 | G70: * | H70: * | I70: * | J70: * | K70: * | L70: * | M70: * | N70: *
A71: Q74 | B71: RTD | C71: THE NEWCASTLE UPON TYNE HOSPITALS NHS FOUNDATION TRUST | D71: RTD02 | E71: The Royal Victoria Infirmary - RTD02 | F71: 113 | G71: 0.982300885 | H71: 0.008849557522 | I71: 98 | J71: 13 | K71: 0 | L71: 0 | M71: 1 | N71: 1
A72: Q75 | B72: RJR | C72: COUNTESS OF CHESTER HOSPITAL NHS FOUNDATION TRUST | D72: RJR05 | E72: Countess Of Chester Hospital - RJR05 | F72: 76 | G72: 1 | H72: 0 | I72: 64 | J72: 12 | K72: 0 | L72: 0 | M72: 0 | N72: 0
A73: Q75 | B73: RJN | C73: EAST CHESHIRE NHS TRUST | D73: RJN71 | E73: Macclesfield District General Hospital - RJN71 | F73: 33 | G73: 0.9696969697 | H73: 0 | I73: 31 | J73: 1 | K73: 0 | L73: 0 | M73: 0 | N73: 1
A74: Q75 | B74: REP | C74: LIVERPOOL WOMEN'S NHS FOUNDATION TRUST | D74: REP01 | E74: Liverpool Womens Hospital - REP01 | F74: 134 | G74: 0.9104477612 | H74: 0.0447761194 | I74: 102 | J74: 20 | K74: 6 | L74: 0 | M74: 6 | N74: 0
A75: Q75 | B75: RBT | C75: MID CHESHIRE HOSPITALS NHS FOUNDATION TRUST | D75: RBT20 | E75: Leighton Hospital - RBT20 | F75: 25 | G75: 0.96 | H75: 0 | I75: 22 | J75: 2 | K75: 1 | L75: 0 | M75: 0 | N75: 0
A76: Q75 | B76: RVY | C76: SOUTHPORT AND ORMSKIRK HOSPITAL NHS TRUST | D76: RVY02 | E76: Ormskirk and District General Hospital - RVY02 | F76: 33 | G76: 0.9696969697 | H76: 0 | I76: 29 | J76: 3 | K76: 0 | L76: 0 | M76: 0 | N76: 1
A77: Q75 | B77: RBN | C77: ST HELENS AND KNOWSLEY TEACHING HOSPITALS NHS TRUST | D77: RBN01 | E77: Whiston Hospital - RBN01 | F77: 51 | G77: 0.9803921569 | H77: 0 | I77: 45 | J77: 5 | K77: 0 | L77: 0 | M77: 0 | N77: 1
A78: Q75 | B78: RWW | C78: WARRINGTON AND HALTON HOSPITALS NHS FOUNDATION TRUST | D78: RWWWH | E78: Warrington Hospital - RWWWH | F78: 0 | G78: NA | H78: NA | I78: 0 | J78: 0 | K78: 0 | L78: 0 | M78: 0 | N78: 0
A79: Q75 | B79: RBL | C79: WIRRAL UNIVERSITY TEACHING HOSPITAL NHS FOUNDATION TRUST | D79: RBL14 | E79: Arrowe Park Hospital - RBL14 | F79: 83 | G79: 0.9759036145 | H79: 0.01204819277 | I79: 70 | J79: 11 | K79: 1 | L79: 0 | M79: 1 | N79: 0
A80: Q76 | B80: RFS | C80: CHESTERFIELD ROYAL HOSPITAL NHS FOUNDATION TRUST | D80: RFSDA | E80: Chesterfield Royal Hospital - RFSDA | F80: 43 | G80: 1 | H80: 0 | I80: * | J80: * | K80: * | L80: * | M80: * | N80: *
A81: Q76 | B81: RX1 | C81: NOTTINGHAM UNIVERSITY HOSPITALS NHS TRUST | D81: RX1CC | E81: Nottingham University Hospitals NHS Trust - City Campus - RX1CC | F81: 137 | G81: 0.9562043796 | H81: 0.007299270073 | I81: 98 | J81: 33 | K81: 4 | L81: 0 | M81: 1 | N81: 1
A82: Q76 | B82: RX1 | C82: NOTTINGHAM UNIVERSITY HOSPITALS NHS TRUST | D82: RX1RA | E82: Nottingham University Hospitals NHS Trust - Queen's Medical Centre Campus - RX1RA | F82: 68 | G82: 0.9264705882 | H82: 0.02941176471 | I82: 37 | J82: 26 | K82: 3 | L82: 2 | M82: 0 | N82: 0
A83: Q76 | B83: RK5 | C83: SHERWOOD FOREST HOSPITALS NHS FOUNDATION TRUST | D83: RK5BC | E83: King's Mill Hospital - RK5BC | F83: 2 | G83: * | H83: * | I83: * | J83: * | K83: * | L83: * | M83: * | N83: *
A84: Q76 | B84: RXW | C84: SHREWSBURY AND TELFORD HOSPITAL NHS TRUST | D84: RXWMB | E84: Bridgnorth Hospital (Maternity) - RXWMB | F84: 0 | G84: NA | H84: NA | I84: 0 | J84: 0 | K84: 0 | L84: 0 | M84: 0 | N84: 0
A85: Q76 | B85: RXW | C85: SHREWSBURY AND TELFORD HOSPITAL NHS TRUST | D85: RXWML | E85: Ludlow Hospital (Maternity) - RXWML | F85: 0 | G85: NA | H85: NA | I85: 0 | J85: 0 | K85: 0 | L85: 0 | M85: 0 | N85: 0
A86: Q76 | B86: RXW | C86: SHREWSBURY AND TELFORD HOSPITAL NHS TRUST | D86: RXWMJ | E86: Robert Jones & Agnes Hunt Orthopaedic & District Hospital - RXWMJ | F86: 0 | G86: NA | H86: NA | I86: 0 | J86: 0 | K86: 0 | L86: 0 | M86: 0 | N86: 0
A87: Q76 | B87: RXW | C87: SHREWSBURY AND TELFORD HOSPITAL NHS TRUST | D87: RXWAS | E87: Royal Shrewsbury Hospital - RXWAS | F87: 16 | G87: 1 | H87: 0 | I87: 13 | J87: 3 | K87: 0 | L87: 0 | M87: 0 | N87: 0
A88: Q76 | B88: RXW | C88: SHREWSBURY AND TELFORD HOSPITAL NHS TRUST | D88: RXWAT | E88: The Princess Royal Hospital - RXWAT | F88: 57 | G88: 0.9824561404 | H88: 0.01754385965 | I88: 51 | J88: 5 | K88: 0 | L88: 1 | M88: 0 | N88: 0
A89: Q76 | B89: RTG | C89: UNIVERSITY HOSPITALS OF DERBY AND BURTON NHS FOUNDATION TRUST | D89: RTG02 | E89: Queens Hospital, Burton Upon Trent - RTG02 | F89: 50 | G89: 0.96 | H89: 0.04 | I89: 44 | J89: 4 | K89: 0 | L89: 2 | M89: 0 | N89: 0
A90: Q76 | B90: RTG | C90: UNIVERSITY HOSPITALS OF DERBY AND BURTON NHS FOUNDATION TRUST | D90: RTGFG | E90: Royal Derby Hospital - RTGFG | F90: 100 | G90: 0.99 | H90: 0 | I90: 73 | J90: 26 | K90: 1 | L90: 0 | M90: 0 | N90: 0
A91: Q76 | B91: RJE | C91: UNIVERSITY HOSPITALS OF NORTH MIDLANDS NHS TRUST | D91: RJE01 | E91: Royal Stoke University Hospital - RJE01 | F91: 58 | G91: 0.9655172414 | H91: 0.01724137931 | I91: 50 | J91: 6 | K91: 1 | L91: 1 | M91: 0 | N91: 0
A92: Q77 | B92: RQ3 | C92: BIRMINGHAM WOMEN'S AND CHILDREN'S NHS FOUNDATION TRUST | D92: RQ370 | E92: Birmingham Women's Hospital - RQ370 | F92: 105 | G92: 0.9619047619 | H92: 0 | I92: 82 | J92: 19 | K92: 4 | L92: 0 | M92: 0 | N92: 0
A93: Q77 | B93: RLT | C93: GEORGE ELIOT HOSPITAL NHS TRUST | D93: RLT01 | E93: George Eliot Hospital - Acute Services - RLT01 | F93: 82 | G93: 0.9390243902 | H93: 0.03658536585 | I93: 68 | J93: 9 | K93: 0 | L93: 2 | M93: 1 | N93: 2
A94: Q77 | B94: RXK | C94: SANDWELL AND WEST BIRMINGHAM HOSPITALS NHS TRUST | D94: RXK02 | E94: City Hospital - RXK02 | F94: 2 | G94: * | H94: * | I94: * | J94: * | K94: * | L94: * | M94: * | N94: *
A95: Q77 | B95: RJC | C95: SOUTH WARWICKSHIRE NHS FOUNDATION TRUST | D95: RJC02 | E95: Warwick Hospital - RJC02 | F95: 33 | G95: 0.9393939394 | H95: 0.0303030303 | I95: 24 | J95: 7 | K95: 1 | L95: 1 | M95: 0 | N95: 0
A96: Q77 | B96: RNA | C96: THE DUDLEY GROUP NHS FOUNDATION TRUST | D96: RNA01 | E96: Russells Hall Hospital - RNA01 | F96: 117 | G96: 1 | H96: 0 | I96: 99 | J96: 18 | K96: 0 | L96: 0 | M96: 0 | N96: 0
A97: Q77 | B97: RL4 | C97: THE ROYAL WOLVERHAMPTON NHS TRUST | D97: RL403 | E97: New Cross Hospital - RL403 | F97: 68 | G97: 0.9852941176 | H97: 0.01470588235 | I97: 52 | J97: 15 | K97: 0 | L97: 1 | M97: 0 | N97: 0
A98: Q77 | B98: RRK | C98: UNIVERSITY HOSPITALS BIRMINGHAM NHS FOUNDATION TRUST | D98: RRK98 | E98: Good Hope Hospital - RRK98 | F98: 20 | G98: 0.95 | H98: 0 | I98: 16 | J98: 3 | K98: 0 | L98: 0 | M98: 0 | N98: 1
A99: Q77 | B99: RRK | C99: UNIVERSITY HOSPITALS BIRMINGHAM NHS FOUNDATION TRUST | D99: RRK97 | E99: Heartlands Hospital - RRK97 | F99: 40 | G99: 0.975 | H99: 0 | I99: 31 | J99: 8 | K99: 1 | L99: 0 | M99: 0 | N99: 0
A100: Q77 | B100: RRK | C100: UNIVERSITY HOSPITALS BIRMINGHAM NHS FOUNDATION TRUST | D100: RRK99 | E100: Solihull Hospital - RRK99 | F100: 0 | G100: NA | H100: NA | I100: 0 | J100: 0 | K100: 0 | L100: 0 | M100: 0 | N100: 0
A101: Q77 | B101: RKB | C101: UNIVERSITY HOSPITALS COVENTRY AND WARWICKSHIRE NHS TRUST | D101: RKB01 | E101: University Hospital (Coventry) - RKB01 | F101: 63 | G101: 0.9206349206 | H101: 0.01587301587 | I101: 49 | J101: 9 | K101: 3 | L101: 0 | M101: 1 | N101: 1
A102: Q77 | B102: RBK | C102: WALSALL HEALTHCARE NHS TRUST | D102: RBK02 | E102: Manor Hospital - RBK02 | F102: 51 | G102: 0.8235294118 | H102: 0.03921568627 | I102: 26 | J102: 16 | K102: 4 | L102: 0 | M102: 2 | N102: 3
A103: Q77 | B103: RWP | C103: WORCESTERSHIRE ACUTE HOSPITALS NHS TRUST | D103: RWP50 | E103: Worcestershire Royal Hospital - RWP50 | F103: 122 | G103: 0.9836065574 | H103: 0.01639344262 | I103: 102 | J103: 18 | K103: 0 | L103: 1 | M103: 1 | N103: 0
A104: Q77 | B104: RLQ | C104: WYE VALLEY NHS TRUST | D104: RLQ01 | E104: Hereford County Hospital - RLQ01 | F104: 29 | G104: 0.8620689655 | H104: 0.06896551724 | I104: * | J104: * | K104: * | L104: * | M104: * | N104: *
A105: Q78 | B105: RC1 | C105: BEDFORD HOSPITAL NHS TRUST | D105: RC110 | E105: Bedford Hospital South Wing - RC110 | F105: 55 | G105: 0.9090909091 | H105: 0.03636363636 | I105: 43 | J105: 7 | K105: 2 | L105: 2 | M105: 0 | N105: 1
A106: Q78 | B106: RWH | C106: EAST AND NORTH HERTFORDSHIRE NHS TRUST | D106: RWH01 | E106: Lister Hospital - RWH01 | F106: 156 | G106: 0.9166666667 | H106: 0.01282051282 | I106: 86 | J106: 57 | K106: 10 | L106: 2 | M106: 0 | N106: 1
A107: Q78 | B107: RNQ | C107: KETTERING GENERAL HOSPITAL NHS FOUNDATION TRUST | D107: RNQ51 | E107: Kettering General Hospital - RNQ51 | F107: 24 | G107: 1 | H107: 0 | I107: 22 | J107: 2 | K107: 0 | L107: 0 | M107: 0 | N107: 0
A108: Q78 | B108: RC9 | C108: LUTON AND DUNSTABLE UNIVERSITY HOSPITAL NHS FOUNDATION TRUST | D108: RC971 | E108: Luton and Dunstable Hospital - RC971 | F108: 208 | G108: 0.9567307692 | H108: 0.01442307692 | I108: 132 | J108: 67 | K108: 5 | L108: 0 | M108: 3 | N108: 1
A109: Q78 | B109: RD8 | C109: MILTON KEYNES UNIVERSITY HOSPITAL NHS FOUNDATION TRUST | D109: RD816 | E109: Milton Keynes Hospital - RD816 | F109: 74 | G109: 0.9459459459 | H109: 0 | I109: 41 | J109: 29 | K109: 4 | L109: 0 | M109: 0 | N109: 0
A110: Q78 | B110: RNS | C110: NORTHAMPTON GENERAL HOSPITAL NHS TRUST | D110: RNS01 | E110: Northampton General Hospital (Acute) - RNS01 | F110: 108 | G110: 0.962962963 | H110: 0.01851851852 | I110: 91 | J110: 13 | K110: 2 | L110: 1 | M110: 1 | N110: 0
A111: Q78 | B111: RWD | C111: UNITED LINCOLNSHIRE HOSPITALS NHS TRUST | D111: RWDLP | E111: Grantham and District Hospital - RWDLP | F111: 0 | G111: NA | H111: NA | I111: 0 | J111: 0 | K111: 0 | L111: 0 | M111: 0 | N111: 0
A112: Q78 | B112: RWD | C112: UNITED LINCOLNSHIRE HOSPITALS NHS TRUST | D112: RWDDA | E112: Lincoln County Hospital - RWDDA | F112: 18 | G112: 0.8888888889 | H112: 0.1111111111 | I112: 12 | J112: 4 | K112: 0 | L112: 0 | M112: 2 | N112: 0
A113: Q78 | B113: RWD | C113: UNITED LINCOLNSHIRE HOSPITALS NHS TRUST | D113: RWDLA | E113: Pilgrim Hospital - RWDLA | F113: 23 | G113: 1 | H113: 0 | I113: 20 | J113: 3 | K113: 0 | L113: 0 | M113: 0 | N113: 0
A114: Q78 | B114: RWE | C114: UNIVERSITY HOSPITALS OF LEICESTER NHS TRUST | D114: RWEAK | E114: Leicester General Hospital - RWEAK | F114: 136 | G114: 0.9264705882 | H114: 0.02941176471 | I114: 92 | J114: 34 | K114: 5 | L114: 2 | M114: 2 | N114: 1
A115: Q78 | B115: RWE | C115: UNIVERSITY HOSPITALS OF LEICESTER NHS TRUST | D115: RWEAA | E115: Leicester Royal Infirmary - RWEAA | F115: 272 | G115: 0.8529411765 | H115: 0.04411764706 | I115: 143 | J115: 89 | K115: 18 | L115: 7 | M115: 5 | N115: 10
A116: Q78 | B116: RWE | C116: UNIVERSITY HOSPITALS OF LEICESTER NHS TRUST | D116: RWE10 | E116: St Mary's Hospital - RWE10 | F116: 20 | G116: 1 | H116: 0 | I116: 19 | J116: 1 | K116: 0 | L116: 0 | M116: 0 | N116: 0
A117: Q78 | B117: RWG | C117: WEST HERTFORDSHIRE HOSPITALS NHS TRUST | D117: RWG02 | E117: Watford General Hospital - RWG02 | F117: 80 | G117: 0.9625 | H117: 0.0125 | I117: 60 | J117: 17 | K117: 2 | L117: 1 | M117: 0 | N117: 0
A118: Q79 | B118: RDD | C118: BASILDON AND THURROCK UNIVERSITY HOSPITALS NHS FOUNDATION TRUST | D118: RDDH0 | E118: Basildon University Hospital - RDDH0 | F118: 216 | G118: 0.9675925926 | H118: 0.01388888889 | I118: 156 | J118: 53 | K118: 3 | L118: 0 | M118: 3 | N118: 1
A119: Q79 | B119: RGT | C119: CAMBRIDGE UNIVERSITY HOSPITALS NHS FOUNDATION TRUST | D119: RGT32 | E119: Rosie Hospital - RGT32 | F119: 228 | G119: 0.9035087719 | H119: 0.01754385965 | I119: 126 | J119: 80 | K119: 14 | L119: 3 | M119: 1 | N119: 4
A120: Q79 | B120: RDE | C120: EAST SUFFOLK AND NORTH ESSEX NHS FOUNDATION TRUST | D120: RDEE4 | E120: Colchester General Hospital - RDEE4 | F120: 23 | G120: 1 | H120: 0 | I120: 17 | J120: 6 | K120: 0 | L120: 0 | M120: 0 | N120: 0
A121: Q79 | B121: RDE | C121: EAST SUFFOLK AND NORTH ESSEX NHS FOUNDATION TRUST | D121: RDE03 | E121: Ipswich Hospital - RDE03 | F121: 105 | G121: 0.9523809524 | H121: 0.009523809524 | I121: 86 | J121: 14 | K121: 4 | L121: 1 | M121: 0 | N121: 0
A122: Q79 | B122: RGP | C122: JAMES PAGET UNIVERSITY HOSPITALS NHS FOUNDATION TRUST | D122: RGP75 | E122: James Paget University Hospital - RGP75 | F122: 17 | G122: 1 | H122: 0 | I122: 16 | J122: 1 | K122: 0 | L122: 0 | M122: 0 | N122: 0
A123: Q79 | B123: RQ8 | C123: MID ESSEX HOSPITAL SERVICES NHS TRUST | D123: RQ8L0 | E123: Broomfield Hospital - RQ8L0 | F123: 53 | G123: 0.9622641509 | H123: 0.01886792453 | I123: 47 | J123: 4 | K123: 0 | L123: 1 | M123: 0 | N123: 1
A124: Q79 | B124: RM1 | C124: NORFOLK AND NORWICH UNIVERSITY HOSPITALS NHS FOUNDATION TRUST | D124: RM102 | E124: Norfolk and Norwich University Hospital - RM102 | F124: 46 | G124: 0.9782608696 | H124: 0 | I124: 43 | J124: 2 | K124: 1 | L124: 0 | M124: 0 | N124: 0
A125: Q79 | B125: RGN | C125: NORTH WEST ANGLIA NHS FOUNDATION TRUST | D125: RGN90 | E125: Hinchingbrooke Hospital - RGN90 | F125: 21 | G125: 0.9523809524 | H125: 0 | I125: 19 | J125: 1 | K125: 0 | L125: 0 | M125: 0 | N125: 1
A126: Q79 | B126: RGN | C126: NORTH WEST ANGLIA NHS FOUNDATION TRUST | D126: RGN80 | E126: Peterborough City Hospital - RGN80 | F126: 88 | G126: 0.9659090909 | H126: 0 | I126: 65 | J126: 20 | K126: 1 | L126: 0 | M126: 0 | N126: 2
A127: Q79 | B127: RAJ | C127: SOUTHEND UNIVERSITY HOSPITAL NHS FOUNDATION TRUST | D127: RAJ01 | E127: Southend Hospital - RAJ01 | F127: 120 | G127: 0.95 | H127: 0.025 | I127: 100 | J127: 14 | K127: 2 | L127: 1 | M127: 2 | N127: 1
A128: Q79 | B128: RQW | C128: THE PRINCESS ALEXANDRA HOSPITAL NHS TRUST | D128: RQWG0 | E128: Princess Alexandra Hospital - RQWG0 | F128: 191 | G128: 0.9947643979 | H128: 0 | I128: 182 | J128: 8 | K128: 1 | L128: 0 | M128: 0 | N128: 0
A129: Q79 | B129: RCX | C129: THE QUEEN ELIZABETH HOSPITAL, KING'S LYNN, NHS FOUNDATION TRUST | D129: RCX70 | E129: The Queen Elizabeth Hospital - RCX70 | F129: 47 | G129: 0.9574468085 | H129: 0 | I129: 37 | J129: 8 | K129: 2 | L129: 0 | M129: 0 | N129: 0
A130: Q79 | B130: RGR | C130: WEST SUFFOLK NHS FOUNDATION TRUST | D130: RGR50 | E130: West Suffolk Hospital - RGR50 | F130: 7 | G130: 1 | H130: 0 | I130: 5 | J130: 2 | K130: 0 | L130: 0 | M130: 0 | N130: 0
A131: Q83 | B131: RMC | C131: BOLTON NHS FOUNDATION TRUST | D131: RMC01 | E131: Royal Bolton Hospital - RMC01 | F131: 74 | G131: 0.9324324324 | H131: 0.05405405405 | I131: 57 | J131: 12 | K131: 1 | L131: 2 | M131: 2 | N131: 0
A132: Q83 | B132: RY2 | C132: BRIDGEWATER COMMUNITY HEALTHCARE NHS FOUNDATION TRUST | D132: RY28P | E132: Health Care Resource Centre - RY28P | F132: 0 | G132: NA | H132: NA | I132: 0 | J132: 0 | K132: 0 | L132: 0 | M132: 0 | N132: 0
A133: Q83 | B133: R0A | C133: MANCHESTER UNIVERSITY NHS FOUNDATION TRUST | D133: R0A05 | E133: St Mary's Hospital - R0A05 | F133: 421 | G133: 0.9928741093 | H133: 0.004750593824 | I133: 374 | J133: 44 | K133: 1 | L133: 1 | M133: 1 | N133: 0
A134: Q83 | B134: RW6 | C134: PENNINE ACUTE HOSPITALS NHS TRUST | D134: RW602 | E134: North Manchester General Hospital - RW602 | F134: 21 | G134: 0.8095238095 | H134: 0.1904761905 | I134: 16 | J134: 1 | K134: 0 | L134: 1 | M134: 3 | N134: 0
A135: Q83 | B135: RW6 | C135: PENNINE ACUTE HOSPITALS NHS TRUST | D135: RW603 | E135: Royal Oldham Hospital - RW603 | F135: 27 | G135: 0.962962963 | H135: 0.03703703704 | I135: 22 | J135: 4 | K135: 0 | L135: 0 | M135: 1 | N135: 0
A136: Q83 | B136: RWJ | C136: STOCKPORT NHS FOUNDATION TRUST | D136: RWJ09 | E136: Stepping Hill Hospital - RWJ09 | F136: 45 | G136: 1 | H136: 0 | I136: 40 | J136: 5 | K136: 0 | L136: 0 | M136: 0 | N136: 0
A137: Q83 | B137: RMP | C137: TAMESIDE AND GLOSSOP INTEGRATED CARE NHS FOUNDATION TRUST | D137: RMP01 | E137: Tameside General Hospital - RMP01 | F137: 19 | G137: 0.6842105263 | H137: 0.05263157895 | I137: 7 | J137: 6 | K137: 5 | L137: 1 | M137: 0 | N137: 0
A138: Q83 | B138: RRF | C138: WRIGHTINGTON, WIGAN AND LEIGH NHS FOUNDATION TRUST | D138: RRF02 | E138: Royal Albert Edward Infirmary - RRF02 | F138: 67 | G138: 0.9701492537 | H138: 0 | I138: 56 | J138: 9 | K138: 2 | L138: 0 | M138: 0 | N138: 0
A139: Q84 | B139: RXL | C139: BLACKPOOL TEACHING HOSPITALS NHS FOUNDATION TRUST | D139: RXL01 | E139: Blackpool Victoria Hospital - RXL01 | F139: 33 | G139: 0.9090909091 | H139: 0 | I139: 21 | J139: 9 | K139: 3 | L139: 0 | M139: 0 | N139: 0
A140: Q84 | B140: RXR | C140: EAST LANCASHIRE HOSPITALS NHS TRUST | D140: RXR20 | E140: Royal Blackburn Hospital - RXR20 | F140: 102 | G140: 0.9901960784 | H140: 0.009803921569 | I140: 88 | J140: 13 | K140: 0 | L140: 1 | M140: 0 | N140: 0
A141: Q84 | B141: RXN | C141: LANCASHIRE TEACHING HOSPITALS NHS FOUNDATION TRUST | D141: RXN01 | E141: Chorley and South Ribble Hospital - RXN01 | F141: 1 | G141: * | H141: * | I141: * | J141: * | K141: * | L141: * | M141: * | N141: *
A142: Q84 | B142: RXN | C142: LANCASHIRE TEACHING HOSPITALS NHS FOUNDATION TRUST | D142: RXN02 | E142: Royal Preston Hospital - RXN02 | F142: 16 | G142: 1 | H142: 0 | I142: * | J142: * | K142: * | L142: * | M142: * | N142: *
A143: Q84 | B143: RTX | C143: UNIVERSITY HOSPITALS OF MORECAMBE BAY NHS FOUNDATION TRUST | D143: RTXBU | E143: Furness General Hospital - RTXBU | F143: 20 | G143: 1 | H143: 0 | I143: 20 | J143: 0 | K143: 0 | L143: 0 | M143: 0 | N143: 0
A144: Q84 | B144: RTX | C144: UNIVERSITY HOSPITALS OF MORECAMBE BAY NHS FOUNDATION TRUST | D144: RTX02 | E144: Royal Lancaster Infirmary - RTX02 | F144: 22 | G144: 0.9090909091 | H144: 0.04545454545 | I144: 16 | J144: 4 | K144: 1 | L144: 1 | M144: 0 | N144: 0
A145: Q85 | B145: RBD | C145: DORSET COUNTY HOSPITAL NHS FOUNDATION TRUST | D145: RBD01 | E145: Dorset County Hospital - RBD01 | F145: 36 | G145: 0.9722222222 | H145: 0 | I145: 31 | J145: 4 | K145: 1 | L145: 0 | M145: 0 | N145: 0
A146: Q85 | B146: RBZ | C146: NORTHERN DEVON HEALTHCARE NHS TRUST | D146: RBZ12 | E146: North Devon District Hospital - RBZ12 | F146: 57 | G146: 1 | H146: 0 | I146: 50 | J146: 7 | K146: 0 | L146: 0 | M146: 0 | N146: 0
A147: Q85 | B147: RD3 | C147: POOLE HOSPITAL NHS FOUNDATION TRUST | D147: RD304 | E147: Poole General Hospital NHS Trust HQ - RD304 | F147: 32 | G147: 1 | H147: 0 | I147: 30 | J147: 2 | K147: 0 | L147: 0 | M147: 0 | N147: 0
A148: Q85 | B148: REF | C148: ROYAL CORNWALL HOSPITALS NHS TRUST | D148: REF12 | E148: Royal Cornwall Hospital (Treliske) - REF12 | F148: 40 | G148: 0.95 | H148: 0.025 | I148: 28 | J148: 10 | K148: 1 | L148: 1 | M148: 0 | N148: 0
A149: Q85 | B149: RH8 | C149: ROYAL DEVON AND EXETER NHS FOUNDATION TRUST | D149: RH854 | E149: Honiton Hospital - RH 854 | F149: 0 | G149: NA | H149: NA | I149: 0 | J149: 0 | K149: 0 | L149: 0 | M149: 0 | N149: 0
A150: Q85 | B150: RH8 | C150: ROYAL DEVON AND EXETER NHS FOUNDATION TRUST | D150: RH833 | E150: Okehampton Community Hospital - RH833 | F150: 0 | G150: NA | H150: NA | I150: 0 | J150: 0 | K150: 0 | L150: 0 | M150: 0 | N150: 0
A151: Q85 | B151: RH8 | C151: ROYAL DEVON AND EXETER NHS FOUNDATION TRUST | D151: RH801 | E151: Royal Devon and Exeter Hospital (Wonford) - RH801 | F151: 0 | G151: NA | H151: NA | I151: 0 | J151: 0 | K151: 0 | L151: 0 | M151: 0 | N151: 0
A152: Q85 | B152: RH8 | C152: ROYAL DEVON AND EXETER NHS FOUNDATION TRUST | D152: RH853 | E152: Tiverton and District Hospital - RH853 | F152: 0 | G152: NA | H152: NA | I152: 0 | J152: 0 | K152: 0 | L152: 0 | M152: 0 | N152: 0
A153: Q85 | B153: RBA | C153: TAUNTON AND SOMERSET NHS FOUNDATION TRUST | D153: RBAC3 | E153: Bridgwater Hospital - RBAC3 | F153: 1 | G153: * | H153: * | I153: * | J153: * | K153: * | L153: * | M153: * | N153: *
A154: Q85 | B154: RBA | C154: TAUNTON AND SOMERSET NHS FOUNDATION TRUST | D154: RBA11 | E154: Musgrove Park Hospital - RBA11 | F154: 74 | G154: 0.972972973 | H154: 0 | I154: * | J154: * | K154: * | L154: * | M154: * | N154: *
A155: Q85 | B155: RDZ | C155: THE ROYAL BOURNEMOUTH AND CHRISTCHURCH HOSPITALS NHS FOUNDATION TRUST | D155: RDZ20 | E155: Royal Bournemouth General Hospital - RDZ20 | F155: 0 | G155: NA | H155: NA | I155: 0 | J155: 0 | K155: 0 | L155: 0 | M155: 0 | N155: 0
A156: Q85 | B156: RA9 | C156: TORBAY AND SOUTH DEVON NHS FOUNDATION TRUST | D156: RA901 | E156: Torbay Hospital - RA901 | F156: 6 | G156: 1 | H156: 0 | I156: 6 | J156: 0 | K156: 0 | L156: 0 | M156: 0 | N156: 0
A157: Q85 | B157: RK9 | C157: UNIVERSITY HOSPITALS PLYMOUTH NHS TRUST | D157: RK950 | E157: Derriford Hospital - RK950 | F157: 145 | G157: 0.9448275862 | H157: 0.006896551724 | I157: 101 | J157: 36 | K157: 7 | L157: 1 | M157: 0 | N157: 0
A158: Q85 | B158: RA4 | C158: YEOVIL DISTRICT HOSPITAL NHS FOUNDATION TRUST | D158: RA430 | E158: Yeovil District Hospital - RA430 | F158: 57 | G158: 0.9649122807 | H158: 0 | I158: 46 | J158: 9 | K158: 2 | L158: 0 | M158: 0 | N158: 0
A159: Q86 | B159: RTE | C159: GLOUCESTERSHIRE HOSPITALS NHS FOUNDATION TRUST | D159: RTE03 | E159: Gloucestershire Royal Hospital - RTE03 | F159: 48 | G159: 0.8958333333 | H159: 0.04166666667 | I159: 39 | J159: 4 | K159: 3 | L159: 1 | M159: 1 | N159: 0
A160: Q86 | B160: RTE | C160: GLOUCESTERSHIRE HOSPITALS NHS FOUNDATION TRUST | D160: RTE27 | E160: Stroud Maternity Hospital - RTE27 | F160: 13 | G160: 0.9230769231 | H160: 0 | I160: 10 | J160: 2 | K160: 1 | L160: 0 | M160: 0 | N160: 0
A161: Q86 | B161: RN3 | C161: GREAT WESTERN HOSPITALS NHS FOUNDATION TRUST | D161: RN325 | E161: The Great Western Hospital - RN325 | F161: 5 | G161: 1 | H161: 0 | I161: * | J161: * | K161: * | L161: * | M161: * | N161: *
A162: Q86 | B162: RVJ | C162: NORTH BRISTOL NHS TRUST | D162: RVJ01 | E162: Southmead Hospital - RVJ01 | F162: 81 | G162: 0.9135802469 | H162: 0.04938271605 | I162: 66 | J162: 8 | K162: 3 | L162: 3 | M162: 1 | N162: 0
A163: Q86 | B163: RD1 | C163: ROYAL UNITED HOSPITALS BATH NHS FOUNDATION TRUST | D163: RD102 | E163: Chippenham Community Hospital -RD102 | F163: 12 | G163: 0.9166666667 | H163: 0.08333333333 | I163: 11 | J163: 0 | K163: 0 | L163: 1 | M163: 0 | N163: 0
A164: Q86 | B164: RD1 | C164: ROYAL UNITED HOSPITALS BATH NHS FOUNDATION TRUST | D164: RD129 | E164: Paulton Memorial Hospital - RD129 | F164: 6 | G164: 1 | H164: 0 | I164: 6 | J164: 0 | K164: 0 | L164: 0 | M164: 0 | N164: 0
A165: Q86 | B165: RD1 | C165: ROYAL UNITED HOSPITALS BATH NHS FOUNDATION TRUST | D165: RD130 | E165: Princess Anne Wing RUH - RD130 | F165: 42 | G165: 1 | H165: 0 | I165: 37 | J165: 5 | K165: 0 | L165: 0 | M165: 0 | N165: 0
A166: Q86 | B166: RNZ | C166: SALISBURY NHS FOUNDATION TRUST | D166: RNZ02 | E166: Salisbury District Hospital - RNZ02 | F166: 2 | G166: * | H166: * | I166: * | J166: * | K166: * | L166: * | M166: * | N166: *
A167: Q86 | B167: RA7 | C167: UNIVERSITY HOSPITALS BRISTOL NHS FOUNDATION TRUST | D167: RA707 | E167: St Michael's Hospital - RA707 | F167: 72 | G167: 0.9722222222 | H167: 0 | I167: 62 | J167: 8 | K167: 2 | L167: 0 | M167: 0 | N167: 0
A168: Q86 | B168: RA3 | C168: WESTON AREA HEALTH NHS TRUST | D168: RA301 | E168: Weston General Hospital - RA301 | F168: 0 | G168: NA | H168: NA | I168: 0 | J168: 0 | K168: 0 | L168: 0 | M168: 0 | N168: 0
A169: Q87 | B169: RXQ | C169: BUCKINGHAMSHIRE HEALTHCARE NHS TRUST | D169: RXQ02 | E169: Stoke Mandeville Hospital - RXQ02 | F169: 26 | G169: 0.9615384615 | H169: 0 | I169: 22 | J169: 3 | K169: 1 | L169: 0 | M169: 0 | N169: 0
A170: Q87 | B170: RDU | C170: FRIMLEY HEALTH NHS FOUNDATION TRUST | D170: RDU01 | E170: Frimley Park Hospital - RDU01 | F170: 289 | G170: 0.9653979239 | H170: 0.003460207612 | I170: 231 | J170: 48 | K170: 8 | L170: 1 | M170: 0 | N170: 1
A171: Q87 | B171: RDU | C171: FRIMLEY HEALTH NHS FOUNDATION TRUST | D171: RDU50 | E171: Wexham Park Hospital - RDU50 | F171: 45 | G171: 0.9555555556 | H171: 0.02222222222 | I171: 36 | J171: 7 | K171: 1 | L171: 0 | M171: 1 | N171: 0
A172: Q87 | B172: RN5 | C172: HAMPSHIRE HOSPITALS NHS FOUNDATION TRUST | D172: RN506 | E172: Basingstoke and North Hampshire Hospital - RN506 | F172: 116 | G172: 0.9224137931 | H172: 0.01724137931 | I172: 96 | J172: 11 | K172: 6 | L172: 2 | M172: 0 | N172: 1
A173: Q87 | B173: RN5 | C173: HAMPSHIRE HOSPITALS NHS FOUNDATION TRUST | D173: RN541 | E173: Royal Hampshire County Hospital - RN541 | F173: 40 | G173: 0.975 | H173: 0 | I173: 36 | J173: 3 | K173: 1 | L173: 0 | M173: 0 | N173: 0
A174: Q87 | B174: R1F | C174: ISLE OF WIGHT NHS TRUST | D174: R1F01 | E174: St Mary's Hospital - R1F01 | F174: 13 | G174: 1 | H174: 0 | I174: 12 | J174: 1 | K174: 0 | L174: 0 | M174: 0 | N174: 0
A175: Q87 | B175: RTH | C175: OXFORD UNIVERSITY HOSPITALS NHS FOUNDATION TRUST | D175: RTH19 | E175: Chipping Norton Community Hospital - RTH19 | F175: 6 | G175: 0.8333333333 | H175: 0 | I175: * | J175: * | K175: * | L175: * | M175: * | N175: *
A176: Q87 | B176: RTH | C176: OXFORD UNIVERSITY HOSPITALS NHS FOUNDATION TRUST | D176: RTH05 | E176: Horton General Hospital - RTH05 | F176: 0 | G176: NA | H176: NA | I176: 0 | J176: 0 | K176: 0 | L176: 0 | M176: 0 | N176: 0
A177: Q87 | B177: RTH | C177: OXFORD UNIVERSITY HOSPITALS NHS FOUNDATION TRUST | D177: RTH08 | E177: John Radcliffe Hospital - RTH08 | F177: 17 | G177: 0.8235294118 | H177: 0 | I177: 12 | J177: 2 | K177: 1 | L177: 0 | M177: 0 | N177: 2
A178: Q87 | B178: RTH | C178: OXFORD UNIVERSITY HOSPITALS NHS FOUNDATION TRUST | D178: RTH16 | E178: Wallingford Community Hospital - RTH16 | F178: 1 | G178: * | H178: * | I178: * | J178: * | K178: * | L178: * | M178: * | N178: *
A179: Q87 | B179: RTH | C179: OXFORD UNIVERSITY HOSPITALS NHS FOUNDATION TRUST | D179: RTH21 | E179: Wantage Community Hospital - RTH21 | F179: 0 | G179: NA | H179: NA | I179: 0 | J179: 0 | K179: 0 | L179: 0 | M179: 0 | N179: 0
A180: Q87 | B180: RHU | C180: PORTSMOUTH HOSPITALS NHS TRUST | D180: RHU10 | E180: Gosport War Memorial Hospital - RHU10 | F180: 0 | G180: NA | H180: NA | I180: 0 | J180: 0 | K180: 0 | L180: 0 | M180: 0 | N180: 0
A181: Q87 | B181: RHU | C181: PORTSMOUTH HOSPITALS NHS TRUST | D181: RHU04 | E181: Petersfield Community Hospital - RHU04 | F181: 0 | G181: NA | H181: NA | I181: 0 | J181: 0 | K181: 0 | L181: 0 | M181: 0 | N181: 0
A182: Q87 | B182: RHU | C182: PORTSMOUTH HOSPITALS NHS TRUST | D182: RHU03 | E182: Queen Alexandra Hospital - RHU03 | F182: 66 | G182: 1 | H182: 0 | I182: 60 | J182: 6 | K182: 0 | L182: 0 | M182: 0 | N182: 0
A183: Q87 | B183: RHU | C183: PORTSMOUTH HOSPITALS NHS TRUST | D183: RHU02 | E183: St Mary's Hospital - RHU02 | F183: 0 | G183: NA | H183: NA | I183: 0 | J183: 0 | K183: 0 | L183: 0 | M183: 0 | N183: 0
A184: Q87 | B184: RHW | C184: ROYAL BERKSHIRE NHS FOUNDATION TRUST | D184: RHW01 | E184: Royal Berkshire Hospital - RHW01 | F184: 76 | G184: 0.9473684211 | H184: 0 | I184: 47 | J184: 25 | K184: 3 | L184: 0 | M184: 0 | N184: 1
A185: Q87 | B185: RHM | C185: UNIVERSITY HOSPITAL SOUTHAMPTON NHS FOUNDATION TRUST | D185: RHM12 | E185: Princess Anne Hospital - RHM12 | F185: 160 | G185: 0.8375 | H185: 0.09375 | I185: 92 | J185: 42 | K185: 8 | L185: 11 | M185: 4 | N185: 3
A186: Q88 | B186: RXH | C186: BRIGHTON AND SUSSEX UNIVERSITY HOSPITALS NHS TRUST | D186: RXH09 | E186: Princess Royal Hospital - RXH09 | F186: 42 | G186: 0.9047619048 | H186: 0.07142857143 | I186: 35 | J186: 3 | K186: 1 | L186: 3 | M186: 0 | N186: 0
A187: Q88 | B187: RXH | C187: BRIGHTON AND SUSSEX UNIVERSITY HOSPITALS NHS TRUST | D187: RXH01 | E187: Royal Sussex County Hospital - RXH01 | F187: 40 | G187: 0.95 | H187: 0.05 | I187: 34 | J187: 4 | K187: 0 | L187: 0 | M187: 2 | N187: 0
A188: Q88 | B188: RN7 | C188: DARTFORD AND GRAVESHAM NHS TRUST | D188: RN707 | E188: Darent Valley Hospital - RN707 | F188: 92 | G188: 1 | H188: 0 | I188: 75 | J188: 17 | K188: 0 | L188: 0 | M188: 0 | N188: 0
A189: Q88 | B189: RVV | C189: EAST KENT HOSPITALS UNIVERSITY NHS FOUNDATION TRUST | D189: RVV09 | E189: Queen Elizabeth The Queen Mother Hospital - RVV09 | F189: 99 | G189: 0.9696969697 | H189: 0.0101010101 | I189: 88 | J189: 8 | K189: 1 | L189: 1 | M189: 0 | N189: 1
A190: Q88 | B190: RVV | C190: EAST KENT HOSPITALS UNIVERSITY NHS FOUNDATION TRUST | D190: RVV01 | E190: William Harvey Hospital (Ashford) - RVV01 | F190: 56 | G190: 0.9464285714 | H190: 0.03571428571 | I190: 48 | J190: 5 | K190: 1 | L190: 2 | M190: 0 | N190: 0
A191: Q88 | B191: RXC | C191: EAST SUSSEX HEALTHCARE NHS TRUST | D191: RXC01 | E191: Conquest Hospital - RXC01 | F191: 11 | G191: 0.9090909091 | H191: 0 | I191: 6 | J191: 4 | K191: 0 | L191: 0 | M191: 0 | N191: 1
A192: Q88 | B192: RXC | C192: EAST SUSSEX HEALTHCARE NHS TRUST | D192: RXC02 | E192: Eastbourne District General Hospital - RXC02 | F192: 0 | G192: NA | H192: NA | I192: 0 | J192: 0 | K192: 0 | L192: 0 | M192: 0 | N192: 0
A193: Q88 | B193: RWF | C193: MAIDSTONE AND TUNBRIDGE WELLS NHS TRUST | D193: RWFTW | E193: The Tunbridge Wells Hospital - RWFTW | F193: 35 | G193: 0.9714285714 | H193: 0 | I193: 29 | J193: 5 | K193: 1 | L193: 0 | M193: 0 | N193: 0
A194: Q88 | B194: RPA | C194: MEDWAY NHS FOUNDATION TRUST | D194: RPA02 | E194: Medway Maritime Hospital - RPA02 | F194: 88 | G194: 1 | H194: 0 | I194: 84 | J194: 4 | K194: 0 | L194: 0 | M194: 0 | N194: 0
A195: Q88 | B195: RA2 | C195: ROYAL SURREY COUNTY HOSPITAL NHS FOUNDATION TRUST | D195: RA201 | E195: Royal Surrey County Hospital - RA201 | F195: 63 | G195: 0.9841269841 | H195: 0.01587301587 | I195: 58 | J195: 4 | K195: 0 | L195: 1 | M195: 0 | N195: 0
A196: Q88 | B196: RTP | C196: SURREY AND SUSSEX HEALTHCARE NHS TRUST | D196: RTP04 | E196: East Surrey Hospital - RTP04 | F196: 83 | G196: 0.9518072289 | H196: 0.01204819277 | I196: 59 | J196: 20 | K196: 3 | L196: 0 | M196: 1 | N196: 0
A197: Q88 | B197: RYR | C197: WESTERN SUSSEX HOSPITALS NHS FOUNDATION TRUST | D197: RYR16 | E197: St Richard's Hospital - RYR16 | F197: 128 | G197: 0.9921875 | H197: 0.0078125 | I197: 112 | J197: 15 | K197: 0 | L197: 1 | M197: 0 | N197: 0
A198: Q88 | B198: RYR | C198: WESTERN SUSSEX HOSPITALS NHS FOUNDATION TRUST | D198: RYR18 | E198: Worthing Hospital - RYR18 | F198: 133 | G198: 0.992481203 | H198: 0 | I198: 109 | J198: 23 | K198: 0 | L198: 0 | M198: 0 | N198: 1
A199: zIS1 | B199: NDE | C199: ONE TO ONE (NORTH WEST) LIMITED | D199: NDE01 | E199: One to One (North West) Limited HQ - NDE01 | F199: 0 | G199: NA | H199: NA | I199: 0 | J199: 0 | K199: 0 | L199: 0 | M199: 0 | N199: 0

Sheet Region (Local Office) Q4
B6: Sort data by:
A9: Region (LO) Code | B9: Region (Local Office) | C9: Total Responses | D9: Percentage Recommended | E9: Percentage Not Recommended | F9: Breakdown of Responses
F10: Extremely Likely | G10: Likely | H10: Neither | I10: Unlikely | J10: Extremely Unlikely | K10: Don't Know
B11: England (including Independent Sector providers) | C11: 4256 | D11: 0.9781484962 | E11: 0.009398496241 | F11: 3729 | G11: 434 | H11: 42 | I11: 15 | J11: 25 | K11: 11
B12: England (excluding Independent Sector providers) | C12: 4192 | D12: 0.9778148855 | E12: 0.009541984733 | F12: 3669 | G12: 430 | H12: 42 | I12: 15 | J12: 25 | K12: 11
B13: Selection (excluding suppressed data) | C13: =SUBTOTAL(9,C14:C40) -> 4256 | D13: =IFERROR((F13+G13)/SUM(F13:K13), "-") -> 0.9781484962 | E13: =IFERROR((I13+J13)/SUM(F13:K13), "-") -> 0.009398496241 | F13: =SUBTOTAL(9,F14:F40) -> 3729 | G13: 434 | H13: 42 | I13: 15 | J13: 25 | K13: 11
A14: Q72 | B14: NHS England Yorkshire & Humber | C14: 453 | D14: 0.9977924945 | E14: 0 | F14: 406 | G14: 46 | H14: 1 | I14: 0 | J14: 0 | K14: 0
A15: Q74 | B15: NHS England Cumbria & North East | C15: 94 | D15: 0.9574468085 | E15: 0 | F15: 86 | G15: 4 | H15: 3 | I15: 0 | J15: 0 | K15: 1
A16: Q75 | B16: NHS England Cheshire & Merseyside | C16: 111 | D16: 0.981981982 | E16: 0.009009009009 | F16: 103 | G16: 6 | H16: 1 | I16: 0 | J16: 1 | K16: 0
A17: Q83 | B17: NHS England Greater Manchester | C17: 267 | D17: 0.9513108614 | E17: 0.03370786517 | F17: 236 | G17: 18 | H17: 3 | I17: 3 | J17: 6 | K17: 1
A18: Q84 | B18: NHS England Lancashire | C18: 168 | D18: 0.9345238095 | E18: 0.04761904762 | F18: 141 | G18: 16 | H18: 3 | I18: 2 | J18: 6 | K18: 0
A19: Q76 | B19: NHS England North Midlands | C19: 425 | D19: 0.9882352941 | E19: 0.002352941176 | F19: 380 | G19: 40 | H19: 3 | I19: 0 | J19: 1 | K19: 1
A20: Q77 | B20: NHS England West Midlands | C20: 245 | D20: 0.9795918367 | E20: 0.008163265306 | F20: 220 | G20: 20 | H20: 2 | I20: 1 | J20: 1 | K20: 1
A21: Q78 | B21: NHS England Central Midlands | C21: 323 | D21: 0.9814241486 | E21: 0.003095975232 | F21: 284 | G21: 33 | H21: 4 | I21: 1 | J21: 0 | K21: 1
A22: Q79 | B22: NHS England East | C22: 461 | D22: 0.9848156182 | E22: 0.006507592191 | F22: 407 | G22: 47 | H22: 2 | I22: 2 | J22: 1 | K22: 2
A23: Q85 | B23: NHS England South West (South West South) | C23: 194 | D23: 0.9742268041 | E23: 0.01030927835 | F23: 166 | G23: 23 | H23: 3 | I23: 0 | J23: 2 | K23: 0
A24: Q86 | B24: NHS England South West (South West North) | C24: 230 | D24: 0.9695652174 | E24: 0.01739130435 | F24: 201 | G24: 22 | H24: 1 | I24: 2 | J24: 2 | K24: 2
A25: Q87 | B25: NHS England South East (Hampshire, Isle Of Wight & Thames Valley) | C25: 328 | D25: 0.9603658537 | E25: 0.01219512195 | F25: 274 | G25: 41 | H25: 9 | I25: 3 | J25: 1 | K25: 0
A26: Q88 | B26: NHS England South East (Kent, Surrey & Sussex) | C26: 149 | D26: 0.9597315436 | E26: 0.02684563758 | F26: 132 | G26: 11 | H26: 1 | I26: 1 | J26: 3 | K26: 1
A27: Q71 | B27: NHS England London | C27: 744 | D27: 0.9892473118 | E27: 0.001344086022 | F27: 633 | G27: 103 | H27: 6 | I27: 0 | J27: 1 | K27: 1
A28: zIS1 | B28: Independent Sector Provider | C28: 64 | D28: 1 | E28: 0 | F28: 60 | G28: 4 | H28: 0 | I28: 0 | J28: 0 | K28: 0

Sheet Trusts Q4
B6: Sort data by:
A9: Region (LO) Code | B9: Trust Code | C9: Trust Name | D9: Total Responses | E9: Percentage Recommended | F9: Percentage Not Recommended | G9: Breakdown of Responses | M9: Mode of Collection
G10: Extremely Likely | H10: Likely | I10: Neither | J10: Unlikely | K10: Extremely Unlikely | L10: Don't Know | M10: SMS/Text / Smartphone App | N10: Electronic tablet/kiosk at point of discharge | O10: Paper / postcard at point of discharge | P10: Paper survey sent to the patients home | Q10: Telephone survey once patient is home | R10: Online survey once patient is home | S10: Other
C11: England (including Independent Sector providers) | D11: 4256 | E11: 0.9781484962 | F11: 0.009398496241 | G11: 3729 | H11: 434 | I11: 42 | J11: 15 | K11: 25 | L11: 11 | M11: 474 | N11: 343 | O11: 3173 | P11: 0 | Q11: 23 | R11: 225 | S11: 18
C12: England (excluding Independent Sector providers) | D12: 4192 | E12: 0.9778148855 | F12: 0.009541984733 | G12: 3669 | H12: 430 | I12: 42 | J12: 15 | K12: 25 | L12: 11 | M12: 474 | N12: 279 | O12: 3173 | P12: 0 | Q12: 23 | R12: 225 | S12: 18
C13: Selection (excluding suppressed data) | D13: =SUBTOTAL(9,D14:D299) -> 4256 | E13: =IFERROR((G13+H13)/SUM(G13:L13), "-") -> 0.978545888 | F13: =IFERROR((J13+K13)/SUM(G13:L13), "-") -> 0.009296781883 | G13: =SUBTOTAL(9,G14:G299) -> 3674 | H13: 431 | I13: 42 | J13: 14 | K13: 25 | L13: 9 | M13: 474 | N13: 341 | O13: 3116 | P13: 0 | Q13: 23 | R13: 223 | S13: 18
A14: Q71 | B14: R1K | C14: LONDON NORTH WEST UNIVERSITY HEALTHCARE NHS TRUST | D14: 0 | E14: NA | F14: NA | G14: 0 | H14: 0 | I14: 0 | J14: 0 | K14: 0 | L14: 0 | M14: 0 | N14: 0 | O14: 0 | P14: 0 | Q14: 0 | R14: 0 | S14: 0
A15: Q71 | B15: RAX | C15: KINGSTON HOSPITAL NHS FOUNDATION TRUST | D15: 0 | E15: NA | F15: NA | G15: 0 | H15: 0 | I15: 0 | J15: 0 | K15: 0 | L15: 0 | M15: 0 | N15: 0 | O15: 0 | P15: 0 | Q15: 0 | R15: 0 | S15: 0
A16: Q71 | B16: RJZ | C16: KING'S COLLEGE HOSPITAL NHS FOUNDATION TRUST | D16: 0 | E16: NA | F16: NA | G16: 0 | H16: 0 | I16: 0 | J16: 0 | K16: 0 | L16: 0 | M16: 0 | N16: 0 | O16: 0 | P16: 0 | Q16: 0 | R16: 0 | S16: 0
A17: Q71 | B17: RRV | C17: UNIVERSITY COLLEGE LONDON HOSPITALS NHS FOUNDATION TRUST | D17: 0 | E17: NA | F17: NA | G17: 0 | H17: 0 | I17: 0 | J17: 0 | K17: 0 | L17: 0 | M17: 0 | N17: 0 | O17: 0 | P17: 0 | Q17: 0 | R17: 0 | S17: 0
A18: Q71 | B18: RJ6 | C18: CROYDON HEALTH SERVICES NHS TRUST | D18: 1 | E18: * | F18: * | G18: * | H18: * | I18: * | J18: * | K18: * | L18: * | M18: * | N18: * | O18: * | P18: * | Q18: * | R18: * | S18: *
A19: Q71 | B19: RJ7 | C19: ST GEORGE'S UNIVERSITY HOSPITALS NHS FOUNDATION TRUST | D19: 2 | E19: * | F19: * | G19: * | H19: * | I19: * | J19: * | K19: * | L19: * | M19: * | N19: * | O19: * | P19: * | Q19: * | R19: * | S19: *
A20: Q71 | B20: RAL | C20: ROYAL FREE LONDON NHS FOUNDATION TRUST | D20: 11 | E20: 1 | F20: 0 | G20: 9 | H20: 2 | I20: 0 | J20: 0 | K20: 0 | L20: 0 | M20: 0 | N20: 0 | O20: 11 | P20: 0 | Q20: 0 | R20: 0 | S20: 0
A21: Q71 | B21: RVR | C21: EPSOM AND ST HELIER UNIVERSITY HOSPITALS NHS TRUST | D21: 11 | E21: 1 | F21: 0 | G21: 9 | H21: 2 | I21: 0 | J21: 0 | K21: 0 | L21: 0 | M21: 0 | N21: 0 | O21: 11 | P21: 0 | Q21: 0 | R21: 0 | S21: 0
A22: Q71 | B22: RJ2 | C22: LEWISHAM AND GREENWICH NHS TRUST | D22: 13 | E22: 1 | F22: 0 | G22: 11 | H22: 2 | I22: 0 | J22: 0 | K22: 0 | L22: 0 | M22: 0 | N22: 0 | O22: 13 | P22: 0 | Q22: 0 | R22: 0 | S22: 0
A23: Q71 | B23: RAS | C23: THE HILLINGDON HOSPITALS NHS FOUNDATION TRUST | D23: 14 | E23: 1 | F23: 0 | G23: 12 | H23: 2 | I23: 0 | J23: 0 | K23: 0 | L23: 0 | M23: 0 | N23: 0 | O23: 13 | P23: 0 | Q23: 0 | R23: 1 | S23: 0
A24: Q71 | B24: RQX | C24: HOMERTON UNIVERSITY HOSPITAL NHS FOUNDATION TRUST | D24: 39 | E24: 1 | F24: 0 | G24: 32 | H24: 7 | I24: 0 | J24: 0 | K24: 0 | L24: 0 | M24: 0 | N24: 0 | O24: 38 | P24: 0 | Q24: 0 | R24: 1 | S24: 0
A25: Q71 | B25: RKE | C25: WHITTINGTON HEALTH NHS TRUST | D25: 45 | E25: 0.9777777778 | F25: 0.02222222222 | G25: 37 | H25: 7 | I25: 0 | J25: 0 | K25: 1 | L25: 0 | M25: 0 | N25: 5 | O25: 40 | P25: 0 | Q25: 0 | R25: 0 | S25: 0
A26: Q71 | B26: RQM | C26: CHELSEA AND WESTMINSTER HOSPITAL NHS FOUNDATION TRUST | D26: 49 | E26: 1 | F26: 0 | G26: 41 | H26: 8 | I26: 0 | J26: 0 | K26: 0 | L26: 0 | M26: 41 | N26: 8 | O26: 0 | P26: 0 | Q26: 0 | R26: 0 | S26: 0
A27: Q71 | B27: RJ1 | C27: GUY'S AND ST THOMAS' NHS FOUNDATION TRUST | D27: 65 | E27: 0.9692307692 | F27: 0 | G27: 51 | H27: 12 | I27: 2 | J27: 0 | K27: 0 | L27: 0 | M27: 0 | N27: 0 | O27: 0 | P27: 0 | Q27: 0 | R27: 65 | S27: 0
A28: Q71 | B28: R1H | C28: BARTS HEALTH NHS TRUST | D28: 87 | E28: 0.9770114943 | F28: 0 | G28: 61 | H28: 24 | I28: 2 | J28: 0 | K28: 0 | L28: 0 | M28: 0 | N28: 0 | O28: 83 | P28: 0 | Q28: 0 | R28: 4 | S28: 0
A29: Q71 | B29: RAP | C29: NORTH MIDDLESEX UNIVERSITY HOSPITAL NHS TRUST | D29: 115 | E29: 1 | F29: 0 | G29: 101 | H29: 14 | I29: 0 | J29: 0 | K29: 0 | L29: 0 | M29: 0 | N29: 0 | O29: 115 | P29: 0 | Q29: 0 | R29: 0 | S29: 0
A30: Q71 | B30: RYJ | C30: IMPERIAL COLLEGE HEALTHCARE NHS TRUST | D30: 122 | E30: 0.9836065574 | F30: 0 | G30: 104 | H30: 16 | I30: 2 | J30: 0 | K30: 0 | L30: 0 | M30: 7 | N30: 0 | O30: 115 | P30: 0 | Q30: 0 | R30: 0 | S30: 0
A31: Q71 | B31: RF4 | C31: BARKING, HAVERING AND REDBRIDGE UNIVERSITY HOSPITALS NHS TRUST | D31: 170 | E31: 1 | F31: 0 | G31: 164 | H31: 6 | I31: 0 | J31: 0 | K31: 0 | L31: 0 | M31: 0 | N31: 0 | O31: 170 | P31: 0 | Q31: 0 | R31: 0 | S31: 0
A32: Q72 | B32: RWA | C32: HULL AND EAST YORKSHIRE HOSPITALS NHS TRUST | D32: 6 | E32: 1 | F32: 0 | G32: 6 | H32: 0 | I32: 0 | J32: 0 | K32: 0 | L32: 0 | M32: 0 | N32: 0 | O32: 6 | P32: 0 | Q32: 0 | R32: 0 | S32: 0
A33: Q72 | B33: RFF | C33: BARNSLEY HOSPITAL NHS FOUNDATION TRUST | D33: 7 | E33: 1 | F33: 0 | G33: 7 | H33: 0 | I33: 0 | J33: 0 | K33: 0 | L33: 0 | M33: 0 | N33: 0 | O33: 7 | P33: 0 | Q33: 0 | R33: 0 | S33: 0
A34: Q72 | B34: RAE | C34: BRADFORD TEACHING HOSPITALS NHS FOUNDATION TRUST | D34: 9 | E34: 1 | F34: 0 | G34: 9 | H34: 0 | I34: 0 | J34: 0 | K34: 0 | L34: 0 | M34: 0 | N34: 0 | O34: 9 | P34: 0 | Q34: 0 | R34: 0 | S34: 0
A35: Q72 | B35: RCF | C35: AIREDALE NHS FOUNDATION TRUST | D35: 10 | E35: 1 | F35: 0 | G35: 9 | H35: 1 | I35: 0 | J35: 0 | K35: 0 | L35: 0 | M35: 0 | N35: 0 | O35: 10 | P35: 0 | Q35: 0 | R35: 0 | S35: 0
A36: Q72 | B36: RR8 | C36: LEEDS TEACHING HOSPITALS NHS TRUST | D36: 15 | E36: 1 | F36: 0 | G36: 15 | H36: 0 | I36: 0 | J36: 0 | K36: 0 | L36: 0 | M36: 0 | N36: 0 | O36: 14 | P36: 0 | Q36: 0 | R36: 1 | S36: 0
A37: Q72 | B37: RCD | C37: HARROGATE AND DISTRICT NHS FOUNDATION TRUST | D37: 21 | E37: 1 | F37: 0 | G37: 19 | H37: 2 | I37: 0 | J37: 0 | K37: 0 | L37: 0 | M37: 0 | N37: 0 | O37: 21 | P37: 0 | Q37: 0 | R37: 0 | S37: 0
A38: Q72 | B38: RJL | C38: NORTHERN LINCOLNSHIRE AND GOOLE NHS FOUNDATION TRUST | D38: 23 | E38: 1 | F38: 0 | G38: 19 | H38: 4 | I38: 0 | J38: 0 | K38: 0 | L38: 0 | M38: 0 | N38: 0 | O38: 0 | P38: 0 | Q38: 23 | R38: 0 | S38: 0
A39: Q72 | B39: RP5 | C39: DONCASTER AND BASSETLAW TEACHING HOSPITALS NHS FOUNDATION TRUST | D39: 24 | E39: 1 | F39: 0 | G39: 23 | H39: 1 | I39: 0 | J39: 0 | K39: 0 | L39: 0 | M39: 0 | N39: 0 | O39: 24 | P39: 0 | Q39: 0 | R39: 0 | S39: 0
A40: Q72 | B40: RHQ | C40: SHEFFIELD TEACHING HOSPITALS NHS FOUNDATION TRUST | D40: 26 | E40: 1 | F40: 0 | G40: 23 | H40: 3 | I40: 0 | J40: 0 | K40: 0 | L40: 0 | M40: 0 | N40: 0 | O40: 26 | P40: 0 | Q40: 0 | R40: 0 | S40: 0
A41: Q72 | B41: RXF | C41: MID YORKSHIRE HOSPITALS NHS TRUST | D41: 48 | E41: 1 | F41: 0 | G41: 43 | H41: 5 | I41: 0 | J41: 0 | K41: 0 | L41: 0 | M41: 0 | N41: 0 | O41: 46 | P41: 0 | Q41: 0 | R41: 2 | S41: 0
A42: Q72 | B42: RFR | C42: THE ROTHERHAM NHS FOUNDATION TRUST | D42: 62 | E42: 1 | F42: 0 | G42: 57 | H42: 5 | I42: 0 | J42: 0 | K42: 0 | L42: 0 | M42: 0 | N42: 0 | O42: 62 | P42: 0 | Q42: 0 | R42: 0 | S42: 0
A43: Q72 | B43: RCB | C43: YORK TEACHING HOSPITAL NHS FOUNDATION TRUST | D43: 66 | E43: 1 | F43: 0 | G43: 62 | H43: 4 | I43: 0 | J43: 0 | K43: 0 | L43: 0 | M43: 0 | N43: 0 | O43: 66 | P43: 0 | Q43: 0 | R43: 0 | S43: 0
A44: Q72 | B44: RWY | C44: CALDERDALE AND HUDDERSFIELD NHS FOUNDATION TRUST | D44: 136 | E44: 0.9926470588 | F44: 0 | G44: 114 | H44: 21 | I44: 1 | J44: 0 | K44: 0 | L44: 0 | M44: 0 | N44: 136 | O44: 0 | P44: 0 | Q44: 0 | R44: 0 | S44: 0
A45: Q74 | B45: RLN | C45: CITY HOSPITALS SUNDERLAND NHS FOUNDATION TRUST | D45: 0 | E45: NA | F45: NA | G45: 0 | H45: 0 | I45: 0 | J45: 0 | K45: 0 | L45: 0 | M45: 0 | N45: 0 | O45: 0 | P45: 0 | Q45: 0 | R45: 0 | S45: 0
A46: Q74 | B46: RR7 | C46: GATESHEAD HEALTH NHS FOUNDATION TRUST | D46: 0 | E46: NA | F46: NA | G46: 0 | H46: 0 | I46: 0 | J46: 0 | K46: 0 | L46: 0 | M46: 0 | N46: 0 | O46: 0 | P46: 0 | Q46: 0 | R46: 0 | S46: 0
A47: Q74 | B47: RTD | C47: THE NEWCASTLE UPON TYNE HOSPITALS NHS FOUNDATION TRUST | D47: 0 | E47: NA | F47: NA | G47: 0 | H47: 0 | I47: 0 | J47: 0 | K47: 0 | L47: 0 | M47: 0 | N47: 0 | O47: 0 | P47: 0 | Q47: 0 | R47: 0 | S47: 0
A48: Q74 | B48: RTR | C48: SOUTH TEES HOSPITALS NHS FOUNDATION TRUST | D48: 3 | E48: * | F48: * | G48: * | H48: * | I48: * | J48: * | K48: * | L48: * | M48: * | N48: * | O48: * | P48: * | Q48: * | R48: * | S48: *
A49: Q74 | B49: RE9 | C49: SOUTH TYNESIDE NHS FOUNDATION TRUST | D49: 6 | E49: 0.8333333333 | F49: 0 | G49: * | H49: * | I49: * | J49: * | K49: * | L49: * | M49: * | N49: * | O49: * | P49: * | Q49: * | R49: * | S49: *
A50: Q74 | B50: RVW | C50: NORTH TEES AND HARTLEPOOL NHS FOUNDATION TRUST | D50: 6 | E50: 1 | F50: 0 | G50: 6 | H50: 0 | I50: 0 | J50: 0 | K50: 0 | L50: 0 | M50: 0 | N50: 0 | O50: 6 | P50: 0 | Q50: 0 | R50: 0 | S50: 0
A51: Q74 | B51: RXP | C51: COUNTY DURHAM AND DARLINGTON NHS FOUNDATION TRUST | D51: 10 | E51: 1 | F51: 0 | G51: 8 | H51: 2 | I51: 0 | J51: 0 | K51: 0 | L51: 0 | M51: 0 | N51: 0 | O51: 10 | P51: 0 | Q51: 0 | R51: 0 | S51: 0
A52: Q74 | B52: RNL | C52: NORTH CUMBRIA UNIVERSITY HOSPITALS NHS TRUST | D52: 20 | E52: 1 | F52: 0 | G52: 19 | H52: 1 | I52: 0 | J52: 0 | K52: 0 | L52: 0 | M52: 0 | N52: 0 | O52: 20 | P52: 0 | Q52: 0 | R52: 0 | S52: 0
A53: Q74 | B53: RTF | C53: NORTHUMBRIA HEALTHCARE NHS FOUNDATION TRUST | D53: 49 | E53: 0.9387755102 | F53: 0 | G53: 45 | H53: 1 | I53: 3 | J53: 0 | K53: 0 | L53: 0 | M53: 0 | N53: 0 | O53: 49 | P53: 0 | Q53: 0 | R53: 0 | S53: 0
A54: Q75 | B54: RBL | C54: WIRRAL UNIVERSITY TEACHING HOSPITAL NHS FOUNDATION TRUST | D54: 0 | E54: NA | F54: NA | G54: 0 | H54: 0 | I54: 0 | J54: 0 | K54: 0 | L54: 0 | M54: 0 | N54: 0 | O54: 0 | P54: 0 | Q54: 0 | R54: 0 | S54: 0
A55: Q75 | B55: RBT | C55: MID CHESHIRE HOSPITALS NHS FOUNDATION TRUST | D55: 3 | E55: * | F55: * | G55: * | H55: * | I55: * | J55: * | K55: * | L55: * | M55: * | N55: * | O55: * | P55: * | Q55: * | R55: * | S55: *
A56: Q75 | B56: RVY | C56: SOUTHPORT AND ORMSKIRK HOSPITAL NHS TRUST | D56: 3 | E56: * | F56: * | G56: * | H56: * | I56: * | J56: * | K56: * | L56: * | M56: * | N56: * | O56: * | P56: * | Q56: * | R56: * | S56: *
A57: Q75 | B57: RWW | C57: WARRINGTON AND HALTON HOSPITALS NHS FOUNDATION TRUST | D57: 4 | E57: * | F57: * | G57: * | H57: * | I57: * | J57: * | K57: * | L57: * | M57: * | N57: * | O57: * | P57: * | Q57: * | R57: * | S57: *
A58: Q75 | B58: RBN | C58: ST HELENS AND KNOWSLEY TEACHING HOSPITALS NHS TRUST | D58: 5 | E58: 1 | F58: 0 | G58: 5 | H58: 0 | I58: 0 | J58: 0 | K58: 0 | L58: 0 | M58: 0 | N58: 0 | O58: 0 | P58: 0 | Q58: 0 | R58: 5 | S58: 0
A59: Q75 | B59: RJN | C59: EAST CHESHIRE NHS TRUST | D59: 8 | E59: 1 | F59: 0 | G59: 8 | H59: 0 | I59: 0 | J59: 0 | K59: 0 | L59: 0 | M59: 0 | N59: 0 | O59: 8 | P59: 0 | Q59: 0 | R59: 0 | S59: 0
A60: Q75 | B60: REP | C60: LIVERPOOL WOMEN'S NHS FOUNDATION TRUST | D60: 26 | E60: 0.9230769231 | F60: 0.03846153846 | G60: 23 | H60: 1 | I60: 1 | J60: 0 | K60: 1 | L60: 0 | M60: 0 | N60: 0 | O60: 26 | P60: 0 | Q60: 0 | R60: 0 | S60: 0
A61: Q75 | B61: RJR | C61: COUNTESS OF CHESTER HOSPITAL NHS FOUNDATION TRUST | D61: 62 | E61: 1 | F61: 0 | G61: 57 | H61: 5 | I61: 0 | J61: 0 | K61: 0 | L61: 0 | M61: 24 | N61: 0 | O61: 38 | P61: 0 | Q61: 0 | R61: 0 | S61: 0
A62: Q76 | B62: RXW | C62: SHREWSBURY AND TELFORD HOSPITAL NHS TRUST | D62: 1 | E62: * | F62: * | G62: * | H62: * | I62: * | J62: * | K62: * | L62: * | M62: * | N62: * | O62: * | P62: * | Q62: * | R62: * | S62: *
A63: Q76 | B63: RK5 | C63: SHERWOOD FOREST HOSPITALS NHS FOUNDATION TRUST | D63: 5 | E63: 1 | F63: 0 | G63: * | H63: * | I63: * | J63: * | K63: * | L63: * | M63: * | N63: * | O63: * | P63: * | Q63: * | R63: * | S63: *
A64: Q76 | B64: RFS | C64: CHESTERFIELD ROYAL HOSPITAL NHS FOUNDATION TRUST | D64: 62 | E64: 1 | F64: 0 | G64: 62 | H64: 0 | I64: 0 | J64: 0 | K64: 0 | L64: 0 | M64: 0 | N64: 0 | O64: 62 | P64: 0 | Q64: 0 | R64: 0 | S64: 0
A65: Q76 | B65: RTG | C65: UNIVERSITY HOSPITALS OF DERBY AND BURTON NHS FOUNDATION TRUST | D65: 70 | E65: 0.9857142857 | F65: 0.01428571429 | G65: 56 | H65: 13 | I65: 0 | J65: 0 | K65: 1 | L65: 0 | M65: 22 | N65: 1 | O65: 47 | P65: 0 | Q65: 0 | R65: 0 | S65: 0
A66: Q76 | B66: RJE | C66: UNIVERSITY HOSPITALS OF NORTH MIDLANDS NHS TRUST | D66: 101 | E66: 0.9900990099 | F66: 0 | G66: 89 | H66: 11 | I66: 0 | J66: 0 | K66: 0 | L66: 1 | M66: 0 | N66: 0 | O66: 101 | P66: 0 | Q66: 0 | R66: 0 | S66: 0
A67: Q76 | B67: RX1 | C67: NOTTINGHAM UNIVERSITY HOSPITALS NHS TRUST | D67: 186 | E67: 0.9838709677 | F67: 0 | G67: 167 | H67: 16 | I67: 3 | J67: 0 | K67: 0 | L67: 0 | M67: 0 | N67: 0 | O67: 186 | P67: 0 | Q67: 0 | R67: 0 | S67: 0
A68: Q77 | B68: RRK | C68: UNIVERSITY HOSPITALS BIRMINGHAM NHS FOUNDATION TRUST | D68: 0 | E68: NA | F68: NA | G68: 0 | H68: 0 | I68: 0 | J68: 0 | K68: 0 | L68: 0 | M68: 0 | N68: 0 | O68: 0 | P68: 0 | Q68: 0 | R68: 0 | S68: 0
A69: Q77 | B69: RXK | C69: SANDWELL AND WEST BIRMINGHAM HOSPITALS NHS TRUST | D69: 0 | E69: NA | F69: NA | G69: 0 | H69: 0 | I69: 0 | J69: 0 | K69: 0 | L69: 0 | M69: 0 | N69: 0 | O69: 0 | P69: 0 | Q69: 0 | R69: 0 | S69: 0
A70: Q77 | B70: RJC | C70: SOUTH WARWICKSHIRE NHS FOUNDATION TRUST | D70: 1 | E70: * | F70: * | G70: * | H70: * | I70: * | J70: * | K70: * | L70: * | M70: * | N70: * | O70: * | P70: * | Q70: * | R70: * | S70: *
A71: Q77 | B71: RLQ | C71: WYE VALLEY NHS TRUST | D71: 13 | E71: 1 | F71: 0 | G71: * | H71: * | I71: * | J71: * | K71: * | L71: * | M71: * | N71: * | O71: * | P71: * | Q71: * | R71: * | S71: *
A72: Q77 | B72: RNA | C72: THE DUDLEY GROUP NHS FOUNDATION TRUST | D72: 15 | E72: 1 | F72: 0 | G72: 14 | H72: 1 | I72: 0 | J72: 0 | K72: 0 | L72: 0 | M72: 0 | N72: 0 | O72: 15 | P72: 0 | Q72: 0 | R72: 0 | S72: 0
A73: Q77 | B73: RBK | C73: WALSALL HEALTHCARE NHS TRUST | D73: 19 | E73: 1 | F73: 0 | G73: 19 | H73: 0 | I73: 0 | J73: 0 | K73: 0 | L73: 0 | M73: 0 | N73: 0 | O73: 19 | P73: 0 | Q73: 0 | R73: 0 | S73: 0
A74: Q77 | B74: RLT | C74: GEORGE ELIOT HOSPITAL NHS TRUST | D74: 29 | E74: 0.9655172414 | F74: 0.03448275862 | G74: 25 | H74: 3 | I74: 0 | J74: 0 | K74: 1 | L74: 0 | M74: 21 | N74: 0 | O74: 8 | P74: 0 | Q74: 0 | R74: 0 | S74: 0
A75: Q77 | B75: RKB | C75: UNIVERSITY HOSPITALS COVENTRY AND WARWICKSHIRE NHS TRUST | D75: 31 | E75: 1 | F75: 0 | G75: 26 | H75: 5 | I75: 0 | J75: 0 | K75: 0 | L75: 0 | M75: 0 | N75: 0 | O75: 31 | P75: 0 | Q75: 0 | R75: 0 | S75: 0
A76: Q77 | B76: RQ3 | C76: BIRMINGHAM WOMEN'S AND CHILDREN'S NHS FOUNDATION TRUST | D76: 44 | E76: 0.9772727273 | F76: 0 | G76: 36 | H76: 7 | I76: 1 | J76: 0 | K76: 0 | L76: 0 | M76: 0 | N76: 0 | O76: 44 | P76: 0 | Q76: 0 | R76: 0 | S76: 0
A77: Q77 | B77: RWP | C77: WORCESTERSHIRE ACUTE HOSPITALS NHS TRUST | D77: 45 | E77: 1 | F77: 0 | G77: 44 | H77: 1 | I77: 0 | J77: 0 | K77: 0 | L77: 0 | M77: 0 | N77: 0 | O77: 45 | P77: 0 | Q77: 0 | R77: 0 | S77: 0
A78: Q77 | B78: RL4 | C78: THE ROYAL WOLVERHAMPTON NHS TRUST | D78: 48 | E78: 0.9583333333 | F78: 0 | G78: 43 | H78: 3 | I78: 1 | J78: 0 | K78: 0 | L78: 1 | M78: 1 | N78: 0 | O78: 47 | P78: 0 | Q78: 0 | R78: 0 | S78: 0
A79: Q78 | B79: RD8 | C79: MILTON KEYNES UNIVERSITY HOSPITAL NHS FOUNDATION TRUST | D79: 0 | E79: NA | F79: NA | G79: 0 | H79: 0 | I79: 0 | J79: 0 | K79: 0 | L79: 0 | M79: 0 | N79: 0 | O79: 0 | P79: 0 | Q79: 0 | R79: 0 | S79: 0
A80: Q78 | B80: RWG | C80: WEST HERTFORDSHIRE HOSPITALS NHS TRUST | D80: 5 | E80: 1 | F80: 0 | G80: 5 | H80: 0 | I80: 0 | J80: 0 | K80: 0 | L80: 0 | M80: 0 | N80: 0 | O80: 5 | P80: 0 | Q80: 0 | R80: 0 | S80: 0
A81: Q78 | B81: RC9 | C81: LUTON AND DUNSTABLE UNIVERSITY HOSPITAL NHS FOUNDATION TRUST | D81: 6 | E81: 1 | F81: 0 | G81: 6 | H81: 0 | I81: 0 | J81: 0 | K81: 0 | L81: 0 | M81: 0 | N81: 6 | O81: 0 | P81: 0 | Q81: 0 | R81: 0 | S81: 0
A82: Q78 | B82: RWD | C82: UNITED LINCOLNSHIRE HOSPITALS NHS TRUST | D82: 11 | E82: 1 | F82: 0 | G82: 10 | H82: 1 | I82: 0 | J82: 0 | K82: 0 | L82: 0 | M82: 0 | N82: 0 | O82: 11 | P82: 0 | Q82: 0 | R82: 0 | S82: 0
A83: Q78 | B83: RWH | C83: EAST AND NORTH HERTFORDSHIRE NHS TRUST | D83: 15 | E83: 1 | F83: 0 | G83: 14 | H83: 1 | I83: 0 | J83: 0 | K83: 0 | L83: 0 | M83: 0 | N83: 15 | O83: 0 | P83: 0 | Q83: 0 | R83: 0 | S83: 0
A84: Q78 | B84: RC1 | C84: BEDFORD HOSPITAL NHS TRUST | D84: 19 | E84: 0.8947368421 | F84: 0.05263157895 | G84: 14 | H84: 3 | I84: 1 | J84: 1 | K84: 0 | L84: 0 | M84: 19 | N84: 0 | O84: 0 | P84: 0 | Q84: 0 | R84: 0 | S84: 0
A85: Q78 | B85: RNQ | C85: KETTERING GENERAL HOSPITAL NHS FOUNDATION TRUST | D85: 31 | E85: 1 | F85: 0 | G85: 31 | H85: 0 | I85: 0 | J85: 0 | K85: 0 | L85: 0 | M85: 0 | N85: 0 | O85: 31 | P85: 0 | Q85: 0 | R85: 0 | S85: 0
A86: Q78 | B86: RNS | C86: NORTHAMPTON GENERAL HOSPITAL NHS TRUST | D86: 64 | E86: 0.984375 | F86: 0 | G86: 55 | H86: 8 | I86: 1 | J86: 0 | K86: 0 | L86: 0 | M86: 0 | N86: 0 | O86: 0 | P86: 0 | Q86: 0 | R86: 64 | S86: 0
A87: Q78 | B87: RWE | C87: UNIVERSITY HOSPITALS OF LEICESTER NHS TRUST | D87: 172 | E87: 0.9825581395 | F87: 0 | G87: 149 | H87: 20 | I87: 2 | J87: 0 | K87: 0 | L87: 1 | M87: 0 | N87: 6 | O87: 166 | P87: 0 | Q87: 0 | R87: 0 | S87: 0
A88: Q79 | B88: RGP | C88: JAMES PAGET UNIVERSITY HOSPITALS NHS FOUNDATION TRUST | D88: 0 | E88: NA | F88: NA | G88: 0 | H88: 0 | I88: 0 | J88: 0 | K88: 0 | L88: 0 | M88: 0 | N88: 0 | O88: 0 | P88: 0 | Q88: 0 | R88: 0 | S88: 0
A89: Q79 | B89: RGT | C89: CAMBRIDGE UNIVERSITY HOSPITALS NHS FOUNDATION TRUST | D89: 5 | E89: 0.8 | F89: 0.2 | G89: 2 | H89: 2 | I89: 0 | J89: 0 | K89: 1 | L89: 0 | M89: 0 | N89: 0 | O89: 5 | P89: 0 | Q89: 0 | R89: 0 | S89: 0
A90: Q79 | B90: RM1 | C90: NORFOLK AND NORWICH UNIVERSITY HOSPITALS NHS FOUNDATION TRUST | D90: 6 | E90: 1 | F90: 0 | G90: 5 | H90: 1 | I90: 0 | J90: 0 | K90: 0 | L90: 0 | M90: 0 | N90: 0 | O90: 6 | P90: 0 | Q90: 0 | R90: 0 | S90: 0
A91: Q79 | B91: RGR | C91: WEST SUFFOLK NHS FOUNDATION TRUST | D91: 13 | E91: 1 | F91: 0 | G91: 11 | H91: 2 | I91: 0 | J91: 0 | K91: 0 | L91: 0 | M91: 0 | N91: 2 | O91: 11 | P91: 0 | Q91: 0 | R91: 0 | S91: 0
A92: Q79 | B92: RQW | C92: THE PRINCESS ALEXANDRA HOSPITAL NHS TRUST | D92: 18 | E92: 0.8888888889 | F92: 0 | G92: 15 | H92: 1 | I92: 1 | J92: 0 | K92: 0 | L92: 1 | M92: 0 | N92: 0 | O92: 0 | P92: 0 | Q92: 0 | R92: 0 | S92: 18
A93: Q79 | B93: RCX | C93: THE QUEEN ELIZABETH HOSPITAL, KING'S LYNN, NHS FOUNDATION TRUST | D93: 27 | E93: 1 | F93: 0 | G93: 22 | H93: 5 | I93: 0 | J93: 0 | K93: 0 | L93: 0 | M93: 0 | N93: 27 | O93: 0 | P93: 0 | Q93: 0 | R93: 0 | S93: 0
A94: Q79 | B94: RQ8 | C94: MID ESSEX HOSPITAL SERVICES NHS TRUST | D94: 38 | E94: 0.9473684211 | F94: 0.05263157895 | G94: 35 | H94: 1 | I94: 0 | J94: 2 | K94: 0 | L94: 0 | M94: 38 | N94: 0 | O94: 0 | P94: 0 | Q94: 0 | R94: 0 | S94: 0
A95: Q79 | B95: RDD | C95: BASILDON AND THURROCK UNIVERSITY HOSPITALS NHS FOUNDATION TRUST | D95: 41 | E95: 1 | F95: 0 | G95: 38 | H95: 3 | I95: 0 | J95: 0 | K95: 0 | L95: 0 | M95: 0 | N95: 0 | O95: 41 | P95: 0 | Q95: 0 | R95: 0 | S95: 0
A96: Q79 | B96: RAJ | C96: SOUTHEND UNIVERSITY HOSPITAL NHS FOUNDATION TRUST | D96: 56 | E96: 1 | F96: 0 | G96: 50 | H96: 6 | I96: 0 | J96: 0 | K96: 0 | L96: 0 | M96: 0 | N96: 0 | O96: 56 | P96: 0 | Q96: 0 | R96: 0 | S96: 0
A97: Q79 | B97: RDE | C97: EAST SUFFOLK AND NORTH ESSEX NHS FOUNDATION TRUST | D97: 74 | E97: 1 | F97: 0 | G97: 69 | H97: 5 | I97: 0 | J97: 0 | K97: 0 | L97: 0 | M97: 0 | N97: 71 | O97: 3 | P97: 0 | Q97: 0 | R97: 0 | S97: 0
A98: Q79 | B98: RGN | C98: NORTH WEST ANGLIA NHS FOUNDATION TRUST | D98: 183 | E98: 0.9890710383 | F98: 0 | G98: 160 | H98: 21 | I98: 1 | J98: 0 | K98: 0 | L98: 1 | M98: 0 | N98: 0 | O98: 182 | P98: 0 | Q98: 0 | R98: 1 | S98: 0
A99: Q83 | B99: RRF | C99: WRIGHTINGTON, WIGAN AND LEIGH NHS FOUNDATION TRUST | D99: 2 | E99: * | F99: * | G99: * | H99: * | I99: * | J99: * | K99: * | L99: * | M99: * | N99: * | O99: * | P99: * | Q99: * | R99: * | S99: *
A100: Q83 | B100: RMP | C100: TAMESIDE AND GLOSSOP INTEGRATED CARE NHS FOUNDATION TRUST | D100: 8 | E100: 1 | F100: 0 | G100: * | H100: * | I100: * | J100: * | K100: * | L100: * | M100: * | N100: * | O100: * | P100: * | Q100: * | R100: * | S100: *
A101: Q83 | B101: RWJ | C101: STOCKPORT NHS FOUNDATION TRUST | D101: 13 | E101: 1 | F101: 0 | G101: 11 | H101: 2 | I101: 0 | J101: 0 | K101: 0 | L101: 0 | M101: 0 | N101: 0 | O101: 13 | P101: 0 | Q101: 0 | R101: 0 | S101: 0
A102: Q83 | B102: RW6 | C102: PENNINE ACUTE HOSPITALS NHS TRUST | D102: 14 | E102: 0.8571428571 | F102: 0.07142857143 | G102: 11 | H102: 1 | I102: 1 | J102: 1 | K102: 0 | L102: 0 | M102: 14 | N102: 0 | O102: 0 | P102: 0 | Q102: 0 | R102: 0 | S102: 0
A103: Q83 | B103: RY2 | C103: BRIDGEWATER COMMUNITY HEALTHCARE NHS FOUNDATION TRUST | D103: 19 | E103: 1 | F103: 0 | G103: 17 | H103: 2 | I103: 0 | J103: 0 | K103: 0 | L103: 0 | M103: 0 | N103: 0 | O103: 19 | P103: 0 | Q103: 0 | R103: 0 | S103: 0
A104: Q83 | B104: R0A | C104: MANCHESTER UNIVERSITY NHS FOUNDATION TRUST | D104: 65 | E104: 0.9846153846 | F104: 0 | G104: 60 | H104: 4 | I104: 0 | J104: 0 | K104: 0 | L104: 1 | M104: 0 | N104: 0 | O104: 65 | P104: 0 | Q104: 0 | R104: 0 | S104: 0
A105: Q83 | B105: RMC | C105: BOLTON NHS FOUNDATION TRUST | D105: 146 | E105: 0.9315068493 | F105: 0.05479452055 | G105: 129 | H105: 7 | I105: 2 | J105: 2 | K105: 6 | L105: 0 | M105: 21 | N105: 0 | O105: 125 | P105: 0 | Q105: 0 | R105: 0 | S105: 0
A106: Q84 | B106: RTX | C106: UNIVERSITY HOSPITALS OF MORECAMBE BAY NHS FOUNDATION TRUST | D106: 10 | E106: 1 | F106: 0 | G106: 8 | H106: 2 | I106: 0 | J106: 0 | K106: 0 | L106: 0 | M106: 0 | N106: 0 | O106: 10 | P106: 0 | Q106: 0 | R106: 0 | S106: 0
A107: Q84 | B107: RXN | C107: LANCASHIRE TEACHING HOSPITALS NHS FOUNDATION TRUST | D107: 39 | E107: 0.9230769231 | F107: 0.02564102564 | G107: 31 | H107: 5 | I107: 2 | J107: 1 | K107: 0 | L107: 0 | M107: 39 | N107: 0 | O107: 0 | P107: 0 | Q107: 0 | R107: 0 | S107: 0
A108: Q84 | B108: RXL | C108: BLACKPOOL TEACHING HOSPITALS NHS FOUNDATION TRUST | D108: 45 | E108: 1 | F108: 0 | G108: 40 | H108: 5 | I108: 0 | J108: 0 | K108: 0 | L108: 0 | M108: 0 | N108: 0 | O108: 45 | P108: 0 | Q108: 0 | R108: 0 | S108: 0
A109: Q84 | B109: RXR | C109: EAST LANCASHIRE HOSPITALS NHS TRUST | D109: 74 | E109: 0.8918918919 | F109: 0.09459459459 | G109: 62 | H109: 4 | I109: 1 | J109: 1 | K109: 6 | L109: 0 | M109: 35 | N109: 0 | O109: 39 | P109: 0 | Q109: 0 | R109: 0 | S109: 0
A110: Q85 | B110: RA4 | C110: YEOVIL DISTRICT HOSPITAL NHS FOUNDATION TRUST | D110: 1 | E110: * | F110: * | G110: * | H110: * | I110: * | J110: * | K110: * | L110: * | M110: * | N110: * | O110: * | P110: * | Q110: * | R110: * | S110: *
A111: Q85 | B111: RA9 | C111: TORBAY AND SOUTH DEVON NHS FOUNDATION TRUST | D111: 5 | E111: 1 | F111: 0 | G111: * | H111: * | I111: * | J111: * | K111: * | L111: * | M111: * | N111: * | O111: * | P111: * | Q111: * | R111: * | S111: *
A112: Q85 | B112: REF | C112: ROYAL CORNWALL HOSPITALS NHS TRUST | D112: 5 | E112: 0.6 | F112: 0.2 | G112: 3 | H112: 0 | I112: 1 | J112: 0 | K112: 1 | L112: 0 | M112: 0 | N112: 0 | O112: 5 | P112: 0 | Q112: 0 | R112: 0 | S112: 0
A113: Q85 | B113: RBZ | C113: NORTHERN DEVON HEALTHCARE NHS TRUST | D113: 8 | E113: 1 | F113: 0 | G113: 7 | H113: 1 | I113: 0 | J113: 0 | K113: 0 | L113: 0 | M113: 0 | N113: 0 | O113: 8 | P113: 0 | Q113: 0 | R113: 0 | S113: 0
A114: Q85 | B114: RH8 | C114: ROYAL DEVON AND EXETER NHS FOUNDATION TRUST | D114: 19 | E114: 1 | F114: 0 | G114: 16 | H114: 3 | I114: 0 | J114: 0 | K114: 0 | L114: 0 | M114: 0 | N114: 0 | O114: 19 | P114: 0 | Q114: 0 | R114: 0 | S114: 0
A115: Q85 | B115: RD3 | C115: POOLE HOSPITAL NHS FOUNDATION TRUST | D115: 21 | E115: 0.9047619048 | F115: 0 | G115: 17 | H115: 2 | I115: 2 | J115: 0 | K115: 0 | L115: 0 | M115: 21 | N115: 0 | O115: 0 | P115: 0 | Q115: 0 | R115: 0 | S115: 0
A116: Q85 | B116: RDZ | C116: THE ROYAL BOURNEMOUTH AND CHRISTCHURCH HOSPITALS NHS FOUNDATION TRUST | D116: 21 | E116: 1 | F116: 0 | G116: 17 | H116: 4 | I116: 0 | J116: 0 | K116: 0 | L116: 0 | M116: 0 | N116: 0 | O116: 21 | P116: 0 | Q116: 0 | R116: 0 | S116: 0
A117: Q85 | B117: RBD | C117: DORSET COUNTY HOSPITAL NHS FOUNDATION TRUST | D117: 26 | E117: 0.9615384615 | F117: 0.03846153846 | G117: 21 | H117: 4 | I117: 0 | J117: 0 | K117: 1 | L117: 0 | M117: 26 | N117: 0 | O117: 0 | P117: 0 | Q117: 0 | R117: 0 | S117: 0
A118: Q85 | B118: RK9 | C118: UNIVERSITY HOSPITALS PLYMOUTH NHS TRUST | D118: 39 | E118: 1 | F118: 0 | G118: 33 | H118: 6 | I118: 0 | J118: 0 | K118: 0 | L118: 0 | M118: 0 | N118: 0 | O118: 39 | P118: 0 | Q118: 0 | R118: 0 | S118: 0
A119: Q85 | B119: RBA | C119: TAUNTON AND SOMERSET NHS FOUNDATION TRUST | D119: 49 | E119: 1 | F119: 0 | G119: 46 | H119: 3 | I119: 0 | J119: 0 | K119: 0 | L119: 0 | M119: 0 | N119: 0 | O119: 49 | P119: 0 | Q119: 0 | R119: 0 | S119: 0
A120: Q86 | B120: RTE | C120: GLOUCESTERSHIRE HOSPITALS NHS FOUNDATION TRUST | D120: 0 | E120: NA | F120: NA | G120: 0 | H120: 0 | I120: 0 | J120: 0 | K120: 0 | L120: 0 | M120: 0 | N120: 0 | O120: 0 | P120: 0 | Q120: 0 | R120: 0 | S120: 0
A121: Q86 | B121: RNZ | C121: SALISBURY NHS FOUNDATION TRUST | D121: 1 | E121: * | F121: * | G121: * | H121: * | I121: * | J121: * | K121: * | L121: * | M121: * | N121: * | O121: * | P121: * | Q121: * | R121: * | S121: *
A122: Q86 | B122: RN3 | C122: GREAT WESTERN HOSPITALS NHS FOUNDATION TRUST | D122: 2 | E122: * | F122: * | G122: * | H122: * | I122: * | J122: * | K122: * | L122: * | M122: * | N122: * | O122: * | P122: * | Q122: * | R122: * | S122: *
A123: Q86 | B123: RA3 | C123: WESTON AREA HEALTH NHS TRUST | D123: 22 | E123: 1 | F123: 0 | G123: 18 | H123: 4 | I123: 0 | J123: 0 | K123: 0 | L123: 0 | M123: 0 | N123: 0 | O123: 22 | P123: 0 | Q123: 0 | R123: 0 | S123: 0
A124: Q86 | B124: RA7 | C124: UNIVERSITY HOSPITALS BRISTOL NHS FOUNDATION TRUST | D124: 40 | E124: 1 | F124: 0 | G124: 34 | H124: 6 | I124: 0 | J124: 0 | K124: 0 | L124: 0 | M124: 0 | N124: 0 | O124: 40 | P124: 0 | Q124: 0 | R124: 0 | S124: 0
A125: Q86 | B125: RD1 | C125: ROYAL UNITED HOSPITALS BATH NHS FOUNDATION TRUST | D125: 73 | E125: 0.9863013699 | F125: 0 | G125: 68 | H125: 4 | I125: 0 | J125: 0 | K125: 0 | L125: 1 | M125: 0 | N125: 0 | O125: 73 | P125: 0 | Q125: 0 | R125: 0 | S125: 0
A126: Q86 | B126: RVJ | C126: NORTH BRISTOL NHS TRUST | D126: 92 | E126: 0.9347826087 | F126: 0.04347826087 | G126: 78 | H126: 8 | I126: 1 | J126: 2 | K126: 2 | L126: 1 | M126: 74 | N126: 0 | O126: 18 | P126: 0 | Q126: 0 | R126: 0 | S126: 0
A127: Q87 | B127: R1F | C127: ISLE OF WIGHT NHS TRUST | D127: 0 | E127: NA | F127: NA | G127: 0 | H127: 0 | I127: 0 | J127: 0 | K127: 0 | L127: 0 | M127: 0 | N127: 0 | O127: 0 | P127: 0 | Q127: 0 | R127: 0 | S127: 0
A128: Q87 | B128: RN5 | C128: HAMPSHIRE HOSPITALS NHS FOUNDATION TRUST | D128: 11 | E128: 1 | F128: 0 | G128: 9 | H128: 2 | I128: 0 | J128: 0 | K128: 0 | L128: 0 | M128: 0 | N128: 0 | O128: 11 | P128: 0 | Q128: 0 | R128: 0 | S128: 0
A129: Q87 | B129: RHU | C129: PORTSMOUTH HOSPITALS NHS TRUST | D129: 22 | E129: 1 | F129: 0 | G129: 20 | H129: 2 | I129: 0 | J129: 0 | K129: 0 | L129: 0 | M129: 0 | N129: 0 | O129: 22 | P129: 0 | Q129: 0 | R129: 0 | S129: 0
A130: Q87 | B130: RHW | C130: ROYAL BERKSHIRE NHS FOUNDATION TRUST | D130: 24 | E130: 1 | F130: 0 | G130: 22 | H130: 2 | I130: 0 | J130: 0 | K130: 0 | L130: 0 | M130: 0 | N130: 0 | O130: 24 | P130: 0 | Q130: 0 | R130: 0 | S130: 0
A131: Q87 | B131: RXQ | C131: BUCKINGHAMSHIRE HEALTHCARE NHS TRUST | D131: 38 | E131: 1 | F131: 0 | G131: 36 | H131: 2 | I131: 0 | J131: 0 | K131: 0 | L131: 0 | M131: 0 | N131: 0 | O131: 38 | P131: 0 | Q131: 0 | R131: 0 | S131: 0
A132: Q87 | B132: RTH | C132: OXFORD UNIVERSITY HOSPITALS NHS FOUNDATION TRUST | D132: 62 | E132: 1 | F132: 0 | G132: 56 | H132: 6 | I132: 0 | J132: 0 | K132: 0 | L132: 0 | M132: 0 | N132: 0 | O132: 56 | P132: 0 | Q132: 0 | R132: 6 | S132: 0
A133: Q87 | B133: RDU | C133: FRIMLEY HEALTH NHS FOUNDATION TRUST | D133: 85 | E133: 0.9764705882 | F133: 0.02352941176 | G133: 78 | H133: 5 | I133: 0 | J133: 1 | K133: 1 | L133: 0 | M133: 0 | N133: 0 | O133: 82 | P133: 0 | Q133: 0 | R133: 3 | S133: 0
A134: Q87 | B134: RHM | C134: UNIVERSITY HOSPITAL SOUTHAMPTON NHS FOUNDATION TRUST | D134: 86 | E134: 0.8720930233 | F134: 0.02325581395 | G134: 53 | H134: 22 | I134: 9 | J134: 2 | K134: 0 | L134: 0 | M134: 0 | N134: 0 | O134: 20 | P134: 0 | Q134: 0 | R134: 66 | S134: 0
A135: Q88 | B135: RN7 | C135: DARTFORD AND GRAVESHAM NHS TRUST | D135: 0 | E135: NA | F135: NA | G135: 0 | H135: 0 | I135: 0 | J135: 0 | K135: 0 | L135: 0 | M135: 0 | N135: 0 | O135: 0 | P135: 0 | Q135: 0 | R135: 0 | S135: 0
A136: Q88 | B136: RPA | C136: MEDWAY NHS FOUNDATION TRUST | D136: 0 | E136: NA | F136: NA | G136: 0 | H136: 0 | I136: 0 | J136: 0 | K136: 0 | L136: 0 | M136: 0 | N136: 0 | O136: 0 | P136: 0 | Q136: 0 | R136: 0 | S136: 0
A137: Q88 | B137: RXC | C137: EAST SUSSEX HEALTHCARE NHS TRUST | D137: 0 | E137: NA | F137: NA | G137: 0 | H137: 0 | I137: 0 | J137: 0 | K137: 0 | L137: 0 | M137: 0 | N137: 0 | O137: 0 | P137: 0 | Q137: 0 | R137: 0 | S137: 0
A138: Q88 | B138: RYR | C138: WESTERN SUSSEX HOSPITALS NHS FOUNDATION TRUST | D138: 5 | E138: 1 | F138: 0 | G138: 4 | H138: 1 | I138: 0 | J138: 0 | K138: 0 | L138: 0 | M138: 0 | N138: 0 | O138: 4 | P138: 0 | Q138: 0 | R138: 1 | S138: 0
A139: Q88 | B139: RTP | C139: SURREY AND SUSSEX HEALTHCARE NHS TRUST | D139: 6 | E139: 1 | F139: 0 | G139: 5 | H139: 1 | I139: 0 | J139: 0 | K139: 0 | L139: 0 | M139: 0 | N139: 0 | O139: 6 | P139: 0 | Q139: 0 | R139: 0 | S139: 0
A140: Q88 | B140: RWF | C140: MAIDSTONE AND TUNBRIDGE WELLS NHS TRUST | D140: 7 | E140: 1 | F140: 0 | G140: 6 | H140: 1 | I140: 0 | J140: 0 | K140: 0 | L140: 0 | M140: 0 | N140: 0 | O140: 4 | P140: 0 | Q140: 0 | R140: 3 | S140: 0
A141: Q88 | B141: RXH | C141: BRIGHTON AND SUSSEX UNIVERSITY HOSPITALS NHS TRUST | D141: 34 | E141: 0.9117647059 | F141: 0.05882352941 | G141: 30 | H141: 1 | I141: 0 | J141: 0 | K141: 2 | L141: 1 | M141: 34 | N141: 0 | O141: 0 | P141: 0 | Q141: 0 | R141: 0 | S141: 0
A142: Q88 | B142: RA2 | C142: ROYAL SURREY COUNTY HOSPITAL NHS FOUNDATION TRUST | D142: 40 | E142: 0.95 | F142: 0.025 | G142: 38 | H142: 0 | I142: 1 | J142: 0 | K142: 1 | L142: 0 | M142: 37 | N142: 0 | O142: 3 | P142: 0 | Q142: 0 | R142: 0 | S142: 0
A143: Q88 | B143: RVV | C143: EAST KENT HOSPITALS UNIVERSITY NHS FOUNDATION TRUST | D143: 57 | E143: 0.9824561404 | F143: 0.01754385965 | G143: 49 | H143: 7 | I143: 0 | J143: 1 | K143: 0 | L143: 0 | M143: 0 | N143: 0 | O143: 57 | P143: 0 | Q143: 0 | R143: 0 | S143: 0
A144: zIS1 | B144: NDE | C144: ONE TO ONE (NORTH WEST) LIMITED | D144: 64 | E144: 1 | F144: 0 | G144: 60 | H144: 4 | I144: 0 | J144: 0 | K144: 0 | L144: 0 | M144: 0 | N144: 64 | O144: 0 | P144: 0 | Q144: 0 | R144: 0 | S144: 0

Sheet BSQ1 (hidden)
B1: Sort | C1: Region (LO) | D1: Region (LO) | E1: Trusts | F1: Trusts | G1: Sites | H1: Sites | J1: Sort ranges: | K1: Sort range… | L1: Sort range… | M1: Sort range… | N1: Reference Region List: | O1: Code… | P1: Name… | Q1: Linked Region List: | R1: Code… | S1: Name… | T1: Reference Lists: | U1: Code… | V1: Code… | W1: Name… | X1: Code… | Y1: Name… | Z1: Trusts Linked Lists: | AA1: Code… | AB1: Name… | AC1: Site Linked Lists: | AD1: Code… | AE1: Name… | AF1: Code… | AG1: Name…
A2: Region (LO) | B2: 1 | C2: 1 | D2: 1 | E2: - | F2: - | G2: - | H2: - | K2: Region (LO) Code | L2: Region (LO) Code | M2: Region (LO) Code | O2: Q72 | P2: NHS England Yorkshire & Humber | R2: Q71 | S2: Independent Sector Provider | U2: Q71 | V2: RF4 | W2: BARKING, HAVERING AND REDBRIDGE UNIVERSITY HOSPITALS NHS TRUST | X2: RF4XXX | Y2: Non-hospital site - RF4XXX | AA2: NDE | AB2: AIREDALE NHS FOUNDATION TRUST | AD2: NDE | AE2: AIREDALE NHS FOUNDATION TRUST | AF2: NDE01 | AG2: Airedale General Hospital - RCF22
A3: Trusts | B3: 1 | C3: 1 | D3: 1 | E3: 1 | F3: 1 | G3: - | H3: - | K3: Region (Local Office) | L3: Trust Code | M3: Trust Code | O3: Q74 | P3: NHS England Cumbria & North East | R3: Q72 | S3: NHS England Cheshire & Merseyside | U3: Q71 | V3: R1H | W3: BARTS HEALTH NHS TRUST | X3: R1HNH | Y3: Newham General Hospital - R1HNH | AA3: R0A | AB3: BARKING, HAVERING AND REDBRIDGE UNIVERSITY HOSPITALS NHS TRUST | AD3: R0A | AE3: BARKING, HAVERING AND REDBRIDGE UNIVERSITY HOSPITALS NHS TRUST | AF3: R0A05 | AG3: Alexandra Hospital - RWP01
A4: Sites | B4: 1 | C4: 1 | D4: 1 | E4: 1 | F4: 1 | G4: 1 | H4: 1 | K4: Total Responses | L4: Trust Name | M4: Trust Name | O4: Q75 | P4: NHS England Cheshire & Merseyside | R4: Q74 | S4: NHS England Cumbria & North East | U4: Q71 | V4: R1H | W4: BARTS HEALTH NHS TRUST | X4: R1H12 | Y4: The Royal London Hospital - R1H12 | AA4: R1F | AB4: BARNSLEY HOSPITAL NHS FOUNDATION TRUST | AD4: R1F | AE4: BARNSLEY HOSPITAL NHS FOUNDATION TRUST | AF4: R1F01 | AG4: Andover War Memorial Hospital - RN542
K5: Percentage Recommended | L5: Total Responses | M5: Site Code | O5: Q83 | P5: NHS England Greater Manchester | R5: Q75 | S5: NHS England East | U5: Q71 | V5: R1H | W5: BARTS HEALTH NHS TRUST | X5: R1HKH | Y5: Whipps Cross University Hospital - R1HKH | AA5: R1H | AB5: BARTS HEALTH NHS TRUST | AD5: R1H | AE5: BARTS HEALTH NHS TRUST | AF5: R1H12 | AG5: Arrowe Park Hospital - RBL14
K6: Percentage Not Recommended | L6: Percentage Recommended | M6: Site Name | O6: Q84 | P6: NHS England Lancashire | R6: Q76 | S6: NHS England Greater Manchester | U6: Q71 | V6: RQM | W6: CHELSEA AND WESTMINSTER HOSPITAL NHS FOUNDATION TRUST | X6: RQM01 | Y6: Chelsea and Westminster Hospital - RQM01 | AA6: R1K | AB6: BASILDON AND THURROCK UNIVERSITY HOSPITALS NHS FOUNDATION TRUST | AD6: R1K | AE6: BASILDON AND THURROCK UNIVERSITY HOSPITALS NHS FOUNDATION TRUST | AF6: R1HKH | AG6: Barnet Hospital - RAL26
K7: Extremely Likely | L7: Percentage Not Recommended | M7: Total Responses | O7: Q76 | P7: NHS England North Midlands | R7: Q77 | S7: NHS England Lancashire | U7: Q71 | V7: RQM | W7: CHELSEA AND WESTMINSTER HOSPITAL NHS FOUNDATION TRUST | X7: RQM91 | Y7: West Middlesex University Hospital - RQM91 | AA7: RA2 | AB7: BEDFORD HOSPITAL NHS TRUST | AD7: RA2 | AE7: BEDFORD HOSPITAL NHS TRUST | AF7: R1HNH | AG7: Barnsley Hospital NHS Foundation Trust HQ - RFFAA
K8: Likely | L8: Extremely Likely | M8: Percentage Recommended | O8: Q77 | P8: NHS England West Midlands | R8: Q78 | S8: NHS England London | U8: Q71 | V8: RJ6 | W8: CROYDON HEALTH SERVICES NHS TRUST | X8: RJ611 | Y8: Croydon University Hospital - RJ611 | AA8: RA3 | AB8: BIRMINGHAM WOMEN'S AND CHILDREN'S NHS FOUNDATION TRUST | AD8: RA3 | AE8: BIRMINGHAM WOMEN'S AND CHILDREN'S NHS FOUNDATION TRUST | AF8: R1K01 | AG8: Basildon University Hospital - RDDH0
K9: Neither | L9: Likely | M9: Percentage Not Recommended | O9: Q78 | P9: NHS England Central Midlands | R9: Q79 | S9: NHS England North Midlands | U9: Q71 | V9: RVR | W9: EPSOM AND ST HELIER UNIVERSITY HOSPITALS NHS TRUST | X9: RVR50 | Y9: Epsom Hospital - RVR50 | AA9: RA4 | AB9: BLACKPOOL TEACHING HOSPITALS NHS FOUNDATION TRUST | AD9: RA4 | AE9: BLACKPOOL TEACHING HOSPITALS NHS FOUNDATION TRUST | AF9: R1K02 | AG9: Basingstoke and North Hampshire Hospital - RN506
K10: Unlikely | L10: Neither | M10: Extremely Likely | O10: Q79 | P10: NHS England East | R10: Q83 | S10: NHS England Central Midlands | U10: Q71 | V10: RVR | W10: EPSOM AND ST HELIER UNIVERSITY HOSPITALS NHS TRUST | X10: RVRXXX | Y10: Non-hospital site - RVRXXX | AA10: RA7 | AB10: BOLTON NHS FOUNDATION TRUST | AD10: RA7 | AE10: BOLTON NHS FOUNDATION TRUST | AF10: R1K04 | AG10: Bassetlaw Hospital - RP5BA
K11: Extremely Unlikely | L11: Unlikely | M11: Likely | O11: Q85 | P11: NHS England South West (South West South) | R11: Q84 | S11: NHS England South East (Hampshire, Isle Of Wight & Thames Valley) | U11: Q71 | V11: RVR | W11: EPSOM AND ST HELIER UNIVERSITY HOSPITALS NHS TRUST | X11: RVR05 | Y11: St Helier Hospital - RVR05 | AA11: RA9 | AB11: BRADFORD TEACHING HOSPITALS NHS FOUNDATION TRUST | AD11: RA9 | AE11: BRADFORD TEACHING HOSPITALS NHS FOUNDATION TRUST | AF11: R1KXXX | AG11: Bedford Hospital South Wing - RC110
K12: Don't Know | L12: Extremely Unlikely | M12: Neither | O12: Q86 | P12: NHS England South West (South West North) | R12: Q85 | S12: NHS England South East (Kent, Surrey & Sussex) | U12: Q71 | V12: RJ1 | W12: GUY'S AND ST THOMAS' NHS FOUNDATION TRUST | X12: RJ122 | Y12: St Thomas' Hospital - RJ122 | AA12: RAE | AB12: BRIDGEWATER COMMUNITY HEALTHCARE NHS FOUNDATION TRUST | AD12: RAE | AE12: BRIDGEWATER COMMUNITY HEALTHCARE NHS FOUNDATION TRUST | AF12: RA201 | AG12: Birmingham Women's Hospital - RQ370
L13: Don't Know | M13: Unlikely | O13: Q87 | P13: NHS England South East (Hampshire, Isle Of Wight & Thames Valley) | R13: Q86 | S13: NHS England South West (South West North) | U13: Q71 | V13: RQX | W13: HOMERTON UNIVERSITY HOSPITAL NHS FOUNDATION TRUST | X13: RQXM1 | Y13: Homerton University Hospital - RQXM1 | AA13: RAJ | AB13: BRIGHTON AND SUSSEX UNIVERSITY HOSPITALS NHS TRUST | AD13: RAJ | AE13: BRIGHTON AND SUSSEX UNIVERSITY HOSPITALS NHS TRUST | AF13: RA301 | AG13: Blackpool Victoria Hospital - RXL01
L14: SMS/Text / Smartphone App | M14: Extremely Unlikely | O14: Q88 | P14: NHS England South East (Kent, Surrey & Sussex) | R14: Q87 | S14: NHS England South West (South West South) | U14: Q71 | V14: RYJ | W14: IMPERIAL COLLEGE HEALTHCARE NHS TRUST | X14: RYJ04 | Y14: Queen Charlotte's Hospital - RYJ04 | AA14: RAL | AB14: BUCKINGHAMSHIRE HEALTHCARE NHS TRUST | AD14: RAL | AE14: BUCKINGHAMSHIRE HEALTHCARE NHS TRUST | AF14: RA430 | AG14: Bradford Royal Infirmary - RAE01
L15: Electronic tablet/kiosk at point of discharge | M15: Don't Know | O15: Q71 | P15: NHS England London | R15: Q88 | S15: NHS England West Midlands | U15: Q71 | V15: RYJ | W15: IMPERIAL COLLEGE HEALTHCARE NHS TRUST | X15: RYJ01 | Y15: St Mary's Hospital (HQ) - RYJ01 | AA15: RAP | AB15: CALDERDALE AND HUDDERSFIELD NHS FOUNDATION TRUST | AD15: RAP | AE15: CALDERDALE AND HUDDERSFIELD NHS FOUNDATION TRUST | AF15: RA707 | AG15: Bridgwater Hospital - RBAC3
L16: Paper / postcard at point of discharge | O16: zIS1 | P16: Independent Sector Provider | R16: zIS1 | S16: NHS England Yorkshire & Humber | U16: Q71 | V16: RJZ | W16: KING'S COLLEGE HOSPITAL NHS FOUNDATION TRUST | X16: RJZ01 | Y16: King's College Hospital (Denmark Hill) - RJZ01 | AA16: RAS | AB16: CAMBRIDGE UNIVERSITY HOSPITALS NHS FOUNDATION TRUST | AD16: RAS | AE16: CAMBRIDGE UNIVERSITY HOSPITALS NHS FOUNDATION TRUST | AF16: RA9XXX | AG16: Broomfield Hospital - RQ8L0
L17: Paper survey, sent to the patients home | U17: Q71 | V17: RJZ | W17: KING'S COLLEGE HOSPITAL NHS FOUNDATION TRUST | X17: RJZ30 | Y17: Princess Royal University Hospital - RJZ30 | AA17: RAX | AB17: CHELSEA AND WESTMINSTER HOSPITAL NHS FOUNDATION TRUST | AD17: RAX | AE17: CHELSEA AND WESTMINSTER HOSPITAL NHS FOUNDATION TRUST | AF17: RAE01 | AG17: Central Middlesex Hospital - R1K02
L18: Telephone survey once patient is home | U18: Q71 | V18: RAX | W18: KINGSTON HOSPITAL NHS FOUNDATION TRUST | X18: RAX01 | Y18: Kingston Hospital - RAX01 | AA18: RBA | AB18: CHESTERFIELD ROYAL HOSPITAL NHS FOUNDATION TRUST | AD18: RBA | AE18: CHESTERFIELD ROYAL HOSPITAL NHS FOUNDATION TRUST | AF18: RAEXXX | AG18: Chelsea and Westminster Hospital - RQM01
L19: Online survey once patient is home | U19: Q71 | V19: RJ2 | W19: LEWISHAM AND GREENWICH NHS TRUST | X19: RJ2XXX | Y19: Non-hospital site - RJ2XXX | AA19: RBD | AB19: CITY HOSPITALS SUNDERLAND NHS FOUNDATION TRUST | AD19: RBD | AE19: CITY HOSPITALS SUNDERLAND NHS FOUNDATION TRUST | AF19: RAJ01 | AG19: Chesterfield Royal Hospital - RFSDA
L20: Other | U20: Q71 | V20: RJ2 | W20: LEWISHAM AND GREENWICH NHS TRUST | X20: RJ231 | Y20: Queen Elizabeth Hospital - RJ231 | AA20: RBK | AB20: COUNTESS OF CHESTER HOSPITAL NHS FOUNDATION TRUST | AD20: RBK | AE20: COUNTESS OF CHESTER HOSPITAL NHS FOUNDATION TRUST | AF20: RAL01 | AG20: Chippenham Community Hospital -RD102
U21: Q71 | V21: RJ2 | W21: LEWISHAM AND GREENWICH NHS TRUST | X21: RJ224 | Y21: University Hospital Lewisham - RJ224 | AA21: RBL | AB21: COUNTY DURHAM AND DARLINGTON NHS FOUNDATION TRUST | AD21: RBL | AE21: COUNTY DURHAM AND DARLINGTON NHS FOUNDATION TRUST | AF21: RAL26 | AG21: City Hospital - RXK02
U22: Q71 | V22: R1K | W22: LONDON NORTH WEST UNIVERSITY HEALTHCARE NHS TRUST | X22: R1K02 | Y22: Central Middlesex Hospital - R1K02 | AA22: RBN | AB22: CROYDON HEALTH SERVICES NHS TRUST | AD22: RBN | AE22: CROYDON HEALTH SERVICES NHS TRUST | AF22: RAPNM | AG22: Colchester General Hospital - RDEE4
U23: Q71 | V23: R1K | W23: LONDON NORTH WEST UNIVERSITY HEALTHCARE NHS TRUST | X23: R1K04 | Y23: Ealing Hospital - R1K04 | AA23: RBT | AB23: DARTFORD AND GRAVESHAM NHS TRUST | AD23: RBT | AE23: DARTFORD AND GRAVESHAM NHS TRUST | AF23: RAS01 | AG23: Conquest Hospital - RXC01
U24: Q71 | V24: R1K | W24: LONDON NORTH WEST UNIVERSITY HEALTHCARE NHS TRUST | X24: R1KXXX | Y24: Non-hospital site - R1KXXX | AA24: RBZ | AB24: DONCASTER AND BASSETLAW TEACHING HOSPITALS NHS FOUNDATION TRUST | AD24: RBZ | AE24: DONCASTER AND BASSETLAW TEACHING HOSPITALS NHS FOUNDATION TRUST | AF24: RAX01 | AG24: Countess Of Chester Hospital - RJR05
U25: Q71 | V25: R1K | W25: LONDON NORTH WEST UNIVERSITY HEALTHCARE NHS TRUST | X25: R1K01 | Y25: Northwick Park Hospital - R1K01 | AA25: RC1 | AB25: DORSET COUNTY HOSPITAL NHS FOUNDATION TRUST | AD25: RC1 | AE25: DORSET COUNTY HOSPITAL NHS FOUNDATION TRUST | AF25: RBA11 | AG25: County Hospital - RJE09
U26: Q71 | V26: RAP | W26: NORTH MIDDLESEX UNIVERSITY HOSPITAL NHS TRUST | X26: RAPNM | Y26: North Middlesex Hospital - RAPNM | AA26: RC9 | AB26: EAST AND NORTH HERTFORDSHIRE NHS TRUST | AD26: RC9 | AE26: EAST AND NORTH HERTFORDSHIRE NHS TRUST | AF26: RBAC3 | AG26: Croydon University Hospital - RJ611
U27: Q71 | V27: RAL | W27: ROYAL FREE LONDON NHS FOUNDATION TRUST | X27: RAL26 | Y27: Barnet Hospital - RAL26 | AA27: RCB | AB27: EAST CHESHIRE NHS TRUST | AD27: RCB | AE27: EAST CHESHIRE NHS TRUST | AF27: RBAXXX | AG27: Darent Valley Hospital - RN707
U28: Q71 | V28: RAL | W28: ROYAL FREE LONDON NHS FOUNDATION TRUST | X28: RAL01 | Y28: Royal Free Hospital - RAL01 | AA28: RCD | AB28: EAST KENT HOSPITALS UNIVERSITY NHS FOUNDATION TRUST | AD28: RCD | AE28: EAST KENT HOSPITALS UNIVERSITY NHS FOUNDATION TRUST | AF28: RBD01 | AG28: Darlington Memorial Hospital - RXPDA
U29: Q71 | V29: RJ7 | W29: ST GEORGE'S UNIVERSITY HOSPITALS NHS FOUNDATION TRUST | X29: RJ7XXX | Y29: Non-hospital site - RJ7XXX | AA29: RCF | AB29: EAST LANCASHIRE HOSPITALS NHS TRUST | AD29: RCF | AE29: EAST LANCASHIRE HOSPITALS NHS TRUST | AF29: RBK02 | AG29: Derriford Hospital - RK950
U30: Q71 | V30: RJ7 | W30: ST GEORGE'S UNIVERSITY HOSPITALS NHS FOUNDATION TRUST | X30: RJ701 | Y30: St George's Hospital (Tooting) - RJ701 | AA30: RCX | AB30: EAST SUFFOLK AND NORTH ESSEX NHS FOUNDATION TRUST | AD30: RCX | AE30: EAST SUFFOLK AND NORTH ESSEX NHS FOUNDATION TRUST | AF30: RBL14 | AG30: Dewsbury and District Hospital - RXF10
U31: Q71 | V31: RAS | W31: THE HILLINGDON HOSPITALS NHS FOUNDATION TRUST | X31: RAS01 | Y31: Hillingdon Hospital - RAS01 | AA31: RD1 | AB31: EAST SUSSEX HEALTHCARE NHS TRUST | AD31: RD1 | AE31: EAST SUSSEX HEALTHCARE NHS TRUST | AF31: RBN01 | AG31: Diana, Princess Of Wales Hospital - RJL30
U32: Q71 | V32: RRV | W32: UNIVERSITY COLLEGE LONDON HOSPITALS NHS FOUNDATION TRUST | X32: RRV11 | Y32: University College Hospital Elizabeth Garrett Anderson Wing - RRV11 | AA32: RD3 | AB32: EPSOM AND ST HELIER UNIVERSITY HOSPITALS NHS TRUST | AD32: RD3 | AE32: EPSOM AND ST HELIER UNIVERSITY HOSPITALS NHS TRUST | AF32: RBT20 | AG32: Doncaster Royal Infirmary - RP5DR
U33: Q71 | V33: RKE | W33: WHITTINGTON HEALTH NHS TRUST | X33: RKEXXX | Y33: Non-hospital site - RKEXXX | AA33: RD8 | AB33: FRIMLEY HEALTH NHS FOUNDATION TRUST | AD33: RD8 | AE33: FRIMLEY HEALTH NHS FOUNDATION TRUST | AF33: RBZ12 | AG33: Dorset County Hospital - RBD01
